Workbook

Sheet Portada
B13: Modelo de Proyección Financiera Mensual - FINDETER
E24: Vicepresidencia Financiera y de Operaciones

Sheet Instrucciones
B2: Modelo Financiero para La Evaluación De Proyectos De Inversión
B4: Este Modelo permite proyectar a siete (7) años los E. Financieros de FINDETER, facilitando la toma de decisiones en materia Financiera; para operar y navegar dentro del modelo, éste le preguntará información que Ud. deberá digitar.
C7: Nota Técnica: | E7: Parámetros Generales Para el manejo de la Información en el Modelo
C9: Celdas Color Blanco | E9: En las celdas sombreadas con este color por favor digite la información requerida
C11: Celdas Color Verde | E11: En las celdas sombreadas con este color el modelo calculara y presentara datos
C13: Celdas Color Azul | E13: Las celdas sombreadas en este color son títulos o subdivisiones del tema a desarrollar
C15: Celdas Color Azul 2 | E15: Las celdas sombreadas con este color son las que permiten navegar dentro del modelo
B18: Instrucciones para alimentar el modelo
B20: 1- El modelo se alimenta por módulos.
B21: 2- Cada Modulo contiene una política que debe ser coherente con la Visión Estratégica de la Empresa. (variables internas)
B22: 3- Debe ser alimentado con los Estados Financieros (históricos) del año inmediatamente anterior.
B23: 4- Se deben alimentar las diferentes variables macroeconómicas (DTF, IPC, TRM, etc.)
B24: 5- Los valores deben ingresarse en totales según el periodo (unidad de medida) elegida

Sheet Menu Principal
B2: Menu Principal
C5: Modulos de Entrada
C6: 1. VARIABLES
C7: 2. PLANEACIÓN CAJA
C8: 3. DESEMBOLSOS
C9: 4. MODULO DE CARTERA
C10: 5. MODULO DE INVERSIONES
C11: 6. MODULO DE DEUDA
C12: 7. MODULO DE EMISIONES
C13: 8. MODULO ACTIVOS FIJOS
C14: 9. MODULO DEPRECIACIÓN - AMORTIZACIÓN | H14: Modulos Intermedios
C15: 10. MODULO COSTOS ADMINISTRACIÓN | H15: 10. MODULO REEXPRESIÓN.
H16: 11. MODULO FORWARD
H17: 12. MODULO CUENTAS X PAGAR
C19: Modulos de Salida
C20: 13. ESTADO DE RESULTADOS.
C21: 14. FLUJO DE CAJA
C22: 15. BALANCE GENERAL
C23: 16. ESTADOS FINANCIEROS ANUALES
C24: 17. INDICADORES FINANCIEROS
C25: 18. GRÁFICOS

Sheet CB_DATA_ (hidden)
A1: Crystal Ball Data
A3: Workbook Variables | B3: Last Var Column | C3: 0
A4: Name:
A5: Value:
A7: Worksheet Data | B7: Last Data Column Used
B8: 3
A10: Sheet Ref
A11: =CB_DATA_!#REF! ->  | B11: ='Mod. Sensibilización'!#REF! ->  | C11: ='Resultados Cristal Ball'!#REF! -> 
A13: Sheet Guid
A14: 40bba8a5-e4e4-4b91-a638-2650a6095103 | B14: f9b8b879-573c-4749-a70d-c08187415580 | C14: 154bf87e-f698-4415-bfaf-a4ee132303e6
A16: Deleted sheet count
A19: Last row used
A20: 31 | B20: 34 | C20: 26
A25: Data blocks
A26: CB_Block_0 | B26: CB_Block_7.0.0.0:2
A27: 㜸〱敤㕣㕢㙣ㅣ搵ㄹ摥ㄹ敦慥㜷搶㜶㙣攲㕣㐸戸㤹晢挵愹㠹〳㈹㤷㌶㑤㝤挱㠹挱挱㈶敢〴㄰㐵㥢昱敥ㄹ㝢㤲㥤ㄹ㌳㌳敢挴ㄴ〹摡㠲㘸㔵㝡㠱ち㈱㄰㙡ㄱ慡㤰晡搲换ぢ㠵㤶㤷㑡㤵㕡㔵㈰昵㠱㍥㔴敡〳㐵㔵晢搰慡㡤搴ㄷㅥ㤰攸昷㥤㤹搹㥤摤昵㡥捤〲慤愹㝣ㅣㅦ㥦㌹户㌹攷晣搷昳晦晦㈴愵愴㔲愹て㤰昸㤷㈹捤挲挵㠵㔵捦ㄷ搶挸㠴㔳愹㠸㤲㙦㍡戶㌷㌲收扡晡敡㡣改昹㕤攸㤰㉤㥡㘸昷㌲㐵捦㝣㔸攴㡡㉢挲昵搰㈹㤳㑡攵㜲㥡㡡㜶㑥挲摦㠱攸㐱攳愸摥㌴戲挲挴昸散挲㘹捣㕡昰ㅤ㔷散ㅢ㍡ㄹ㡣㍤㌴㍡㍡㌲㍡㜲攰㤶㠳㈳晢昷つ㑤㔴㉢㝥搵ㄵ㠷㙣㔱昵㕤扤戲㙦㘸慥扡㔰㌱㑢㜷㠹搵㜹攷㡣戰て㠹㠵晤㌷㉤攸㌷摦㍡㝡昳挱㠳挶㙤户摤摡㡢㌷愷㡥㑤㡣捦戹挲昰㍥㥥㈹㌳㕣昰捤㤳愲㘴㜲㘷㐲戸愶扤㌸㌲㌱㡥㝦戱搵攳改㤶㤱挲㤲㄰㍥摦㉣㕣㘱㤷㠴愷㘱㘰㡦㌵收㜹㔵㙢㤹㐷愷㔹㔳搸㘸㐹昷晣㡣㌵㈱㉡ㄵ捤㡡㘶捤㔹戳㌸戹㡡扥摡㙢ㄵ㠴敤㤹扥戹㘲晡慢㔹㙢ㅥㄳ㤵晢慣ㄳ㥥㌸慥摢㡢攲㙥摤ㄲㄹ敢㐸搵㉣愷㠳㤴敡扡㌶㥡㈲扥㌰戹晢㤱㌱捦㥡㔸搲㕤戹㈲㡦攷㤲搰㜷捡㉤㌵昶扤戲晤扣㕣扡㝣〳攷扣扡㝤㍦戴㥣搴摤㕡捦攱昶㍤挳捤㌷慥攰挶昶晤㘳㘷搴㌸收晡昶㘳攴㔱㌶昶㔶㝡㐲散㤶㈷㡡捤㘸㔹㘶摤捣㜲捣〸㐰㉤捦慣㠷㔹㉦㌲㈵晤㙦搰㐸㝣㈰㥢搴愲慥ㄶㄷ搴㘲㐹㉤㤶搵愲㔰㡢㠶㕡㕣㔴㡢㑢㙡搱㔴㡢愷搵攲ㄹ昴㠹㔲慥扢㕢つ搳㌳㑦慢户慦扣㝥㜸散愹晢㕥㥣捡㍥昴慦挷㝡户愱搳㍤攱愲㈶㕤晤㉣㔰慤㡥挴〷㐶昶昳㘷㝤愲〰㑤ㄸ〷㡤㕢㡣搱搱昲挱晤晡㑤㝡㠶摢㑡〰㝥〳愲っ愰㙦慦㜱慦㘹㤷㥤戳ㄲ㜶ㄷ㡦敢㥥愸ㅦ摣㜰搸㌶敥㔴敤戲㜷搱摡㡤〵㕦昷挵摥收戶晡㈴㉤挳ち㈰㉢攱挹昷㕤摡㍣散愴㕥愹㡡戱㜳㘶搰㝣㐹㔳戳㌵攷㍡ぢ敤㕢愷㕣昱㔰慤戵㘵㐵㘳㘰㘹㉢㜲敥㤶㕤〶㑤挱扡㠶㈶㤶ㅣ㑦搸㜲㜹挳搶㥣㔹㍡㈳摣㠲㈰㐳ㄴ㘵戹搵㥤㙣ち愹㝥㜸搶挶㐶㐱慤攵㉢攲戵挶ㅤ攷㝣㄰戳㈸㘳扤换挲昵㔷攷昵㠵㡡搸搵搰㈵㜸㈷ㅡ昶㌴㔴㑦㌹愵慡㌷攱搸扥敢㔴ㅡ㕢挶捡㉢㍡㌸㑤昹㤸㔳ㄶ改㜴㑡㌲〵戰摢慥㉥㐵㐹摤搰㥥ㄶ㈴㈰㘲㈰㈶㈱㕦搸㠸㜶㈳挷戱㍢散愲㈲㠸㤳敡㔵敢㑣挶昵㑡ㅥ㤳㐰㠱戱㍤㔱㝡昰愵搷慤㌳㙤つ㜲㥦㙣㘷㔵ㅤっ㜷㝦挷㡡戰晤愳扡㕤慥〸㌷㔱昶㈹㕣㤱搶㡦㉣㜳ㅥっ愱敤改㔱搰㈹攷㤴搵捣㔹戳散㉦㘵㤷㠴戹戸攴愳づ昲㌱㤷攳搱戶㈴敤〲㔴㘹摢㤹つ㈲换攷㔳搹ㅤ散㤴捤㈳愵㌲攴㑥〹戴摣挰挸㌹慥㠱㤶㝢㡤㈹戳攲㡢㠰㈹昷ㅢ㠰㐸㈰搵㈴昸晡㠸愲慥㕥ち〴挶づ㘳〲㔸慡㥢戶扦㕡愷摢ㄶ㉡〹㤰㘸㡢ㄷ㙣㍡㕥㐰㔶搰挸てㄲ㘸つ㐸搳挴つ㤲㍢挷㤰㠸㘴㤰㈰搹㌱㜳㈳㤲戱㝦〲㡦㐰晦㌸ㄲ戲昷晥昶㍣㠲挸摥㡡愴ㅣ搴㤶ㅥ户戸搹㕡㥡㝣挰捤㜶攲攰戴㕤捣㜶㌳扢㤰搹ㅥ㘴捡㕦挱攱挸攵㔰㙥㑣摡㐵㜸搶㉥㘶㜶〹㌲昰㈷㡤㍣㈷㘴㔵搴愱㌶愲㐷戲㕦ㅦ昴㘴愹ㄴ〷慣㠸㥡㜱㑤捦散戳㈴愰㐳慤㜳㜳挸摡戴㤴戱搷戴挷捤昸㜶㠸㤱〹㕤攳㝢㕤愷㙢晣㈰搸戵㐳戹㜵ㄹ㠶㙡㐳捣㉥㐷㤶搷慥㘰づ攱㐲㠵㜷㘳ㅡ㍤㔵捡㑦㠵㕡ㄴ㈸㐳ㅤち昸㄰㤱㜹〵㐸㘰㜲㉤搷㤷㉤ㅤ㥡敡攰戰昱愹搷愱昷戵愷敦㄰攸㑤㜲㜳㑢敥搰㕡昴㈱戵攸㉢㐱㕥捡㥦摡捡㤸慢搱慣㕤挳散㕡㘴㑤㌲㠶户敦て㙢㈹㤰㙡戱ㄵ㠳摣㜶㕡㕤愴㤶㍢扦扡㉣愴〴敡㌵收㜵㜷㔱昸戰㘰㑣㑦㐲ㄷ㜶㕣㔷㔴㜰愹㉤换ち摥㕦㜶㌷㔶㝡㔳慥㘳戱㝥㑢㐷昶㍥ㄵ㠲㈱㥤㔶扢㔲㑤㍡㜲㠲慥ㄹ戳㌹挵㌰㠷㌲昸愶昶㑣㈲㌶愸ㄱ扤㌸㉥昹㝥戹挵㐹㍡攰㈴搷攳㔸戵ㅢ㤰㠱㑢㈸㝦㘸换㔱昶戱摢㘷㘴户㐶㡤㤵ㄶ扥㠴摢㐹㤳つ戱㠵㡦昴〴〶摢㜱搸て扣㍥慢㘰㕡㌵㘶搱㘳捤〹户〴摢㠲㔹ㄱ昹挰㉣㑢㔶戳挵㉢㍥㈵扣愲慢慢攵㍥㥤㘰㕦㤳㜸搲挴㈵ㄲ愹㍤戱㌱攱㉥㕥㐷㉡㥡㈱挹㔴ㄲ㑣㐳㌵づ㐴捣㘳摦㉤ㄶ搳〱㡢戹ㄱ〷愷敤㘷㌶捡散〰戲捣㕢攰㌴ㅢ㍤㜸㍡挳扡㔷㘸搲㉥ㄶ㔳㌹㠲㐱㥡〸摦㙣换慣づ昲㌵㥦㘵㜶ぢ戲㈶昵㠷〶挸〴㐴㤴㈰㡦㈱愲㜴㘳ㄸ㈷㑤㜱㤶㌸戰捤㠰㘳㘹愲敡昹㡥㐵捦㔲㥦㌱改摣敤昸㤳愶户っ㑦搴愰ㄱㄶ敥㕤ㄲ㌶戰换㠵敥搳㔴攷㉣㉦㡢戲㘶ㄴ㥣㉡㔸摢昴攴㘶戸㤸攳㌸愰㑢捡扢戹慡㈰㜵㜶㍦挶ㄴち㑥㕡摡㕢㘹㡤摤㤰昵㥢㤷扥晥晡㠹捥㥢㝥㐵昴ㄸ〱搱戱㥣㌳㜰㡡昰ㅣ㤴扢㡤昹㈵㔷㠸挹㍥攳㠸㙢㤶㉢愶㉤〸っ攸㤸㜴搶捤㠸㐵㜸〹收ㅣ晡〰ㅤ扢捦㤸㜷㜵摢㕢搶改㔰㕣摤摥昰㈴摤㈲ㄹ㘳摣戴㍤扣㐶㐲㤱攵㝥愳戰攴㥣㠵扦戶㙡搹㐷昴㘵㙦㔳㐰㠵㐸ㅦ㈴〹ㅡ㐵㔵㔴㔵挹愹戹㑥攱挳ぢ㜹㉡㐵摡㑢㌳㤳戰㑡㘵㘸㌳㑦㤰摥搴敢㐳ㅦつ昵㜴慥愹ㄷ摥愳㕡㘵㔷㈲ㄷ㈶愵㙡户㜱捣敤挸愶㡦㥣㤸慥㝢收㍥㡡挷㍡㐳㈳㝦〲㡢㤷㔸㔱昳㠳搰㐴户㉤挰ㄴ搶ㄱ㜱㐰㠰〰㌸㥦㥡戱㉦㙦挸㍥㐴扥㙤昵攲ㄴㅣ㐹扤挶㡣扥㈰㉡㜰㐷㕢扡扦㉤㜸愰ㄶ㙢改ㄵ㉦㙣㥢㜰㉣㑢㈷㘶ㄱ㉢ぢ㈵㥤〸㍣㔶昵㥤㘳愶慤ㄹ挸㈴晡㠵㔵晡㌹㔴改攷㘴㔵慦㜱㥣㥥㐱㔹收㕣捥愲敥㥡晥㤲㘵㤶㜲㝣愰昷㙥㔳愰㈴㘸㥣㡣㌷㑡ㄱ换ㄸ㙡㔲收㑦㐰㘳昳㐶〰敤ㄱ戰㔱ㅥㅤ愱て挴㔵㤵㉣㝥㤴づ敤㑡攰㉦搲㔰慡㝤ㅥ戳㘵㘴㘸〴㌸㡥㑣攷愳〰㡣昳㡦愲㈶攰㐱㠴㝡〲㡡挰㈸ㄸ攳昱戴㜰㘷㡤ㄳ戶改〳㝡㠴搸㤴改㑦㝡〰㌹㌲ㄴ攵敤㜶慦㠴㙡㙣搰㜰㑤㈸㕣搶摡搴㈰㈵㉥㙤㙤㡦㡢㡤慢搶㘸づ〴㑡㑣㡥慣搷㐹ち㤶㌵搶戸㤹㈴㡤㈲攵㜶㈴㙣㤴㈴慢㘹晤摣挹㐴㍥㠲㕣㤲㌸㤳搲扥㈰ㄱ〵㝥摥㔰㐴搱㘴㥦㡣ㅥ㌱㠷つ㔵㠰㍣挵㔴㔰搷ㄷ㝡〴愷ㄱ㜵㔲ㄶ昹昰〹昴扤㉤㉣捥㔶晤㠶ㄶ晤摣㘰搸㌲㔶愹捣摡㔰ㄲ㑡扡㕢摥㈴㈴㡤扤〵〲㐶㔲㘷愷挲㍦㌸摥ㄸ㈱㠶㘴㐸慦㐸㠲ㄹㄸ㘴〸攲㡡㌹㔴愹㥣昵昱愸㙢搵㌹㍥ㅤㄳ扡㉤㈱㔰昰换㤳㘲㐵㙡㘱㜵㐵㝥㔰づ愸㕤ㄶ㈵ㅦ搵㡣戱〵てㄲ摤㈷ㅦて㑢㤲挰㌵攳㌸慤㔲㠸㘱〰摢つ㑢㜳㈵ㅦ㥥摤摡〴扣ㄸ㙣ㅥ攸攰㐴〲捦〹㤵㌳㜲搰㙣〲攲㌶㙥㠲戴搳㈱㐴挱㐸つ㤹晥㜹㔸㜹攱㜹愶ㅦㅤ㑥㐵㠵㤰㠸攸敤㑡㔰ㅥ〰摣戸㘳㤲㔴㌴ㄸ昹换〳捥㈶㤹㔶㙦㔴㐷つ愳㡦ㅡ㥦敢㈳㠸㠷慥慣㝥㤲㑤〵㐱㙥扥〹㘹㕡㔹摤㘶㑣摢愵㑡戵㉣愴㈸㡥㜸戵㤴挸㥢〲㕥㌲晥㉦愰愶㠴㜳〹て㘵ㅡ㌷㈹㙥㤹㐰敡㕣敤搶づ㘳戸㘴㜲㤸㈳㄰㝤昴㍦㈶㔸攵愴㍦慣㈵㑣㠱敡攱昶㝡晣㠲㡣㥤〳㑢㙢愹㈲㉦㥢㐱㌸㕥捤㠹㉣愹㉤搶㙤挶㤹㜱愸戲挷慡㡥㥡㐱搵愶㠰ㄱ昶ㄹ㌰扣㙣ㄶ捡㐸㠷搴挱㐹㔲攷㐳攷敥昹㐷攵㘳敡㍣㐰㈱㈱愰搰挵换㑢㔰ち愷ち㐲愲扥慤搶㤵㙥㠵捥㕦㉡摥摡ㄸ㌲㠵㕥㘰㉡戴攸ㄹ㈸㌸ㄳ㈸慦慦攰㕣㠶㕥〹づ搲戸㉦㤵㉥捡㐱搸敢〱㌴㔰ㄳ敦搱昳づ㠴㤰扦㐳挶㠵㐵愱㠹挳ㄶ㙥㐰㡥扢慢愹㜲㑥昷ㄱ晤㘲敦㘹慡ㅥ㉢㤷愹敥挲㍣户㈹愰㡡挸㡤㐰ㅤ摤搱ㄴ㤳㈵昷㐴晤敥捡愶㠶㌰㔶昰挰攴挸㔱摤㉦㉤ㄵ晣搵㈰㙥慢㔳㤴挸扣〱㜳挴㥡㙦愷捥㥣戶ㄹ㠷扡挲戳捦㥦戱㥤戳戶㕣㔷挶㘳搰ㅦ㌰〴ㄱ㤴摤㕣㘴㍥昵〱㝥㘴㔲㔳㤹㕦㘲挶㡤㉣㥢ㄳ搴敤㈳㥣㐷愶㠰ㅢっ愱㥣㠰㈷搰摤㙢㐱〳挴㤳ㅤ㑤㜸㈲ㄹ挱ㄶ愲搸㡢ㅦㅢ愲㈸扦〰㔸㠹㉣挱㡤ㅣ㘷晥ち㐸㕦㜹ㅤ㌵〴㌸㥥㐳㌶㤲戹ㅣ愵〴搰㐹㐶ㅥ㐶㜸㌰ㅥ攴晦〷㑡ㄱ㌵慦㐹㑥晦〵㘲㔶㕥㙢〶搱愵〴搱捦㕢㐰愴㌰ち㐴搲敦㥤㘱㠱てㄹ㝡㘷㍦㤴ㅦ㥣㝢摡扡㠰㝥攲昱扥晦挳ぢ攸っ㈰捣㈴㜵㌴㜸摡慥㐶戹愶㈲愸㉤㉡〲㝤昷㔲㐵㌸挶㌱㜴攲〷㉡㐲㘸〳㤹㐵挵晡㉡〲㕤㝢〹㡡㘰捣搳ㅡ㌳㙢昰〶戶换愲㝤散㈸攲㙥㠵〷㜷㍥㠴㤶㌷〱㡢搴敥搶敡㌹摤搵慤㍤戲晥㠸㉢㈰捣摣㜹〴㜲换㈱ㅣ戱㜷捤ㄶ㌹㘸つ㕢㐵㘴㘴摦戲愷㙣㉣㝣ㅤ㤰ち㔲㘰扤㔷㜲㑡昶㈳㔸㑡ㄴ摥ㅢ㔲㕦摥昱攳㈳㝦㝥昸昱挳っ㔶ぢ㜱㌵㜳〳捡㥤㜸散愹㑦挰愷ㅢ㡢ㄳ搹挹敦㜲㡥攱〳㈵㜳戹㈲挶㜵㔷㙡㐱㥥㘶㐵挵〰昱㘲㠸ㄹ㈰摦㘶㔰㌱ㄱ昶㄰愸㤸㈳㑤收㑥昹㕤㤳㌴ㄱ㡥挴ㄶ㉥㙤㝡㤱搷㔰㘹㉢挸㍡搴㌶㌳㍦㠵㈸晡㤰ぢ㘹搴ㄲ㜹敢㘴㔲㤴㥦㌴换扡㠳㤴㜵挱㐵㠶㕥晦㠸㑢挱晤㐰っ㠹㕦㘴ㄸて㈰戹搴㜱ㄴ㌲㌷㈲㑢㜰慣㌵㝢㜸㘹て搸㘲〲愲ㄶ昳搷攱㌷㉣㌸㐵㐰㌱戲挵㜷㝡愳愵㉥ㅡ㠹㈶㝡㙡愵㑥㔳㐰㐱㕥㕥㔸㌱ㅡ搵捥愳㄰愵捣〱㤴㌶㙣㡥攲㑢晡慣挰敦ㄶ㄰㜶挶愲慤㉤㙦摤㘱㔷ㄱ昸〱㌹㤳㤵〲挳摥捥㙡㕣㐸愵㡢㉥攸㥡て慡㤸昷〷挵摡愰㥥戰〹㌲换摥㠳㕢㈹㝣㝦晣㔰㠸敤挳昵愹㜷㌶户㔰挶搹摤搸㈰㝦愱㝦㕤㥡㐰搸㜸㉢㈹〶ㅣ㜶㐳扤㜲㐱㜴昸〹っ攱愶㔳㡡㔶㉦捡㘷攵㈰晥㐴㤴搵搵㉡晦改扣㤶㤴㜵㤲愳改挵㙥㤰晦昷愱㘲㕤昹慦搰昵㈶〱㜹㝦㔸㤰捡㈹晤㈷敢扡㙣㜸㈲戰㙣挳㜹㈳㉦挶㥡㉣搲攳ㅤ㤴ち昸㜲㌵㘸㤶ㅣㅣ㜶慦㜴㜳㘴㐴㙤㉣㜵摢㥥戶っ㤰扥愱捣㉢㘰㐱㙤挷㌷昲慤攸㜶㥢㝤〰〳㜷ㅣ㌳㑢慥攳㌹㠶㍦㔴㠰捦㜷㠸㥦㥥ㄹ搰㜹挶㤴ㅦ㌶㌳戵㉢㜱ㄲ扤て㘲捣戱㔹㌰散扢㠵晦㌱戹㈲改㔸搸㤸㈳㠳㕦㈱つ挴扣㑢ㄴづ摥〵挶㍤㔵扤㠲て㔷㘷㘱敡昴㔹戵㈹㘴㕤㘰㜰㙥㡥捦攰挹㈱㐲敢㉥㤸㠳㐴㘵〴扥㌱戹㠵〷ㅥ攴戱㌶㥦㐱㘳摦㜰㙦ㅥ㝢㜶㘶㜲换㘷㕥〶㐸㌷昶㤶㐶㡣攱㍢昹㍤㜲㕥㉢㌲㐷挸晥㘱晣摤戸㝤㤶戳つ〲捤挳㡦戹㘹〷ㅢ慥挰㝡戶〱摦昷㈹っ㔵挶㤸攱㔷搳挳〲ㅦㄴㅡ昹㐸㠹捡昷戱㉤攲㍦捡愹㙣〹㔹㝢愴㝥㜱㉤愴ㅥ戸ㄳ㘳㐸慥㥡㐰搶搷愵昰愶㐱慣捣㉢㉦愰㍦㑦㉤搸晤㈲敢㜰昳㤰㌷ち㤴戵㈵㘴㔱㔲㜸愳㤰敢㜹づ〳㙡敢㌹㡤摡昶敢㜹㜶慤昵㈸搴〵攴㝥攳昳て㐴戲㐴戳搰慣搹捣ㅣ㘶换挸〶㈲㤱搲㑦㉥挹扤㘴〳㑦挳敢㠴ㄴ搲敦挳扦敦ㅣ㝥敢㑤愶㝦ㅣ㔶㈴㕦㐴㔳攳㉥挸ㄷ攵㉥扥ㅤ摦㠵㠷摡昶扢㜸㙡慤㕤っ㤰㘵捡㔳慤愲㠰㔳㉤攲㡦摣搵㑡㔸㤰㔰㍣ㄵ搵㌶散㔵㐷慤ㅣ㝢づ㠵扥慥っ〱昳戹昶挲㠵扡㘳昴㈱㉣㝣〳つ㕦扣摥㠱㉦㔸㔷改散敥挲昷晢ㄹ㈹〹搳敡敤㥤捤ㄵ㘹愳ㄴ㘴㤹㈷戱敢㡦㌰て㜷㕦㌷㌹㜲挶扤昸捤㐱㜱㈴㥡挹㠳㝡㌸㉣昰㘱㈰㍡㥦っ挱㥦昰㠱㤳㔴ㄲㄹっ㥡㐳扦㙣㘰㤱捥〶慡㐱捥ち㑤搱㥢㠲㐳㠶㑥㠴戶㜲㉤摢㘱㤸㠳昲㐴㠴㡥㐷㡦㐶㕦㡦愹愱攳つ攴㄰愸攵㈴ㅦㅥ愴昲㜸搴昹㘷慦搶敤挶㘸㐰〲捤〴㥤㐹㘶戲昳搷愲捥〷昰㘵㥡散㤳㈲㘶㌱扤ㄳ㜵㈶㌹捡捥㕦㡤㍡晦晤挰㥥㕡攷㠸晡㠲㤹㌳㈴㡤〴㠵㕦㕥㠱㘲㕦愹昷愳㝢挶愰ㄲ搱㘳〴搵挴㐸改㍦慦㐸㌵愲ㄷㄱ㌱㉥扥ㄳ㥦㐱㝣ㄷ攲㘰㈰㙡㠲晦㉥㘲ㅡ㜱㕦㤳扡慦攳㌳昰ㄵ㜸摣㕤㑤㍥㜱㜰搶㤸㜵㔱搱㙤㑣㝢戸㔸㤶㌷ㄵ㡡㐰㈷㑡〷攷扢㡥㘷㈲㐱㝦慥㥦㐷攴㈹㔴ㄹ㐸搳㤹〸㤵摥愵戴昲㔸〴搹搴㘳㜵㥣搱扥〲攰㐰㌸㈰㘷㐱晢㉡昲挰ㅢ挵㠸敤搴〰戹㥥㘴㘹㡦愳〰㜶㐸捥㐶昰㘷㥦㐰搶ㅦ晤ㅦㅤ㐳㉢搲㔶愴㉡て㐷敦㠸㘳㡦昶㈴〷㝣ㅤ㔹ㄷ㑣搷㑡㠸㝢㜹敤ㅢ愸㠹扦㡢㡣㐳扥敢㥢㈸㠰㝤㜲㘹ㅢ㍥㈳敥愰㐳㘹晤ㄴ㠶㉡摣㌸攷搰扥ㄵㄶ昸愰㜰搷攴攲㡡㡢㡤㤱㜵㔲㈰㘹摦㘱つ㌷挵ㄵ㙡摦攵ㄳ昷㈲㠷㍦ㅤㄶ攴㜰㙥㐴づ户攳挳扦挷㉥昲愵㈸㌴挸戱〱扥㕣ㅥ挱戳㈸昴㜵昵昳㑤昷攲㔷㍤愷㤴㑥㤵㑦㥤㝡慦㍦㍤戴㌷㝤摦ㄷ㝢㥦㝦攷㜷敦㍥昳昶㤷づ晤敤晤ㄷ㕦㝣晢㉦捦扣昹晥ㅢぢ㠷㝥昳昲换扦扥昳〷㙦扥扢摤㜸㐹㝤昵扤㤹㤷ㅥㄹ㍤昳挸㐳挶㠹ㅢ㡥㍣㜲晦改㝢㐶攷㉥ㄸ敥敡敡敥扥㜶昰户ㄷ㕥㌷昰搸㐳慦㈹扦晡攳㙥㕢㤱㡢挷ぢㅡ㤷挱㑤挸㘵㍣㠷〲㤶挱ㄵ㝦愲换攰㜶攵㐱㉤㠵〷㌵㡥ち㑡ㄵ㉥㐰㌶㉣㌶㌶昴晣〷搳㑡㤸㉣ | B27: 㜸〱敤㝤㜷㘰ㅣ挵昵晦㡤愴㍢㘹㑦㤲㝤挶搸ㄸ搳〴㤸㙡㕢㔱㉦挶㐶㤶㈵ㄷㄹ㜷搹㤸ㅡ昹㉣敤㔹㠷慦㤸扢㤳㑢っ挱㜶〲愱㥢㤶㄰㥡㌱㍤〴㐲〸㈵昴㑥㠲〳㠶㐰㈸〱㠷づ㠱㄰〸㈵㐰㐲攷昷昹扣摤㤵昶昶昶㑥㈰㐳㝥晥攳扢昸㥥㘶摥扣㜹昳摥㘷㘶㘷㜷㘶摦㉥ㅥ攵昱㜸扥挶挱扦㍣ち㤸搸戹㝤㔵㌲愵㐷换㕢攲㤱㠸摥㤹ち挷㘳挹昲收㐴㈲戸㙡㐶㌸㤹捡㠷㠰慦㈳㡣昲愴户㈳ㄹ晥㤱㕥搴戱㕣㑦㈴㈱攴昵㜸㡡㡡戴㍣㤴て㌱㝦〱㉢愳戱㤶㔶㐰〲㈹㡦收㈳㈹㈴㈹㈲搱㐸晣㈴挵㈴㈵㈴愵㈴㠳㐸〶㤳〴㐸愸㔷摢㡥㘴㈸㐸挹昶㈰敤㉤㤳㘶㉦㍥ち㔶戶愷攲〹㝤㑣搹挱㠶㉤ㄳ㉡㉢换㉢换慢敡㙢换㉢挶㤴戵昴㐴㔲㍤〹㝤㐲㑣敦㐹㈵㠲㤱㌱㘵㜳㝡ㄶ㐷挲㥤〷改慢收挷㤷敡戱〹晡攲㡡敡挵挱㥡㠶捡㥡摡摡㔰㘳㘳㐳挹㌰㈸㥥搹㌲㘹㑥㐲て㈵扦㈳㤵挳愹㜲㜶换愴昲㔹㝡敡㍢㔲戹〳㔴捥㙡㤹搴ㅡ㡦〶挳戱敦㐶愷㤷晤㔴摤慡㜷㠶搹愱扡㥥〸挷㤶㤴挳攸㌴㤰㤱慢㉦㥦〲戴㍢㠳挹㔴㡢ㅥ㠹捣搳㐳散换㤲㈸〱搳ㄳ㝡慣㔳㑦づ㡡㑥㕥搹愹㐷捣攲㘴㔱昴攰㘰㘲㔶㌰慡ㄷ㌰㌱㌸㙡昴㔹㕢㤷ㅥ㑢㠵㔳慢㑡愳ぢ㤲晡扣㘰㙣㠹㑥ㄱ㙦㜴㙡㑦戸慢愰㐰ㄵㄴ㜸昲昷㜱㌳㐶㍡愶㝣㑡愲戳愵㍢㤸㐸㐹㡥㕤㔶改㈶㙢ㅢㅤ㘲㜸㥡㔹ㅣ㐱㘵㡥㕡散愴昶㜰昴㈰㍤ㄱ搳㈳㙣㠴㕤㌷摡㈱㈴㤸ㄸ挸昷㠲㘳㜹挳㝥㔱挵收㌹㐴㔷搸㡡㌶㠲㘴㐷㄰摦㐸㤰搲〵愹㜰㈴摣ㄵ散㉡挳㜸〸㙡㍢戱㜰㘷㄰㔵昰ㅡ捥㐶㝢㘵㥥ㄱ㜹ㅤ挱扣㡥挵㜹ㅤ㥤㜹ㅤ㕤㜹ㅤ㝡㕥㐷㈸慦㘳㐹㕥㐷㜷㕥㐷㌸慦攳愸扣㡥愵㤰戱㡥愲挲挲㍣昳㜸攴搰㈳攷摤㝢㔹㜴晡㤹ㅢ㥥ㄹㄹ晦㝣挸挱㕥㥥㠰戵㙥㥥㌸㐱㙡㑥㈶㝢愲换㜸收㥢ㅤ㈸愷㘹戴㌵㤹㥡ㄳ㑣㐴㤳摦㙤㑦愳㥦晢敢敡收㘴昴晢敦㙡㌴昲㥤㜴戵㙦㔷挰扣㘴ㄲ晡㜵捣捣㜰㙣㐲挵㤸㡡敡晡摡慡敡摡㑡搰慡敡敡慡晡㠶晡㌱㌳㠳㉢㔹搰㔰㕢㔹㔳㔷㕦摢㔸㔱㔷㔹㕤搹㔸㕤㕢㍢愶㌹戲慣㍢㌸愱㜲㑣㝤㐳㕤㙤㘳㔵㘳㝤㐵㝤㘳㔵㜵㔵㐳攳ㄸ敡㥢㔰㌵愶戲愱戲愲愶扡扥戲愶ㄱ晦搵搵㌴㘸扢愱㌱慤っ挴户㍢㐸㔱摢㥣㤶戲扤挶㔵㡤搳昶㈰㝦㑦㄰愵㥥挷㤰攲戰㝡㈳昰挰つ㐵㈷㑦㥡㜸扡攷㠵㉢㑡ㅦ㝥㌷㕦㜱㉥收㤸昰敤〵㜲攴㡣昸㤲㔹昱㐴ㄴㄳ攴㑣㍤㈸㜶搷㌷搶㔴㔴搷㔵㔷㔴㔵挰捣敡摡晡捡㌱敤愹慥㔶㝤㌹㑤慦慣慡慤慤慥慥慥慤㘸愸愹㙥慣慡慣慢ㄹ㌳㈳摥ㄹ攴㤰ㄱ㡦㙢㉡㙢慡ㅡ㙡ㅢ㙢ㅢㅡ敡攱㜷㜵㠳戶㌷㥡搰昶㘱㘳晢㠲㙣摦㍡㝦㑡搹攴昲收扤昶つ㠵㘳㘵㔱㍤戹摦戸敡㜱摡㝥㤴搹ㅦ㐴愹愷㑤㥢搷摦扣扡㜶挱捥㑦捦扣晤愰愳㜶㡣扣㌵散㈷㡡㤷づ戱㜹っㄲ摦戳捤㘳㘹㑦㌹㠸敦〷㈰㐳㌲㙣搶㉡㈸㔰〹愲搴㘳愶挱㜹扦搰㠳ㄷ晥敡㤳㤹ㅢ㝥晦挷搴㥣て慥敤㔱㥣ㅡ挵攰㙡㈴扥㘷㠳㙢㘸㑦㉤㠸慦づ挴〵㘴っ㡣㝡捡㌴㠰㈸昵㤰㘹㜳㘰搰扡慦㉥㥤摣搲㝡搹㤶㌷㍡㙦扦㝣收㍡挵搳㕤㙣ㅥ㠷挴昷㙣昳〱戴㘷㍣㠸㙦〲㠸㡢捤昵攳戴〳㈹搳〴愲搴扤愶捤㐳㥢㝥户晦攸㈵㐳㥢㑦晥摤㡤㌳㙦㥤昸昲㑥㡡㌷ㄱ㘲㜳㌳ㄲ晦戳搳㙦ㄲ㉤㙢〱昱戵㠲㤸愷㕦敤㌸㙤㌲昹㔳㐰㤴扡捤戴昸愶㌹敦扤ㄵ摦戱㙣晡ㅤ㍢㜴㥦㝢搷慦㙥㍥㑥昱㡥㐷㉣㥥㠶挴昷㡣㜲ㅢ敤㤹づ攲㍢〸挴〵攵扡㜱摡っ捡捣〴㔱敡〶搳㘶捦㑢㠹攷ㅦ戸昸㤸㤹敢㙥昶㝦㜱㡦敦挰挵㡡㤷㈳戱㜹㌶ㄲ晦㌳㤴攷搰戲戹㈰扥㜹㈰㈶捡㤸㌰摡挹㥦て愲搴㌵愶挵㜷扥㤴摣敥攴搳㕥㙢㕢昳摥愸敤㉥昹攷㜰㕤昱㙥㔲㉣㍥ㄸ㠹挳ㅣ㤳摣㔸捥㘴㜵昵搵㡤戵昵㡤㜵㜵㤸收㉡慡ㅡ晡㈶戹捡慡挶扡晡扡捡捡㠶㡡㡡㥡㕡ㄴ昴捥㜰愸㔶㕤㕢㔷㕤㔷搳㔸㔵㕢摦搰㔸㔹㠵〹㔰㕢㐸㘳づ〱昱ㅤち戲ㅤ收挹㘰愴㈷搸ㄹ㝥攰挶㔸㔹㌰搶ㄳ㡣㘸㠷㔱攲㜰㄰愵㉥㌷捤扤昹〷㉦㥤戲愸攱戴改㜷愵㤶㕥扤㌱㝣晦㝥㡡昷扤㘲敥㤱㐸㜴摢慦㈲㌲攵搶㔶搴攱㕡〲㜳敢ㅡ慡慢慣换㐸㘳ㅤ慥〸搵戸㘰挰㤰摡慡捡晡晡摥换㐸㘵㘳㝤㐳㘵㔵㐵㐵〳㘶攲扡挶挶ㅡ攳㌲㔲㌹愶慥戶愶戲ㄱ㔳㌷慥㐵㔵㡤搵㔵㤵摡て㘹㕡〷㠸㙦ㄱ挸づ㘹挶㠷攲㠹ㄵ挱㐴ㄷ慦㉡㐱㡡㉤〶㔱敡㈲搳㠳挲挱扦戹晦挹㠷慢づ摡㜰捡ぢ扦㍤㌶㙦摤㍡挵㥢㜶昱愰ぢ㠹昱昳ㄳ㘱摣搸昵㐴㠲〹戹ㅡ搶㔷㤸挷㤸ㄹ攱愵㝡㈴慣㈷㔳ㄳ㘸愰㜱㠸㐳㠴摢㌸㌴㥤捤㠵㐰㝣㑢㐰㜶㥥愷㜷改挹捥ㅥ摣㌴挶㤳㘵㥤戸昵搳ㄳ挱戲㔸て㠰㉥慢搲扡㈹ㅢ〶㔱敡ㄷ愶㘹㥢㥡捥㍤㜵攱ㄹ㉢愷㕦ㄱ㍣㝣㙤昹搹㝢ㅤ愸戸㤴㄰搳㜸挷昴㍦ㅢ扤ㄱ㕡ㄶ〵昱挵㐰扣㜲㠹搶攲㘴㉥〳㔱㙡扤㘹敥㤶扤〶㙤㝡攷敥㠶搹愷㍥ㅡ㉦昸㙦昳愷慢ㄵㄷ㍤㘲㙥〲㠹晦㤹戹㐹㕡㤶〲昱昵㠰㤸㈷㕢捤㌸㙤㌹昹㉢㐰㤴㍡搱戴昸愱搶㌹挷扦搵㔵㌳昵㥥㉢ㄷ昸㡢昷扦昴ㄳ挵ㄵ㥡㔸扣ち㠹晦㤹挵㍦愲㘵慢㐱㝣挷㠰㤸ㄶ攳戲㜱㉣昹㍦〶㔱㙡慤㘹昱愷户㉣昹攳㙥慦㈴づ㕡㍦摡扢收攷摤戵㜷㉢㉥㈷挵攲㌵㐸㝣㥦搳挳㕡攸搷搶㠱昸㝥〲㌲㉣敤っ㤳改㘱ㅣ愶攰㥦㔲攸㜸㄰愵㝥㘴㕡慣扣㘳户㍦晥愲㉦愶㕤扢愹晥愴挲㔵挷摦愰戸昶ㄵ㡢㝦㠶挴昷㝣搹㌸㤱昶㥣〴攲㍢ㄹ挴攵戲㠱㑢摤㈹㤴㌹ㄵ㐴愹愴㘹昳㌹ㅦ㝣㍣慤攰挸捥愹㈷扥ㅢ敢晥㝡扢㝦㜴㤴㥣㡥攲戹收㤲愸㌵ㄱ㕣㠱㜵㘵摦㡡戵慡扣㠲晦昵扦㔰挷㍡㍤㔴ㅢ慡て㔵㔶㜶搵㔶〴慢㠳㕥㉥慡扥改ち㤱慢戰㤲搰挲㜰慣㉢扥㐲㤶㡣㈵愱㈹攱〸愶㄰挹っづ攱㡦戱散㤵㝣㘹㘸昲㑡㙣ㄶ㜴ㅡ慢换敤㐳㉤㝡㈲㠵㘵㜶㙡㔵摦㍡㘴攷㐹挱愴摥㤷ㅤ㙤敡㥥ㄴ敦㠹㜵㈵㜷㜲㉦㙣㑦〵㔳晡㐸㘷㔹㥦㤲㡣㙡敤㔸㠳敢㐹㌱㘹㔷㘷戵㠳㜱㝤搱㥢㔷㠶㡤攲㕤ㅣ挵㔸㡤挷ㄷ㘷㉦㥤㤲搰㡦敥㉤捤戰愸ㄹ摢㍥换㐵㜷㠶㤷㐶㤱㘱㔷㔹㑢㜷㍣愹挷挴扣搱搱㌹攱捥愵㝡愲㕤攷愶㤱摥㈵慥づ㘳㤱戹㈵㌰㝡㜶っ㡥㘲㤱摦戵㠷㥤㑢愰昵㔸㤷摥〵㝢㤷〱攵㔵昳㠳㡢㈳晡昰㌴ㄱ愳㑤ㄴ散㤸挶㥥ㄲ敦散㐹戶挴㘳愹㐴㍣㤲㕥搲摣戵㍣㠸㙤㠸慥㤹昱㉥扤㐰づ㡦㐱㤵㈷㍦㕦㈹捦扥㙥慢㘰敡㑥㜲挵㙦ㅢ㈴摣㔷挸㉤㙣ㅢ㐴ㄴ㜶摤㈹攸搵㡣㠴㙤㤰㔱㝥扦㥣㤶搸〷㈱愵㉢㜲㑡扢っ㔲㔶ㅡ㤱㝥攲㤵捦㐳晦愰ㅦ㈲㍡捦捡扣㔱搹㔵昶㡤换㝥㉣戵昵ち昷〸㈹㥤〳㌴㔱摢㍢昶扥㕦攱扣扣愱愶昷㤳㤷攳扥㘱㕡㌰搶ㄵ搱ㄳ㌹㜷㌸ㄵ㉤搲搶㤳㥣㐱㜲㈶挹㔹㈴㘷㠳㜸㈳㤸攳戲㈲捡㜹㔹慤㔴慢扣㉢挲㕤愹㙥㕦户ㅥ㕥搲捤㑢㈹㜶㐶㡢㡡〸昷ㄸ晣戸愸摡㍢捦攳㔹慦㈰慣晤ㅣ㌹敤ㄷ㈴攷㠲昸晤ㅥ摦㉦昱搷攳昳㙢攷昱捦昹㈰㠵㔳昵ㄸ㙥㜵㈲㝥攵攵づ搲户摦攷㐲㘳戸〳攱㕥ㄴ㌶㍤㤳摥㈸㜶敦㤲昹昹㙥㈸㑣ぢ㈶扢㔳㍣〱㜳ㄶ㜲㉥搵㉥㈰戹㄰愴攴㈲㤰㤹搳昴〸㑥摦敦㘸扦搴扢ㄳ㔴昶扢㌳挷㙢昷昰㘸晢慡㔸㘷㜷㈲ㅥ挳㕥㜴㙢㌰ㄵ㙣敥挴昶㘳㔲〵㝤搱ㄹ昱㤶㥥㤴㉦㍡㉤㡣㍦㈵搱㜹晡㌲㍤㤸㙡挱散㥣㉡㡤捥挰搶愵㑣㥦㙤㕤㉢扤㔱㘳搷戱ㄵ昷㤶ㅡ户㈷摢㌰ㅢ慤昴㈱㠵改戵㈴捡昹㐵㕦㤹愲敡挲㈸戶扦㌰㡡㌴〸㡤㤶㕡㐶㡡㌵㑢㠵㘷搵昶㥢㌹㘸〸㐸搲愶愵㔸ㄸ㠶㈶戹㤰攳挲改昱攴ㄷ㤸搴㜹攲㜰愷㌰㔹㙥愲㕢摥ㅡ挷摥戵㉥扢昱㐴摤攷挳戸昲攵散㉢攷昹捤晤捤搹㥤㡢つ戵㌰㘵㙡㈲摥戳㙣㌸㜴㝤㔷㝡愸换愳㙤〰戹昸㠳㕦ㅦ戰搷㐵扦晤摡晣㝢ㅣ捥ㅣ㌹戴㤱㤴攰㌰㘷ㄶ㝦攴搰㉥挱ㅦ㝦慥㌲㉦户㐸㕤㈷搸㉣㕢戱㕥挸㤷㐴攱敤晣㠴㉥㝢换㐵㤲㔹戵㑣㉦㡤㉥㡣㈷㤶㉥㡥挷㤷戲昳〷㐹㉥搹慤敢㈹㥥㈴挵收晥㌴搳㑡愹晣晣戴つ㔹摢捥敥づ搰敦扢〲愴戴㌹ㄲ㈹戳㌴㈶㝤㔷㠲㤵㡦ぢ㠹敦㉡㈴㥡㜹ㄱ㡡挴换扡昴戲㘵㠹昸㉡扤搳㔸ㄲ㘲攳ぢ㤷愸㌰㤷㌰㘵㔳摡㘶戵㑥㥥㍦㜹摥搸〵敤㘵晢㘲㌵搴戸㕦搹昲㔰搹愴收昶挹攵㉢㈳挹愸㍡〴㌰㜱〷㙦搵慤户㝥㍡㝥㘱摢搴慢㑡敦㕤晢戳收〵㙢搴㐲戳㈰㘳慢㤷摢㠲㌹敥㡣搲㌶㔴戹捣㐸扢㌳捡戸收ㅢㄷ挴晦扢戳搹收敥㙣搲敦㙡昶敦攷㔲敥戸慦挹㝡ㄵ晢扦晢〲户㈷㥦挶㝤挱慦㜱戲愸〵㌸敤㜸ㅦ㠰㜴晡愱㕤㡢扣昶ㅢ㤲敢㐰㜰㌵㤷㘹づㄷ昳敢㡤慣㉡挳㕦㕥挴戵摦㤱摣〰攲摤〳㈴昷戵づ愷慢㙣㕤昰〹㑣㘹戴㔵て〵昱㐸㔳慥㑦㉡昸晦昳昲㔵㠰〷挶戶㙢㔷㙥㈷㘰㍢㉦つ㍥攷ㅤ㙦晡〳㌷㍣〶散挲敤捥㝣捣搱挹敦昲慡昴㕤㕥摤戴ㅢ攱㠷㜵㜸㘷㘰㈰㝣㜳㥦〰㤷愷㜰㌹㙦㉤㍡㍡㍣㐵昴㤰ㅣ㙤㜷㤲㡣㉢攲㉤攰晡㜳㤵㈹㍥攱攱㔵㔱攳㔵挸㜷㈷㐸㍥〶㡢挶敢㡥㥡㘴㕥ㅣ㌲慥ㅡ捤㘶㐱挶〳愱扤㔱㡤㔷づ敤㕥搶㙦㠲㤸晢㈸扦㥦㌲て㤰㍣〸㘲ㅢ攵㝦㌴戲㙡ㅦ晣㤵㔱晥㄰㠵㌶㠱愸晤㐰㌸搲戵㍦㠱㔸㠷慡㐳ㅢ〴㔰㐰搸ㄷ散㑣㄰ㅥ〵搷慦攵㈸㔳晢㐳愲ㄷ〴㡤㈰ㄸ〰㡣㠱㘲搷换收㘸戳㈰攳改搲㔸搴ㄵ〰㥥㐱㐲敤〷㌱㜷〰㥥㘵ㅢ捦㤱㙣〱戱〱昰扣㤱㔵攵昸㉢〰扣㐰愱ㄷ㐱㔴〵㠸〰昰ㄲㄲ搶愱捡搰㐶㉦〰㍦〰㍢ㄳ㠰搷挰昵㙢㌹捡㔴㈵㈴摣〰ㄸ㥥つ㠰㘱㘶㐱挶搳慡ㅡ㘸ㄲ〰摥㐱㐲つ捤ち挰扢㈸搶摥㈳㜹ㅦ挴〶挰扦㡤慣慡挵㕦〱攰㐳ち㝤〴愲敡㐱〴㠰㡦㤱戰づ攵户〳㔰〷㜶㈶〰㥦㠲敢搷㜲㤴愹〶㐸戸〱挰ㅢ㑣搷ㄱ昰昵㔷㐶㐱挶愳慦〳愰㐹〰挸挳㤰㔴㕦㐲捣㝤〴㌰㔲㐶昳㤲昸㐰㙣〰ㄴㄹ㔹㌵ㅥ㡡〴〰㡤㐲㝥㄰㜵㈰㔸〲㐰㌱㜲搶愱㍥㐲ㅢ扤㈳㘰〲搸㤹〰っ愶㑥㉤㐷㤹㙡㐲㍤㌷〰晥㘹晡㤹㌱〷扣㘵ㄶ㘴㍣㐷㥢〴㑤〲挰〸㥡晣㘶㔶〰㐶愲㔸摢㠹㘴㘷㕡搷㜷愵摢搵挸慡ㄶ㈸ㄲ〰㜶愳㔰ㄹ㠸㥡っ㤶〰戰㍢㜲搶愱㕥戴〳搰ち㜶㈶〰㝢㔱愷㤶愳㑣㑤㐱㍤㌷〰㥥捡〶挰㤳㘶㐱挶㘳戹㌶㘸ㄲ〰捡㘹昲ㄳ㔹〱愸㐰戱㔶㐹㔲㐵敢晡〰愸㌱戲㡡㡦摢〴㠰㕡ち搵㠱愸ㄹ㘰〹〰昵挸㔹㠷摡㘴〷㠰捦攷㌲〱㌸㠰㍡戵ㅣ㘵㙡㈶敡戹〱㜰㜷㌶〰敥㌲ぢ㌲㥥昱捤㠱㈶〱愰㤵㈶摦㤱ㄵ㠰㈹㈸搶愶㤲㑣愳㜵㝤〰㑣㌷戲㙡㉥ㄴ〹〰〷㔱㘸〶㠸㙡〷㑢〰㤸㠹㥣㜵愸ㅢ散〰捣〳㍢ㄳ㠰戹搴愹攵㈸㔳昳㔱捦つ㠰㕦㘵〳攰㉡戳㈰攳㤱攱㐲㘸ㄲ〰づ愳挹㔷㘴〵攰〸ㄴ㙢㐷㤲晣㤰搶昵〱戰挸挸慡㐳愰㐸〰〸㔲㘸㌱㠸㍡っ㉣〱愰ㄳ㌹敢㔰ㄷ摡〱㌸ㄴ散㑣〰㤶㔰愷㤶愳㑣ㅤ㡥㝡㙥〰㥣㤵つ㠰㌳捤㠲㡣㠷㤰㍦㠴㈶〱㘰ㄹ㑤㕥㥦ㄵ㠰〴㡡戵㈴㐹㡡搶昵〱戰摣挸慡づ㈸ㄲ〰㔶㔰㘸㈵㠸ち㠲㈵〰慣㐲捥㍡搴〹㜶〰ㄶ㠱㥤〹挰戱㤰昷㙢㌹捡搴㘲搴㜳〳攰㤸㙣〰慣㌶ぢ㌲㥥㘱敡搰㈴〰㥣㐰㤳㔷㘵〵攰㐴ㄴ㙢㈷㤱㥣㑣敢晡〰㌸搵挸慡㄰ㄴ〹〰愷㔱攸㜴㄰搵つ㤶〰挰晤㍦敢㔰换散〰㉣〱㍢ㄳ㠰戳愹㔳换㔱愶挲愸攷〶㐰㈸ㅢ〰扡㔹㤰昱愴㌴〲㑤〲挰㠵㌴戹㌳㉢〰ㅢ㔰慣㕤㑣戲㤱搶昵〱㜰愹㤱㔵㔱㈸ㄲ〰㉥愳搰攵㈰㉡づ㤶〰㜰〵㜲搶愱づ戳〳㄰〳㍢ㄳ㠰慢愹㔳换㔱愶㤶愱㥥ㅢ〰㜳戲〱㌰摢㉣挸㜸昶㥡㠴㈶〱攰〶㥡㍣㌳㉢〰㌷愱㔸扢㤹攴昷戴慥て㠰㕢㡤慣㑡㐱㤱〰㜰ㅢ㠵㙥〷㔱换挱ㄲ〰敥㐰捥㍡㔴慢ㅤ㠰ㅥ戰㌳〱戸㠷㍡戵ㅣ㘵㙡〵敡戹〱㌰㉥ㅢ〰㡤㘶㐱挶愳摣ㅦ㐱㤳〰戰㠹㈶搷㘷〵攰㘱ㄴ㙢㡦㤰㙣愶㜵㝤〰㍣㘶㘴搵㙡㈸ㄲ〰晥㑣愱挷㐱搴戱㘰〹〰㑦㈰㘷ㅤ慡摣づ挰㌱㘰㘷〲昰㌴㜵㙡㌹捡搴㡦㔱捦つ㠰㔱搹〰搸搳㉣挸㜸㌲扣ㄶ㥡〴㠰ㄷ㘹昲敥㔹〱㜸ㄹ挵摡㉢㈴慦㠲搸〰㜸摤挸慡㜵㔰㈴〰晣㥤㐲㙦㠰愸㥦㠲㈵〰扣㠹㥣㜵愸ㄱ㜶〰㝥〲㜶㈶〰㙦㔳愷㤶愳㑣ㅤ㡦㝡㙥〰っ捡〶㐰愹㔹㤰昱愰昹㐴㘸ㄲ〰㍥愲挹挵㔹〱昸て㡡戵晦㤲㝣㐲敢晡㐶挰㘷㐶㔶㥤〴㐵〲挰攷ㄴ晡〲㐴昱愱戱〰昰㈵㜲搶愱昲散〰㥣っ㜶㈶〰㉡㡦〰攴㈸㔳愷愲㥥ㅢ〰㥦㝣㤹㘵㉤昰㕦戳挰昹搴摡扢ㅥ㥡㥣摢昱ㄲ昹摢晢㍣捦戶愳㌶〸挲扥搰㠲㔸㌸㤵㉣づ㌵昷愴攲㔳挲㈹㙣㜹㤴㠴㐰㤰㤴㉡㈳攵搱㤷慤搲攸搰挱㘱㝤〵㌷㍢㜶换㉣㐲㔰㜴㑢㑦㌲ㄵ㤷㈷つ扢㘶㤶户挶㘷挵㔳慤攱攴戲㐸㜰搵㈸㤷㘲愳㘴㘱户ㅥ挳戳㔸〴换㜴昵㈷ㄴ㕦戶㑣敦㜲戱戱㍤摥㤳攸搴摢㕡户㠵愷戹捡㜸㘴攲挱慥㍣戶㥥搴㕥搹户㍣㙤戸て㐳摦攴㘱㈷㕦つ散㘱愰捦捦㐱㌷㌳ㅣ搱㤳摣挵ㅦ㠵昷ㄴ挰昰愰㜹㡣㜶慤㠴㠵㝥㡦昷㡣㝥㐷㡢敤㔱㜱㌱㠴晤㈱昴戰挱㉢㌵㘳ㄱ摡㘲挹㜰㤷敥㌷㜳〸ㅦㅥ㘴㈶㘷昷愴搲㑡㠲㉢㠷㥡㈵㜸昲㌰㍢㠶㔱㠰㜸愸慥㙤愱㠳攰ㄸづ愳㜷㤴て晦つっ㜳㐳㡤挷昳扥㙣つ㈱昷晥㜱㐰㤹㌸㥦㠹㡣敢㐳愰摥戳ㄲ〹摢㔳昶挱㤰㉦㈵搴扤散㈲收ㄸ攴㉣㍤㘰挴㌴てㄲ〹ㅤ攳ㅣ慦㈴㐴昴愱改㔹搹㙢搵㐲捤㡢㤳昱㐸㑦㑡ㅦ搴㥢㤲昳㕤ぢ捤搳㈳㠸㝤㕥慥㤷昴愶收㜴愶㄰㔳搲慢㡦搱㄰摢㑥敦〰㤱〲戳㠷㤴昴㤱㉦挷㌴攷㜰〲㜵〷搸愳㤸改㐳㜲扣摢愴捥㍦㡦挷搵㑤ㅥ㉢挱扥㐵攷㥥〵昵捥捤搴昴㈹搷ㅥㄲ挱戳㘸愸ㄵ愹㘳㑣㜴㌲㠷㤵㔸㍣㐶㈳㤴㠶㘴晡㐳挸ㄱ㕦㘶ㄸ捣搳㈶㠲搷㠴㔲攱捥㘰㈴戲㙡㔰愸㉤搶ㄹ改改搲㘷〴ㄷ敢ㄱ㙢敡㘶ㅣ晣戶搱㕦摣㘷㌲捦愶ㅣ戸㤸愰戴攱戵㉣㉢〰㘳挰戳ㅤ摥扤挲㡣㈶㔷㕥攸㌰扡攵㙣ㄸ昱慤㘳㑦晣愸戴㕤㕦攴㤴扣攰㠳㈹㉤㠳挵戹㡣て攴㝢挳㔷攴㙣戳㠹捤㠸㈳昲㜶愹摥㘵㘳㑤ぢㅢ慣㙤收㥣㤲搳挹攷昳つ昴ㅡ〳慣㜰扣晦昵挸挷㐳敦㌵㜷㥥摡㍣㝥㜳㠱㝥晦攷捦㌷㜹捣ㅥ昸㌹㑡㥤㡦昲㙤㈷㠶㕣晥㘵〲っ㐰㜰㌰㘷㉦攳摥㘱㝥㌸ㄵ搱㡢㐳㔲㉥改㈲㥥づ㐴戳㌰㌴扦ㅢ㡦挵㕢㑢㐳㔳ㄳ攱慥㐸㌸愶昳㍥〴愱㙥㝣愹㙡㠶扥〴㐱㔹㜳攲挹㌰㕦改㈸つ捤㑦〴㘳挹㘵㡣㝥攸㕣戵㕤㕡㑥㍡换ㅢ㥡ㄴ㡥攱攴㌱摡㘴㝡㜰愸扤㍢扥〲慦㄰昶㐴㘳㔳㠳换㤲摢㐴㐷昵摤㙢ㅡ戳㕦㥥捡换㔳㐵㜹㐵〳扤㐶㐹戰〲㙦〴㍣㔵㐰㍤㡦挴扣㐸晤〲愹ㅣ攷㉢㝢捡っ㡢攳昹㑡扢搲㕥慡㜲㡤捤改㝤〷㤳户㌳ㅡ㕦慥㉣ㄹ〲搲㌶㜵㐱㕢㕦㌰攵搶扣昸攸㍤ㄷ㡡㜳㕣〹㘴㘴愴〵㙥つ㌲㐶ぢ㜹ㅣ㍣㥡㜴㍡㜳捥ㄱ攸て㠹っ〷㈳㉥㥥ㄴ㘷㜲ち㘲㙢㑡㜰敥㘳收㐵㐸ㄲ愶摣㐱㐶㠶㌷㜵㜸ㄱ㈹㘹㤶戵挴愳搱㈰㐷ㄷ㐷㘶㍢愶㙤扤㐸敥戰㌱㤹㘸㈱㄰ㄹ㠲㈶㉢戸ㄲ慣攰㑡㘱攱㙡捣㘰㑣㐹㔳㔷㝣㐹㌰ㄱ㑥㜵㐷挳㥤㐵捣㌰㘰㜲㥢ㄸ㤶ㄸ㐱〵㐰摥㍡㘴㙣攲㜶搵昹㌸搵〸搹㐱㙦㤷㘳〵㐱攸搸晢ㄸ扣㜹㜲〹㔷〳㡣㜴挳攸搵㜸㝦慢つ〵昱攲㠷㜰㈴昳㍣戱摤㝢㠱㈳㔷〲㜵ㅥ〵昰搳戶㠷㈸ㄳ晣ㄵ㕣〰㤲㌳ち愹㄰〲晥ㄹ昱㘰搷ㄴ挴搴挶ㄳ㠵收㝢扡㐵攸㕡捥㉡㠹〰〳捦㕡㄰㈸㠳㈸搰攵戸〵㑥ㄴ㤱搱㡥㤸慥〲㠶慣昹㡣㍥攴㤵搰攳昵ㄶㄷ戹戵搵㘶改ㅡ㘵㐶攸搸摦㕦㙥换搰晦捥摣㠶㈶ㄸ〵户㜸ㄷ愱つ㈳〴挳改搳㠵挸搲ㅦ㠷挰づㄴㄸ〱攲摤㠰㐲攷㔹㤲㌵㑡㉢ㅦ挲摥㈸愳挷㡡愲㜴〷㜷ㅢ㍥挴㤴㈱ちつ㤰昸㡡㡢㉥㐲戹戶㈳搴㍥扡㜹㌳ㅦ昰㜸搴㈵㈰㔶晢扣㜷㌵つㅣ挹昶㜷㘲晢扦〶昳㕢㠴㝡㠸㝢扤敢㑣戹捦敤㕢㔶㤶㠶散慢挸愱㈱㜳㌹㘹㕢㌴㍡㜸㜲㝦㠵昳㝣ㅢ㕡ㄲ〲づ挰㘶㥤㌵〳扥〰㜳搸㜳㡣晢㍤敡㕡㈸攴〵搷攳摢ㄹ㠰て攱㕢㌸㘵㐰㈶㤵〸㉦敥攱昵㤰㐵㌲攵ㄷ昴㑤昹敡㌷攰㜱摡搷㜶㐱ㅤ㜵ㅤ㔲㥣㑥㜱㌶挹慤㤴戶ㅢ扢づ扦摣愷搷昵ㄴ挰㑦㉢愳ㄲ㌳愳ㄸ㉢㘲つ〹㈴慤㈱戱㍢㘴戴㍤㈸㜸㠳扢挰㥥ㄴㄸ〵攲扤ㄱ〲捥昹㈴㍤昰〲换㘵つ㐲〵昲㤶㌶㈳ㅡ㡢㄰ㅣ㈸愱㤰㕥㌹昹㡡㙤㈱㡣㍥㈳㝡戱〸㜵㤰㡡㈶㝤敤㤸㤹昵㉥扦㌱慥㌸搸㌹㠵攴攵ㄵ㘰㝡昲㌹挳搰㌲㥡愵㡡㜶㕤㠲㐳搴㜰㤸攰摢ぢㄶ〷戸㠵〲晤ㅤ扤㙦戴㍡愳㈳戰昴摥〷㠲ㅥ扦扡〵搴㠲挷㐷㡥㜱㑡敦㑢敦昷〳㔱昷㠲挹戳㐶戰㌷晢昸㝥㘴㡤㍥摥ㅦ㈲挳㜱㍤㠸挹摢慦晤㜷昴〳愸㈹ㅤ㍤㥡扡ㅦ㐴㉥慤愳挷㠲摢㝦㐷㌳㔲㐲㍡扡㥣㑡捣㡣㝡〸〹换ㄳ㈴㉤㑦㝥〰ㄹ慤㠲㠲㥢摣〵㉡㈹㔰㐵㠱㍦㐱㠰㥤敤慢㐶㙥㘷ぢ挴㡣㔷㔷昹扡慤ぢ愰戵愸〴㐰ㅦ戵戵㘲〳戴㡥慤搴戳㤵㘷㈰攰〴昴㔹昰〴㔰㡤㠰捡挱戳挳㝥㡡㍣㠷扣㈰搷㐸㈵っ㥤㐸㐳敥〰㜰晢㐷敥㜹㔴ㄳ攴挶㔳㠹㤹㔱㉦㈰攱㠲摣〴挸㘸〷㔲昰㐵㜷㠱㈶ち㑣愴挰㑢㄰㄰攴㥡㤱摢㌱㉢㜲㙥戰戵愰〶㘰㝢捤搶㠴㙤收㙥㘵ㄳ㤳搹挴㍢㄰㜰挲昶㉥㜸晤挰昶ㅥ㐴〴戶愹㔴昲㍥㜲㘹戰戵㠱摢㍦㙣晦㐶㌵㠱㙤㍡㤵㤸ㄹ昵㈱ㄲ㉥戰ㅤ〴ㄹ㙤〶〵ㄹ戹攱㈲㌰㤳〲戳㈸昰㌱〴〴戶搹挸攵ㄸ㜰㜸㝢搰㘵挰捤㐵㈵㈰昷愹慤ㄵ摢㠰㥢挷㔶摡搹㑡ㅥ㉣㜶㈲挷愵㜱㍦挸㌱㐰㐳㤰㕢㐰㈵㡣搴㐸㐳㙥㈱戸晤㈳挷㠸づ晣挳换㥤㔴㠲㠴晣ㄸ搶攱〲捣愱㤰搱づ愳㈰㐳㍥㕣〴づ愷挰ㄱㄴ㘰ㄴ㠸㈰㜷㈴㜲㌹㤰挳㥢㙣㉥挸㜵愰ㄲ㤰㘳㘸㠸搵㡡つ戹㐵㙣㈵挸㔶ㄸ挶攱㐴㡥戱ㅢ〶㜲扣扥挹攱㍣㔵ㄹ搹㈱挸㜵㔲〹㐳㍣搲㤰搳挱敤ㅦ㌹㠶㠲攰ㅦ摥攱愴ㄲ㈴攴挷㜸㄰换㘴戶㙤㑥搷㑢㈰愳㜵㔳戰捣㕤㈰㑣㠱愳㈸戰㍢〴〴戹愵挸㌹慥ㄴ㜸㈳捤〵慤㈸〴㠱ㄶ攳㐸慣愶㙤㘸挵愸㌹㑥捤㡣昹㜰愲挵㐰㡦㝥挶ㄹ挳㐰〴慤愳愹㠴昱㈰㘹㘸㈵挱敤ㅦ慤ㅡ㔴挳㍦㍣㑣愷ㄲ㈴攴挷攰ㄱ换㘴昰㉣戴㝡㈰愳㉤愷㈰〳㑢㕣〴㔶㔰㘰㈵〵ㄸ㙢㈲㘸慤㐲㉥挷㌸挳晢㠷㉥挸慤㐶㈵㈰挷〰ㄴ慢ㄵㅢ㜲挷戰㤵㘳搹㑡㉢〴㥣挸㌱㐲愴㥦㜱挶昸ㄱ㐱敥㌸㉡㘱㈰㐹ㅡ㜲㙢挱敤ㅦ㌹〶㥣攰ㅦ摥慦愴ㄲ㈴攴挷愸ㄳ换㘴昰㉣攴㝥〲ㄹ敤愷ㄴ㘴㐴㡡㡢挰昱ㄴ㌸㠱〲っ㔲ㄱ攴㝥㠶㥣㘳㥣戹㕦㐰㑦㠲㈰搰㘲戴㡡愵搹㠶搶挹搴㝣ち㌵㌳戲挴㠹ㄶ挳㐹〴㉤摦愹㄰昹㌶㜷㈴㡣㐱ㄱ㄰㑦愳㙥〶愳愴㠱戸ㅥ摣晥㐱㕣㠴㙡昸㠷户㥥愸〴〹昹〵㐱㉤㑦挰戳㐰㍣ㄳ㌲摡㔹ㄴ㕣散㉥㜰㌶〵捥愱〰〳㕤〴挴㥦㈳㌷戲昷扡㥡昹㝡扣换攰㍢ㄷ㔵〰㈷㘳㕦㉣㈳㙣ㄷ搶㕦戲㡤昳搸〶攳㔴㥣㜰㌲㌸挵㠰昳㝣㠸㝣挳㥢㜸〶戳〸㤲ㄷ㔰㉤㌷㘶搲㤰扣〸摣晥㤱㘴昴ぢ晥攱㈵ㄸ㉡㐱㐲㝥っ㠱戱㥣〰捦㐲昲㘲挸㘸ㅢ㈹挸昰ㄸㄷ㠱㑢㈸㜰㈹〵ㄸ㌱㈳㐸㕥㠶摣㙥慥㐸摡摥搵㜷㠱昳ち搴〳㥣㡣愴戱ㅡ戲㡤捥㉢搹搰㔵㙣㠸㔱㉦㑥㌸ㄹ敡㘲挰昹㉢㠸散搰昷㕥㝦晦㌷捣っ㤰ㄱ㔰慦愶㜲㐶捡愴㠱㝡つ戸晤㠳捡㠸ㅡ晣昳㘸搷㔲〹ㄲ昲㘳㔸㡤攵ち㜸ㄶ愸扦㠱㡣㜶ㅤ〵ㄹ㜲攳㈲昰㕢ち㕣㑦〱㐶攱〸愸扦㐳㙥㤴〵㙡捥㑦つ戸㈰㝢㈳㉡〳㔹㠶攸㔸慤昹晢捣戹㠹慤摤捣搶ㄸ㑥攳㐴㤶㌱㌴晤捣㤲㡣戰ㄱ〴㙦愱㤲㡤挸愵㈱㜸ㅢ戸晤㈳挸㤰ㅣ晣㐳㄰ち㤵㈰㈱㍦挶攵㔸㈶㠳㘷㈱㜸〷㘴戴㍢㈹㜸戹扢挰㕤ㄴ戸㥢〲っ攳ㄱ〴敦㐱慥搴㐲搰昸捣㠱ぢ㔴昷㐱ち㔰㌱㤸挷㙡㤷捦捥捤扢㠰晢愹昶〱慡㘵攰㡤ㄳ慡㥢挰敢〷㉡挶攲〸㔴㝦愰ㄲ〶攵愴㐱昵㄰戸晤㐳挵攰ㅤ晣㐳攸㍡㤵㈰㈱㍦㐶昰㔸㈶㠳㘷㤹晣㈷挸㘸て㔳㤰搱㍤㉥〲㡦㔰㘰㌳〵ㄸ昰㈳㔰㍤㡡㥣攳㠲㠲㑦㉣戸愰昵㘷〸〲㉤㐶晥㔸㥡㙤愷散攳搴晣〴㌵㌳㑡挷㠹ㄶ㐳㜳晡㐱㡢㠱㍢㠲搶㤳㔴挲〸㥥㌴戴㥥〶户㝦戴ㄸ改㠳㝦ㅥ敤ㄹ㉡㐱㐲㝥っ昷戱㑣〶捦㐲敢慦㤰搱㥥愵㈰㐳㠱㕣〴㥥愳挰ㄶち㌰㍡㐸搰晡ㅢ㜲づ戴摣㙦㡡㕦㠰㈰搰㘲㤸㤰愵搹㠶搶㡢搴晣ㄲ㌵㌳愴挷㠹搶换攰ㄹ㘸昱昲㉢㠷昳愶昸ㄵ㠸〸㕡慦㔰〹挳㝤搲搰㝡つ摣晥搱㝡ㅤ搵昰捦愳扤㑥㈵㐸挸㡦戱㐱㤶挹㙣摢㍣ㅤ晥づㄹ敤つち㌲㙥挸㐵攰㑤ち晣㠳〲っ㈵ㄲ戴摥㐲㙥ㄷ敢㌴㜴晦捥㠴换㐰㝢ㅢ戵〰ㅤ〳㡣慣㘶㙣搰扤挳㘶晥挵㘶㍥㠲㠰ㄳ㍡㐶〰ㄹ搰敤㑦㉤㍣㥣搰㌱㍥㐸愰㝢㡦㑡ㄸ㈸㤴〶摤〷攰昶てㅤ〳㡡昰捦愳晤㥢㑡㤰㤰ㅦ愳㡡㉣㤳搹戴〹摤㠷㤰搱㍥愲㈰㈳㡥㕣〴㍥愶挰㝦㈸挰㈰㈴㠱敥扦挸攵戸㐳㜶㕦㕢㝣㡡㑡㐰㑥攱㡦搵㡡つ戹捦挰搶㍥〷昱ㄶ㠳㝣戳㜸ㄵ敥㤶〷㙣㐱㐴昲㌶搴㤰搰㕣㝣㐴〸㥦㑢㥣㡤㐷搸㈹戲戶㠵㠷ㄷ〵㐶㈰㐱扦㥢㝣攲挲攱㐷づ㠷㘷㑥っ搲㌷〴㑤摦攴攵慦㠱〵ㅡ昸扤〵㠸攸晡㘶慤㜰〰愵扦㡥挵つ㝢扦昶㈵晡㡡㍢挱㈵昸㑢ㄹ敤㉢㌳挱㡣户ㄴ㤹ㅣ㑦昷ㅣ㑦攳㔹㘵㘸摦挳〸㍥㜶ㅡㅤ挱㙥昲㌷㜸挸昷㌵㕢つ㔸㌶㜸㘰ㅢ㤵搱㐴敦㔰㜰㥤㍢扡ㄹ㑦㠸昸㔸〹搱㐴㜸㔶搴㥥㕡ㄵ挱昳㌹㈶戹挳㙢愴昸㐰挲㈸㠶㜹昱〴㌶㔴ち㥣㉦㠵昶搶㍤ㅤ慡㡡户㜷㝣㑡㐲慡戱㘴〸慣昱㝥晤㐵收愷ㄱ㝡敢搳昰㍥愴㔹㠷㠷㉦て捥㙣㍦㌳摣㤹㠸㈷攳愱㔴㔹㍢ㅥ㌳㤷昱攳㈲㈱〴ㅣ㌴㝢扦㠴㐶搷㌶改㔸㐱㡣㕦ぢ㕤捥㜷改晣㑢㘳昱ㄵ㌱戱挶㥢攴㌷㔶搸㥡㔶㔸挸㘶晣昸挹戱㈷挰ぢ㙣て㐳㔹㔹㉢㐰挳愵昹㠱㘱挸昳〸っ户ㄲ㍢㔸㠹ㄱ㘶㘲昰㡥㐸㔰ぢ捦敡敦昴〸㡣㠴㘶昶愶㡦㕦㕥ㅤ搲㌲愹㈳晤挳愸㍥ㅦ搸㈵㘰换づ晣㍣㝣㥥挴㔷〸捥㈰㜰㙣㑦㤰〳㍢㤹㕡戴㈲ㄴ捡㐷㐶攵㜳愳㙡ㄷ昰〵㠸㘲昰㤹㤰摦㙥攰㜲昰愸㡦〰㉥扢㡣㉥昹㑡㈱㤲戵ㅦ搴扦㈱挶扥㐸挷㤲捦㈸〴换挱愸っ㉣㜷㐷㥥㐷㠰捦㈴㈴戱愷㤵攰㐳〸ㅥ摥㝤㤰攸㜷戲㌰㥦〸㔰㌷搶㤷㥤慡㑢改〵㠵㠵ㄹ挱㝥改ㄳ〷ㅥㄶ挸㈴挳㈹挶攷㈳昵扥て㤳㜳捦〳㔶㈵㈲搳㌷㍡㔹戹〸㍦㙤〸〱摤づ挴ㅦ搸ㄷ㠶㈳攱昱つ〵㜵改慡敤挱㑥敦慡㘱攰㌸扢㙡㍦㔳㡢㌶ㅣ㠵㕡ㄹ摢㘰㠸慤ㅡつ扥㜴搵㡥攰昷㜶搵㔸㜰愵慢摥㠰㈳㔶㔷㘹散㉡㥥ㅤ敡㜵搷㕥攱〳〵改㤵㕤㈰㠷㕥昹〱昲㍣〲ㄵ㔶愲搲㑡昰㠹〱て㔵㡢〴㝢㐶扤ち㤵㐴㑤ㄴ散㈶㌶㠲昸〳㜵㈸㘴戳ㅡ扤搷攸慢㐶昷〲昵ㄶ㝦ㄴ㔹晢㔰㘲㙦㉡㙣愴㌲收昶〱㥦〹晣昱愸〳挰ㄵ㝦㥥㜵昵攷ㄹ㔷㝦挶愳㤲㤸㌳ㅡ㍡攰捦〴攴㜹〴づ戴ㄲ㑤㔶㠲晢昸㍣㔴ぢㄲ攲捦㔳㜶㝦挶搲挶㜲㄰㝦㠰㝢昲㌴㐹攳㠹愷昱㌴搳㜸㘶〵㈶㕢晣㉡戲捡㈹㌱㤶ち愷㠲㉦晥搴㠲摦摢㍦㙤攰㡡㍦て扢晡戳挹搵㥦改愸㈴晥㌴㐲ㄵ晣㌹〸㜹ㅥ㠱ㄹ㔶㘲愶㤵攰〶㍢て㌵ㄷ〹昱攷㡦㜶㝦づ愰㡤攳㐱晣〱敥㤴㈳㤱搱㍦敤ㄶ㝦㈲㘵㙢㈹㔱㐳㠵ぢ挰ㄷ㝦㕡挰敦昵㘷㈱戸攲捦㥤慥晥摣敥敡捦㈱愸㈴晥㑣㠵㉡昸㜳㈸昲㍣〲㠷㔹㠹挳慤挴ㄱ㘶㐲㜵㈰㈱晥摣㙡昷愷㡤㌶㑥〷昱〷戸㝦㡤㐴㠶㍦㐱㡢㍦㡢戲攳㈹㜱〰㠸敡〴㕦晣㤹ぢ㝥慦㍦㍡戸攲捦㜵慥晥㕣敢敡て昷慡挵㥦〵㔰〵㝦㤶㈰捦㈳搰㙤㈵挲㔶攲㈸㌳愱愲㐸㠸㍦扦㌶晤㤱搹㘳㈱㙤㍣〴挴ㅦ攰づ㌳ㄲㄹ晥挴㉤晥ㄱ㤴㙤愱挴㈴㄰㜵㌴昸攲㑦〷昸扤晥㈴挱ㄵ㝦㌶扡晡戳挱搵㥦ㄴ㉡㠹㍦㥤㔰〵㝦㝡㤰攷ㄱ㔸㙥㈵㔶㔸㠹㤵㘶㐲慤㐶㐲晣戹搰昴㐷ㄴ攸戴㌱〴攲て㜰摦ㄷ㠹っ㝦㡥戵昸㐷㔱㜶㍡㈵摡㐰搴㜱攰㡢㍦㔱昰㝢晤㔹ぢ慥昸㜳㤶慢㍦㘷戸晡挳㍤㕥㌱攷㘸愸㠲㍦㍦㐱㥥㐷㠰㝢扡㤲㌸摥㑡㜰ㄳ㤷㠷㍡〹〹昱攷㜴搳ㅦ改㥦㈴㙤攴ㄷ敤晤㠱㤳㈱㠰㐴㠶㍦愷㔸晣㤵㤴攵ぢ㡤摡ㅣ㉡㍣つ㝣昱㘷㌵昸㑣戰戲㕡て慥昸昳㔳㔷㝦搶戹晡㜳〶㉡㠹㍦挷㐱〷晣㌹ㄳ㜹ㅥ〱㙥慦㑡攲㙣㉢㜱㡥㤹㔰攷㈲㈱晥慣㌱晤ㄱ〵㙢㘹攳㍡㄰㝦攰㤷㄰愰㐹捥昹敤㍣㡢㝦〲㘵て愱挴㐲㄰㜵〱昸攲捦㐹攰昷昶捦㐵攰㡡㍦换㕤晤㐹戹晡戳〱㤵挴㥣搳愰ち晥㕣㡣㍣㡦〰㌷㌹㈵㜱㠹㤵攰慥㈶て㜵〵ㄲ攲㑦挲昴㐷晡㘷㍤㙤㍣〳挴ㅦ攰摥㈴ㄲㄹ晤㜳㤵挵㍦㠷戲ㅤ㤴攰换㡢敡㙡昰挵㥦㜳挱敦敤㥦㙢挰ㄵ㝦扡㙤晥昸捥㠳㐸昶㕢㥦㤰慢㤳搷㐲㤳㌸㜹〱㉡挳挹摦㈰捦㈳挰㑤㐷㐹晣搶㑡㕣㙦㈶搴㡤㐸㠸㤳㕤愶㤳㉣搰㉥愲攱ㅢ㐰晣㠱㥢挰㐰挲攳扢ㄸ搴攵ㄶ㘳㈳搸改户ㄸ㤷㠰攳扣挵戸搹搴愲㕤㡡㐲昹㝡慡㝣㐷㔵摤〲扥㐰㜲〵昸扤㤰摣〶慥㐰㜲㤸つ㤲扥㕢㡣㐳㕣扤扦ㅤ㤵挴晢慢愱ち摥摦㠱㍣㡦〰㌷っ㈵㜱㤷㤵戸摢㑣愸晢㤰㄰敦て㌶扤㤷㉥扥㠶㌶㕥ぢ攲て㜰攷て㠹㡣㈱晢㠰挵扦㥥戲㝣㥦㔰攳摢㠹敡て攰㡢㍦㌷㠲捦㠴晣ㅥ〲㔷晣㤹攱敡捦㜴㔷㝦戸换㈷晥摣〲㔵昰攷㑦挸昳〸㍣㙣㈵ㅥ戱ㄲ㥢捤㠴晡㌳ㄲ攲捦㌴扢㍦户搱挶摢㐱晣㠱挷㈱㠰㐴挶㤰㝤挲攲摦㑤㔹扥ㅥ愸㈵㐱搴㤳攰㡢㍦昷㠱摦敢捦搳攰㡡㍦〷扡晡㌳摥搵㥦㘷㔰㐹晣昹〳㔴挱㥦扦㈲捦㈳昰慣㤵㜸捥㑡㙣㌱ㄳ敡〵㈴挴㥦㜱㜶㝦ㅥ愲㡤㥢㐰晣㠱ㄷ㈱㠰㐴㠶㍦㉦㔹晣捤㤴㕤㑤〹扥㍢愸㕥〱㕦晣昹㌳昸扤晥扣〶慥昸㔳攱敡㑦戹慢㍦摣㈹ㄳ㝦㥥㠴㉡昸昳㜷攴㜹〴戸㌳㈶㠹㌷慤〴户挲㜸愸户㤱㄰㝦挶㤸晥㠸㠲愷㘹攳㌳㈰晥挰㍢㄰㐰㈲挳㥦㝦㔹晣㉤㤴㕤㐷㠹戵㔴昸ㅥ昸攲捦ぢ攰昷晡昳〱戸攲捦ㅥ慥晥㤴戹晡挳敤㉢㌱攷ㄵ愸㠲㍦ㅦ㈲捦㈳昰㤱㤵昸搸㑡晣挷㑣愸㑦㤱㄰㝦㜶戵晢昳ㅡ㙤㝣ㅤ挴ㅦ昸っ〲㐸㘴昸昳戹挵晦〷㘵昹㉥㥥㜶㈲㠸晡ㄲ㝣昱攷㙤昰㉤㝦〲㕦㠱㉢愶扤〳㙥㘹扥晡摡㤲晡ㄷ㜵戳ㅥ㝥〱㌶㈴㔲敦㡡㤴㤷㡢改〳戲扦㡡㘵㕢慣㡥挶收㐸摡攷㍥㈷攳昳㥤慢搰㠸㈷ㅦ㠱㥥㐶愸㔹㐱摥戸㠱改㤲㑤㌱愸ㅡ㠶㥦㜷〸㜰摡ち㍤昴戳㙦㐵㐸㡤㕣愸㘹敦挳㔳挵㜵㜶摦㉢㠶㔷㤲㝦ㄵ㠸㉡㐱㤳慥㥦ㅢ㈹㌶ぢ㥣摦㘹ぢㄴ㐳㤳〰昹ㅦ㈴〰㌷㔷搲〴㔳㘹愸㐱て愴搱㑦挰ㄹ捣戵㈸㌷〶ㅤ扢㄰敦㌷㠱挷㘳愲㔰㑦㤱昹㌷㘰晥摤摥晣㍢㘲攲㘰㉥㘴㐵挳㤱㙡昷戳㥡扤㉦ㅦ攷晣㐰㕦攱㙤㘳攷㑥慢扢慣改愶㈳㝥㜶收搸捤㌷㌷㥤ㄸ㜸㜴摤慢㍦晦愲改晣愷㠷㤷㍣㤴㔰ㄳㄵ㔷慤㝤㡥摦㠹ㄶつ挷ぢ戲㌹㥥㙦ㄶ㌸㍦㌵ㄴ攰㍡㔷ㅣ晦ち〹㌸捥挵慡㌸慥散㡥㔳㘴㌰㤷愱㜴扡ㅦ挷晢ㅣ㠵㉣㡥㍤㈶づ㉥戳㙡㘶㜳㜸捤ㅥ㙦㙣㜹愴晤愶愶〷㈶敤戵换ㄹ㌷㥦搴昴摥愵㔷㑥ㅡ戳晡㤲㈶㌵ち㌵摤ㅣ晤攲昳㉣㍤晣戹㔹攰晣愴㔰㠰ぢ㘰㜱搴〷ち㐷㐷㌳㡦㥦晡ㄴ㌵㝡㝢戸㠸㡥㜲㝤㍡㌰㐷戹愸㤵㥡摦摡㔱慥㜳摤ㅣ晤㈸㥢愳ㅦ㥡〵捥㑦〷〵戸㌲ㄶ㐷〷ㄹ㡥㜲㜹㉢㡥㝥㘰㜷㌴㐰㐷戹㜰ㅤ㤸愳㕣敤づ捣搱㠹愸改收攸㍢搹ㅣ㝤摢㉣㜰㝥㈲㈸挰㈵戳㌸㍡摣㜰㤴敢㕥㜱昴㉤扢愳㈳攸㈸㔷戴〳㜳㤴换攰㠱㌹捡㤵戱㥢愳慦㘷㜳昴㌵戳挰昹㈹愰〰搷搲攲攸慥㠶愳㕣㄰㡢愳慦搸ㅤ㉤愳愳㕣敡㙥摤攴挴㜵昲搶㑤㑥㕣㐲扢㌹晥㝣㌶挷晦㘶ㄶ㌸㍦〱ㄴ攰愲㕢ㅣ摦摢㜰㥣㉢㘷㜱晣㌹扢攳晢搲㜱慥㠹〷搶挳㕣㐸て慣㠷戹戶㜶㜳昴愹㙣㡥㍥㘹ㄶ㌸㍦昵ㄳ攰㙡㕣ㅣ㉤㌷ㅣ攵㤲㕡ㅣ㝤挲敥㘸〵ㅤ攵㘲㜹敢㝡㤸㉢敤慤敢㘱㉥挲摤ㅣ摦㥣捤昱㐷捣〲攷㈷㝥〲㕣戶㡢攳㜵㠶攳㕣㝢㡢攳㝦戲㍢摥㐰挷戹慡ㅥ㔸て㜳㈹㥥戳㠷㌷㙥扣㙦㑣昹愸㌳敦〹ㅤ昵攱慥攳捥扢户改愳晤愳㑦㕦昷搸㌳昷㈸慥捥摤ㅣ㝤㌰㥢愳て㤸〵捥㑦昹〴戸㥥ㄷ㐷て㌴ㅣ攵愲㕣ㅣ扤捦敥攸㐴㍡捡攵昶搶昵㌰搷敡㌹㝢戸敡挱㥥ㄷ㍥㍤㜳㝥搳昴戱㉦㌴㍣㜲捤慤㑤㘵㜷㍤昹捥昸晤㍦㙣㝡㜱搶晡扦㥣戱攲戳㈶挵㘵扣㥢攳㜷㘶㜳晣づ戳挰昹〹㥦〰ㄷ晥攲昸ㄴ挳㜱㉥搴挵昱摢散㡥㑦愳攳㕣㠲㝦㠳ㅥ捥扣戳ㅡ捣㜵㝢捥ㅥ挶㝤挸㥡戳㥦㝦戰㤹㌷㈴㤷扤昲〴晦慥㐹晤㘵㑢戳攲攲摣捤搱㥢戲㌹㝡愳㔹攰晣㔴㑦㠰换㜹㜱㜴㤶攱㈸搷攴攲攸敦散㡥捥愱愳㕣㙤㙦㕤て㜳愹㥥戳㠷晢扤㠵攴㉡摥捤昱㙢戳㌹㝥㡤㔹攰晣㐴㑦㠰敢㝥㜱晣㘰挳㜱㉥摥挵昱慢敤㡥ㅦ㐲挷戹㉣摦㍡挷戹愶摦㍡挷戹摣㜷㜳晣昲㙣㡥㕦㘶ㄶ㌸㍦捤ㄳ攰〶㠱㌸晥㐳挳㜱慥昲挵昱㑢散㡥㉦愲攳㕣扦㙦㥤攳㕣晣㙦㥤攳摣ㄷ㜰㜳晣挲㙣㡥㕦㘰ㄶ㌸㍦挹ㄳ攰㑥㠲㌸ㅥ㌲ㅣ攷㜶㠰㌸㝥㥥摤昱㙥㍡捥㠵晥㌷㌸愷㕤ㄶつ摣ㅤ挸㜹㑥㘷㥤戵戹㘱攰收攸㌹搹ㅣ㍤摢㉣㜰㝥㝡㈷挰㉤〶㜱㌴㘶㌸捡㝤〲㜱昴㑣扢愳换攸㈸㜷〰〶收攸敢㔶捤㙦扤㘸攰㑥㠲㥢愳愷㘶㜳昴ㄴ戳挰昹㠹㥤〰昷ㅥ挴搱攵㠶愳摣㜵㄰㐷㑦㌲ㅤㅤ㠲ㄹ戳㈸㉦㍦㘰㙤㍦㜸戹攳搰摦摢㡦戶晦㙢ち挳㠵扤㈱㠶㍣ㄴ㠷っ㌶㌷〹攴ぢ㉢ㄱ㠹ㄷ㈸挱敢挲〹晣㝦㑢㘶攰〵㜸扣㈴㡣晦昵愷昹っㅥ㉦挶昳㑤㌶敢㠵㔴㑤㜲慣散ぢ捤㑥攰つ搵挲㔰㕢ㄲ慦搹㜷ㄵ攱晦ち㤰挲晦㐷㈶戶㉤㠴攳㈰㠲愳㠰㥢㈹搸㑥攱昷㜱昲㕣㠳㈷ㄸㄵ攱㝣㠱搵昶㉤㠱㍥㍣慣㙦㐹攴昱㉤攳㠱〵攳昸㔶㜲㤰攲敤㙥昹摦挵㤶㐹戴㐶㌲㑦晤っ摤㉢〱〵㙦㔷敤昸戵搸敢挹挳扥㈱㘴㝤慢㐱昸昱㝣㈵㝥攰㥤㑣敤ㄸ㜰㈴㌶㔲〸ㅥ敢㘳〸㌸ㅤ㘳㈸换ㄴ搶㜰晣慦㌷㡡㡢改敤晣昳㙥㥦昸㘵昵㤱捤㡡摢㉣ㅣ㐱扥ㅦ㐳愷ㄱㄳ摥㘵㝢戱戳㐰慤戵っ昳慣昱昴ㄹ戶〶搲扥戵㈰昹昸扡戲㙣㠱㠱昸戵㜵攰搸っ㔳摣愷愱㜱搶愱戸戹㈱捤晤ㄴ㤲戶㠸晥昴㌶㔷扢戶㜹〲㤵戳捤扥昶㑥㜴戴挷㔳㈷慤㍤ㅦㄸ㙣㑦㘳㝢〵慡挷㔵昱愹搴㤲慥昸㜴戲ㄸㄴ㘸㈰慣㡡㤰㑦㔳㍣〸っ㥢攲戸慢攲戳㌲ㄵ㥦攳㔰捣攵㝦㥡㘲慥愱㙤㡡挳慥㡡㝦㤹愹昸㝣㠷攲ㄱ㑥挵㕣戳㡡㘲昶㜴㠱敡㜴㔵扣㠱㕡搲愱搸㐸㤶つ㡡㌲攴搳㉣摥ㅢっ㥢挵㐷扡㉡扥㍣㔳昱㤵づ挵晢㍡ㄵ㤷㕢㡡つ㡢ㄷ扡㉡晥㜵愶攲㙢ㅤ㡡戹㕣㑢戳㤸㙢ㅣ㕡散扢づ㠹慣愳㜰慥㙢㝢搷㔳㜹㍡㐲㌷㤰㘵㐳愸〱昹戴昶づ〴㐳摡扢〹〹户㤳散㈰搷愶㝥㑦扤改㑤摤㑡㤶慤愹㠹挸愷㌵㌵〵っ㘹敡㜶㈴散㉦㈵愴㥦㘱㤳㕤ㅢ扣ㄳ㜵㝣㜷㠱愴㥦搵㜷㠳㘳㙦㜴ㅡ昲㘹㡤捥〲㐳㐶㠰搱㔱㑤慥捡敦愷㤶㜴㙦ㅥ㜴㈸㥥攳㔴㝣㜰扡攲㐶㔷挵㥢㌲ㄵ㍦散㔰㝣㠸㔳昱て搳ㄵ㔷扢㉡㝥㉣㔳昱攳づ挵㡢㥣㡡㐳㤶㘲づ慤〲㌵搶㔵昱㔳搴㤲づ挵㌳㘴搹㍡戶ㅢ昹㌴㡣㘳㘰〸挶挶㑣戶㡦慢攲㉤㤹㡡㥦㜷㈸㕥收㔴扣ㅣっ戹挳搸〳㉡戹晦捡晤㜳敤㈵㜰扤扣晣㝣攳敢㈲㥦てっ㌰慡昳㘵戴愳㜸㔱愳づ敤ㄵ㌳挱㡣㕡㠳っ捤搰㕥㈵㤷搷ㄷ㤱㜹捤㑣㠸捣〹挸㠸捣敢攴㥥㘸挹晣摤㉥挳㌹㕥㘴摥㈰昷㜴㑢收㑤扢っ愷㙢㤱昹〷戹㥣愹愵慤户散㌲扦戴㘴晥㐹敥昹㤶捣摢㜶㤹つ㤶捣㍢攴㙥戴㘴晥㘵㤷攱㝣㈸㙤扤㑢敥㤵㤶捣㝢㜶ㄹ㑥㙤㈲昳㍥戹㥣搵挴㥥て散㌲搷㕢㌲晦㈶㤷㌳㤱挸㝣㘸㤷攱㍣㈲㝡㍥㈲㤷㔳㠸挸㝣㙣㤷攱愹㉦㌲晦㈱㤷㘷扣挸晣搷㉥挳㌳㔸㘴㍥㈱㤷㈷慦挸㝣㙡㤷攱挹㈸㌲㥦㤱换昳㔰㘴㍥户换㍣㘶挹㝣㐱㉥㑦㈹㤱昹搲㉥挳㔳㐴昴㝣㐵㉥捦づ㤱㘱ㅣㅥㄳ昲摢㘲挹㜸扣攰㜰愰㡢っ晦㌷摥㤶捣㘰㡥㘳〶㜴攴慤㔴㥤㡢扡ㄶ㉤晡㘴㜰㐱搹挸㠲㐳㈶㤶㥣昷昲挳慦㥥昵搴ㄱㄳ摥晣攲挲ぢ㥦㝡晤慣捤㕦摣戹㜸挲㐳㤷㕥晡攰昴㡢㌷扦扡㕤㘸㘳摥敦㍦㤹戱昱㤸捡愵挷ㅣㅤ㕡戰晦搴㘳づ㍤㙡㙥攵㥣㈱愳昳昳ぢぢ昷ㄹ扡㘹挴扥㠱㌵㐷摦慡敥㝢㙥㠷㤸㤲戱换㘱㥢㠷㘶㜹散㠱㕦㠰㘳ㄸ晦㍣㕡㍥戸㜸挸㈱愳㤷昹〲㔳ち㘹㑦㠰愳㔸愴扣㠶㤴㡣摦っ㈹㡥㘳㤱㉡㌴愴㘴〴㔳捡㕡〲㠸㉥㡥㘴㤱搲っ㈹ㄹ挳ㄹ扡㌸㤶㐵慡搸㤰㤲㔱㥣㈱挵搱㉣㔲愵㠶㤴㡣攳っ㈹㡥㘷㤱ㅡ㙣㐸挹㐸捥㤰攲㠸ㄶ愹㈱㠶㤴㡣攵っ㈹㡥㘹㤱ㅡ㙡㐸挹㘸愶㔴㥡㡦ㅣ搵㈲㌵捣㤰㤲昱㥣愱㡢攳㕡愴㜶㌰愴㘴㐴㔳㙡〴昲搶ㄱ攰挸ㄶ愹ㅤつ㈹ㄹ搳㤴㑡㙢㤱㘳㕢愴㜶㌲愴㘴㔴㔳㉡慤ㅦ㌹扡㐵㙡ㄷ㐳㑡挶㜵㠶ㄴ挷户㐸敤㘶㐸挹挸捥㤰攲〸ㄷ愹摤つ㈹ㄹ摢ㄹ㔲ㅣ攳㈲戵愷㐸〵㌸昸㤸㉦㉤㔰ㅣ㜱㌲㥦㍦晦㤹㌱㥦㑦〲ㅦ慦散〷㉣㤳ㄵ㐷㥢㐸晣㉤㕤㐲㜱㠰㐹挱ㄶ㐷〱挷㤴ㄴ㍣攷㈸攰㌰㤲㠲㘷ㅤ〵ㅣ㌹㔲昰㔷㐷〱〷㡢ㄴ㍣攳㈸攰昸㤰㠲愷ㅤ〵ㅣㄲ㔲昰㤴愳㠰愳㐰ち㥥㜴ㄴ戰攳愵攰㉦改〵〱㙢〴㈸㜶扡㐸㍣㤱㉥愱搸捦㔲昰戸愳㠰㕤㉢〵㝦㜶ㄴ戰㌷愵攰㌱㐷〱㍢㔰ちㅥ㜵ㄴ戰捦愴㘰㜳㝡㐱昱晦〳慦㙡摦㙡
A28: Decisioneering:7.0.0.0 | B28: Decisioneering:7.0.0.0
A29: CB_Block_7.0.0.0:1 | B29: CB_Block_0
A30: 㜸〱敤㕡㝤㙣ㅣ挵ㄵ扦搹昳㥥㙦捦攷攴〸㐹㈰㉥㠴ㄳ愴㙤愸挳㘱㍢〴ㄲ摡㌴昱㥤㍦㘲ㄲ㈷㑥捥戱〵㈹㍤搶㜷戳昶㈶户扢㘶㜷捦昶〱㙡ㄳㅡ㔱㕡㠹戶㠰愰〵㔵ㄵ㤴㤶㔶㤵愸愰昴〳㈸㤵㈸ㄵㄵㄲ㐵㐴㐲㙡挵㕦搰㡡㍦愸ち㔲搴㔶慡㔰㔵愵敦㌷扢昷攱昵㥥昳㐱㕡攵て㌶搹攷㤹㜹㌳㙦㘷㘷摥晢扤㌷㙦㉦挲㈲㤱挸㈹扡昰ㄷ㔷ㅢち㤷攵慢㡥换㡤㑣捥㉡㤷㜹搱搵㉤搳挹昴摢戶㕡摤愳㍢㙥㤴㍡挴ち㍡昱ㅤ戹攰攸㜷昰㜸㘱㡥摢づ㜵㤲㈳㤱㜸㕣㤱㠸㡦㍥戸㔳戵㡡㠲㥡搲〶㐲扤㈲挹ㄸ㤱㝣㉥扢㙦敡㌰挹捦扢㤶捤㌷愵㈷㍣㈹摢㝢㝢㌳扤㤹扥ㅢ戶㘴㝡㌶愵㜳㤵戲㕢戱昹㜶㤳㔷㕣㕢㉤㙦㑡㡦㔵愶捡㝡㜱㌷慦㡥㕢㐷戸戹㥤㑦昵㙣㥥㔲慦摢摡㝢摤㤶㉤摡戶㙤㕢㤳敤㈴㜸㕦㉥扢㡢㤷㘷㐹摣㜹ㄲㅡ㈷愱愳戹散㤸捤戵昳㈴㔲挶㝡昴づ昰愲㡥㠵攳摣搶捤改㑣㉥㑢晦㥢㤶㠴㙡㌷㘴昶攵昳摣㜴㜴㔷㥦搳摤㉡搶㑥㌱昶ㄵ愷㈶搴㜲㠵挷っ㌱愳戸㌱愱摡㝢㔵㠳㜷ㅡ〷ㅤ㝥㐰㌵愷㌹㙡戲㌱㕣搱㑢㙤戴愱搱慢挳ㅥ攴㉦㔱㠶㔶㉢㌷愳摡慥㄰㠹攵扢㌶慣户㜸㔲愶㘹㉡㘲㡣昷㝣ㅡ挳㍡㝣㤵挱㌳戱戹㡡〲㤲㈰ㄲ敢㈰㜲㜱搳挸戴ㄸ㥡敥㘳㙤晦㈴挵㙢ㅥ㠸㥥㔲㐱㤵ち㔳㔲愱㈸ㄵ㑡㔲㠱㑢〵㑤㉡㑣㑢㠵ㄹ愹愰㑢㠵挳㔲攱〸昵愹㕤昱昶㜶挹扦㍥㜸敢挵敡㠹攴昶散㜷㜲㑦扥昹㥢扦㙦㝡㔸㠶慥㜵㠷扤挹搲〵ㅥ户戹㔹晡扦㉣㙤攸㐶㜸㑢㉢㈶㜱扡㐵敤愴㤷㔲㔶㄰㠹慤㈴搲㈹挶昸换搹换搸㐹㕡㑥㉣㘹敥愹慥て扡㥥晡挷昰搱㥦㍤扥戵愳晤搱昵っ敦㈶っ昰㈲㡣㕦㠵昱ㄷㄳ〹搹ㄴ㤲昲扥㉦挵㍥愶㙤㕥㔵昹㔳昶摢搷ㅦ晤㝡摦㝢摡昱攴ㅡㅡ㌲㑡摡㤲搹换摤昳㘳㔸㌲㤴㈴㜴㑤㐲㤵㌳㐹扤㘵挳搳敤〱敥ㄴㄵ㈸晥㠸㔹攲ぢ㌱㉡㤱㐱㈴㡤㥣㘵扡㝣挱ㅤ㔰㕤戵摤ㄸ㔳㘹㘳㕤㠵㍡㜵㡢㔱㕥〹㈳㍢㐵㕢㙤㜴挲慦㤱㠴㤴㈸㌶㐹改㄰つ㥥㈴㐶搸ㄸ㙤昳㘸㍣ㄶ〶㤲扢㔴㘷挶㔵愷捡㝣㐳㐰昳戰㙣㘴戶〷㕤扤散㘴㐸攴戰㙤㔵㘶戱愰攷㑢づっ㔷㠱晤挴㉥㈱㈲㈰ㅤ㝦改〱㍢㤵㑢改㑦㐲㌰ㄵ㌰㘹㝦㑦㠱搳攰㈵㉦愳捡摥㕣㜶挰㌲㔴摤㍣㍦㝢㥢扣㥣㘴敥昷㔱㘱挰㔶攷〹攱ㅡ㤲晢㌲㍤昸㜷㝡㠰㈷㝣搷戶㘸㌷㘸扤扤愵㉤㍤敡㘶㔵〶愴㥣㉤㐲慤愶㌱㐹㘳㔲㌷㑢搶扣戰戶㔵〶攱㤱㌰戶昱敡㉣ㄷ㑤㐹㙤㕣戵愷㌹挱愰㍤㌲戰㕡换㔹戶捤换慡换㑢愲〱㡥敦㤲挵㡤捥㤰㙤ㄹ㘸扦㉣慢㍡扣㘱戹摤㥡昷愰慣㔵㌱㑢捥㈷挲㤹㜹㤷㐴㜷〵㜹つ㈱㑢㠶攵挹㐵㜰㐷捣㜴㝤㜰㤸搰晤晥〵摤㘳㕦ㅥ㘰㤳㤳戰愶㕡㜳㠷㙣㝥㝢㥤扢㘴㐶晤攴晤攷㌸昸㑢摥搲㘳㜹昳㈲っ戲ㅣ㙥㡡改㜵ㅢ㘳㝡昱〸户昳ㅣ戱〳㉦㠹㔷㕤〳ㄶ㈷㜳㉣㜲愷㝢ㅦ㤶㥥扣㔴改捡收㔶㙤㜰挱㈵ㅣ收㈵㥡㉦昹㙥户㍡づ㐳㕡扢愸㡢昷㑣㘲慣㕢搴㍣㘴ㄵ㉢づ㡣搶戶捡㡢㌹晤愵㌹㤵㥥㔹ㅡ戵㑡扣慤㑤㡡㐶摡㈲㙤戸㈲攴ㄵ愳㘴挹㍤〱㍢ㄵ㉥ㄸ戲㥤㘶㕦搷愴㌹〸〵㌶㥦搱愰挵敡㠵㜱㘱㠸㔱て慢搸愵㡢㙤㈵㜳㠰㔶㡦㔶愹捣㘱㐸㔲㄰㔰㥡㈶摡搰ㅡ㍣㈴ㄴ㑥扤㌷㙡㕡㌳攸㉤㝡㙦㙣晤㉡㐲㙣㕤㌳晥户㥤㈵改㘲晦敤〷攷〸戲㜷愹㘶愹捣敤攵搷ぢ㌳㔲搶㠳㕣〱㤲㈶㤲㠸挸㙦ㄳ戸戵㕣㐹挴〴㙣㠱㔵攵㜹扤攴捥挴㘶戸㍥㍤攳㔲ㅢ㠵慤昱㌸㤶昹㔱扡㕦愳晢㘵㐲晡ㅦ㈰ㄲ㔶慥〴戹㡡㐸㈲㤱㠸〸昸㡣㈵㤴㑦㡡㝡㠴〹㜷㡣づ昰挶〱㙣㑤敤㔴㌶愲摢㜲㍣ㄹ慥㝣㤹つぢ挴〴㑢㘰慣挳㄰㍤戲戴㕣㑥愷㤱搷㠵㍦ㅣ挰摥㜶ㄸ㘳摣㉥搲㔲敡㘵㥥㌰敡慡戸挴㠸㍦㠶慡ぢㄳ慡愲㔱㠰搴㈲愸晡㑣㙢㔳ㄵ㕡㄰〰愹㘵㡤㘷㔹收㌲㤸搰㔰㉡愰㍡㉣昰搳慤㘷㔵搷㍡昸㔸昴㙤㘹㤷ㅦ㈳㕣搸㐱㥢㘱捤㤴㑤㈰搷㠰㘴㐰慥㈵㈲㥦㈰㤰㍢搳㠵〷㡡戵捦㈱㍡㉥ㄴ〸攷愸㈶㔰昰つㄲ〱慣ㅣ愴〶摣昷搲㐹晤㍥敡换㤴㍥慡㈹㥢㐱慥㈳搲㠴㝡搷㝢㔵㈶づㄱ攰攳っㄱ㐰㍤㡡㌶户愱摢㜲㍣㠶〳〸挲㌸㘵㍢挸攷㔱㑢㐴搸㙦晤ㄹ㐹㌴㤳户㘸㈶つっ摥㠹㙥晤愲㕢〳㠳㜳摥戰㌶〴户㘱敡㕣て挵ㄱㄹ㈷昶㔸㙡㘹㐸㉤㔲愲愱摤㑦㌳挴㜳㤶㌱㑢〷〴㍢㠵㥥㌹㡡て㈸敥㤸搳㑢摣㡥愳㈱㑦㠹㡤㌶㑡㌳㌸㌱ㄱ㕤㌹ㄴ昹㐷㈳戲摣ㄱて㝢搶㐸㑤搶〶摦㡢㌵㈷㑥㐶㤶挸㝦㝦晦搶ㅤ㐸㡣㈴ㄲ〸搸㤵〱㄰散㠱っ㙦㜶搶ㄱ〹㝣捦㕡㈳㍦㘳捤敦㈲㜷挶ㅤ敦㈰敦攴㙣摤扤㘴㘹㌳㥤㘴㔴㘳㥤㘸ㅦ戶㌹〵愱昶㌸挵㘲攲ㅤ㌱愲㉢㤴㈳〶㜵〹㝢㙥㐲㤹㙥㙤㐲攷昳㌰敥㉢㤶戲㈸ㄳ㤱慢㌸慥㈵づ㕥敢㤷昲〷慣扤㤶㍢愰㍢戳㘵戵扡㈱㠴敤㜱㈶㘷戸㐹㐸㘳㔳ㄸ㜹扡㑥搶散㉣㉦㠵捣㌱㙦㔵挸ㄱ㡥っ㕣〸ㄱ㈸敤㤴㜷㌱ㄱ㝣戲㌸㡢㐹㡣慥㜳ぢ㝥搸㍡〸扢㜳昵㑦㠷晦㝣挷昱ㅤ㌱ち㘹ㄹ〵㈹㘴㑡㌲〲愲㜳〹㔲㜱ㅣ愷㌸愲改㘸戴〶㈹愵㔱㑡挲改戳㘵㥥㔵㙤㔲㙣换㜶ㄴ愳㔶昴ㄴ慦㈹戹攳㔹换㠵戰搸攴㍥扤ㄸ㍦搳摡㐵㌵㑤㕣攸㘰捤㔳戱搵㠱㘰㕣扣㌷摣搴㌹敥㤵晣〲愱摢㔹㑥㘴㈹㜲搳昳㈳㑣㝥㥥㐴㠵捥て挰摥㘶㈲昵㈷昰㍥㜱挴戴收㑤㌱㜳搹挱㜹ㄳ〲㤵昶㜶扣〶攰㔷㕣㕢㙡㙡ㄳ㤱搳搴㄰㥡㌱昳搲〲昵摣攴㐸〹㜱愵㤷㡣㑣㈲ㄹ㐹攱㠷挸㌸挶㐵㠵昰愰搳㤸戴散㈳㔳㤶㜵〴挹㥡ㄵ愲收捣㜰敥㈲㍢搸㘱㜸ㄹ㌸㤴㐹昷愳搱㐵ㄹ㐰㝦摤挱㐴㔲挲㡢戸㐷愸ㄴㅤ戲㡢愲挶㝥㐱敦㡦㌴㔷昵戹攷㍥晣摣攴挸昰㡦㍡㕦㍡昶搵晥㠳㐷搹捦㝤挶㙢㌷摦㝡攰愵㈷㡣㥢敥晦摥ㅦ扢慣㝦㕦㌴㈱㈳㠸㍦愳〳㔴㡡㍡慥搴敡搸㌵慥扢㘵摥愱㜹慡㠱㜲㕣㈳㌴愲㠸戱搴慥㡤捦搰㕢て㜴㙡挳戶㕥㉡敢㈶㠷敡㔰摡〰㤹搴㍤㝣㥡づ戲㘳ㄶ戲戶㤶搹愹㡤摢慡改挰搷㤸挵敡慡㐵㌵㘱㉤戲㤶搵㑤㠷ㅥ㈳昰ㄲ攵㤵ㅡ攰㥣㜶慥㘲㤸挳敡慣㜳㈱㤸ㄳ改㐹敤昲挰㑢㘲㤲挴攲㔲晣ㅣ㉤㈲ㄲㅢ㈵㜹㕤㑤ㄶ㜸㘳ㅡ改㌱扤愴㤶搲㤴㘱㔴改搰㉢〹㠸㤳㄰㤱攰晣㐵挸㠶㤳搸㌲〷愶挰〹ㄷ㔳㑥㡡㈴戹㥦㝡㠸㠶㜹敦晡ㄱ㕣挴㕢㝢㘹っ挳〱㑦㔸换㍥扦㠰ち摢㐸〴攱㐶挰㝦㡦㔱㤳戲㥦㠸㡣㔸敤㉣挲㜴㜸晦㄰㡦昵戱㔷昵昳㐴摡㤹攵㜵㘸ㄵ㘹㜳㠴㔲㝥〴㙦ち㐴昴晤㈷㐳戸㉤戶晦〰ㄵ㠰慡挰〵㠶昸㕢戴收愹㠰愸ㄲ户㡣㠰晣㡣㑦㑣㜸㐸愷攱ㄹ扡攷㈹㘵〳㈷愹㠴㌱㘸㔶扣ㅣ㜶㑣㐴㘰收㉡㌴㜷㉦敡㥡昰㥡㐰㔷㝡挵晡愰づ㥦㐵愸㘱慥昳㠲㔱㈴捦挰敦㙥㠸㕥ㄳ攴〰㘵捣㜶㝡㐱摣㤴㍡㕥扦㡣愷愴愷挲㍥㈸㘴㌹愳㕥㜱敦昴㌲㑥㐳㠴慦㘱㑡愳㠸㘷㌱〶慢〶㌰㝢搹ㄳ〲㜸㈹㠲愶㈶㙢㘷㌸㠵挰攲㤵〹㈲挹㐹㈲㈳挳〷㐷ㅡ㔹攴㡦昲愵㔰挶改㘶㤹㡤ㄳ㐸㕥㑦㝦㈱㔵扦挲㐳㜷戴〱散ㄵ〱搲愸〵㍤㐶㐲ㄳ㝤攰㌰㔶㌴㡡㐳㤴㥦㑣㙡㝢搴㈹㕥ㅥ戲㙣㐳㜵㔷㜸ㄵ慣戹愱㤶ㅤ㥦㐷㝢㘴愸昰〶昰㈴昹愲ち愷搳㕦㜱慤㔱摤㔴㌴㈲㐲㙤晣㈶㜵㠱㥡搴〵搱㤴搴づ㈰攱散㘹ㄵ挹戲愶㔵㡡攷㘷っ扤ㄸ㐷〵㐹攱ぢ挲㡤搰搶ぢ㘵愳〵挵㔵㌳摢㜴㐰昵扣㉦㈵戴摢ㄹ㍡㜱㘰改戰晢攴㙣㈴ㄶ愳㝦散ㅣ昳㠵愴㜶㈲㠶㔰㙥㈶㘹㌲捥㘰ㄴ㠱㄰愵敢㘴敤ㄳ昸挹㉦㔳㡢昰㌶っ㈷㕥㘱昱户昸〵㔴ㄸづ戸㈱㙥攰㄰㌵㉢㕦㐰〷ㅣ㙢㜱㤴ぢ〶攸搴〲戹㜴搶挵㤹ㄷ㐱㍡㝢㠲㐲ㄶ㠴㠶㔴愶愹㝣㥦㑡㠸敥㐲愲㌳戶㤳㝡〸㜳㠹ㄵ愸搴戹挸㙦㠶戹㑡搶㑦摤㠴昱摣㐶〵㤶〳愱㕢㔱晤〲㉡愹〱㈲㔸㠵搸ㄴ㤱㡢㜲搹㠲ㄷ㥡搵㈲扣㔸㤱㥡㔷㔰㜳㤳㕦㑤攱愴㡡㌱㑡〹㐴挰愶昰㤹愸㘹㐴㙡㔷ち扥ㄳ㕢慤㑣ㄳ改㡣愶攰㈷挵㐰㍣㑣㠱攸ㄴ扣愶㘸㍡㡣愶ㄵ㘸慡㐱慥㔲㐶㤳〱㘲㠲㔸㘰〲㜹㠵㤷㥥㐵搳敤㈰㌶〸ㅤ捦㈳㡡ぢ㔲〱㤹㈳㤲㔸〹挰挱昳㘳㡦㍥㠲敢昹ㅤ㔴愶敢㠴晦昷㥤ㅤ慦晦〱搷晢㍢ㄸ攰㐵㉣捥扣攸攱ㄱㄹ㍡㜲㕡戵挴〳ㄲ攴愸㑣晡ㄵ㐳戵㑣愰㠰㈲愲㕥慦㠴㌴㠲挷ㄶ㜱㌸㝤㡣㙦ぢ㘶挱敡㘳ㄱ㤷㜷㠴〶昶攰㐰晦攵㝢㐹㌹㕡㡥挷ㅢ㌴㌲㍤ㄸ㠳㉢㔶㈵戲㝡㔴㉦摡㤶㘳㘹㙥㍡㑦戱㘸ㅡ㕦㙤㘸慦㝡晡搹㍤㐱㤵扢㡡㔶㈲〵㝤ㄷ㕢㜷㈷ㄵ㘸敢愰摢㠱慤㠳愶㡢愶㉦㔱㐱㝣㔳㘶户㔱㐹㉣攳㔱㉡搴慥㤴㑡㈵㈱敢ㄸㄵ㍡愳慣㐴㝦搲㜴挷敥㐶扤扦㕣㑥搷づぢ㑥散㉢㘸㕡昴㠳㠴搸㜱㙡敡挷攷㥢戲㤵㉥昱昴慣㙤㔵㜹戱愸晦敥㔹㌳慤改㈶㝤摣搱戹慤愶搳㐳㈳㝢〷〶挷〷て㕣㜳㌰㥦摥搸搷搳戳敤敡昴㥣㤶捥昶攷〷㌳ぢ㘵挷㘰㜷搲㝢攲搰昰挳ㅦ晦㝡攷扢敦摥扦晢挹慤㥦ㅡ㝢㔲搹ㅦ㘵㜷昸㡣攰て〸㔲㌵㕤㤶愱扥㥦つ挰㔳搳攷㤷㈶摢攸づ㝥挲ㅡ愴㑦㔲㔵慣㔲㤴㔲㐹戲挰收㌶改挶㜳㤳㔵㍢㥢㐲晦攵㉡捤晡㈳挸挱㉥㌵㔴〵ㄲ慦愰㕢戹㤷〸㠳㈹愶㔱挳晥㈸搸ㄱ〵㝢挰摣㔶㉢攸昸㡣攰捦づ㘴㔸昰㔵慤㕦戶晥敤〲捦㡦搱愷㝢㑡㉤昸ㅦ昲攳昴敤摥愵摣㤴㜹㈱戸㉣㔲㕥攱愵㕡㥡㘶散ㅣ扤ㄱ戳㘹攵〴摥敦摡㔵晢㈴㉦㐵敡㘸攵戹ち㈰㈰ㄶ㤲摤㕥敢晣捣㉦㈳愷愸㠱㉥㘸ㄶ㉥㠲㌴慦㌳㤰㔲㜴㥥慤㜵敥㍢㜵㌲搰昹㥤㕡㘷㈰慡攸㙣搵㍡晦慤㙦㕤扤㜳つㅣ㝤挹〰摣㌴摤摥㠱晣㐱㉡㌵づ攴㐷㘸㝣攸㠱晣戰捦〸ㅥ挸ㄹ㤰扢㉥㑤㠱㌴敦㘸㍦摤㑡㤲收㌳ㅥ㍥晣攱㤶攷摥扥㙢昴搹㠷㤳ㅦ愶戳慢㠶ㄹ攰㍦㑣㔲戱㤵愴㈹㥦㜱搷敦攷户捡て散捥㍤戶㜶昶㤵㥥㜵㜷㑦㌰昸㤰㌰㐹㠵㔶㤲扥攸㌳ㄲ摦攸㥡ㅣ扡捤捣㍤戳攱㕢㈷㕥㝤㜵敤㐳っ㡥㈸㑣搲愱㔶㤲㙥昱ㄹ㔳敦慤戹㙢昲搲搷㠷㕦㝣攵捤〵昷戱㙦㍥捤攰捤挲㈴㑤戶㤲㌴攱㌳㐶捤挳㝦晤敥㕦昶づ摥㜳晣攵〷づ㙤㍦昴㌵〶㤷ㄸ㈶㈹摦㑡搲〱㥦昱挶扦㝥戲昰晡挶㠷〶ㅦ㜹晣扥慤㥢扡ㅥ㝣㈰㔵昳㤱っ扥〱搸挸昶㔳㔷〰㤲挰㤰愷搱〲㥦㤰愶㍢㠸㈱㝢㝣愱㑢㔰㜸户捦〸晥攸㈸㜵㤴愴攰㘲挷㠸㠸愷摤搴晣戴㕦㔱慢っ搸ちㅡ㈷ㅣ敦㄰散㈳昰慤户愳〳㡥㜱晣㤱ㄷ㜶晥㘷昳慤晤っ戳挵昰㝡〳〴㌶㌷㜴晣ㄷ㑡敦挳摢 | B30: 㜸〱敤㕣㕢㙣ㅣ搵ㄹ摥㔹敦慥㜷搶㜶㙣攲〴㐸戸㤹晢挵愹㠹〳㉥㤷㌶つ扥挴㠹挱挶㈶敢〴㈸㐵㥢昱敥ㄹ㝢㤲㥤ㄹ㌳㌳敢挴ㄴ〹㑡㐱戴㉡扤㔱㈱〴㐲㉤㐵ㄵ㙡㕦㝡㜹攱搲昲㔲愹㔲慢㉡㐸㝤愰て㤵晡㐰㔱搵㍥㔰戵㤱晡挲〳ㄲ晤扥㌳㌳扢戳扢摥戱搹㐰㙢㉡ㅦ挷挷㘷捥㙤捥㌹晦昵晣晦㍦㐹㈸㠹㐴攲㐳㈴晥㘵㑡戱㜰㜱㝥搵昵㠴㌹㌴㙥㤷换愲攸ㄹ戶攵づ㡤㍡㡥戶㍡㙤戸㕥〷㍡㘴ち〶摡摤㜴挱㌵ㅥㄶ搹挲㡡㜰㕣㜴㑡㈷ㄲ搹慣㥡㐴㍢㈷攱㙦㕦昸愰㜲㔴㜷ち㔹㝥㝣㙣㜶攱〴㘶捤㝢戶㈳昶っㅣ昳挷敥ㅦㅥㅥㅡㅥ摡㜷换挸搰摥㍤〳攳㤵戲㔷㜱挴㝥㑢㔴㍣㐷㉢敦ㄹ㤸慢㉣㤴㡤攲㕤㘲㜵摥㍥㈹慣晤㘲㘱敦㑤ぢ摡捤户づ摦㍣㌲愲摦㜶摢慤摤㜸㜳㘲㘶㝣㙣捥ㄱ扡晢昱㑣㤹收㠲㙦㥥㄰㐵㠳㍢ㄳ挲㌱慣挵愱昱㌱晣㡢慣ㅥ㑦户っ攵㤷㠴昰昸㘶攱〸慢㈸㕣ㄵ〳扢捣㔱搷慤㤸换㍣㍡搵㥣挴㐶㡢㥡敢愵捤㜱㔱㉥慢㘶㌸㙢搶㥣挵挹㤵戵搵㙥㌳㉦㉣搷昰㡣ㄵ挳㕢捤㤸昳㤸愸搴㘳ㅥ㜵挵ㄱ捤㕡ㄴ㜷㙢愶㐸㥢㠷㉡㐶㈹攵愷㐴挷戵攱ㄴ搱㠵挹摤て㡤扡收昸㤲收挸ㄵ戹㍣㤷㤸扥㤳㑥戱扥敦㤵慤攷攵搲攵ㅢ㌸攷搵慤晢愱攵㤸收㔴㝢づ戶敥ㄹ㙣扥㝥〵㌷戶敥ㅦ㌹愳晡㌱搷户ㅥ㈳㡦戲扥户搲ㄵ㘰户㍣㔱㙣㐶捤㌰敢㘴㤶㘵㐶〰慡㌹㘶㕤捣扡㤱㈹愹㝦㠳㐶愲〳搹㤴㉣㘸挹挲㐲戲㔰㑣ㄶ㑡挹㠲㐸ㄶ昴㘴㘱㌱㔹㔸㑡ㄶ㡣㘴攱㐴戲㜰ㄲ㝤挲㤴敤散㑣〶改づ㔵昷摥扢攴㠷戳慦㝤昱挴愹慥㝦晤昸搹敥㙤攸㜴㑦戰愸〹㐷㍢〵㔴慢㈱昱扥愱扤晣㔹㥦㈸㐰ㄳ晡㠸㝥㡢㍥㍣㕣ㅡ搹慢摤愴愵戹慤ㄸ攰搷㈱㑡ㅦ晡㜶敢昷ㅡ㔶挹㍥㈵㘱㜷昱㤸收㡡摡挱つ〶㙤㘳㜶挵㉡戹ㄷ慤摤㤸昷㌴㑦散㙥㙣慢㑤搲㌴㉣て戲ㄲ慥㝣摦愵㡤挳㡥㘹攵㡡ㄸ㍤㙤昸捤㤷㌴㌴㥢㜳㡥扤搰扡㜵搲ㄱて㔵㕢㥢㔶㌴ち㤶戶㈲攷㙥摡愵摦攴慦㙢㘰㝣挹㜶㠵㈵㤷㌷㘸捥ㄹ挵㤳挲挹ぢ㌲㐴㔱㤲㕢摤挹愶㠰敡〷㘷㉤㙣ㄴ搴㕡扡㈲㕡慢ㅦ㍣敤㠱㤸㐵〹敢㕤ㄶ㡥户㍡慦㉤㤴挵昹㜵㕤晣㜷愲㘱㔷㕤昵愴㕤慣戸攳戶攵㌹㜶戹扥㘵戴戴愲㠱搳㤴㘶散㤲㐸愵ㄲ㤲㈹㠰摤㜶㜴㈸㑡攲㠶搶戴㈰〱ㄱ〱㌱〹昹挲㝡戴ㅢ㍡㠲摤㘱ㄷ㘵㐱㥣㑣㕥戵捥㘴㕣慦攴㌱㌱ㄴㄸ搹ㄳ愵〷㕦㝡摤㍡搳㔶㈱昷挹㜶㑥㈶晢㠳摤ㅦ㕣ㄱ㤶㜷㔸戳㑡㘵攱挴捡㍥㠵㉢㔲㝢㤱愵捦㠲㈱戴㍣㍤ち㍡攵戴戲㥡㍥㘵㤴扣愵捣㤲㌰ㄶ㤷㍣搴㐱㍥㘶戳㍣摡愶愴㥥㠷㉡㜵㍢戳㝥㘴戹㕣㈲戳㠳㥤㌲㌹愴㐴㥡摣㈹㠶㤶敢ㄸ㌹挷搵搱㜲户㍥㘹㤴㍤攱㌳攵㕥ㅤ㄰昱愵㥡〴㕦て㔱搴搱㡡扥挰搸愱㡦〳㑢㌵挳昲㔶㙢㜴摢㐴㈵㍥ㄲ㙤昱㠲㑤挷ぢ挸ち敡昹㐱っ慤〱㘹ㅡ戸㐱㝣攷〸ㄲ㤱っ㘲㈴㍢㘶慥㐷㌲昶㡦攱ㄱ攸ㅦ㐵㐲昶摥摢㥡㐷㄰搹㥢㤱㤴㠳㕡搲攳ㄶ㌷㕢㑢㤳昷戹搹㑥ㅣ㥣㝡㍥戳ぢ㤸㕤挸㙣ㄷ㌲攵㙦攰㜰攴㜲㈸搷㈷昵㈲㍣慢ㄷ㌳扢〴ㄹ昸㤳㑡㥥ㄳ戰㉡敡㔰ㅢ搱㈳搹慦〷㝡戲㔴㡡㝤㔶㐴捤戸慡㘷昶㤸ㄲ搰㠱搶戹㌹㘴㙤㑡捡搸㙢㕡攳㘶㜴㍢挴挸㤸慥搱扤慥搳㌵㝡㄰散摡愶摣扡っ㐳搵〱㘶㤷㈳换愹㔷㌰㠷㜰愱挲扢㌱㡤㥥㉡攵愷㐲㉤昲㤵愱㌶〵㝣㠰挸扣〲挴㌰戹愶敢换㤶づ㑤㜵㜰㔰晦搴敢搰㝢㕡搳㜷〰昴〶戹戹㈵㜷㘸㉤晡㠸㕡昴㤵㈰㉦攵捦㉤㘵捣搵㘸㔶慦㘱㜶㉤戲〶ㄹ挳摢昷㐷戵ㄴ㐸戵搸㡣㐰㙥㍢慤㉥㔲换㥤㕦㕤ㄶ㔲〲㜵敢昳㥡戳㈸㍣㔸㌰愶㈶愰ぢ摢㡥㈳捡戸搴㤶㘴〵敦㉦ㄷ搴㔷扡㤳㡥㙤戲㝥㑢㐷㜶㍦ㄵ㠲㈱㤵㑡㜶㈴ㅡ㜴攴ㄸ㕤㌳㘲㜳㡡㘰づ㘵昰㑤慤㤹㐴㘴㔰㍤㝡㜱㕣晣晤㜲㡢㤳戴挱㐹慥挷戱慡㌷㈰〳㤷㔰晥搸㤲愳散㘱户捦挸㙥昵ㅡ㉢㉤㝣㌱户㤳〶ㅢ㘲ㄳㅦ改昲つ戶㘳戰ㅦ戸㍤㘶摥㌰慢捣愲换㥣ㄳ㑥ㄱ戶〵愳㉣㜲扥㔹㤶慣㘶㡢㔷㝣㑡㜸㐵㐷㐷搳㝤㍡挶扥㈶昱愴㠱㑢挴㔲㝢㙣㘳捣㕤扣㠶㔴㌴㐳㤲愹挴㤸㠶慡ㅣ㠸㤸挷扥㕢㉣愶つㄶ㜳㈳づ㑥摤换㙣㤸搹㍥㘴改户挰㘹㌶㝡昰㜴㠶㜵慥搰愴㕤㈸㈴戲〴㠳㌴ㄱ㥥㘹挹慣㐶昸㥡捦㌲扢〵㔹㠳晡㐳〳㘴っ㈲㑡㤰㐷㄰㔱扡㌱昴㘳㠶㌸㐵ㅣ搸愶挳戱㌴㕥㜱㍤摢愴㘷愹㐷㥦戰敦戶扤〹挳㕤㠶㈷慡㕦てち昷㉥〹ぢ搸攵㐰昷㘹愸戳㤷㤷㐵㐹搵昳㜶〵慣㙤㙡㘲㌳㕣捣㜱ㅣ搰㈵攵摤㍣愹㈰戵㜷㍦挶ㄴち㑥㕡摡㕢㘹㡤摤㤰昵㥢㤷扥摥摡㠹捥ㅢ㕥㔹㜴改㍥搱戱㥣搵㜱㡡昰ㅣ㤴㍡昵昹㈵㐷㠸㠹ㅥ晤㤰㘳㤴捡㠶㈵〸っ攸㤸㜴搶㑤㡢㐵㜸〹收㙣晡〰㙤慢㐷㥦㜷㌴换㕤搶攸㔰㕣摤㕥昷㈴摤㈲㘹㝤捣戰㕣扣㐶㐲㤱攵㕥㍤扦㘴㥦㠲扦戶㘲㕡㠷戴㘵㜷㔳㐰㠵㐸敦㈷〹ㅡ㈵愹㈴㤳㑡㌶㤹㙤ㄷ㍥扣㤰㈷ㄲ愴扤ㄴ㌳〹慢㐴㥡㌶昳ㄸ改㑤扤㍥昰搱㔰㑦攷㥡扡攱㍤慡㔶㜶挴㜲㘱㔲慡㝡ㅢ挷摣㡥㙣敡搰搱愹㥡㘷敥㕣㍣搶㘹ㅡ昹㘳㔸扣挴㡡慡ㅦ㠴㈶扡㙤㍥愶戰㡥㠸〳〲〴挰昹搴㠸㝤㌹㕤昶㈱昲㙤慢ㄵ㈷攱㐸敡搶愷戵〵㔱㠶㍢摡搴扣㙤晥〳戵㔸㔳㉢扢㐱摢戸㙤㥡ㅡ㌱㡢㔸㤹㉦㙡㐴攰搱㡡㘷捦ㄸ㤶慡㈳㤳攸ㄷ㔴㘹愷㔱愵㥤㤶㔵摤晡ㄱ㝡〶㘵㤹㜳搹㡢㥡㘳㜸㑢愶㔱捣昲㠱摥扢㑤㠱㤲愰㜱㌲摥㌰㠵㉣㘳愰㐱㤹㍦ち㡤捤ㅤ〲戴㠷挰㐶㜹㜴㠴㍥㄰㌷愹㘴昰愳戴㘹㔷〲㝦㤱㠶㔲昵昳㤸㉤㉤㐳㈳挰㜱㘴㍡ㅢ〶㘰㥣㝤ㄴ㌵㍥て㈲搴㘳㔰〴㐶挱〸㡦愷㠵㍢愳ㅦ戵って搰㈳挴㈶つ㙦挲〵挸㤱愱㈸㙦户扢㈵㔴㈳㠳〶慢㐲攱戲收愶㍡㈹㜱㘹㜳㝢㔴㙣㕣戵㐶戳㉦㔰㈲㜲㘴扤㑥㔲戰慣戱挶捤㈴㘹ㄴ㈹户㐳㘱愳挴㔹㑤㙢攷㑥㈶㜲づ㜲㐹攲㑣㐲晤㠲㐴ㄴ昸㜹〳ㄱ㐵㤳㝤㍣㝡㐴ㅣ㌶㔴〱㜲ㄴ㔳㝥㕤㑦攰ㄱ㥣㐲搴㐹㐹攴㠲㈷搰昷戶愰㌸㕢昱敡㕡戴搳晤㐱换㘸戹㍣㙢㐱㐹㈸㙡㑥㘹㤳㤰㌴昶收ぢㄸ㐹㥤敤ち㝦晦㜸㈳㠴ㄸ㤰㈱扤㈲㌱㘶㘰㤰㈱㠸㉢攲㔰愵㜲搶挳愳慥㔶㘷昹㌴㈳㌴㑢㐲㈰敦㤵㈶挴㡡搴挲㙡㡡㝣扦ㅣ㔰扤㉣㑡㍥慡敡愳ぢ㉥㈴扡㐷㍥ㅥ㤴㈴㠱慢晡ㄱ㕡愵㄰挳〰戶ㅢ㤴收㡡ㅥ㍣扢搵〹㜸㌱搸㍣搰挱㠹昸㥥ㄳ㉡㘷攴愰㤹ㄸ挴慤摦〴㘹愷㑤㠸㠲㤱敡㌲晤昳㠰昲挲昳㑣㍦㌹㤰〸ぢ〱ㄱ搱摢ㄵ愳㍣〰戸㔱挷㈴愹愸㍦昴㤷晢㥣㑤㌲慤敥戰㡥ㅡ㐶て㌵㍥挷㐳㄰て㕤㔹扤㈴㥢㌲㠲摣㍣〳搲戴扣扡㑤㥦戲㡡攵㑡㐹㐸㔱ㅣ昲㙡㈹㤱㌷〵扣㘴晣㥦㑦㑤㌱攷ㄲㅣ捡ㄴ㙥㔲摣㌲㠱搴扥摡慤ㅥ挰㜰挹攴㌰㠷㉦晡攸㝦㡣戱捡㐹㝦㔸㔳㤸〲搵挳敤戵昸〵ㄹ㍢〷㤶搶㔴㐵㕥㌶㡤㜰扣慡ㄳ㔹㔲㕢愴摢戴㍤㙤㔳㘵㡦㔴ㅤ㌶晣慡㑤〱㈳散搳㘷㜸㤹っ㤴㤱㌶愹㠳㤳㈴捥〶捥摤戳㡦捡挷挴㔹㠰㐲㐲㐰愱㡢㤷㤷愰〴㑥ㄵ㠴㐴㝤㍢㔹㔳扡ㄵ㍡㝦愹㜸慢愳挸ㄴ㝡㠱愹搰愲愷慦攰㡣愳扣扥㠲㜳ㄹ㝡挵㌸㐸愳扥㔴扡㈸晢㘱慦〷搰㐰㑤扣㐷捦摢㄰㐲摥づㄹㄷㄶ㠶㈶づ㥡戸〱搹捥昹つ㤵㜳㥡㠷攸ㄷ㙢㔷㐳昵㘸愹㐴㜵ㄷ收戹㑤〱㔵㐴㙥昸敡攸㡥㠶㤸㉣戹㈷敡㜷㔷㌶㌴〴戱㠲晢㈶㠶づ㙢㕥㜱㈹敦慤晡㜱㕢敤愲㐴晡㑤㤸㈳搶㝣㍢㜵收㤴挵㌸搴ㄵ㥥㝤敥愴㘵㥦戲攴扡搲㉥㠳晥㠰㈱㠸愰散攴㈲㜳㠹て昱㈳㔳㌲㤱晥ㄵ㘶摣挸戲㌹㐱捤㍥挲㜹㘴昲戹挱〰捡㌱㜸〲摤扤ㅡ㌴㐰㍣搹搱㠰㈷㤲ㄱ㙣㈱㡡戵昸戱㈱㡡昲㑢㠰㤵挸攲摦挸㜱收慦㠰昴㤵㌷㔰㐳㠰攳㌹㘰㈳改换㔱㡡〱㥤㘴攴㐱㠴〷攳㐱晥㝦愰ㄴ㔲昳㥡攴昴㕦㈰㘶攵昵㐶㄰㕤㑡㄰扤搶〴㈲㠵㔱㈰㤲㝥敦っち㝣㐸搳㍢晢㤱晣攰摣搳搶〵昴ㄳ㡦昷晤ㅦ㕥㐰愷〱㘱㈶愹愳挱搳㜶㌵捡㔵ㄵ㈱搹愴㈲搰㜷㉦㔵㠴ㄹ㡥愱ㄳ摦㔷ㄱ〲ㅢ挸㉣㉡搶㔷ㄱ攸摡㡢㔱〴㈳㥥搶㠸㔹㠳㌷戰昳㑤摡挷づ㈳敥㔶戸㜰攷㐳㘸戹攳戰㐸㕤搰㕣㍤愷㌹㥡戹㑢搶ㅦ㜲〴㠴㤹㌳㡦㐰㙥㌹㠴㈳㜶慦搹㈲〷慤㘱慢〸㡤散㕢昶㤴㡤㠵慦〳㔲㝥昲慤昷㑡㔶挹㥣㠳愵㐴攱扤㈱昱攵ㅤ㍦㍤昴㤷㠷㥦㌸挰㘰戵〰㔷搳㌷愰摣㡥挷㥥晡〴㝣扡㤱㌸㤱㥤晣㉥㘷〶ㅦ㈸ㄹ换㘵㌱愶㌹㔲ぢ㜲㔵㌳㉣晡㠸ㄷ㐱㑣ㅦ昹㌶㠳㡡㠹戰〷㕦挵ㅣ㙡㌰㜷捡敦㥡愴㠹㜰㈸戲㜰㘹搳ぢ扤㠶㑡㑢㐱搶愶戶㤹晥㌹㐴搱㐷㕣㐸扤㤶挸㕢㈷㤳愲晣慣㔱搶㡤㔰搶昹ㄷㄹ㝡晤㐳㉥〵昷〳㌱㈴㝡㤱㘱㍣㠰攴㔲㐷㔰㐸摦㠸㉣挶戱搶攸攱愵㍤㘰㡢〹㠸㙡捣㕦㥢摦戰攰ㄴ〱挵搰ㄶ摦敥㡤㤶扡㘸㈸㥡攸愹㤵㍡㑤ㅥ〵㜹㜹㘱挵㜰㔸㍢㡦㐲㤸搲晢㔰摡戰㌹㡡㉦改㌱㝤扦㥢㑦搸㘹㤳戶戶㥣㜹搰慡㈰昰〳㜲㈶㈳〵㠶戵㥤搵戸㤰㑡ㄷ㥤摦㌵攷㔷㌱敦昵㡢搵㐱㕤㐱ㄳ㘴㤶戵ぢ户㔲昸晥昸愱㄰摢〷㙢㔳敦㙣㙣愱㡣戳㍡戱㐱晥㐲晦扡㌴㠶戰昱㔶㔲っ㌸散㠶㝡㘵晤攸昰愳ㄸ挲㑤㈷ㄴ戵㔶㤴捦捡〸晥㠴㤴搵搱㉣晦改扣㤶㤴㜵㡣愳改挵慥㤳晦昷愱㘲㕤昹慦搰昵㈶〱㜹㝦㔰㤰捡㈹晤㈷敢扡㙣㜸㈲戰㙣挳㜹㈳㉦挶慡㉣搲攳敤㤷昲昸㜲搵㙦㤶ㅣㅣ㜶慦㔴㘳㘴㐴㜵㉣㜵摢慥㤶っ㤰扥愱昴㉢㘰㐱㉤挷搷昳慤昰㜶㥢㜹〰〳㜷捣ㄸ㐵挷㜶㙤摤ㅢ挸挳攷㍢挰㑦捦㜴攸㍣愳捡㡦ㅡ㤹摡㤵㌸㠹敥〷㌱㘶㘶ㄶっ晢㙥攱㝤㑣慥㐸㍡ㄶ㌶收挸攰㔷㐸㝤ㄱ敦ㄲ㠵㠳㝢㥥㝥㑦㐵㉢攳挳搵㔹㤸㍡㍤㔶㙤ち㔹攷ㅢ㥣ㅢ攳㌳㜸㜲㠸搰扡ぢ收㈰㔱ㅥ㠲㙦㑣㙥攱㠱〷㜹慣㡤㘷㔰摦㌷搸㥢换㥥敤㤹摣㜲改㤷〱搲㡤扤愵ㅥ㘳昸㑥㝥㡦㥣㔳ぢ捣ㄱ戲㝦〰㝦㌷㙥㥦攵㙣晤㐰昳攰㘳㙥摡挱〶换戰㥥㙤挰昷㝤ㅣ㐳㤵㔱㘶昸㔵戵愰挰〷㠵㐶㍥㔲愲昲㝤㙣㡢昸㡦㜲㈲㔳㐴搶ㅡ愹㕦㕣ぢ愹晢敥挴ㄸ㤲慢㉡㤰昵㜴㈸扣㘹㄰㉢㜳捡ぢ攸捦㔳昳㜷扦挸㍡摣㍣攴㡤〲㘵㜵〹㔹㤸ㄴ摥㈸攴㝡㥥挳㠰敡㝡㑥愰戶昵㝡㥥㕤㙢㍤ち㜵〱戹摦攸晣㝤愱㉣㔱㑤㌴慢ㄶ㌳㥢搹㌲戲扥㔰愴昴㤲㑢㜲㉦ㄹ摦搳昰〶㈱㠵昴㠷攰敦㍢〷摥㍡挳昴㡦〳㡡攴㡢㘸慡摦〵昹愲摣挵户愲扢㜰㔱摢㝡ㄷ㑦慦戵㡢㍥戲㑣㜹慡ㄵㄴ㜰慡〵晣㤱扢㕡〹ちㄲ㡡挷挳摡扡扤㙡愸㤵㘳㑦愳搰搳㤱㈶㘰㍥搷㕡戸㔰㜷っ㍦㠴㠵㙦愰敥㡢搷㠳昸㠲㜵㤵捥敥づ㝣扦㥦㤶㤲㌰㤵扣扤扤戹㐲㙤㤴㠲㉣晤ㄴ㜶㝤づ昳㜰昷㌵㤳㈳㘷摣㡤摦㉣ㄴ㐷愲㤹㍣愸㠷㠳〲ㅦ晡挲昳㐹ㄳ晣㌱ㅦ㌸㐹㈵㤱挱愰㔹昴换昸ㄶ改㡣慦ㅡ㘴捤挰ㄴ扤㈹㌸㘴攰㐴㘸㈹搷㌲㙤㠶㌹㈸㑦㠶攸㜸昸㜰昸昵㔸㌲㜰扣㠱ㅣ㝣戵㥣攴挳㠳㔴㥥〸㍢晦攲搵㥡摤ㄸつ㐸愰ㄹ扦㌳挹㑣㜶晥㙡搸㜹ㅦ扥㑣㤳㝤ㄲ挴㉣愶㜷挲捥㈴㐷搹昹昱戰昳㝢晢㜶㔵㍢㠷搴攷捦㥣㈶㘹挴㈸晣昲ちㄴ昹㑡扤ㄷ摤搳㍡㤵㠸㉥摤慦㈶㐶㑡晦㜹㔹慡ㄱ摤㠸㠸㜱昰㥤昸㌴攲扢㄰〷〳㔱攳晦㜷ㄱ㔳㠸晢㥡搰㍣つ㥦㠱慦挰攳敥愸昲㠹㠳㌳晡慣㠳㡡㑥㝤捡挵挵戲戴愹㔰〴㍡㔱捡㍦摦㜵㍣ㄳ㌱晡㜳敤㍣㐲㑦㘱㤲㠱㌴敤㠹㔰改㕤㑡㈹㡦㠵㤰㑤㍣㔶挳ㄹ昵㉢〰づ㠴〳㜲ㄶ搴挷㤱晢摥㈸㐶㙣㈷晡挸昵㈴㑢㝢〲〵戰㐳㜲㌶㠲㍦昳㈴戲摥昰晦攸ㄸ㔸㤱戶愲愴昲㜰昸㡥㈸昶愸㑦㜱挰搷㤰㜵挰㜴慤〴戸㤷㔳扦㡥㥡攸扢挸㌸攴扢扥㠱〲搸㈷㤷戶攱㌳攲づ摡㤴搶㑦㘳愸挲㡤㜳づ昵㥢㐱㠱てち㜷㑤㉥慥㌸搸ㄸ㔹㈷〵㤲晡㙤搶㜰㔳㕣愱晡ㅤ㍥㜱㉦㜲昸㜷㠳㠲ㅣ捥㡤挸攱㔶㜴昸昷搸㐵扥ㄴ㠵㍡㌹搶挷㤷换㈳㜸ㄶ㠵㥥㡥㕥扥改㕥晣㈶㑦㉢挵攳愵攳挷摦敦㑤つ散㑥摤㜷㐷昷昳敦晣晥摤㘷摥晥搲晥扦㝦昰攲㡢㙦晦昵㤹㌳ㅦ扣戹戰晦户㉦扦晣㥢㍢㝦㜰收摤敤晡㑢挹㔷摦㥦㝥改㤱攱㤳㡦㍣愴ㅦ扤攱搰㈳昷㥦戸㘷㜸敥扣挱㡥㡥捥捥㙢晢㝦㜷攱㜵㝤㡦㍤昴扡昲敢㍦㕤㘰㈹㜲昱㜸㐱晤㌲戸〹戹㡣攷㔰挰㌲戸攲㑦㜴ㄹ摣慥㍣愸愵攰愰挶㔰㐱愹挲〵挸㠶挵晡㠶慥晦〰㝥㈵㤸戶
A31: Decisioneering:7.0.0.0 | B31: Decisioneering:7.0.0.0
B32: CB_Block_7.0.0.0:1
B33: 㜸〱敤㝤㜹㘰ㄴ㐵昶晦㔴㐸㠶昴㄰挸㜰㠸愲〲〱㠹㈲㠴㤸晢㐰㌱㠴㠴㑢㑥㌹㐵挴㌰㈴㌳㘴㈴挹㘰㘶挲愱愸愰攲扤ㅥ愸㈸㉡〲摥捡㉡㥥㠸昷〱㜸慣攰㝡扢摥㡡挷敡ㅥ敡敡㝡攰昹晢㝣㕥㜷捦昴昴昴㈴〸戲㍦晦昸㜶㘶㕥慡㕥㝤敡搵㝢慦慡慢扢慢㕦昷戸㤴换攵晡ㄵㅢ晦㜳㑢㘵攲挰挹㡢挳ㄱ㝦㘳㙥㔵愸愱挱㕦ㅢ〹㠶㥡挲戹㤵捤捤扥挵㘳㠳攱㐸㍢〰摣㌵㐱㤴㠷搳㙡挲挱㤳晣改㌵ぢ晣捤㘱㠰搲㕣慥昴㜴㉤〵攵㍤㡣慦搷捣㘸慣愵愵㤲〰攵搲摣㈴敤㐹搲㐹㌴ㄲて㐹〷㤲っ㤲㡥㈴㥤㐸㌲㐹扣㈴㥤㐹扡㤰㜴㈵改㐶戲て㐹㜷㤲㝤㐹昶㈳㘱晢摡晥㈴〷㠰㘴ㅣ〸㌲戹㙡搸㠴㌹㈷挰㥡挹㤱㔰戳㍦㈷㙢㥡慥昳㤰晣晣摣晣摣㠲搲攲摣扣㥣慣慡㤶㠶㐸㑢戳㝦㐸㤳扦㈵搲散㙢挸挹㥡搸㌲愷㈱㔸㍢挶扦㜸㑡㘸㥥扦㘹㠸㝦㑥㕥攱ㅣ㕦㔱㔹㝥㔱㜱㜱愰扣扣㉣愳㈷〴㡦慢ㅡ㌶戱搹ㅦ〸晦㑥㈲㝢㔱攴㠴慡㘱戹攳晤㤱摦㐹㘴㙦㠸ㅣ㕦㌵慣㍡搴攸ぢ㌶晤㍥㌲搳搸㥦挵搵晥摡㈰㍢摥敦㙦づ㌶捤捤㠵搲㜱㑥㐶慥㌴户㌲ㅣ㙥㘹㥣捦㌱㔴攵㙦㘸㤸攴て㐸㠷㌷㔶㠷㈳ㄳ㝤捤㡤攱㡣㐶㍡捦摦散㙦慡昵㠷㍢㌵づ㕦㔴敢㙦㌰㠰攱昴挶㘹扥收昱扥㐶㝦㉡ㄳ㤹㡤㝡晦㡤慥昳㌷㐵㠲㤱挵ㅤㅢ愷㠶晤㤳㝣㑤㜳晤㠴愴㌵㡥㙣〹搶愹搴㔴㝣㕣敤づ㜱搲㑣㝡〹晡㌴㔶搵晢㥡㈳㤲㘳晦攵㍢㘱㉤㐳㐵慣㠸搳㡢挳㈹换㔶㡢㍤㌶㌹搸㌸挶摦摣攴㙦㘰㈳散挷㠱㌶㤰㌸㐸敦㠶愸愷㑣㜳搸㐹慡㠳戱攳搱ㄶ戶攲捥〲㤹㍢捣ㅦ昱攵㡣ぢ㌶つ挹换挹㉢㉣㉤㉥㈸㉣捥〷㉤㈸㉣㉣㈸㉤㉢捤ㄹ攷㕢挴㠲戲攲晣愲㤲搲攲昲扣㤲晣挲晣昲挲攲攲㥣捡㠶昹昵扥㈱昹㌹愵㘵㈵挵攵〵攵愵㜹愵攵〵㠵〵㘵攵㌹㤴㌷愴㈰㈷扦㉣㍦慦愸戰㌴扦愸ㅣ㝦㈵㐵㘵㕡ㅦ㌴愶昵㘵戳〷㠱愴㡦㥥㔸㤵㤵㍤戸㘴戰搶㡦晣㙣㄰㤵晡㈶愶ち慢㤲摣㕤㔳㙡㝣㈹㌵㜳㔲㙡㙡㔳㙡敡㔲㙡晣㈹㌵㠱㤴㥡戹㈹㌵昵㈹㌵挱㤴㥡ㄳ㔲㙡收〱㘳㙥改敤摢愷ㄸ摢昴挹晥㝥㤳㐶ㅥ㍣㝡搳㡦ㅤ㤷摣㜱搰户ㅦ㈹捥づ㌲戹ㅣ㠲挴戱㘳㐳㜳挷㠷㥡ㅢ戱ㄷ㡥昳晢㥡㠶っ㠲㠹昹㈵愵㠵攵挵愵攵㈵㈵㜹昹㐵㜹〵㘵㌹㤳㈳㜵搵晥〵戰㍥扦愰扣愴戴㈴㍦扦㉣㉦慦愸ㄸ〵㘳㐳戵㍥づ㌹㔶㉢㉣㉥㈹㉣㈹㉡㉦㈸㉥㉤㉢捦㉦㈸挸㉦搱晡㐳扥㜶㈸㠸㝢〰挸㍥㄰攱㙢㘸昱搵〶㌷摦搳㤴攵㙢㙡昱㌵っ㉥ㅥ慣つ㈴㈸〷㐴愹㤷㘱㌴つ慦㥣搶㜹挷愹ㅤて㤸㜰敦㙤摢捦敤昶搴㌷㜳ㄴ愷㌲搱㌸ㄷ㠹㝡㙢㌷攵攵ㄷㄴㄷㄷ攷㤵愰戳愰㜱㐹㔹㘱㠱搹㑦攵㈵㜰㜹㈱㝡〴扡ㄴㄷ攴㤷㤶㐶晢㈹扦扣戴㉣扦㈰㉦慦慣扣戸慣愴扣扣㐸敦愷晣㥣㤲攲愲晣昲扣戲㈲㜴㜶㐱㜹㘱㐱扥㜶ㄸ㔵换〳㜱攷㠳散ㅢ愷㝦㈰搴扣搰搷㕣挷㙥㉢㈰慣㄰㐴愹㙤㠶〵㈳㍦改晤㘲昹攷㕦㡤扦㝥晦㘱㥢摦ㅥ㌴愶㑡㜱ㅥㄶぢ㡡㤱㌸㘲㑡㜳㄰晢㔳㑢㠳慦㔹㠶㕢㘹㥥戱攵㡣つ捥昳㌷〴晤攱挸㄰㉡愸㙦㘲㄰㍤慥㙦㕡〹㥢㉢〵㜱㤷㠱昴㥥攴慦昳㠷㙢㕢戰慦㠶挲㔹戵搸攱晣捤扥慣愶ㄶ昸㍡慢㘰㜰挱㘰慤㥣昰挱㈰㑡㙤㌵戴晢摢愱〳愷㙥㡤散ㄸ㝦愷敢攷㡡㈵㌳换㥢搳㜸㠰㈸㜴摡㠷散扢攷〸㑣改戵扥㜰挴㤸㌹㔸敦昷㥤㔸摡㥥㔷㐶㌴搷敥晤㜹〵㡤晣㉥昳㡡㜶〴扤㍦〴挴㝤㈴㠸㜷㙡㈴搸㄰慣昳搵㘵攱愰攳㘳敦㔴戰㝣㈸㠸㔲㡦ㄹ扤戳昲㠴㥤挵㥢摥㕢㌲敥㥥㤵ㄹ㍢戳㠶㜵ㄹ愹㌸㤱搳搳摡㌰㤲㉡㄰㜷㌵㠸㑤㔸搱㘰㙤㌸换㐷㠰㈸昵㠰㈱捣㜳攱晥搳㐷捣㙥慡扡慢摦挵㉦㍣昳㑣昷换ㄵ捦〰㘴㈰㡥㐲㘲㙦敥晣愳愹捣㔱㈰敥㌱㈰㑥㍢㝦改㘰㙤㉣㐱攳㐰㤴扡摢搰昸收捣慦ㅦ散㍣㙥挱㠸晢㙥敡晥昸㉢㉦㝣㝣㠰攲改㡡㘸㍣〱㠹晦摤捥㍦㤱慡ㅤつ攲㥥〴攲扣昳挳㠲挹㠴㑤〱㔱㙡扤㘱㐱㔵捥㥡㡢〷㘶㕤㌰昲㡥㘷敢㠶㡦慡扦昹㉣搵〱挵㘲挱㌴㈴昶㙣攷㥦捥收㡥〱㜱捦〰㘹㝤攷挷㠸㌸㤶昰㤹㈰㑡摤㘰㘸㜷收ㄷ㐷㍦㔸㤴昹晣戰ㄵㅤ㑦昹晥挸ㅥ㡦戶㔷㍣〹ㄴ敤㘶㈱㌱换㜶㌸挰搱愰戴扣㈸慦戰愴㌰慦〰〷㠳㤲挲攲搲晣搸攱㐰㘶摦挲挲挲㘲捣㥡㠵攵㤸昲㡢㘲㐷〴ㅥ㐳㡢昲㡢ち捡㡡㌱捤㤶㤵攲㐸㕡㔸愶ㅤ㑦㝤㙡㐰摣戳㐱扡㔵㑦ㄹ㤱㌵㍣户㌲扢㝦㈰搸㤴搵攸てㅦ㍡ㄸ㍡晢㠸㤹〳愲搴㙡㐳攷㕥㍦摣晥捣㥡晤摦ㅥ㜱敥㤷攷㥣昲扥㥡㌴㑦昱㥣㔵㜴慥㐳攲㝦㌷㈶晣㔴㉤〰攲㥥ぢ攲㍣㈶㘰㐱㍤㘱㐱㄰愵㔶ㅡㄶ攴昴㉥ㅣ昵㘶攱改搵ㄷ捥㥦㌷攷晤换慥㥣愷㜸挲㉤ㄶ捣㐳攲㝦㘷㐱〳㔵㙢〴㜱㌷㠱㌸㕢㔰㌸㔸ぢㄱ㌶ㅦ㐴愹㡢っぢ㌶ㅤ㌹慥戶攱挳捤㈳㌶ㅥ㌱攴㕦敢㠳㉢㈲㡡㔷ぢ㘲㐱㌳ㄲ晦㍢ぢ挲㔴㉤〲攲㙥〱㜱戶〰愷ㄵぢ〸㕢〸愲搴㌹㠶〵㌷㙦扥㈵敤㠱て㥦ㅡ扦攲搹晢㍡扦戱昲挷挷ㄵ㉦㜵挴㠲挵㐸散搹㝥㜹ㄲ㥢㍢ㄹ挴扤〴愴昵晤ㄲ戳挶㈹㠴㥦ち愲搴㌲㐳扢〵㌳㠷㕥戱敡㤵㔹攳㙦ㄹ摦扥敦搲扡㘷㕥㔷扣〶ㄳ敤㤶㈲戱㘷摡㉤㠳〴敤㜴㄰昷ㄹ㈰慤㙢㠷摥㍦㤳昰攵㈰㑡㥤㘴㘸户㝣搹摣㑦〶㍦㤲㌱㝣敤搹敢㉦ㄹ昵昶㘵㤷㉢㕥ㅣ㡡㜶㘷㈳戱㘷摡㥤挳收捥〵㜱㥦〷搲扡㜶㌸摤㍡㥦昰ぢ㐰㤴ちㅢ摡扤㜳挳捣晣㔳ぢ㙥ㅣ晦攷㐸㘴挹㤲挳搷摦慢㜸搵㉡㠷捣ぢ〹扥〸挴㝤㌱㠸敤㤰〹㘱㤷戰㝣〵㠸㔲㡤㠶戰㜱㑤㈷㝣㜶捤㡥昱挳捦㍡昳挹ㄵ㌳㠷捣㍣㔷昱敡㔷㑣扤っ㠹㍤㌳昵㜲㌶户ㄲ挴㝤〵㐸敢愶㘲㄰㕦㐹昸㉡㄰愵〲㠶㜶戹戳㈶晥戳㜲搳㐷㤵ㅢ慥摥晡攸㔵昷㥣戲㑥敤㠳㘲㌱昵㙡㠲慦〱㜱慦〶戱㤹ち㘱搷戲㝣つ㠸㔲戳つ㘱㜳㍥摤㘷挹昴晤戶㡦㝣㜸敢换㡢㈲㙢㉦扡㔳㜵㐷戱㤸扡づ㠹扤㜹㜶㜰ㅤ㤵戹ㅥ挴㝤〳㠸搳搹〱挶攱㡤〴摤〴愲搴っ㐳攳ㅥ㝦㜹晦攱搹㔷ㅣ㌵晡戱㘹㜷づ㤹搶攷攳㜷搵扥㈸ㄶ㡤㙦㐱㘲㙦㙡㝣㉢㤵戹つ挴扤ㅥ挴㐹㘳捣晣㝦㈶攸㜶㄰愵㈶㤹ㅤ昶挶挲ㅢ扡ㅣ㍣㘶挴晤㡦㔷捦晢散㙦攳㍥㔳㕣㌸ㄱ㡤㌷㈰昱扦㥢㌷敦愴㙡㜷㠱戸敦〶改收㜴㌱愳摤㐳捣扤㈰㑡㡤㌱搴㍦㌹㜲摣㉦㠱㍢扦ㅢ戳晡㤵㡡㙢㍦晦挷晢㝦㔵㍤㔰㉣敡㙦㐴㘲㙦㍡晣㝥㉡戳〹挴晤〰㠸㤳挳㜱晥晣㈰㐱て㠱㈸㔵㙤㘸摣㜸攱㈵㍦扦昰搶㍥挳敦㝣敡敡攵㡢㥦改搹㔱敤㡦㘲搹㐳ㅥ㈱昸㔱㄰昷㘳㈰戶㍤〴戳昲攳㉣㝦〲㐴愹㈳つ㘱㝦晤敥戶㐵摢晢㕦㍥㝣搵扡㍦㤵攵散㝦改ち㜵〰㡡㐵搸㘶㠲户㠰戸户㠲搸㠴㘱昰㍥挵昲愷㐱㤴㉡㌳㠴㉤㜹㙡㘱㔹摡㡡㌱㔵㙢扢捦摦㥡搷攳昴㘹ㄹ捦愲昸㘸㘳㈹愲扡搹户㄰㡢㍢戱㘵愳㠲摣㍣晥戵扤㕡㠶挵戲㐰㜱愰㌴㤰㥦㕦㔷㥣攷㉢昴愵昵㠱搸㕤㕤㤹攱㌱㌰㈳㌰㍤搸㔴ㄷ㕡㈸㑢㌵〷づ昳㠵晤戱㉢慣㠱㐶搹戰㔰㑢㔳㕤昸〰攷挲挹ㄱ㕦挴扦扦扤㉣㈶㈴愱摡㘴㉣㘴昹挳搲㕥㉦㝢戵㘹㔸㈴昰㔷㉥ち敡挵㍤㙤挵㔸挶ち捤㐹㕥㍡愲搹㝦㘲戴㌴㐱愳㑡慣戱㉥㄰搹〹㔶敡㐵扡㕥㔹㔵昵愱戰扦㐹搴ㅢ搸㌸㌱㔸㍢捦摦㍣搹捦ㄵ㕡㝦㥤㤸扡て㡢㡣戵戴㠱ㄳ㥡㘰㈸㔶挷敡晡㕡戹㠱攱㡢㈲晥愶㍡㝦ㅤ昴㥤敦㙦㡥㉣㥥攲㥢搳攰敦ㅥ〷搱摢㐴㐱㡦㌸昶㠸㔰㙤㑢戸㉡搴ㄴ㘹づ㌵挴㤷㔴搶㉤昰㘱晤慥㙥㕣愸捥㡦攵户㔴㙥㉥攵㙡搷㑥㈹搷〰愷敢㜷捡つ攷㑡㐷㔸扡戸㈷晡㝣扦昸㘱㤷㍢〹搶挱㡡〶㍦挷㘴㑡扦㌶㠴㠹㕣㡡㌹㌴㌹搰㘲ㄳ㤷戳㠹敥㥦ㅣ㉤㍡㐶㝢㙥敦㠲㔳㔲扡ㅡ搶て㕦㠰㜵㤳㔱扥愶扡〶㝦㜳慢㡢昱㡡ㅡ㘹㝦〱㐹㉢挶摥㥣搴㝢愹㐰愸㐵㙡㜱摡挲㘰㕤愴摥㕤敦て捥慤攷挹㉡ㄶ散搳搳改摡㠴㑤摢〶㤶戶㥤攴㜹㄰㡦挷攵晥㉢㐱㙥㡦昶㠲㥥㑦敢㡢晦扦㝤昵㌴〵戵㌴㔹慤挵扡㝡㌸慤ㄱ㙢㌷攱㜶敤㥣慣ㅣ攵ぢ搷㐷㌸㍣㕢㉦愴扣ㄷ㐹㕥〲㐹敢〷搲收攲㙣㈶㐰愹㕣㠳敥搸㔸敤て昸戰散㉦㝢户昲愵㌵敡㡢挹搵㔸扢搲戸敡㍣ㅡ晢捡㈲㌷㔲搸昹㌳ㅡ㌹晡晤㡢㈲搵扥㠸慦㝤㈳搶慦搱㑢ㅡ㐰〳愵㤶㥥㘲捤㡥挲㌳㙢㝢㡣ㅣ㈴㜸㈵㘹㤱搲㐱ㄸ扡㈴散㌸搸㕦㕣敤っ摡扡ㄱ搰扤ㄷ㡣㜰摢〷㝡晣㍡㌴㤶挷敢㐶晡㥢愶㉣㥥敦てㄳ㥥敥㙥搵㤵昶摤㡢挲㈶搴捥攱敡㔰㌸ㄷ㥡㡥㙣づ戵捣晦㍤攵㔰㤶昶㌲㠸戹愵攵㘰ㄴ敦扡㑤㜰㤷慢㍤㔷㙦晤㌵㌵慥㜴㑡㈳㐷㍢㠸㠴愳ㄵ挲㝥挵㍦搹戴搷昱捦搳㕡㔹㕡㌶㄰扦㘵捤㍥つ昸㡣㐶㜸㘸㑡戳㕦敥㐲愴㑢〶摥敥搸㌸㍤搴㍣㙦㑥㈸㌴㡦攳愹㤳攴挲昵㝥㝦㠴㉢晢ㅤ㡣㍢ㄹ㜲挷㐲愹㜶敤攲㔶搴㉤户〰㝡㐳扥晢㉤㤰㡥㤵つつ㔹愶挴戰晢㙤戰摡攱ㅥ㠳晢ㅤ㈴㉡㌹敢㌶㠴戲敡晣㔹昳㥢㐳㡢晤戵晡㐲㌶㤶㉥㌰㈷〷戹敡㥡㌵㘲昴昸敡攱㔳㠶㑦ㅡ㌴㜵㜲㔶㝦㉣攰㤶ㅦ㥡戵㈰㤰㌵慣㜲昲昰摣㐵つ攱㐶搵ㄷ㙥攲〲昷攲㑤㥢㜶ㅥ㌱㝤昴挸㥢㍢㍥扥散散捡愹㑢㔵ㅦ愳㈰㘱慤扥㍦ㅡ收攱㕣㝢ㅦ㐴昵〶㡣搳て搲昱㥢戶〳㜹敤㐳㤲㡦㐰㌰㠹㐸户㘰づ昹㐴捦慡㐳昱㥦昳㠸昶㜷㤲㑦㐱搴㐰㄰敥挵摡㘷㈰收愶扡㐳㍥〷㠷㜴昰〰戰ㄳ㍢昸摦攰㝡戴㔶捡㔴づ㄰散㘴㡤㑥搵攸㐶㡤㉥㔴ㄹ㄰散攸㠰づ㐶㐱挲搲晦㘱愸㈶づ昸㤶昵㌵挰㥣ㅤ昰㍤摢搸㐹昲〳㠸挵〱㍦改㔹㤵㠷晦攲㠰㥦〹晡〵㐴ㄵ㠰㠸〳慣づ㔵ㅣ捣㔱〷攴ㄳ㥣㌰挲摢挱㌹ㅥ慤㤵㌲㔵㠸㝡㑥づ昸昶㤷㈴づ昸挶㈸㐸戸㜳㔰〲㐹攲㠰っ㌴慡扥〶捣搹〱㥤㔰慣㘵㤲㜸㐱㉣づ攸愲㘷㔵㈹〴㠹〳扡ㄲ搴つ㐴㤵㠳㈵づ搸〷㌹㜳㔳晦㐰ㅢ㔱〷㤴㠱㥤攸㠰ㅥ㤴愹戵㔲愶〶愳㥥㤳〳摥㑦收㠰昷㡣㠲㠴㥢ㄳ㐷㐰㔲㉢㘷戳㜱昷〳㜸愹ㅥ㜷㌶㥢ㄱㄸㄱ㙣挰㉤ㄱ㌹㘱挹っ攰㥦㝥㈷㔵昲ㅤ㜹㤲搶散慢搵敦㔱㜶ぢ㔴攱㍣つ㜷㙥㈳㡢㘳㘷慥〹攷㠹晡㘹搴晦㥤つ晦攱捥㠶攵㕣㌸敥㡣戸㤵戳㑤っㅡ摢昹㜰敢㘰换㈰攲㠹愰攳戱㑢㠶㔴㉥㈴挷て㌲攲敤〷㕡戹㍦ㅤ挵㕢〷㈱搱㜹挹捦㤲㌹搸ㄳ〷㈹㉢㈵㍤㈳晤扦昳㜹愷攰ㅡ晤㝣扥㉦㘷挲㠳㐸晡㤱㘴㤳ㅣっ愲摥㌰愶搹㌰㍣换㙦㙥㡡换㜵〹ち㕣㕡㝦㘲づ㈵ㄹ〰㘲㤹㘶㜳㤰㜵て〲㘹㡦ㄳ㐱㥣つ㌴㜸㤴ㅡ㠲ㅡ㌲攵收戲挲㘱㈰ㄹ㜹㈰攳㐶昹ㅢ㜰㑤昸㍢㐵戲愴㔵愰㤵搶㑦㘲㌱㙣扡〰搴扤㜱昲攲愶摡晡收㔰ㄳ愲㠹㜸㙥㕤㔹㡢㘰㤰戰昲戹ㅢ挷㠶慡㕡㈲敥挶㔱㐱晣换㘸㥣攴㥦敦昷㐵慡㜰挹㡦ㄳ昷戱戸摦㉢愷攵愳敢ㄶ晤晦㍣㙤㜷愵挲〴㤷昵捣㕤搹㜷㕡晤〴摡昰㙥㙥㜵〸㔱㐵㝥㠹愷愲搷摤㙥㕣㠲晤〱捦换㕤㕡㍥戴㕢昳㥦摢づ捦㕥扤攱㔷攳晦㘹㌸〹㤱㑤㍢ㄲ㐶㈷ㅥ㠰㡢㔰挵搳㕡㤹ㅡ㡡㝡搱〳戰扢ㅣ昸㜶ㄸ〶晡㘹搸搶㘴〷攱㉤㐶㐱挲㍤攸㘱㤰挶〳戱㌶〴㠲戴㈳㐹㉡㐸㠶㤲㔴㠲愸㐷㡤㕤㘶ㅤ㔰晣挶㜶㤹㉡㘲慡㐹㠶㠳㔸㜶㤹㤱攴㜱㤷挱慥㔲㠵㉡戲慢㡣㈶昳㈸㄰㌵ㅣ㉣㡥㙤㤷㌶〶搹愴づ慡㈶㈲攱ㄴ㙤㍣挵㙡慤㤴愹ㄱ愸ㄷ㜵㤰㐶〷改捥㔹㥦捣㌹户ㄹ〵〹昷搴㐷㐳㔲ㅦ㙡㌱ㅤ㐲搴㉤㠶㈳挰㠸摦戴ㄹ㙣攳㔸㤲㤹㈰ㄶ㐷捣搲戳敡㈸㔴㄰㈷ㅣ㑦㔰つ㠸ㅡぢ㤶㥣愲捤㐶捥摣搴ㅡ戴ㄱ㍤㐵ㅢ〳㜶愲〳敡㈸㔳㙢愵㑣㡤㐳扤㤸〳㘲㈷改㤷㈷㜳挰㘵㐶㐱挲㉤晡㠹㤰搴㠷㕡㌴㔲攵ㄵ㐹ㅤ㄰㐲戱㌶㥦攴㐴㄰㡢〳挲㝡㔶ㅤつ㈱攲㠰〸㐱㉤㈰㙡㌲㔸攲㠰〵挸㤹㥢㍡搷敡㠰㐹㘰㈷㍡攰㈴捡搴㕡㈹㔳㔳㔰捦挹〱愷㈵㜳挰愹㐶㐱挲ㅤ晥改㤰搴㠷㕡㥣㐱㤵㤷㈴㜵挰㜲ㄴ㙢㘷㤱㥣つ㘲㜱挰戹㝡㔶ㅤ〳㈱攲㠰昳〸㍡ㅦ㐴ㅤぢ㤶㌸攰〲攴捣㑤㠵慤づ㤸〱㜶愲〳㉥愶㑣慤㤵㌲㌵ㄳ昵㥣ㅣ㄰㑣收㠰㝡愳㈰㈱㠸攰㜸㐸敡㐳㉤㔶㔱攵㐰㔲〷㕣㡤㘲敤ㅡ㤲搵㈰ㄶ〷慣搱戳慡〶㐲挴〱㙢〹㕡〷愲㝣㘰㠹〳慥㐳捥摣搴㉣慢〳㘶㠳㥤攸㠰㥢㠰昷㘸慤㤴愹㌹愸攷攴㠰挹挹ㅣ㌰挹㈸㐸㠸㐸昰㐳㔲ㅦ㙡戱〱㡤慡㠹㐹ㅤ㜰ㄷ㡡戵扢㐹敥〱戱㌸攰㍥㍤慢〲㄰㈲づ搸㐸搰晤㈰慡ㅥ㉣㜱挰㈶攴捣㑤㡤戴㍡㘰㉥搸㠹づ㜸㤸㌲戵㔶捡㔴㄰昵㥣ㅣ㌰㈴㤹〳㡥㌰ちㄲ〲ㅡㅡ㈰愹て戵搸㑡㤵〷㈷㜵挰搳㈸搶㥥㈱㜹ㄶ挴攲㠰攷昴慣㙡㠴㄰㜱挰㌶㠲戶㠳愸㄰㔸攲㠰攷㤱㌳㌷㤵㙦㜵㐰ㄳ搸㠹づ㜸㠹㌲戵㔶捡搴㝣搴㜳㜲挰㈱挹ㅣ㜰戰㔱㤰㄰て挱昳挴㍥搴攲㉤慡摣㉦愹〳摥㐱戱昶㉥挹㝢㈰ㄶ〷㝣愰㘷ㄵ搷㡢挵〱㍢〸晡㄰㐴㉤〰㑢ㅣ昰ㄱ㜲收愶づ戰㍡㠰搱㄰㠹づ昸㤴㌲戵㔶捡搴㐲搴㜳㜲㐰攷㘴づ昰ㅡ〵〹攱ㄴ㈷㐱㔲ㅦ㙡昱ㅦ慡摣㈹愹〳扥㐶戱昶㕦㤲㙦㐰㉣づ昸㑥捦慡㤳㈱㐴ㅣ昰㍤㐱㍢㐱搴㈹㘰㠹〳㝥㐰捥摣㔴㥡搵〱㑢挰㑥㜴挰㉦㤴愹戵㔲愶㑥㐵㍤㈷〷晣昸㜳㤲愵㥡ㅦ㡣㠲㠴㠸㡤㘵㤰搴㠷㕡戴㑦㠱捡摦〳收扣㔴挳搰㝤捤㐳搲〱挴攲㠰㡥㝡㔶㥤づ㈱㝤㈹愸ㄳㄸ㕡㈶㠸㍡ㄳ㔹㜱㠰㠴晡㈳挳㑤㝤㠱㌶愲攷〱㘷㠰㤳攸㠰㙥愸敤搱㕡㈹㔳换㔱捦挹〱ㅦ㈷㜳挰㐷㐶㐱㐲㔰挸㌹㤰㈴づ攸㐹㤵㜷㈴㜵㐰㙦㥡㤵㐵搲㠷摡挵㔶㉢て搲戳敡㕣〸敡㑢㜳晡ㄱ㤴つ愲捥㐷㔶ㅣ㜰㌰㜲收愶摥戰㍡攰㍣戰ㄳㅤ㌰〰㜸㡦搶㑡㤹扡〰昵㥣ㅣ昰搷㘴づ㜸摥㈸㐸㠸㍢戹㄰㤲攴㌴戹㤰㝡ㄷ㤱ㄴ㤳㤴㤰㤴㠲愸㘷っ愷昰㠴㤵摦搸㘹㜲㌹㌱㠳㐹づ〷戱㌸㘵〸㜹挶㘹昲㐵愸搲ㄷ㕦慤㠲捣愱㈰敡ㄲ㘴昵搳攴㑡㘴㤳㥥㈶㕦捣㕡㙣㤱㤷ㄵ昸㈷㥢㔶㡤㉡ㅥ慤㤵㌲戵〲挰㤸㜳㘲愷挹昷㈵㜳捥扤㐶㐱㐲ㅣつ㠳㕦㘴㜴㡣愳摡㜷ㅢ㡥搰ㄵ戱㔰㙤〲㡡戵㠹㈴㐷㔳扢搸攸㤸慣㘷搵㑡愰晢攲慢㑤㈱㘸㉡㠸扡ㄲ㔹ㄹㅤ搳㤰㌳㌷㜵㉢摡㠸敥ㅥ㔷㠰㥤攸㠰㘳㠱昷㘸慤㤴愹㔵愸ㄷ㜳㐰散㌴㜹㑤㌲〷㕣㙢ㄴ㈴㠴敡㕣つ㐹㌲㍡㙡愹㜷ㅤ㠹㥦㈴㐰㌲ㄷ㐴㕤㘹㌸㘵ㄳ㤰晣挶㐶㐷㤰㤸ㄳ㐸收㠱㔸㥣搲㐸㥥㌱㍡慥㐱㤵扥昸㙡㈱㌲攷㠳愸㙢㤱搵㐷挷㠹挸㈶ㅤㅤ慢㔹㉢㘱㜴㐴㔰挵愳戵㔲愶搶愰㕥捣㌹戱搱戱㍣㤹㜳捥㌴ちㄲ㐲㡦慥㠳㈴ㄹㅤ愷㔰敤搳つ㐷㠰ㄹ扦㘹愷愱㔸㕢㑡戲っ挴攲㠸㌳昴慣扡ㅥㄵ晡攲慢㥤㐹搰㜲㄰㜵㈳戲㌲㍡捥㐲捥摣搴㘲戴ㄱㅤㅤ㌷㠰㥤攸㠰昳㠰昷㘸慤㤴愹㥢㔰㉦收㠰搸攸〸㈵㜳㐰㤳㔱㤰㄰挹㜴㉢㈴㠹〳㉥愵捡つ㐹ㅤ㜰㌹㡡戵㤵㈴㔷㔰扢搸敥戱㑡捦慡摢㈰愸㉦捤戹㡡愰慢㐱搴㥦㤱ㄵ〷㕣㠳㥣戹愹㕡慢〳搶㠳㥤攸㠰戵挰㝢戴㔶捡搴敤愸攷攴㠰ㄹ挹ㅣ㜰㡣㔱㤰㙢て㡣扡ㄳ㤲挴〱户㔲攵㘹㐹ㅤ戰ㅥ挵摡㥦㐹㙥愷㜶㌱〷㙣搰戳敡㉥〸敡㑢㜳敥㈴攸㉥㄰㜵て戲攲㠰扢㤱㌳㌷㌵捥敡㠰扢挱㑥㜴挰㐶攰㍤㕡㉢㘵敡㕥搴㜳㜲㐰㔵㌲〷っ㌳ちㄲ㐲慢敥㠷㈴㜱挰㘳㔴㜹㘸㔲〷㍣㠱㘲敤㐹㤲捤搴㉥收㠰慤㝡㔶㜱敡攸㑢㜳㥥㈲攸㘹㄰昵㈰戲攲㠰㘷㤰㌳㌷㔵㙡㜵挰〳㘰㈷㍡㘰ㅢ昰ㅥ慤㤵㌲昵㄰敡㌹㌹㘰㔰㌲〷攴ㄸ〵〹㤱㕡㡦㐰㤲㑣㤰慦㔲敦搷㐸㕥㈷昹ㅢ挹ㅢ㈰敡㘰挳㈹㍣挳ㅡ㡢㙦㙣㠲㝣㡢㤸户㐹摥〱戱㌸攵㍤昲㡣〹昲㔱㌴搰㤷㘶㝥㐰收づ㄰昵㌸戲晡〴昹㈱戲㐹㈷挸挷㔸㉢㘱㠲晣〴㔵㍣㕡㉢㘵敡〹搴㡢㌹㈷㌶㐱㜶㑤收㥣㉥㐶㐱㐲攴搹㘶㐸ㄲ攷㝣㐱摤扦㈴昹て挹㔷㈴㕦㠳愸っ挳㌹㍣搷攱㌷收㥣㙦㠸昹㤶攴㍢㄰㡢㜳㜶㤲㘷㌸㘷ぢ慡昴挵㔷晢㤱捣㥦㐰搴㔳挸敡捥昹ㄹ搹愴捥搹捡㕡〹捥㘱㤸愰㐷㙢愵㑣㍤㡤㝡㑥捥搹昹㔳㤲㔳敦敦㡤〲㝢㈴㕤摡㕦㈰改㌷㐴㐰㜵愰挲㠱㘹㐱晦㐲㠶㙣㜴ち攰〹挷慡㤶㜰㈴㈴昱㈵ㅤ〳搵愱昱愱㐸㜵㌰㍣扦挱户戸㙢挰㐸㑣慦昷㌷㈱晡ぢて㔸搵搹㜸愱昹昳晤㜵㕡㘰㜲愸愵戹搶㍦扡晡㡦㄰ㅤ〶晢搰㝤ㄲㄸ㤶愲戰敤㕥挰㤳ぢ㌵㌱㕡戰戹搲戶㐱愰㍤㙥挵㜲ㅦ㉢㜶换搴ぢ㘰㘶捣愳㔳㠲㤱〶㝦㠷㠰㤴㑢㍡㍤〰㉦㈲愴慥慥㝤㘰㑡㍤攲㌹慡㍢〶㐶㌶〷敢ㅡ㠲㑤㝥㜶〶㙥挳昲戱搱戱晥戹〸㥦㥢ㄸち〷昹㝣㘱挷挰㤴㘶㕦㔳㜸㍥㈳㠱㙡ㄷ㜷㠹换挹扤㠹戴挰戰㘰㔳ㄸ捤㐸㉦㌲㥤ㄹ㤸㕣ㅦ㕡㠸㈷慢㕢ㅡ㥢㐶晡收㠷晦㄰扤愲搸㉤戲㐹搷愸ㄴ㤵㤲愲搲㔳搲㜷户㝦摣㝣摥扢㌳ㅦ㠸捣挲㈸㡤㌴〷攷戴搰㕤搲㐲〱㘸㉡㠹昴愰㉢㙤㍢㔲慤摣㠸攴敤㐸㈳愴㤱攱㝡搴㌴敥搱㍥挷挸戱攸挳敡㍤〱搷㍣㔰㈶愳〳挸攸㤱㔳㐷挷〲㔹昷攴挹敦戴攷㈱搸㝥㥢挷㍥散愲㘱㠳㡣㠵敦愴㡦ㅦ昲㌸㥣戰㕢㘲ㄸ㌰㘷ㅦ㤳㥥㠰㘰㌸㍣㍢挵㤲㈳㄰㜹㤶ㄱㄸ敢㥢攳㙦㐰挰㕣愳㉦搲㐹捦昰㥥㉣ㅥ㤲つㅢ㘵㔵愱挶㐶ㅦ挷ㅢ挷敡攴㕡㕦㠳㍦㍤㔰搹ㄲ〹攱改㘱㉤〰㈲㠳搲㘰昹ㄶ㠱攵㕢㈴慣㡣挰㈴〶搲㑡㥡戲㐲㜳㝤捤挱㐸㝤㘳戰㌶㥤ㄹ〶扢晥㈱〶㉡㈶㡦㔴㌸搳摣捣㠹挴㝥㥢㔱扦攱㠶摥捥挵敤㜴扡㡥扤㡦攱㥣愲摣昸㔳扢ㄹ㘷㠹㘹㐷㡥㈶㕡㐷㐸㑢挳㠱㐷收㈱搱攵换㕦㡤㕤攸换搳㤰㤰㤹㐹扤㐰〰扥㕡㈷挰㤹攰㌷昵㐵㤰㔶㠳昰摡〳攰ㄹㅢ昲搵㡤㐰〴㐸愸戹扤昱愲㠲㜴㜴㉤攷㤹㘶㉦挳㈲慢㄰昳㠵〸摥〵挱㍡㝦㜳㍡ㄹ㤳㜱敢㌴㤵〱㤵㙥扤て㜱㕢慤㥤㉢㉤慤㐳扡㔳㕢愳㑤㔹晤㡣㘰㌳敢㡢ㅥ㐶㈷挸晦搷搱㘵㜲戰昵㜸攴昸㤴〹㜳㌴㉦㙤㝡〹慡搲ㅥㅢ愰㌳〱㕤㐰搲㕥㐶愱扤㙦攲㈳ㄴㄱ挷愸〱㤴㉡㡦昹㌳㜶㌲ㅤ㜱㠶ㄲ㜴㤹㈶㠶㜴戰〴㑢扡昵㌸挹㜴昳摤〱敥挹ㄸ攵晥㍡㡦㍥戹昲挶㌱づぢ慥㤴㤴㔴㜴戵摢ㅥ㥡㤳搰㉣㠴㌵㑥昶㑢ㄴ愵敡〵ㄵ摣㕤愱戱㤷㍢ぢ攴搷㐴ㅦ㝥户㥦㍥㜸㍣摡㍥〰攲摥攰敢愰愶昵㙥㜲㜴昷㜴愷昵晢㠲愸昷挱攴〹㠰攵㜰愵㜶㈰换㐳㤶换扤ㅦ㈰摤戱㙦㌵挹㔳敥㙤捥㤳敡㐳㔴攲㕣愹昵愰散㡦㤰攲ㅣㄴㅤ㤳〷㠰摢昶㤸晣㠴㌵昰搵づ愴㄰㈳愳晥㡥㠴㘹〹㤲愶㈵㍤㠱搱㝡ㄱ挸戸㍣〷㐰㙦〲戲〸昸っ〰㜶戶扢て㜲㍤㑤㈷挶㍤捣ㄱ㝤戲摥挱愳〷愱ㄶ㍣晡㙦㑢㌳ㄶ㡦昶㘳㌳搹㙣㠶挱㜶㜶㡦㝥て㥥敥搱㠳〱搹戵㠳㡥摡㠹㑡攲捣㐳㈸昶〷攴攲㥣㜹㈸戸㙤㍢昳㈷㔴ㄳ㘷づ愰㄰㈳愳㝥㐶挲挱㔷〳㠱搱㜲〸晣挵ㄹ㌰㠸㠰㕣〲㝥〵㐰㥣㜹ㄸ㜲扤ㅤ㥤㘹㜹捣摦挱㥤昹愸〷㜷戶㠳㑥愶㈶ㄶ㜷ㄶ戰愱㐲㌶挴搰㍤扢㍢ㄹ慦愷扢戳〸㤰㝤㘳慦〴㘸㝢㠴㌲捡㑦㥣㕡㑣攱㕥攴攲㥣㕡ち㙥摢㑥㘵㔸㈰㍥㉥慤㡣㐲㤰㤰㉦㘳〳㑤㔳挰㌳㐷㘸㌹㌰摡㘰〲扢㌹〳づ㈷攰〸〲ㄸ㑡㈸㑥ㅤ㠲摣㈱愶㔳摢㝡㑢㠱㠳㜳㉢㔰ㅦ捥敤㘱㘹搰攲摣愱㙣戰ㄲ㈴㡤㐱㍣慤㥣㈱㈰攸挱ㄲ敡搵〹㌲摤㠱愹㑤挱〸づ摥㔴㙥㐴㌰㠲㘹㈸㈳〰㠲愴挴㘴敤㉦〷㜵㑢愵㠱搱㉢㠵摥㠹㐵㜱㤷づ扤ㄲ换慤搷ㄲ晤ㅣ㡡昵慢っ换挵㐵㕢㈰戹摡㜰搰昱㡦㜴昹愱昴㘰ㅤ攳ち㐴㘵㈷㡦㘸戳昸㥤攷㤰㝢㜰戱攲ㅥ㠶搱攰ㄹㄷ㙣昰㠷ㄹ愳摤て慦㑡攰〸㔲昸挳戱愴㥡㠵戸㡣㌹愸捤搱㘲㠹昵攳㘱搸挳㑢ㄹ㥤搷搱〸㈶ㅤ摤ㄴ挶昹㠰挷挸攱㙣慦㤳㤱㥣搰ㄲ㠹㉢昱㉤敡㙡㤴㈰慥㝣㐲ㄳ㑥搱昱㠲㡥扡㍦挸〹ㅥ㙣搳㉦㐲攴㕣㙤㌷㉦㄰㈱㠴㥢攵戴っ㕥愶㥦ㄹ㔰昷㕢挲㈴㌳㈱愵㈳㕤ㅤ㡤㥥㑣㘷㡥敦愴㤱ㅥ搰㕦㐱㈳㔷敡ㄳ晤戸捣挶慢㠹ㅡ晣㕤愵㐲㌴㉢㈷㌲㕡愰㜲㑥ㄸ㔷㝤ㄱ㥥搵ㅢ㈹搹摦戵挰㈴㝦〳摥㔶戳挰㡦㤳㜰㈳㌵戱㌶㠲愰攰愸〰㍥摣昵挷改ㅤ㜸㈴搵攸㈱㈵㝤攴㙥㘵㥡㡢㌷㠲扢搲㙥昶㈸晡㉤㈰摢攷ㄵ敡慡㔵摣㙥慤㜰㤹〹昶㉤㍡㌷ㅢ愰㔶㉥㈵㌱攵㕡㘳㕡戹ㄷ㜵㌵㐳慤昵㠹㑥收戰っ㤳挷敢捤㡥㕣ㄵ㘸㡥攰〹㐸扥㕢㈶㤳扢㑤〳捥挸㈳㐱㕣㕢㌵㉣敥ㄴㄸ摤㔴摢搰㔲攷㤷ぢ㌳㜳敡㤶敢戳㍦㐴㝦愵挲㈱挶摥搴㡡㕦っ愷㡣挶㉢摤捣㈷攲㜶㝦㘹㐶ㅢ㡥ㄹ㑤㉥㤳㈰㐳敦ㄶ㠶慥晥收攰㘱て㌴敦ㄲぢ㝤㤷ㄷ㝤㘱㑡㑢㘰㜱㉥㘳㈸㘸㌴晥㔸昶㌶ぢ㙣㙣〸㙦㠳挲戲㡥㠵㌵㉡愸戳晥㄰㝤〴㍢昵㉥㜲扢㜱㘹扡㥢㝢〷㠵㘰戶㕢㥢扦㜲攳昲挸〵㤵㍦㕦晣搸㠰㡢㑥㕢㔳攱搲㝢㐰㌱㍡㔸㍦愹ㅢ㠹摥改捡换攳攸敢㝥戲晡㔷ㄷ攵ㅦ㉡攷㔹㕣㤵㐹㠹㉤捤㈸挶ㄳ换〹摤㈸搴㔲っ㉣搶㑦攸昰捡ㅦ㜶昲㔱㈰㙤㥦搰㌱〰ㄹㅦ㐴㑢㔲〸ㄲ昲㘵攴戱挳〹摤㔸捡ㅤ㐷㈰愳㤲ㅤ〰攳〹㤸〰㤲挶攸㔴晢挴㤳㌴搰ㄶㄵ㕣㘹㡤扣㐴㑣㙦攴愵㌲㜶㕢㌷㥥收㐳㈰㌱㉥户摤ㅤ搲ㄹ㠸慢㑤〴㙡晢戶㙤㐳㠰㜵愹㈲㑢晢㤶昳扢愳搹晥㈴㄰挵㠸㔳㥥攳㠹㉦㜰捦㤷㑤ㄸ〷昵愹㐸㘳㍥㔲㡣㐷攵㠱摤摣ㄲづ㐷慡〲愵㍣㈴搱㈹㙤㑤㙦㙡㈸㐰㥣攲㕣摡㌴㙡挱㜳㔳㜳ㅦ㔳㤵攰㜳㍦搳户搸㐸㔰ㄵ㍢敦㜸敤搸〵搱㤱㔰〵㡣㍥ㄲ㡥㠱っ晢㐸ㄸ㤱㙣㈴㔴愳㥡㡣㠴ㄹ愸愵㠶㈳ㄷ㌷ㄲ㘶㠲摢昶㐸㘰㕣㉤㍥㉥敤㌸ち㐱㐲扥っ慣㜵攸攸㔹挰㘸挷ㄳ挸愰㕢〷㐰つ〱戳〹㘰ㄸ㉥㐷㠳收㐳㉥摡㠱㡣戴㌵慢㔹㍡㜰づ慢搵戲ㅡ愳㘲敤㔷㍦㌳挰ㄳ昷㘸扣㍣㤷㡤晢㠳㘵扤㔲㌱㔰㔶㕣攱愷㄰㐶捣挶㕤攵捣〵户㙤㔷㌰戲ㄶㅦ㤷㔶㑦㈱㐸挸㤷攱戵愶捡㙣摢㔸㔱〸〲愳㥤㐰㘰㡤㌳㘰ㅥ〱つ〴捣〶㐰慥㜲ㅡ㤱㙢敤㍡ㅣ慦ㄵ㜰戸戶〹愱ㄶ慥㙤敡㉣捤㔸㕣㌷㥦捤㥣挸㘶ㅡ〱戰扢㡥㐱戴扡敢㜸ㅤ㉥㥢摤㜵っ戱ㄵ搷㠵㈹攴㐴攴攲㕣搷〲㙥摢慥㘳㑣㉥㍥㉥㙤〱㠵㈰㈱㕦㉥っ㍢戸㙥㈱㌰摡㈲〲ㄹ戴敢〰㔸㑣挰㐹〴㌰㡥㔷㕣㜷㌲㜲慤㕦㜵㍢㍢敦ㄴ搴㠳昳ㄸ摦㙢㌶㘴㜱摥愹㙣攸㌴㌶㜴〶〰㜶攷㉤〷㑦㜷ㅥ慦扡㘵戳㍢㡦攱戹攲扣㘵ㄴ挲㌸摤㌸攷㥤〱㙥摢捥㘳㍣㉦㍥〸㐲愰㄰㈴攴换愰㕥㔳㘵戶㙤㡣扢攵挰㘸㘷ㄱ挸㠰㕦〷挰搹〴㥣㐳〰㘳㠰挵㜹攷㈲户㙢㔷搷㜸㉤㠹挳〸㍣ㅦ昵攱㐴挶〸㥢つ㕡㥣㜸〱ㅢ晣ㄳㅢ㕣〵㠰摤㠹っ攲搵攷戶ぢ〱昹㉤㙢㙢㡣晣ㄵ摦㕥㐴搹っ〱㡥昳敤㈵攰戶敤摢㌵愸㠶て摥摢㐳㈱㐸挸㜷㉤愸㘹〹㜸愶㙦㉦〵㐶扢㡣挰㜵捥㠰换〹㔸㐹〰挳㡢挵户㔷㈰㜷愰戹㜲攱昸㡥㌲〷㠷慥㐲㈵㌸㤴㌱挷愶ㅡㄶ㠷㕥挵㔶慥㘶㉢㡣て戶㍢昴㉥昰摡搸愵ㄹ㌲㉣㥥㕢㑤㈱㡣ㅤ㡥昳摣ㅡ㜰摢昶ㅣ㘳㡣昱㜱㘹㙢㈹〴〹昹㌲搰搸㔴ㄹ㍣搳㜳敢㠰搱慥㈳㤰㐱挸づ㠰敢〹戸㠱〰挶㈵㡢攷㙥㐴慥昵㕤摡㜹㌴摥㡣㝡㜰ㅥ攳㤵捤㠶㉣捥扢㠵つ摤捡㠶戶〲㘰㜷ㅥ〳㡡摢㜰ㅥ挳㡤挵㜹敢㈹㠴㜱挷㜱捥扢ㅤ摣戶㥤挷昸㘴㝣㕣摡ㅤㄴ㠲㠴㝣ㄹ愴㙣慡っ㥥改扣つ挰㘸㜷ㄲ戸摤ㄹ㜰ㄷ〱㜷ㄳ挰㤸㘶㜱摥㍤挸戵敥㍣扣㔶挶㘱攴摤㠷㝡㜰ㅥ㘳㥤㑤㑤㉣捥摢挸㠶敥㘷㐳㡣㑢戶㍢㡦挱挸㙤㌸㡦愱捡攲扣〷㈸攴㍤攴攲㥣昷㄰戸㙤㍢敦〳㔴挳挷愵㍤㑣㈱㐸挸㤷〱捥愶捡攰㤹捥㝢〴ㄸ敤㔱〲㍦㜴〶㍣㐶挰攳〴㝣〴㠰㌸敦〹攴㕡㜷ㅥ㕥㠱攵攰扣捤愸〷攷㌱㑥摡搴挴攲扣㉤㙣㘸㉢ㅢ晡て〰㜶攷㌱㤰㔹㜷㕥搲㠳挹㝦〱ㄱ攷㍤㑤㈱㡣㜷㡥㜳摥戳攰戶敤㍣挶㐵攳㠳昷㡦㔰〸ㄲ昲㘵㜰戴愹㌲㜸愶昳㥥〳㐶摢㐶攰㑥㘷挰㜶〲㥥㈷㠰戱搴攲扣扦㈲户㙢〷ㄳ攷㈳昲㡢愸て㈷㌲搶摡搴挸攲挴㤷搸攰换㙣㤰㔱㍢㜶㈷㌲ㄸ扡つ㈷㌲㔴㕡㥣昸㉡㠵㌰㘶㍡捥㠹慦㠳摢戶ㄳㄹ㕢つ晤㄰㑣㐴㈱㐸挸户ㄳ戸愶捡攰㤹㑥㝣〳ㄸ敤㑤〲㌳㥤〱㙦ㄱ昰㌶〱㕥〰挴㠹敦㈰户㙢㑥㜴摥㡤摦㐳㝤㌸㤱昱摡愶㐶ㄶ㈷扥捦〶㍦㘰㠳㍤〱戰㍢戱㌷㜸㙤㌸㌱ぢ㄰㜱攲㠷ㄴ搲〷戹㌸㈷㝥っ㙥摢㑥㍣〸搵挴㠹㥦㔰㠸改㐴〶㘹㥢㉡㕢㥣昸㜷㘰戴㑦〹捣㜶〶㝣㐶挰㍦〸㌸ㄸ〰㜱攲㍦㤱摢㌵㈷攲攵㝤づ扢昳扦㔱ㅦ㑥㘴捣户愹㤱挵㠹㥦戳挱㉦搸㈰攳戳㉤ㄷ㤵晦㘱㌵攳愲昲㉢愴㜹㔱挹攸敤搶㉦㉡㡢㠱搸攵㡢捡ㄲ㠰昵㡢捡慦愹〵㜵㡦㕥㔴㌲㌲摣改愲㌲㘷搱㈳㡦㕦㕦㍦㈳㝡㔱挹㄰㜱改㘶昷㌷㤰㘱扦愸ㅣ㤵散愲㤲㐱攵搲昵摦愲㤶㘲㜴戹摥昵挶昲挲昷攰戶摤昵㐳㔰㑤扡㝥㈷㠵㠸扢昰扦〲㕣搳搱攰㤹晢捦て挰㘸㍦ㄲ㌸搴ㄹ昰ㄳ〱㍦ㄳ㔰〹㠰㕣㔴晥㠲㕣昴愲㤲㜱改愶㕣㑢〷晥捡㙡扣户愰ㄸ㐳㙥摦ぢ㈶㠰搷挶㕥㌰ㄱ㄰㜱〵㙥㕥扢ㄴ攳换攳昶〲扣㑥㙢ㄷ㕣挱㌸㜴㜱㐵ㅡ㠵㤸慥㘰㌰扡愹戲挵ㄵ㙥㘰戴昶〴㑥㜵〶愴ㄳ挰㥦㙣㔰搳〰㤰扤挰㠳摣慥敤〵捥〷戵っ搴挷㕥挰搸㜶㔳㈳㡢ㄳ㍢戲挱㑥㙣戰ㄶ〰换㕥攰㘵㌵㘳㉦攸㡣㌴昷〲㐶愹户扥ㄷ昸㠱搸攵扤㈰〰戰扥ㄷ㜴愱ㄶ㜱㝢〱㈳攰㥤昶㠲㘵敡慢㠷㙥㕤㔹ㅢ摤ぢㄸち慦敦〵摤㈰挳扥ㄷ㡣㑣戶ㄷ㌰㜸㕥扡㝥ㅦ搴㔲㡣愲㡦摢ぢ昶〵户敤扤㠰搱昶搲昵晢㔱㠸搹昵㈱㜰㑤㐷㕢扡扥〷㌰摡晥〴捥㜷〶ㅣ㐰挰㠱〴㌰㌸㕦昶㠲㥥挸㐵昷〲挶摦㥢㜲㈵㕣㐵㡦㝣攸挵㙡扤㔹敤ㄴ〰散㝢挱㘹攰改㝢㐱搲愵㤵愵㠰㠸㉢晡㔰挸㌲攴攲昶㠲㠳挰㙤摢ㄵ㘷愰㥡戸愲ㅦ㠵㤸慥㘰搰扤愹戲挵ㄵ搹挰㘸〷ㄳ戸摣ㄹ㜰〸〱晤〹㌸ぢ〰搹ぢづ㐵慥戵愵ㄵ攷挳攸㐰搴挲搸㘷攴扥愹㠷㘵散攷戰㤹㐱㙣㠶㔱昶㜶搷㕤づ㕥ㅢ慥㕢〹㠸戸敥㌰ち㘱〴㝥㥣敢昲挱㙤摢㜵㡣搴ㄷ搷ㄵ㔰㠸改㍡㠶敢㥢㉡㕢㕣㔷〸㡣㔶㐴㈰㐳昹ㅤ〰挵〴㤴㄰挰攸㝥㜱㕤㈹㜲慤戹捥昹㉡慣ㅣ戵攰扡戵㤶㘶㉣慥ㅢ捣㘶づ㘷㌳㡣捦户扢㡥㐱昹晡㑥㜹〴㈰扢ㄸㅤ挲㈰㝥㜱收㄰㡡㘵㌴㝦㥣㌳㉢挰㙤摢㤹ㅢ㔰㑤㥣㌹㤴㐲㑣㘷摥〹慥㠳慦㉡㠱搱㠶ㄱ挸挷〲ㅣ〰㔵〴㔴ㄳ挰㈷〵挴㤹挳㤱㡢㉤〷㔸㝦挴挲㠸づ㜱㍡ㄱㄹ㠹㑡昰攵㐶㑢㉢㤹攴攸㝢昰㈸戶㌲㥡慤㍣〶㠰摤㤷㑦㠰搷挶㌰㘴昴扦㜸㙥っ㠵㙣㐶㉥捥㜳攳挰㙤摢㜳㕢㔱㑤㍣㌷㥥㐲㑣捦㍤〵慥㠳㘳㈶〰愳㑤㈴㤰捦ㄳ㌸〰㡥㈶㘰ㄲ〱㝣挴㐰㍣㌷ㄹ戹搶㠶㈱㕥攰敡㜰づ㌷ㄵ戵攰㍡㍥㜸㘰㌶㘳ㄹ㠶搳搸捣㜴㌶昳㉡〰㤶愳搷っ㔶㌳㡥㕥挷㈲捤愳搷㙢㠰戴㝥昴攲昳〵扢㝣昴攲㜳〸晡搱㙢㈶戵㠸㍢㝡昱昱〴愷愳ㄷ㤴搲㌷攳ㄶㄱ㥦㔳搰㜷㤴㔹㤰㘱㍦㝡㡤㑥㜶昴攲㤳つ搲攱挷愳㤶㝡〷㌹扤挳㡤㜳戸搹攰戶摤攱敦愱㥡㜴戸㡦㐲愰㤶㝣㍦〰搷㜴㌴㔵㌵挶攸ㅣ㘰戴㕡〲昹㥣㠴〳愰㡥〰㍦〱ㅦ〲㈰㐷慦〰㜲搱愳搷㈷㤶㙡㤶づ㥣换㙡昵慣昶〵〰㤶づ㍣〱㍣戳〳攷㈱捤づ晣ㄲ㤰搶㍢㤰捦㐰散㜲〷昲㔹〹扤〳ㅢ愸㐵㕣〷昲ㄱち愷づㅣ扥晣搷㕦ㅥ㍣㝢㔹昴昴攳ㅢ攰昴づ㙣㠲っ㝢〷づ㑦搶㠱摦愲㥡㜴㘰〸戵ㄴㅦ挳㠸敢挰ㄳ挱㙤扢〳昹戸㠶㜴㘰㌳㠵㤸ㅤ挸攷㌵ㅣ晡㈷っ㡣ㄶ㈱㤰捦㜲㌸〰㕡〸㔸㐰挰捦〰㐸〷㉥㐴㉥摡㠱㉥㥣㙤㥢搵㉣ㅤ戸㠸搵ㄶ戳㥡㠷㈷昰搰㐲㍢㠹㌹㐳㥤戴㡥攰摡㠳㔱ㄳ〲㠵㔱〱愱㌵っㄹ㥥ㅣ㔹摣㠰㌰㙤㈶ㄹ㥣慡愷㜸敦㔰㉦㐶挸㙣愸㌹ㄵ〱㐵昶㌷㕣㐵敢㍥ぢ㔱ㅤ扡搹摥㘷㉢搵愴〴摡愴㉤晦㌱昱㥤慤搱晡㔴㍣昶㜲㑢搶攱收㕥〲ㄵ扢㡤ぢ搶㌶㠷挲愱㐰㈴㙢㌲㥥㍦挸攲晢㠱〳戸挹㕥㤹㜶〶㈴㍡戶㐹挳㔲㥢昸㑢㔹ぢ昸扥㑣捦扣愶搰挲㈶搱㈶㉤捣搷㈴㡢扦摡户㘷㌳ㅥ戶挳敤㈰㌸捦摢〹㡡戲戲㜶㉡㘸挷㜶摥㑣攴戹㜹ㄹ〲㉣㠹捥㘶愲㡢㤱㐸摢〷㠹㕤つ挰愵㙣㌵㐷搵攲慥㤳㍦戵㝤晢㠴愰慣㠴挰摤攸摢㑣摤㙥挶敤愶㉤㠳挹昶㐸㉥攷㑡昱ㅥ㘵攵㜴㝣戵愵㔰㐱㕢〶攲昱㜶㠷攲㌴挲㝤㍡戲㥤慢㠶搵挴晦收㤸晢っ戰㌳挰㤶㈰㠳㐹㜸㠹戱晢㑣㜰㍡㠱㘳㜹㑥挱扢慦㈱㐵㕢㡥㐲昹㐵㉤慤て㠴慡ㅥ攰㡢㥦捦〱㥦〹昹ㅥ〰㉥挷愶㕡〸㐳㌸㈲㔰攰搲搸捤散㔱搵〲づ㝢㌵扥㔷づ㐴〵㈲戴ぢ㐰搱㉢㍤㤱攷收敤㘵㈶㝡㥢㠹㉣㈳愱づ㐲㠲㍤愳挲㄰㐷慦㠹㠰ぢ㐱戵㡢㐰㍣摥㝥㈸㈴㔸愳昵ㅡ㙤搵㘸㥥㌷摢攴㕦㑡搶愱㐴昴〷㔱㠷㔰ㄸ㜳㉢挱㡦摡㜳㈸戸㘲㑦㄰㑤㤸昶戸慦〴㈴改戰㔵㜳〱㑤㌴㜲〰㈴愱ㅡ㥥ㄸ〵㠵㤱〳㤱攷收捤㌱ㄳ㠳捣㐴慥㤱㔰昹㐸㠸㤱㝥挳㐸改攲㙢㈰㐰㕢つ攲昱ㄶ〰㐰戰晢㕡㘴ㅤ扡㜸つ搸昱㕤扣ㄶㅣ㝢ㄷㄷㅡ㔲戴㜵㈸㤴ㅦ攳㤲㥦攵㔲挵攰㡢㑢㙥〰㍦敡㤲㔲㜰挵㈵㌳慤㉥戹〹㤰攴㉥㤹攱攸㤲㌲㐸㐲㌵㤷㜶ぢ㈸㕣㔲㡥㍣㌷敦㘰㌳㜱戸㤹㌸挲㐸愸ち㈴挴㈵搳つ㤷㘰㔶挵㙦〶㐰㠰戶ㅥ挴攳ㅤち〰挱ㅡ㕤愲搱〱ㅡ㙤昶㔶㥡晣つ㘴㤵ㄲ挱搷㝥愶㔵㠱㙦摦攳㉣て扦㔸㘲㈷㜹㜵攸戵〴戴捡扥摢㌹㜰㌴㝥㘴つ㍦攱㌷〱攱㔴ㄱ戲晥〸㠱㌸愹㝡㔰㕢㥢搳㤶㤸㌰㜳ㄶ㘷て扢て攲㘷ㅤ挳㌶㜹昱昲敥㠵昵㜸搲挶愳挷㜶慤ㄵ㡥戵搸搱㠲摡戱㐷㍤摡㍤攸㍡㥥戱㔴㈳㉢〳昳㕥㌰捣㠱㤹㌶ㅣ摣㕤㡦っ㘳戵慥戱㘷㐵昸㔴搰挰〶〴挹敤挲㌳㔸昷戱搵㔱愶づㅢ㉤㍡愸愳挰㤵㥤㘳戴㜵攷搸〴㐸昲㥤㘳愴攳捥㌱〶㤲㔰捤愵㍤〸㡡㥤㘳㉣昲摣扣攳捣挴㜸㌳㌱挱㐸㘴㌲攸㠷㔳㉢㑦㈴㝥搷捤㝢㌴㈴戳ㄵ晢㕥㌵挹攴㍦ち㉤攵㐷搸攴攷搸ㄴ㈳㠸戸㘷㜹㔴〵慣㘳捦戳戶㐷㝢ㄲ㌰昶攰㔴㘴愵〷㌷㠳㘱昶愰㥡〶㉥㝢㔱摢㐲敥っㄳ戳搵㡡㤹〹慥㜸㜸戰挵挳ㅡ㍤㉣㐷㤸㌲㐷㘷ㅥ㠷㑡㐴㘸捦㠲挲㤹戳㤰攷收㍤摥㑣搴㤸㠹搹㐶㈲搳㠷挴摥㜱㈶挳㜶搸㡡摤㤹戵㈶㝦㍢戴搴慡㠸ㄸ〶愲晣攰㡢戳㕥〰㍦敡慣戹攰㡡㈳づ戳㍡㈲㝡愸ㅤ攴攸㠸㝡㔴ㄲ㐷扣愲㍢㈲㠸㍣㌷敦〹㘶㘲㥥㤹㘸㌰ㄲ㉡㠴㠴㑣戹〳㈱㌲㝡愸㝤㡤㍡扥づ攲昱㌲㤶㠶㘰晢愱昶㐴㤳晦ㄶ戱㐷ㄱ㌱ㅡ㐴㠵挱ㄷ㝢摥〵㍦㙡㑦ぢ戸㘲㑦ㅦ慢㍤㍣搴㑡挷昶㜶戴㘷〱㉡ㄱ愱敤〰㐵挷㉥㐴㥥㥢㜷㤱㤹㔸㙣㈶㑥㌲ㄲ敡ㄴ㈴挴㥥㥥㠶㍤㜲㔴晤〸〲戴㡦㐱㍣摥㔳〱㈰搸摥㍦愷㤹晣捦㠸㍤㥡㠸㠹㈰㙡ㄹ昸㘲捦扦挰㡦摡㜳〶戸㘲㑦㔷慢㍤㍣㑥㡡㍤㥤ㅤ敤㌹ㄳ㤵㠸搰扥〴㠵㍤换㤱攷收㘵攸㡡㈴捥㌶ㄳ攷ㄸ〹㜵㍥ㄲ㘲㑦愶㘱㡦ㅣㄲ扦㠲〰敤㙢㄰㡦昷〲〰〸戶摢昳㈷㤳晦ㅤ戱挷㄰㌱ㅤ㐴㕤〴扥搸昳〳昸㔱㝢㉥〱㔷散㐹戳摡ㄳㅤ㙦敤ㅣ敤㔹㠱㑡㄰㠲㤷㠱㠳挲㥥㑢㤱攷收㘵戸㠸㈴㉥㌷ㄳ㉢㡤㠴㕡㠵㠴搸愳っ㝢㐴㠰㉢つ㔲ㄴ㠸挷㝢ㄵ〰〴摢挷摢搵㈶㍦㡤搸ㅡ㈲㡥〷㔱慢挱ㄷ㝢搲挱㡦摡戳〶㕣戱攷扢ㅦ㘲愷㜶㕡㜴扣㝤〳㙥攲㔹摣㕡㔴ㄲ㜵㌲㈰ち昶慣㐳㥥㥢㤷㐱ㅣ㤲戸摥㑣摣㘰㈴搴捤㐸㠸㍤㕦㐳㈴昷ㅦㄹ㙦㥤愸㘳㈶㠸挷㝢ぢ〰〴摢晢攷㔶㤳摦㤵㔸㕣ㄳ㘱㈹〰㐴慤〷㕦散改づ㝥搴㥥摢挱ㄵ㝢㍥㜳戴攷敦㡥昶摣㠱㑡㘲捦晥㄰〵㝢㌶㈰捦捤换戸ち㐹摣㘵㈶敥㌶ㄲ敡㍥㈴挴㥥㡦慤昶ㅣ㐸ㅤ㝢㠲㜸扣ㅢ〱㈰搸㙥捦晤㈶扦て戱㡤㐴㌴㠰愸〷挰ㄷ㝢晡㠱ㅦ戵攷㈱㜰挵㥥户ㅣ敤㜹挳搱㥥㠷㔱㐹散改て㔱戰攷ㄱ攴戹㜹ㅦ㌵ㄳ㡦㤹㠹挷㡤㠴摡㡣㠴搸昳扡搵㥥〱搴㜱㈰㠸挷扢〵〰㠲敤昶㙣㌵昹㠷ㄱ换㔷捡㘹㘱㄰昵㌴昸㘲㑦〱昸㔱㝢㥥〵㔷散搹㙥戵㈷㍡ㅦ㍣攷㘸捦㕦㔰㐹散㈹㠱㈸搸昳ㅣ昲摣扣摢捣挴㜶㌳昱扣㤱㔰㉦㈲㈱昶㍣㙢搸㈳昳㐱ㄹ㜵㉣〷昱㜸㕦〲㠰㘰扢㍤㉦㥢晣㈱挴昲つ㜱ㅡ摦㌷愷㕥〵㕦散ㄹち㝥搴㥥搷挱ㄵ㝢ㅥ㜳戴攷ㄱ㐷㝢晥㠶㑡㘲㑦㌵㐴挱㥥㌷㤰攷收㝤搳㑣扣㘵㈶摥㌶ㄲ敡㍤㈴挴㥥㠷慣昶㡣愰㡥㈳㐱㍣摥昷〱㈰搸㙥捦〷㈶㝦っ戱愷ㄳ戱っ㐴㝤〸扥搸㌳ㅥ晣愸㍤ㅦ㠳㉢昶摣攵㘸捦〶㐷㝢㜸㡦㕥散㤹〴㔱戰攷敦挸㜳昳㝥㙡㈶㍥㌳ㄳ晦㌰ㄲ敡摦㐸㠸㍤户㕢敤㤹㐲ㅤ愷㠲㜸扣㥦〳㐰戰摤㥥㉦㑣晥っ㘲捦㈵攲ㅣ㄰昵ㅦ昰慢昰昵愸ㅢ㈰㌱㜶戲㌵㡢搲㜰戲昵ㄵ捡挴摥攳挱㠸摡晢㌵戸挳昱搵㙡挸晤搶挴捣戶㘲扥〷㔷㝣戲挶敡㤳攸挹搶㙡㐷㥦散㐴㈵昱㐹ㅤ㐴挱㈷㍦㈰捦捤晢愳㤹昸挹㑣晣㙣㈴㌲㝦㐱㘲敦㥣㙣晤ち挹㙣挵敥㑣慡㈸晣㝡㘸㈹㍦㕦愸㕤〸㤸㑡〱㕦㥣㌵捦敡㠸㔴㜰挵ㄱ㤷㔹ㅤㄱ摤㜹㔷㌸㍡㈲つ㤵昰挱慢挲㜴㐷戸㤹挱收攵慤㙡㐹愴㥢〹捤㐸愸っ㈴㘴㜰㕣っ㤱㍣㔸挸捥㝢㈲㜵㙣〶昱㜸㜹㘷搹挹ㅥ摥㙣ㄶ晥〲㘲昹晡㌶㡤㉦㠳㔳扣攱慣て㡥戳㈱㌱㌶㌸㑥愲㌴っづ摥㠴ㄶ㝢㑦〶㈳㍡㌸扡㠰㉢㠳㘳〹戹晢㤸㤸㔳慣㤸㝤挱ㄵ㥦㥣㙥昵㐹㜴㜰㉣㜵昴挹㝥愸㠴て昶㐴㠸挲攰攰晤㕢㙥摥晤捤〴㙦搸ち攷㐰㈳㤱挹晢戵㝢㘷㜰昴㠲㘴㈷㘷昶㌶昹换愱愵晣攰愳挶ㄷ换愹㍥攰㡢戳捥戱㍡攲㈰㜰挵ㄱぢ慤㡥㠸㥥ㄹ戵㌸㍡愲ㅦ㉡攱㠳㐵㉦摤ㄱ搹捣㘰昳ㅥ㙣㈶㜸扢㔶㌸晤㡤㠴攲㝤㔷ㄹㅣ㘱㠸攴攰㘰㠱㜶㈱㜵扣〸挴攳捤〱㐳散戱㉤㝡昱㙥慣昰㉦㈵昶㝡搶扡づ㐴ㅤ〶扥搸戳ㄲ晣㘸攷昳〶慢搸ㄳ㜴戴㘷慥愳㍤〵愸㠴て搶户㈰ちㅤ㕢挸っ㌶㉦㙦慢㑡愲搸㑣㤴ㄸ〹挵㥢愱㘲㡦摦㙡捦㌵搴㜱㌵㠸挷㍢ㄸ〰㈷㝢㜸㡢㔴昸敢㠸扤つ攲戵㕢㐱㤴摣攳㘴敥〶昰㘹て㐱慡〲㘸戱㘷愶愳㍤㌳ㅣ敤ㄹ㡡㑡昸㘰㜱ち愲㘰㑦㈵㌳搸扣挳捣㐴㤵㤹愸㌶ㄲ㡡㌷㈴挵㥥改㠶㍤㜲愶㜷ㅢ㜵㕣て攲昱㡥〲㠰㉡戹晦㡣慣挳㝡摤敤㘰挷慦搷摤〱㡥㝤扤㡥㌷㌵挵晡つ㈸㤴摦㥢搴昸㕥㌷㈵昷㈹㤱搰敥〶㍦摡㥢扣㑦㈹搶㡦㜳戴㝥㡣愳昵扣㕢㠹㡦㑢摢〸㔱戰㝥〲㌳搸扣扣㍢㈹〹摥㡡㤴挴㈴㈳愱愶㈲㈱搶㡦㌶慣㘷㠱戶㠹㍡㍥〰攲昱㑥〳㐳昴戶㡤捥改㈶晦ㄱ㘲昹㘲㌵敤㝥㄰挵扢㡤晡搴㌵ㄴㄲ㘳㔳搷ㄳ㤴㠶愹敢㔸㤴换攸㝤ㄲ㡣愸扤扣㙤㈸㔳搷㘶㜲㡦㌷㌱㕢慣㤸搹攰㡡㑦づ户晡㈴㍡㜵㤵㍢晡挴㠷㑡昸攰捤捡㄰〵㥦捣㘱〶㥢户搶㑣搴㤹〹扦㤱挸っ㈰戱㜷愶㉥摥攲ㄳ㘷㕥㡢㠴㘵㥤戳摥攴㙦㠳㤶昲㑢㥣摡㈳㔰㔲昱捥㥦敥捣晣㌸㘷扥〰ㄸ㥤挹扢㠱攲捣ㄷ慤㡥㙡〰㔷㥣昹ㄲ戹㈱ㄳ昳戲ㄵ挳摢㙡攲捣ㅣ㐷㘷づ㜰㜴㘶㌳㉡攱㠳㈵〴㠸㠲㌳挳捣㘰昳昲㘶㥡㈴㕡捣挴〲㈳㤱戹㄰㠹扤攳捣㐵㤰散攴㑣摥㠱ㄳ晥㕢搰㔲摢〲扤戴捤㈰摥㤳挰挷〷敦㤸ㄶ敤搳㑥㐵收昰攴て攰㕢敥愷っ挴〳慡㜱扦㔹㌹ㅣ扦㐱戹㤸〷昹㜶㜸攳㡤晥㥥㤸搴㤴挱扢㈷㡢换戹㝣㉣㤹摦戴㍥昰晢ㅥ挸攱㔸㠸慤挱㔲㘲㙦㝣戵昷㘱㜰收㔲㤸换搵㜰摢㍡攳㤷ㄵ攰㜱ㅢ㉡搴㤵㙥晣昷ㅡ晦扢ㄹ晦昷ㅢ㥡戹捣㤴㌰㑢昵㔹㔱㤹昶晥㘹昶昷摥戵㝦㘰搰搱愳㑡慥慦戸昷戸戳㉦ㄹ戴敤扥㡡㜳扣摢㑦摦㜱昹㑦ㄵ㔷扤摡㍤攳改㘶㍣㍥戸ㅣㄲ戲搱㡥晤攷捦づ㠴搹㙦攲昵扢〹扦晦㜶㠰㔱㘰晦晤㌷敦㌹㤰㠴㡦㑢晢㐴㍡㔳㕤㠰っ㍢㔴昵㐰つ㝡㔱っ晦㤴㠶昳晥ㄲ㡤㙥挳昰㤸愱挰㘲敢㍢㌴昳㈲戳㘶㌲㠳搷慥㝤㈲㈷户摦㈵㡦〵㑥昸扡搷攰㔵㡦㔷晣㜷㐰攳慢㜷㍣晦摡㘳敡㔲搴㜴㌲戴㥢㘱㑦㠲愱㕤㡤〲晢敦扣㜹㔷㐲ㄲ㍥㉥敤㜳摤搰慢㤰ㄱ㐳㍢㕢つ晤㤲㠶㕥㠳愲㍤敢㘱摥愰ㄲ〹挹っ㉥搸搲昲捥捥㑢愶㔴ㅣ㌵攸㥤戲攷搶㙦慡挸㝡攴攵㝦ㅤ㌱攰敢㡡㜷挷㕦昴搲挵ぢ㝦愸㔰敢㈰挱挹昰㡣㘴㠶㜷㌰ち散扦敦收扤〱㤲昰挱敢ㄹ㜵挳㙦㐱㐶っ搷慣㠶㝦㑦挳㜹㈷㘹ㄷ㝡㌸㜱㘸㘷昲昶㤳搴㑣㘶㌰ㄴ㔸㝡改摢㕢㉡昱摦㜵晤〷㉦昲晦搲挸㑢㙦㔶慡つ愸改㘴㘸㙡㌲㐳摢ㄹ〵昶摦㜱㔳昷㐰ㄲ㜷㕣敤ㄷ搸挲〴扦㕥摥㈵挱挷愵晤慡㥢㝦㥦㠹戲㡥㘳敦㐶ㄳ愵㘰㐵挷㜶敡㐱攴挵㐹扦散戴散〶敤㔰愸ㅥ㐵㔱㑣攱㜲㌴愲晦慣换㑥㈰摦㜴摡昷扥㌷ちㄲ㝥昳收㐹㔳ㄵ㡤㜲㑤㠵㜹㔳〰ㅦ扣敤㑥㔷㘵㡢㠹㡡㔳㜸慢㠹捡搰㔱㕣摢ㄷ㠵扦戶㉡摣㠹㠲戹愰敥愴昰攷挹ㄴ晥户㔱㘰晦ㅤㅡ㉦㤷攰昱挱㡦晢改㡤㜲ㅤ㕤ㅡ晤愷戵搱敥㈸捣㝣つ㐵昸㙦搵ㄹ㌹㤷㝤㤶㜴㤸㉣㕥㌷㙢㈶ㅢ㑡㐹㈷ぢ慥戴挷っ㡤扤㉡昹㤳㘴㠶㝥㙣ㄴ搸㝦㙦挶晢㉥㈴攱㠳搸㔹摤搰ㅤ挸㠸愱ㅦ㕡つ敤㐵㐳㍦㐲搱㥥㑤ㄶㅦ㥢ㄲ㤲ㄹ摣收㘴挱㈵㜹㈷挳摦㑤㘶昸㍢㐶㠱晤㜷㘶扣晦㠲㈴㝣昰㕥㝣摤㜰慥挴㡢攱㙦㔹つ㍦㤸㠶㝦㠵㈲晣㙦慢㠷ㅤ㈶㡢慦捤㥡挹っ㠶㔴攷挹攲㍢搴㜴㌲昴戵㘴㠶扥㙡ㄴ搸㝦㑦挶晢〳㈴攱㠳㌷㜹改㠶晥㠲㡣ㄸ晡戲搵搰㕣ㅡ捡挵昷㕤㌰搴㘱㈸㉢戳㘶㌲㐳㤷昶晤攴捤攷㈶摦㕢戱㜹㔸㜶捦㡢敦㍢户攲㡢敢㙥ㅡ㤶㜳昲扡ち挵㐵㝣㈷㐳㥦㑦㘶攸㜶愳挰晥扢㌱摥㜴㐸ㄲ㐳㡢㜴㐳戹㜶㉦㠶㍥㘷㌵戴㠴㠶㜶㐲搱㥥つ攵㑣㔳㐲㌲㠳摢ㅣ捡㕣敤捦㘶扦扣㐵ㄲ摢㠷㥦㑡㘶昸㔶愳挰晥㝢㌱摥敥㤰㈴㠶ㅦ愱ㅢ捥㐵㝥㌱㝣戳搵昰㈳㘹㌸㤷敦昷捣昰㥥愶㠴摤㌶扣て㈴㘴㍢ㄸ晥㘸㌲挳ㅦ㌱ち散扦ㄳ攳敤〷㐹㘲㜸戵㙥㜸㝦攴挵昰㠷慣㠶㡦愰攱㕣攷摦㌳挳㜹㤳㐰㈴散戶攱㠷㐱㐲戶㠳攱ㅢ㤳ㄹ㝥㥦㔱㘰晦㝤ㄸ㙦〱㈴㠹攱㘳㜵挳㑢㤰ㄷ挳敦戱ㅡ㍥㥥㠶昳㠶〰晥敦挶攴挵扢〸㔲㌳㤹挱㤰敡㍣㜹つ㐱捤㙣〷㐳敦㐸㘶攸敤㐶㠱晤㜷㘰扣扣ㄵ㈱㠶㑥搱つ慤㐶㕥っ㕤㙦㌵㜴ㅡつ攵㥤㠲摤㌳㤴户ㄷ㜶捦㔰摥㜱挸㜶㌰昴愶㘴㠶摥㘸ㄴ搸㝦敦挵㍢ㅥ㤲挴搰攳㜴㐳㈷㈱㉦㠶㕥㙦㌵昴㜸ㅡ捡㕢〸扢㘷㈸敦㍢散㥥愱扣ㄵ㤱敤㘰攸戵挹っ㕤㙤ㄴ㈴晣慥换㉣㐸攲ㄹ愰㔶〷㑤愲愷㠲扣㘵㈱收晢挱挵㔹愹摣慣㈰㑡昴㐵㠲㥢㤷㌷㉤〴㌵㔷㐷搵㈱㉦㑥扡搲敡愴㈰〵搷愳㈸ㅢ㜵昴搹㌵㜶敥㝡㘹㌲㠵㔷ㄸ〵昶摦㕡昱昲〶㠱㌴ㅡ搲ㅢつ㤹㡤㕥㙣㙤昴㐴ㄴ㘶㜲晤ㅥ晦慤㍡㔳㙦晢愹愰挳㠹㐲戳㔹昳㌷敦㙢ぢ㔰㌳㍢㙡㘸散㌰㜲㝥㌲㐳捦㌳ちㄲ㝥㔳㠵户ち愴㘷ㄶ搲㠱㄰挹慦㤷昷ぢ挴晣㐵扡昹㜲愷㠰敤㔹慤昴㥥㘲愲㑥搲㔱换㤰㤷㥥㔹㙥㜵搲ㄲち收㕡㝢㜶㔴攱㔸捦㉣㑤愶昰㘹㐶㠱晤㜷㑥扣攷㤸㡤㥥慥㌷捡㈵㜶㘹昴ㄴ㙢愳㘷愲㌰昳㐲ㄴ攱扦㔵㘷攴ㄲ㝡挶攱捣收㈲戳㘶戲㥥㐹㝡㤲捥㐵昸散愸愱戱㥥㔹㤴捣搰㠵㐶㠱晤昷㑣扣㉢㈱㐹晡攰㍣摤㔰慥扤㡢愱㉤㔶㐳㉦愰愱㕣㔵摦㍤㐳㔷㥢㌵㝦戳愱敢㔰㌳摢挱搰昹挹っつㄹ〵昶摦㉤昱摥〰㐹㘲攸ち摤搰㕢㤰ㄷ㐳ㅢ慤㠶㕥㐶㐳戹摣扥㘷〷㜴慥搵敦搹〱㝤〳㈴㘴㍢ㄸ㕥㥦捣昰戹㐶㠱晤昷㑡扣㜷㐳㤲ㄸ㝥㤵㙥昸㐶攴挵㜰扦搵昰㙢㘸㌸㔷摡昱㝦㌷㠶㌲㤷攷愵收㙦敥攱㐷㔰㌳摢挱搰搹挹っ慤㌱ちㄲ㝥㤷攴〹㐸㤲㐹收㍡㘸ㄲ㥤㘴戸戲㉦收㕦て㉥愶㝦㔹搳㘷㝢㔶㉢扤㕢㑣搴㡤㍡敡ㄹ攴挵㐹挷㕡㥤㜴㌳〵㜳㔵㍣㍢慡㜰㙣㤲㤹㥡㑣攱㈹㐶㐱挲㙦㠵㜰攱㕣ㄴ扥摤慡㌰㔷捦㐵攱㍢㜴㔵㕥㌲㔱㜱ち㜳晤㕣㔰㜷敡㈸㉥㠲㡢挲ㄳ慣ち摦㑤挱㕣㜹捥㜶㔰昸愸㘴ち㡦㌶ちㄲ㝥扦㠳㙢搵㙤晤㝥〷ㅦ扥昰㠷攵ㄵ扤㝣㤴㉥㉤挰挷㐵㍡〴㜴㌶㤷㤷攵㡤慣つ昲慣㐵〶摥戸摦㍣捦摦㍣ㄶ扦㉡㠱昷散㑦づ㌶ㅡてㄸ攰搷㈶昸㜶㍡昳㥤敥㥡攴㔸搹ㅤ㤸搰㡣㤷扣户て㡣づ攳扤愳㜵改㡤ㄳ㝤㤱㠸扦戹改㡦㄰㌲㡤愷㕦㔲戹っ㡦㠵昸㜶㜸昵㝡㡡攳㠳㈷捦愲搸晥㥥㍥㑢戰㜸捣ㅦ收扢㈷㔳昸愲晥摤ぢ㤸㜶㙦㐲昷敢て㜹搶㔹㝥㜷㈲㔵㡤㐴〷敢㤱㘹㑢㕤扦㡡挶慥ㄴ㠴〹〳敤㝥〸愴㕤㘵戸㔱〶㈶㠸㐷㝢ㄸㅣ㜹〶㑢㠸㉢㡤敢昷㜶搳昸㈰搰〸摡㥥戶㌰㔸ㄷ愹㜷搷晢㠳㜳敢ㄱ捥搴愱〳敤㌵㌷挵攵㜱㡥㈱昷愳㤰㘹㜹㈳㔵扣㜶㤵㡥摡㍤㑥㌵愸㕤㑣戳㈷攳㌵㔳㥦㐲㌴戵㌳㌷挵㔵㙡㘹㙦ぢ㤰㑥㡥㌸摣戱愹愷㠰㜶㍦つㄲ敦㠸㘷㙣捤㜱㤹㍢慥戹㙦捤收晥〲愴昵㕤攱昱昶ㄵ㍢㌶扡㡤㡤㙥㑦㘸昴㜹㕢愳㕣㘲戶㌶敡晤〵っ㤹〸㕥〰ㄲ昳ㅢ㔷㘸㘵㈲㌸っ捤昰摥㐳㘷戸㈳㍤愵㥤搷㥣㍥昰㤶㕡挳㉢㉦㈱㤱㠹摦捦昰搷攲㡤愱㔹昲㈰㔴㌸㐵つ㌲搵晢㘷㐱㡦搸攰㜸〵㔸昷慢㈰晣㝤㜲㈵挳㥣㠳攳㌵㜰㉣㠳㐳㜱㜱㤷敡㑤㔹昵攰搰㥦ぢ㘷㔵㝡戹㉡㉢敡晤つ〹愸挷昵㔸㔱敦㤰㜸昵㔴〶ち搸㔷ㅡ戵㑡㔱搹㡥㕡扣㡤㌲㡤㕡挴㌴㜸㤷㉣㍥㈲愸て㑦搵〹㜹慢〶慡ㅢㄸ㈲㤸㠳㉥㔵昵㌶〵扢慣㘳㝦〷愵挴㡦慥㡦挸戲〸收㡡慣搵昳敡㐰㌰㐴㌰㐷㔷慡敡攱㈸昸㔳㑡攱㔸㡡つ摢㝦㤰㘵ㄱ摣ぢ昹㌸挱晤挰㄰挱ㅣ㐷愹慡慢愳攰捦㈹㠵攳㈵㈶昸㑢戲㉣㠲戹挲ㄸ㈷㌸〷っち㜶㝦㠵㐴搲晤慦愳㘳㝢晦愵昰㜸て㝤㑢㤶愵扤㕣攴攳摡㉢〲挳攲愱昶㡥㠲㝦愰㤴㜸て晤㘴ㄳ㕣㘲ㄷ㝣㐴扣㘰攵㈸搸㠵㌳㌰㥢攰ㄴ戲㉣ㅡㅦ㘹ㄷ㕣ㅤ㉦昸挷敦㥤㈶㑡㜷愲攰㜴㥢㘰㉥っ挵戹㘲慣㈹㔸敦搳㙦ㅣ〵㘷㔰㑡㝣㥦㜶戲〹ㅥ㙦ㄷ㍣㈵㕥昰ㄷ㡥㠲扢㈴ち敥㘶ㄳ㍣捤㉥昸戸㜸挱㥦㌹ち摥㉦㔱昰晥㌶挱挷摢〴㝢敢挰㤰㈹攱㐰㈰㌱㈵昰扡㕣愶㠴て搱㠴㘵挶㔲㜳㑤つ昴㈹攱〳㔳㠳戸㠹㈹㡢捤挵㑦〹㝤㙤ㅡ昰慡㥤㥤㘱㑥㑡㡡㤷摢㤶ㅤ散㉤㔳㜰摣㤴㜰㌰愵挴㜷㐶㝦㥢㘰㕥㤹㕢㝢搹换换㕢㌱㙤〰㤰㌰㡤ㄷ戶㘲摡慢㌶搳㜸㉤㉢ㅡ攸愶扤㙣㙡㄰㘷㕡㉥㥢㡢㌷㉤捦愶挱ㄲ㐳㠳愸㘹扣㕥ㄵ挱晡㙣户摤ㄴㅣ㘷㕡ㄱ愵挴敦换㈵㌶挱㘷ㅡ㠲㌱扦挸愶捥㡢ㄷ晣戴愳攰挱㠹㠲㡦戰〹扥挰㉥㜸㠵㈱搸㝤㈴㤰㑥〷改㈷ㅣ㥢ㅡ㥡搸搴㌰㕢㔳㤷搹㥢攲ㄵ㤰挵㌹て㌹ちㅥ㤱㈸㜸㤴㑤昰㌵㌶挱㕥㕥㜱㐸扦ㅦ〵㈴晡㥤搷ㅡ搲敦昷愱〹敢㤰收攵㠵愵摦敦㌱㌵㠸敢昷昱㙣㉥扥摦㈷摡㌴戸搹搰挰散㜷敦敤愶〶㤳㜴つ敥㌰㌵戸摤愶〱慦ㄷ㉣ㅡ慣㜷搴㘰㕡愲〶挷搸㌴戸摢愶㐱ㅡ㑦ㅦ㜷昹捣㤶㤷㍤扢昹散摣戱㔰㐴㍤㡣挶攴搲㘹㈶㜳㄰㈶㕦㥥㈳㔲つ敤㌸㜲㜹㝡㈸㤸㔹㔶っ㑦敥〴㜳㍣戹㍣愷ㄳ㑣㡤ㄵ戳捤挴捣㈶昷㜹ㄳ攳戳㘲㜸扡㈵㕤㝣慤攱㘰㠶慥㘸戵㠴扣㘲㔶慦㘳敥㌵戳扡摦㕡㥤愷㐳㔲晤㉡㙢昵戹㠴扣㙤㔶慦㘷敥㕤戳㝡搰㕡㥤攷㉢㘲挵〹攴㝥㘴㘲收㔹㌱㍣昵㄰㑣〳戹㍣敢㄰㑢ㅢ慤㤸捦㑤㑣ㄳ戹㍣㠱㄰㑣挸㡡昹慦㠹㤹㑦㉥て晡㠲㌹搱㡡昹挱挴㌴㤳晢㤳㠹〹㕢㌱㉥㘴㐴ㅦ扥㘵㕣昱㔰㉣㜲㕡慣ㄸㅥ㕡〵戳㠰㕣ㅥ㔵〵戳搰㡡攱㔱㔲㌰㡢挸攵〱㔲㌰㡢慤ㄸㅥ昰〴㜳ㄲ戹㍣搶〹收㘴㉢㠶挷㉥挱㉣㈱㤷㠷㉤挱㥣㘲挵昰㄰㈵摤㜴扡戵㥢㑥㈳㈴ぢ㐴慡㉦㘵㡥挷ㅣ愹扥捣㐸㌰愳㜸っㄱ捣改攴昲昰㈱㤸㌳慣ㄸㅥ㉡愴㠹㈵搶㈶㤶ㄳ挲〳㠰㔴㍦㡢㌹捥晤㔲晤㙣㈳㈱㑤㜰㉥ㄷ捣㌹攴㜲ㅡㄷ捣戹㔶っ愷㘵挱㥣㐷㉥㘷㘴挱㥣㙦挵っ㌵㌱ㄷ㤰换愹㔴㌰㝦戲㘲㌸㌵㡡㥣ぢ挹ㅤ㘵㘲㉥戲㘲㌸〳㡡㌹昳慤收㕣㐲挸㜸㄰愹扥㠲㌹㑥㘹搲挴愵㐶㠲ㄹ挵改㑢慡㌷㔸慢㕦㑥〸㈷㈵愹扥㤲㌹捥㐷㔲晤ち㈳㈱搵㘵㜲攰㡥㜸㈵戸收收攵㈴㈱搳昳㉡㈴㌰㍤换昴㤰㠰攲㌴㈱愸慢㜵㤴㑣㄰㐴㤹㔷㑥㤴攷攵㐴㈱愸搵㍡㙡㌶晥㠹ㅥ㜱㈸㑥ㄵ㠲㕡㈳愸㑣捥ぢ㝣㌲㉥㘵㤱慡㥤㕤㌷㝢昶昷㤹愹㔹晢愷ㅥ㌳㌴㘳搵晢㝦搹戱攲㤵攳㠶晣晤愷㙢慥㜹攵愳ㄵ摢㝥㝡㜸捥㤰愷慦扢㙥换㔱㙢戶敤攸ㄲ㔸㥢戲昱晢戱㙢㤷攴捦㕢㜲㘲㘰敡㠰㤱㑢㘶㥣㜰㜴晥挴捥〳摢戵㙢摦晥㤰慥捦散搷摦扢昴挴㑤敡㠹㌷昶㙤㔲㌲搵㈴㈸换㈹㐷搴㔸愷慢挱昹㘵慦慡㔱㡦〶ㄲ扤挱愹㑢搴戸㕥搴㔰㌲㘹㔱搹戸㕥攲攴㈵愸ㅢ㜵㤴㑣㕢〹㈶㜱晡ㄲ搴捤㍡慡〹晦ㄲ㕢攴〴㈶愸㕢㜵㤴㑣㕤〹㉤㜲ちㄳ搴㝡ㅤ㈵㤳㔷㐲㡢㥣挴〴㜵扢㡥㤲改㉢〱挵㘹㑣㔰ㅢ㜴㤴㑣㘰〹㈸㑥㘴㠲扡㑢㐷㉤挲扦㐴敤㌹㤵〹敡ㅥㅤ㈵㤳㔸㠲㉣㑥㘶㠲扡㑦㐷挹㌴㤶㠰攲㜴㈶愸晢〵㤵挹戹㙢慦づ〱㤹づㄳ搴攰戴㈸㙡㍣㈰㙡㈸㤹㄰ㄳ㔰㥣ㄸ〵昵㤰愰㌲㌹ぢ敥㔵㘵㘵㘲㑤㔰㠳ㄳ慣愸昱㠸愸愱㘴㙡㈵㉡㙥扣㜲㡡ㄵ搴㘳㍡㑡㈶搷〴ㄴ㈷㔹㐱㍤愱愳㘴㝡㈵敡㐹攴捤捤换㘹㔶㔰㥢㜵㤴㑣戰㐴挵戵挸㠹㔶㔰㕢〵㤵挹㔹㜵慦扡㐷㈶㙡慡ㄱ㌷戹㜱挲ㄶ㌵㥥搶搵攰散扣㔷搵㤰〹㍦㐱つ㑥晣愲挶戳愲㠶搷㜴㤵攲㉣㉦挷㤰ㄲ攳ㄸ㌲っ㜵搳昱搲㌱㑥散㔲㔰㙣㉢攰㕣㉥〵㐵戶〲㑥摦㔲㔰㘸㉢攰㠴㉡〵〵戶〲㑥㜱㔲㤰㙦㉢攰慣㈶〵㜹戶〲㑥㘴㔲㜰㤸慤㠰㜳㤷ㄴ攴摡ち㌸㕤㐹挱㈰㕢〱㘷㈸㈹挸戱ㄵ㜰㔲㤲㠲㠱戶〲捥㐳㔲㌰挰㔶挰愹㐷ちづ戵ㄵ㜰戶㤱㠲晥戶〲㑥㌰㔲㜰㠸慤㠰扢扣ㄴㅣ㙣㉢攰㕥㉥〵搹戶〲敥㜷㔲搰捦㔶挰㕤㑤ちづ戲ㄵ㜰敦㤲㠲扥昱〵㕥㜳㌷㔳摣戳〴搱㈷ㅥ愱戸㌳㐹㐱㤶慤㠰挳㕢ち㝡摢ち㌸攰愴愰㔷㝣㐱㠷晦〷扣㕤挳ㄵ
B34: Decisioneering:7.0.0.0

Sheet Mod. Sensibilización
B2: Modulo de Sensibilización
B9: Proyección de variables | CN9: Bases de datos y proyección estadística de variables
B11: Variables Macroeconómicas | C11: =+Variables!D31 -> 2009 | D11: =+Variables!E31 -> 2010 | E11: =+Variables!F31 -> 2011 | F11: =+Variables!G31 -> 2012 | G11: =+Variables!H31 -> 2013 | H11: =+Variables!I31 -> 2014 | I11: =+Variables!J31 -> 2015 | CN11: Base de Datos Variables Macro | CO11: =IF(#REF!="","",#REF!) ->  | CP11: =#N/A ->  | CQ11: =#N/A ->  | FC11: =#N/A ->  | HO11: =#N/A ->  | HP11: =#N/A -> 
B12: IPC % | C12: 0.0563 | D12: 0.05 | E12: 0.045 | F12: 0.045 | G12: 0.045 | H12: 0.045 | I12: 0.045 | CN12: IPC % | CO12: 0.0825 | CP12: 0.089 | CQ12: 0.0972 | CR12: 0.0996 | CS12: 0.1 | CT12: 0.0968 | CU12: 0.0929 | CV12: 0.091 | CW12: 0.0921 | CX12: 0.0899 | CY12: 0.0882 | CZ12: 0.0875 | DA12: 0.085 | DB12: 0.0806 | DC12: 0.0782 | DD12: 0.0797 | DE12: 0.0786 | DF12: 0.0792 | DG12: 0.0809 | DH12: 0.0803 | DI12: 0.0797 | DJ12: 0.08 | DK12: 0.0778 | DL12: 0.0765 | DM12: 0.0737 | DN12: 0.067 | DO12: 0.0589 | DP12: 0.0565 | DQ12: 0.0584 | DR12: 0.0625 | DS12: 0.0616 | DT12: 0.0598 | DU12: 0.0597 | DV12: 0.0637 | DW12: 0.0707 | DX12: 0.0699 | DY12: 0.0739 | DZ12: 0.0724 | EA12: 0.076 | EB12: 0.0785 | EC12: 0.0773 | ED12: 0.0721 | EE12: 0.0704 | EF12: 0.0726 | EG12: 0.0711 | EH12: 0.0658 | EI12: 0.0613 | EJ12: 0.0649 | EK12: 0.0619 | EL12: 0.0628 | EM12: 0.0621 | EN12: 0.0549 | EO12: 0.0537 | EP12: 0.0607 | EQ12: 0.0619 | ER12: 0.0589 | ES12: 0.0597 | ET12: 0.059 | EU12: 0.0582 | EV12: 0.055 | EW12: 0.0543 | EX12: 0.0525 | EY12: 0.0503 | EZ12: 0.0501 | FA12: 0.0504 | FB12: 0.0483 | FC12: 0.0491 | FD12: 0.0488 | FE12: 0.0502 | FF12: 0.0527 | FG12: 0.051 | FH12: 0.0485 | FI12: 0.0456 | FJ12: 0.0419 | FK12: 0.0411 | FL12: 0.0412 | FM12: 0.0404 | FN12: 0.0394 | FO12: 0.0432 | FP12: 0.0472 | FQ12: 0.0458 | FR12: 0.0419 | FS12: 0.0431 | FT12: 0.0448 | FU12: 0.0471 | FV12: 0.0525 | FW12: 0.0578 | FX12: 0.0626 | FY12: 0.0623 | FZ12: 0.0603 | GA12: 0.0577 | GB12: 0.0522 | GC12: 0.0501 | GD12: 0.0516 | GE12: 0.0541 | GF12: 0.0569 | GG12: 0.06 | GH12: 0.0635 | GI12: 0.0593 | GJ12: 0.0573 | GK12: 0.0639 | GL12: 0.0718 | GM12: 0.0752 | GN12: 0.0787 | GO12: =FORECAST(GO11,$CO$12:GN12,$CO$11:GN11) ->  | GP12: =FORECAST(GP11,$CO$12:GO12,$CO$11:GO11) ->  | GQ12: =FORECAST(GQ11,$CO$12:GP12,$CO$11:GP11) ->  | GR12: =FORECAST(GR11,$CO$12:GQ12,$CO$11:GQ11) -> 
B13: DTF E.A%(fin mes) | C13: 0.079 | D13: 0.08 | E13: 0.08 | F13: 0.08 | G13: 0.08 | H13: 0.08 | I13: 0.08 | CN13: TRM (fin mes) | CO13: 1976.72 | CP13: 1946.17 | CQ13: 1951.56 | CR13: 2004.47 | CS13: 2084.92 | CT13: 2139.11 | CU13: 2172.79 | CV13: 2208.21 | CW13: 2212.26 | CX13: 2158.36 | CY13: 2172.84 | CZ13: 2229.18 | DA13: 2240.8 | DB13: 2257.45 | DC13: 2310.57 | DD13: 2346.73 | DE13: 2324.98 | DF13: 2298.85 | DG13: 2298.27 | DH13: 2301.23 | DI13: 2332.19 | DJ13: 2310.02 | DK13: 2308.59 | DL13: 2291.18 | DM13: 2264.82 | DN13: 2309.82 | DO13: 2261.23 | DP13: 2275.35 | DQ13: 2321.16 | DR13: 2398.82 | DS13: 2625.06 | DT13: 2703.55 | DU13: 2828.08 | DV13: 2773.73 | DW13: 2784.21 | DX13: 2864.79 | DY13: 2926.46 | DZ13: 2956.31 | EA13: 2958.25 | EB13: 2887.82 | EC13: 2853.33 | ED13: 2817.32 | EE13: 2880.4 | EF13: 2832.94 | EG13: 2889.39 | EH13: 2884.17 | EI13: 2836.05 | EJ13: 2778.21 | EK13: 2742.47 | EL13: 2682.34 | EM13: 2678.16 | EN13: 2646.99 | EO13: 2724.92 | EP13: 2699.58 | EQ13: 2612.44 | ER13: 2551.43 | ES13: 2595.17 | ET13: 2575.19 | EU13: 2479.1 | EV13: 2389.75 | EW13: 2367.76 | EX13: 2323.77 | EY13: 2376.48 | EZ13: 2348.32 | FA13: 2332.79 | FB13: 2331.81 | FC13: 2308.49 | FD13: 2304.3 | FE13: 2289.61 | FF13: 2289.57 | FG13: 2274.04 | FH13: 2284.22 | FI13: 2265.65 | FJ13: 2247.32 | FK13: 2289.98 | FL13: 2375.03 | FM13: 2482.41 | FN13: 2633.12 | FO13: 2426 | FP13: 2396.63 | FQ13: 2394.31 | FR13: 2315.38 | FS13: 2300.42 | FT13: 2238.79 | FU13: 2259.72 | FV13: 2224.12 | FW13: 2190.3 | FX13: 2110.67 | FY13: 1930.64 | FZ13: 1960.61 | GA13: 1971.8 | GB13: 2173.17 | GC13: 2023.19 | GD13: 1999.44 | GE13: 2060.42 | GF13: 2014.76 | GG13: 1939.6 | GH13: 1843.59 | GI13: 1821.6 | GJ13: 1780.21 | GK13: 1744.01 | GL13: 1923.02 | GM13: 1792.24 | GN13: 1932.2 | GO13: 2174.62 | GP13: =FORECAST(GP11,$CO$13:GO13,$CO$11:GO11) ->  | GQ13: =FORECAST(GQ11,$CO$13:GP13,$CO$11:GP11) ->  | GR13: =FORECAST(GR11,$CO$13:GQ13,$CO$11:GQ11) -> 
B14: Devaluación anual | C14: 0.0635 | D14: 0.05 | E14: 0.05 | F14: 0.05 | G14: 0.05 | H14: 0.05 | I14: 0.05 | CN14: DTF E.A%(fin mes) | CP14: =IF(#REF!="","",(#REF!/#REF!)) ->  | CQ14: =IF(#REF!="","",(#REF!/#REF!)) ->  | CR14: =IF(#REF!="","",(#REF!/#REF!)) ->  | CS14: =IF(#REF!="","",(#REF!/#REF!)) ->  | CT14: =IF(#REF!="","",(#REF!/#REF!)) ->  | CU14: =IF(#REF!="","",(#REF!/#REF!)) ->  | CV14: =IF(#REF!="","",(#REF!/#REF!)) ->  | CW14: =IF(#REF!="","",(#REF!/#REF!)) ->  | CX14: =IF(#REF!="","",(#REF!/#REF!)) ->  | CY14: =IF(#REF!="","",(#REF!/#REF!)) ->  | CZ14: =IF(#REF!="","",(#REF!/#REF!)) ->  | DA14: =IF(#REF!="","",(#REF!/#REF!)) ->  | DB14: =IF(#REF!="","",(#REF!/#REF!)) ->  | DC14: =IF(#REF!="","",(#REF!/#REF!)) ->  | DD14: =IF(#REF!="","",(#REF!/#REF!)) ->  | DE14: =IF(#REF!="","",(#REF!/#REF!)) ->  | DF14: =IF(#REF!="","",(#REF!/#REF!)) ->  | DG14: =IF(#REF!="","",(#REF!/#REF!)) ->  | DH14: =IF(#REF!="","",(#REF!/#REF!)) ->  | DI14: =IF(#REF!="","",(#REF!/#REF!)) ->  | DJ14: =IF(#REF!="","",(#REF!/#REF!)) ->  | DK14: =IF(#REF!="","",(#REF!/#REF!)) ->  | DL14: =IF(#REF!="","",(#REF!/#REF!)) ->  | DM14: =IF(#REF!="","",(#REF!/#REF!)) ->  | DN14: =IF(#REF!="","",(#REF!/#REF!)) ->  | DO14: =IF(#REF!="","",(#REF!/#REF!)) ->  | DP14: =IF(#REF!="","",(#REF!/#REF!)) ->  | DQ14: =IF(#REF!="","",(#REF!/#REF!)) ->  | DR14: =IF(#REF!="","",(#REF!/#REF!)) ->  | DS14: =IF(#REF!="","",(#REF!/#REF!)) ->  | DT14: =IF(#REF!="","",(#REF!/#REF!)) ->  | DU14: =IF(#REF!="","",(#REF!/#REF!)) ->  | DV14: =IF(#REF!="","",(#REF!/#REF!)) ->  | DW14: =IF(#REF!="","",(#REF!/#REF!)) ->  | DX14: =IF(#REF!="","",(#REF!/#REF!)) ->  | DY14: =IF(#REF!="","",(#REF!/#REF!)) ->  | DZ14: =IF(#REF!="","",(#REF!/#REF!)) ->  | EA14: =IF(#REF!="","",(#REF!/#REF!)) ->  | EB14: =IF(#REF!="","",(#REF!/#REF!)) ->  | EC14: =IF(#REF!="","",(#REF!/#REF!)) ->  | ED14: =IF(#REF!="","",(#REF!/#REF!)) ->  | EE14: =IF(#REF!="","",(#REF!/#REF!)) ->  | EF14: =IF(#REF!="","",(#REF!/#REF!)) ->  | EG14: =IF(#REF!="","",(#REF!/#REF!)) ->  | EH14: =IF(#REF!="","",(#REF!/#REF!)) ->  | EI14: =IF(#REF!="","",(#REF!/#REF!)) ->  | EJ14: =IF(#REF!="","",(#REF!/#REF!)) ->  | EK14: =IF(#REF!="","",(#REF!/#REF!)) ->  | EL14: =IF(#REF!="","",(#REF!/#REF!)) ->  | EM14: =IF(#REF!="","",(#REF!/#REF!)) ->  | EN14: =IF(#REF!="","",(#REF!/#REF!)) ->  | EO14: =IF(#REF!="","",(#REF!/#REF!)) ->  | EP14: =IF(#REF!="","",(#REF!/#REF!)) ->  | EQ14: =IF(#REF!="","",(#REF!/#REF!)) ->  | ER14: =IF(#REF!="","",(#REF!/#REF!)) ->  | ES14: =IF(#REF!="","",(#REF!/#REF!)) ->  | ET14: =IF(#REF!="","",(#REF!/#REF!)) ->  | EU14: =IF(#REF!="","",(#REF!/#REF!)) ->  | EV14: =IF(#REF!="","",(#REF!/#REF!)) ->  | EW14: =IF(#REF!="","",(#REF!/#REF!)) ->  | EX14: =IF(#REF!="","",(#REF!/#REF!)) ->  | EY14: =IF(#REF!="","",(#REF!/#REF!)) ->  | EZ14: =IF(#REF!="","",(#REF!/#REF!)) ->  | FA14: =IF(#REF!="","",(#REF!/#REF!)) ->  | FB14: =IF(#REF!="","",(#REF!/#REF!)) ->  | FC14: =IF(#REF!="","",(#REF!/#REF!)) ->  | FD14: =IF(#REF!="","",(#REF!/#REF!)) ->  | FE14: =IF(#REF!="","",(#REF!/#REF!)) ->  | FF14: =IF(#REF!="","",(#REF!/#REF!)) ->  | FG14: =IF(#REF!="","",(#REF!/#REF!)) ->  | FH14: =IF(#REF!="","",(#REF!/#REF!)) ->  | FI14: =IF(#REF!="","",(#REF!/#REF!)) ->  | FJ14: =IF(#REF!="","",(#REF!/#REF!)) ->  | FK14: =IF(#REF!="","",(#REF!/#REF!)) ->  | FL14: =IF(#REF!="","",(#REF!/#REF!)) ->  | FM14: =IF(#REF!="","",(#REF!/#REF!)) ->  | FN14: =IF(#REF!="","",(#REF!/#REF!)) ->  | FO14: =IF(#REF!="","",(#REF!/#REF!)) ->  | FP14: =IF(#REF!="","",(#REF!/#REF!)) ->  | FQ14: =IF(#REF!="","",(#REF!/#REF!)) ->  | FR14: =IF(#REF!="","",(#REF!/#REF!)) ->  | FS14: =IF(#REF!="","",(#REF!/#REF!)) ->  | FT14: =IF(#REF!="","",(#REF!/#REF!)) ->  | FU14: =IF(#REF!="","",(#REF!/#REF!)) ->  | FV14: =IF(#REF!="","",(#REF!/#REF!)) ->  | FW14: =IF(#REF!="","",(#REF!/#REF!)) ->  | FX14: =IF(#REF!="","",(#REF!/#REF!)) ->  | FY14: =IF(#REF!="","",(#REF!/#REF!)) ->  | FZ14: =IF(#REF!="","",(#REF!/#REF!)) ->  | GA14: =IF(#REF!="","",(#REF!/#REF!)) ->  | GB14: =IF(#REF!="","",(#REF!/#REF!)) ->  | GC14: =IF(#REF!="","",(#REF!/#REF!)) ->  | GD14: =IF(#REF!="","",(#REF!/#REF!)) ->  | GE14: =IF(#REF!="","",(#REF!/#REF!)) ->  | GF14: =IF(#REF!="","",(#REF!/#REF!)) ->  | GG14: =IF(#REF!="","",(#REF!/#REF!)) ->  | GH14: =IF(#REF!="","",(#REF!/#REF!)) ->  | GI14: =IF(#REF!="","",(#REF!/#REF!)) ->  | GJ14: =IF(#REF!="","",(#REF!/#REF!)) ->  | GK14: =IF(#REF!="","",(#REF!/#REF!)) ->  | GL14: =IF(#REF!="","",(#REF!/#REF!)) ->  | GM14: =IF(#REF!="","",(#REF!/#REF!)) ->  | GN14: =IF(#REF!="","",(#REF!/#REF!)) ->  | GO14: =IF(#REF!="","",(#REF!/#REF!)) ->  | GP14: =IF(#REF!="","",(#REF!/#REF!)) ->  | GQ14: =IF(#REF!="","",(#REF!/#REF!)) ->  | GR14: =IF(#REF!="","",(#REF!/#REF!)) ->  | GS14: =IF(#REF!="","",(#REF!/#REF!)) ->  | GT14: =IF(#REF!="","",(#REF!/#REF!)) ->  | GU14: =IF(#REF!="","",(#REF!/#REF!)) ->  | GV14: =IF(#REF!="","",(#REF!/#REF!)) ->  | GW14: =IF(#REF!="","",(#REF!/#REF!)) ->  | GX14: =IF(#REF!="","",(#REF!/#REF!)) ->  | GY14: =IF(#REF!="","",(#REF!/#REF!)) ->  | GZ14: =IF(#REF!="","",(#REF!/#REF!)) ->  | HA14: =IF(#REF!="","",(#REF!/#REF!)) ->  | HB14: =IF(#REF!="","",(#REF!/#REF!)) ->  | HC14: =IF(#REF!="","",(#REF!/#REF!)) ->  | HD14: =IF(#REF!="","",(#REF!/#REF!)) ->  | HE14: =IF(#REF!="","",(#REF!/#REF!)) ->  | HF14: =IF(#REF!="","",(#REF!/#REF!)) ->  | HG14: =IF(#REF!="","",(#REF!/#REF!)) ->  | HH14: =IF(#REF!="","",(#REF!/#REF!)) ->  | HI14: =IF(#REF!="","",(#REF!/#REF!)) ->  | HJ14: =IF(#REF!="","",(#REF!/#REF!)) ->  | HK14: =IF(#REF!="","",(#REF!/#REF!)) ->  | HL14: =IF(#REF!="","",(#REF!/#REF!)) ->  | HM14: =IF(#REF!="","",(#REF!/#REF!)) ->  | HN14: =IF(#REF!="","",(#REF!/#REF!)) ->  | HO14: =IF(#REF!="","",(#REF!/#REF!)) ->  | HP14: =IF(#REF!="","",(#REF!/#REF!)) -> 
B15: Devaluación forward | C15: 0.06 | D15: 0.06 | E15: 0.06 | F15: 0.06 | G15: 0.06 | H15: 0.06 | I15: 0.06 | CN15: TRM | CP15: =IF(CP13="","",(CP13/CO13)) -> 0.984545105 | CQ15: 1.002769542 | CR15: 1.027111644 | CS15: 1.040135298 | CT15: 1.025991405 | CU15: 1.015744866 | CV15: 1.016301621 | CW15: 1.001834065 | CX15: 0.9756357752 | CY15: 1.006708797 | CZ15: 1.025929199 | DA15: 1.005212679 | DB15: 1.007430382 | DC15: 1.023530975 | DD15: 1.015649818 | DE15: 0.9907317842 | DF15: 0.9887611936 | DG15: 0.9997476999 | DH15: 1.001287925 | DI15: 1.013453675 | DJ15: 0.9904939134 | DK15: 0.9993809577 | DL15: 0.9924586003 | DM15: 0.9884950113 | DN15: 1.019869129 | DO15: 0.9789637288 | DP15: 1.006244389 | DQ15: 1.020133166 | DR15: 1.033457409 | DS15: 1.094313037 | DT15: 1.029900269 | DU15: 1.04606166 | DV15: =IF(DV13="","",(DV13/DU13)) -> 0.9807820147 | DW15: 1.003778306 | DX15: 1.028941782 | DY15: 1.021526883 | DZ15: 1.010200037 | EA15: 1.000656223 | EB15: 0.9761920054 | EC15: 0.9880567348 | ED15: 0.9873796582 | EE15: 1.022390073 | EF15: 0.9835231218 | EG15: 1.019926296 | EH15: 0.9981933903 | EI15: 0.983315824 | EJ15: 0.9796054371 | EK15: 0.9871356017 | EL15: 0.9780745095 | EM15: 0.9984416591 | EN15: 0.9883614123 | EO15: 1.029440988 | EP15: 0.9907006444 | EQ15: 0.9677209047 | ER15: 0.9766463536 | ES15: 1.017143327 | ET15: 0.9923010824 | EU15: 0.9626862484 | EV15: 0.9639586947 | EW15: 0.9907982006 | EX15: 0.9814212589 | EY15: 1.022682968 | EZ15: 0.988150542 | FA15: 0.9933867616 | FB15: =IF(FB13="","",(FB13/FA13)) -> 0.9995799022 | FC15: 0.9899991852 | FD15: 0.9981849607 | FE15: 0.993624962 | FF15: 0.9999825298 | FG15: 0.993217067 | FH15: 1.004476614 | FI15: 0.9918703102 | FJ15: 0.9919096065 | FK15: 1.01898261 | FL15: 1.037140062 | FM15: 1.04521206 | FN15: 1.060711164 | FO15: 0.921340463 | FP15: 0.9878936521 | FQ15: 0.9990319741 | FR15: 0.9670343439 | FS15: 0.9935388576 | FT15: 0.9732092401 | FU15: 1.0093488 | FV15: 0.9842458358 | FW15: 0.9847939859 | FX15: 0.9636442496 | FY15: 0.9147048094 | FZ15: 1.01552335 | GA15: 1.005707407 | GB15: 1.102124962 | GC15: 0.9309856109 | GD15: 0.9882611124 | GE15: 1.03049854 | GF15: 0.9778394696 | GG15: 0.9626953086 | GH15: =IF(GH13="","",(GH13/GG13)) -> 0.9505001031 | GI15: 0.9880721852 | GJ15: 0.977278217 | GK15: 0.9796653204 | GL15: 1.10264276 | GM15: 0.931992387 | GN15: 1.07809222 | GO15: 1.125463203
B17: Variables Internas FINDETER 1 | C17: =+C11 -> 2009 | D17: =+D11 -> 2010 | E17: 2011 | F17: 2012 | G17: 2013 | H17: 2014 | I17: 2015 | CN17: UVR (fin mes) | CP17: =IF(#REF!="","",(#REF!/#REF!)) ->  | CQ17: =IF(#REF!="","",(#REF!/#REF!)) ->  | CR17: =IF(#REF!="","",(#REF!/#REF!)) ->  | CS17: =IF(#REF!="","",(#REF!/#REF!)) ->  | CT17: =IF(#REF!="","",(#REF!/#REF!)) ->  | CU17: =IF(#REF!="","",(#REF!/#REF!)) ->  | CV17: =IF(#REF!="","",(#REF!/#REF!)) ->  | CW17: =IF(#REF!="","",(#REF!/#REF!)) ->  | CX17: =IF(#REF!="","",(#REF!/#REF!)) ->  | CY17: =IF(#REF!="","",(#REF!/#REF!)) ->  | CZ17: =IF(#REF!="","",(#REF!/#REF!)) ->  | DA17: =IF(#REF!="","",(#REF!/#REF!)) ->  | DB17: =IF(#REF!="","",(#REF!/#REF!)) ->  | DC17: =IF(#REF!="","",(#REF!/#REF!)) ->  | DD17: =IF(#REF!="","",(#REF!/#REF!)) ->  | DE17: =IF(#REF!="","",(#REF!/#REF!)) ->  | DF17: =IF(#REF!="","",(#REF!/#REF!)) ->  | DG17: =IF(#REF!="","",(#REF!/#REF!)) ->  | DH17: =IF(#REF!="","",(#REF!/#REF!)) ->  | DI17: =IF(#REF!="","",(#REF!/#REF!)) ->  | DJ17: =IF(#REF!="","",(#REF!/#REF!)) ->  | DK17: =IF(#REF!="","",(#REF!/#REF!)) ->  | DL17: =IF(#REF!="","",(#REF!/#REF!)) ->  | DM17: =IF(#REF!="","",(#REF!/#REF!)) ->  | DN17: =IF(#REF!="","",(#REF!/#REF!)) ->  | DO17: =IF(#REF!="","",(#REF!/#REF!)) ->  | DP17: =IF(#REF!="","",(#REF!/#REF!)) ->  | DQ17: =IF(#REF!="","",(#REF!/#REF!)) ->  | DR17: =IF(#REF!="","",(#REF!/#REF!)) ->  | DS17: =IF(#REF!="","",(#REF!/#REF!)) ->  | DT17: =IF(#REF!="","",(#REF!/#REF!)) ->  | DU17: =IF(#REF!="","",(#REF!/#REF!)) ->  | DV17: =IF(#REF!="","",(#REF!/#REF!)) ->  | DW17: =IF(#REF!="","",(#REF!/#REF!)) ->  | DX17: =IF(#REF!="","",(#REF!/#REF!)) ->  | DY17: =IF(#REF!="","",(#REF!/#REF!)) ->  | DZ17: =IF(#REF!="","",(#REF!/#REF!)) ->  | EA17: =IF(#REF!="","",(#REF!/#REF!)) ->  | EB17: =IF(#REF!="","",(#REF!/#REF!)) ->  | EC17: =IF(#REF!="","",(#REF!/#REF!)) ->  | ED17: =IF(#REF!="","",(#REF!/#REF!)) ->  | EE17: =IF(#REF!="","",(#REF!/#REF!)) ->  | EF17: =IF(#REF!="","",(#REF!/#REF!)) ->  | EG17: =IF(#REF!="","",(#REF!/#REF!)) ->  | EH17: =IF(#REF!="","",(#REF!/#REF!)) ->  | EI17: =IF(#REF!="","",(#REF!/#REF!)) ->  | EJ17: =IF(#REF!="","",(#REF!/#REF!)) ->  | EK17: =IF(#REF!="","",(#REF!/#REF!)) ->  | EL17: =IF(#REF!="","",(#REF!/#REF!)) ->  | EM17: =IF(#REF!="","",(#REF!/#REF!)) ->  | EN17: =IF(#REF!="","",(#REF!/#REF!)) ->  | EO17: =IF(#REF!="","",(#REF!/#REF!)) ->  | EP17: =IF(#REF!="","",(#REF!/#REF!)) ->  | EQ17: =IF(#REF!="","",(#REF!/#REF!)) ->  | ER17: =IF(#REF!="","",(#REF!/#REF!)) ->  | ES17: =IF(#REF!="","",(#REF!/#REF!)) ->  | ET17: =IF(#REF!="","",(#REF!/#REF!)) ->  | EU17: =IF(#REF!="","",(#REF!/#REF!)) ->  | EV17: =IF(#REF!="","",(#REF!/#REF!)) ->  | EW17: =IF(#REF!="","",(#REF!/#REF!)) ->  | EX17: =IF(#REF!="","",(#REF!/#REF!)) ->  | EY17: =IF(#REF!="","",(#REF!/#REF!)) ->  | EZ17: =IF(#REF!="","",(#REF!/#REF!)) ->  | FA17: =IF(#REF!="","",(#REF!/#REF!)) ->  | FB17: =IF(#REF!="","",(#REF!/#REF!)) ->  | FC17: =IF(#REF!="","",(#REF!/#REF!)) ->  | FD17: =IF(#REF!="","",(#REF!/#REF!)) ->  | FE17: =IF(#REF!="","",(#REF!/#REF!)) ->  | FF17: =IF(#REF!="","",(#REF!/#REF!)) ->  | FG17: =IF(#REF!="","",(#REF!/#REF!)) ->  | FH17: =IF(#REF!="","",(#REF!/#REF!)) ->  | FI17: =IF(#REF!="","",(#REF!/#REF!)) ->  | FJ17: =IF(#REF!="","",(#REF!/#REF!)) ->  | FK17: =IF(#REF!="","",(#REF!/#REF!)) ->  | FL17: =IF(#REF!="","",(#REF!/#REF!)) ->  | FM17: =IF(#REF!="","",(#REF!/#REF!)) ->  | FN17: =IF(#REF!="","",(#REF!/#REF!)) ->  | FO17: =IF(#REF!="","",(#REF!/#REF!)) ->  | FP17: =IF(#REF!="","",(#REF!/#REF!)) ->  | FQ17: =IF(#REF!="","",(#REF!/#REF!)) ->  | FR17: =IF(#REF!="","",(#REF!/#REF!)) ->  | FS17: =IF(#REF!="","",(#REF!/#REF!)) ->  | FT17: =IF(#REF!="","",(#REF!/#REF!)) ->  | FU17: =IF(#REF!="","",(#REF!/#REF!)) ->  | FV17: =IF(#REF!="","",(#REF!/#REF!)) ->  | FW17: =IF(#REF!="","",(#REF!/#REF!)) ->  | FX17: =IF(#REF!="","",(#REF!/#REF!)) ->  | FY17: =IF(#REF!="","",(#REF!/#REF!)) ->  | FZ17: =IF(#REF!="","",(#REF!/#REF!)) ->  | GA17: =IF(#REF!="","",(#REF!/#REF!)) ->  | GB17: =IF(#REF!="","",(#REF!/#REF!)) ->  | GC17: =IF(#REF!="","",(#REF!/#REF!)) ->  | GD17: =IF(#REF!="","",(#REF!/#REF!)) ->  | GE17: =IF(#REF!="","",(#REF!/#REF!)) ->  | GF17: =IF(#REF!="","",(#REF!/#REF!)) ->  | GG17: =IF(#REF!="","",(#REF!/#REF!)) ->  | GH17: =IF(#REF!="","",(#REF!/#REF!)) ->  | GI17: =IF(#REF!="","",(#REF!/#REF!)) ->  | GJ17: =IF(#REF!="","",(#REF!/#REF!)) ->  | GK17: =IF(#REF!="","",(#REF!/#REF!)) ->  | GL17: =IF(#REF!="","",(#REF!/#REF!)) ->  | GM17: =IF(#REF!="","",(#REF!/#REF!)) ->  | GN17: =IF(#REF!="","",(#REF!/#REF!)) ->  | GO17: =IF(#REF!="","",(#REF!/#REF!)) ->  | GP17: =IF(#REF!="","",(#REF!/#REF!)) ->  | GQ17: =IF(#REF!="","",(#REF!/#REF!)) ->  | GR17: =IF(#REF!="","",(#REF!/#REF!)) -> 
B18: Redescuentos cartera nueva 1 | C18: 600000000 | D18: 0 | E18: 0 | CJ18: Ponderación %
B19: Redescuentos cartera nueva 2 | C19: 600000000 | D19: 1274999999 | E19: 1245874998 | F19: 1519939372 | G19: 1597336643 | H19: 1678216791 | I19: 1762736545
B20: Redescuentos cartera nueva 3 (tasa compensada 1) | C20: 300000000 | D20: 300000000 | E20: 400000000 | F20: 200000000 | G20: =+F20 -> 200000000 | H20: =+G20 -> 200000000 | I20: =+H20 -> 200000000
B21: Redescuentos cartera nueva 4 (tasa compensada 2) | C21: 0 | D21: 0 | E21: 0 | F21: 0 | G21: 0 | H21: 0 | I21: 0 | CJ21: DTF | CK21: 0.5 | CL21: =100%-CK21 -> 0.5 | CN21: IPC % | CO21: =FORECAST(#REF!,$CO$12:$GR$12,$CO$11:$GR$11) ->  | CP21: =FORECAST(#REF!,$CO$12:$GR$12,$CO$11:$GR$11) ->  | CQ21: =FORECAST(#REF!,$CO$12:$GR$12,$CO$11:$GR$11) ->  | CR21: =FORECAST(#REF!,$CO$12:$GR$12,$CO$11:$GR$11) ->  | CS21: =FORECAST(#REF!,$CO$12:$GR$12,$CO$11:$GR$11) ->  | CT21: =FORECAST(#REF!,$CO$12:$GR$12,$CO$11:$GR$11) ->  | CU21: =FORECAST(#REF!,$CO$12:$GR$12,$CO$11:$GR$11) ->  | CV21: =FORECAST(#REF!,$CO$12:$GR$12,$CO$11:$GR$11) ->  | CW21: =FORECAST(#REF!,$CO$12:$GR$12,$CO$11:$GR$11) ->  | CX21: =FORECAST(#REF!,$CO$12:$GR$12,$CO$11:$GR$11) ->  | CY21: =FORECAST(#REF!,$CO$12:$GR$12,$CO$11:$GR$11) ->  | CZ21: =FORECAST(#REF!,$CO$12:$GR$12,$CO$11:$GR$11) ->  | DA21: =FORECAST(#REF!,$CO$12:$GR$12,$CO$11:$GR$11) ->  | DB21: =FORECAST(#REF!,$CO$12:$GR$12,$CO$11:$GR$11) ->  | DC21: =FORECAST(#REF!,$CO$12:$GR$12,$CO$11:$GR$11) ->  | DD21: =FORECAST(#REF!,$CO$12:$GR$12,$CO$11:$GR$11) ->  | DE21: =FORECAST(#REF!,$CO$12:$GR$12,$CO$11:$GR$11) ->  | DF21: =FORECAST(#REF!,$CO$12:$GR$12,$CO$11:$GR$11) ->  | DG21: =FORECAST(#REF!,$CO$12:$GR$12,$CO$11:$GR$11) ->  | DH21: =FORECAST(#REF!,$CO$12:$GR$12,$CO$11:$GR$11) ->  | DI21: =FORECAST(#REF!,$CO$12:$GR$12,$CO$11:$GR$11) ->  | DJ21: =FORECAST(#REF!,$CO$12:$GR$12,$CO$11:$GR$11) ->  | DK21: =FORECAST(#REF!,$CO$12:$GR$12,$CO$11:$GR$11) ->  | DL21: =FORECAST(#REF!,$CO$12:$GR$12,$CO$11:$GR$11) ->  | DM21: =FORECAST(#REF!,$CO$12:$GR$12,$CO$11:$GR$11) ->  | DN21: =FORECAST(#REF!,$CO$12:$GR$12,$CO$11:$GR$11) ->  | DO21: =FORECAST(#REF!,$CO$12:$GR$12,$CO$11:$GR$11) ->  | DP21: =FORECAST(#REF!,$CO$12:$GR$12,$CO$11:$GR$11) ->  | DQ21: =FORECAST(#REF!,$CO$12:$GR$12,$CO$11:$GR$11) ->  | DR21: =FORECAST(#REF!,$CO$12:$GR$12,$CO$11:$GR$11) ->  | DS21: =FORECAST(#REF!,$CO$12:$GR$12,$CO$11:$GR$11) ->  | DT21: =FORECAST(#REF!,$CO$12:$GR$12,$CO$11:$GR$11) ->  | DU21: =FORECAST(#REF!,$CO$12:$GR$12,$CO$11:$GR$11) ->  | DV21: =FORECAST(#REF!,$CO$12:$GR$12,$CO$11:$GR$11) ->  | DW21: =FORECAST(#REF!,$CO$12:$GR$12,$CO$11:$GR$11) ->  | DX21: =FORECAST(#REF!,$CO$12:$GR$12,$CO$11:$GR$11) ->  | DY21: =FORECAST(#REF!,$CO$12:$GR$12,$CO$11:$GR$11) ->  | DZ21: =FORECAST(#REF!,$CO$12:$GR$12,$CO$11:$GR$11) ->  | EA21: =FORECAST(#REF!,$CO$12:$GR$12,$CO$11:$GR$11) ->  | EB21: =FORECAST(#REF!,$CO$12:$GR$12,$CO$11:$GR$11) ->  | EC21: =FORECAST(#REF!,$CO$12:$GR$12,$CO$11:$GR$11) ->  | ED21: =FORECAST(#REF!,$CO$12:$GR$12,$CO$11:$GR$11) ->  | EE21: =FORECAST(#REF!,$CO$12:$GR$12,$CO$11:$GR$11) ->  | EF21: =FORECAST(#REF!,$CO$12:$GR$12,$CO$11:$GR$11) ->  | EG21: =FORECAST(#REF!,$CO$12:$GR$12,$CO$11:$GR$11) ->  | EH21: =FORECAST(#REF!,$CO$12:$GR$12,$CO$11:$GR$11) ->  | EI21: =FORECAST(#REF!,$CO$12:$GR$12,$CO$11:$GR$11) ->  | EJ21: =FORECAST(#REF!,$CO$12:$GR$12,$CO$11:$GR$11) ->  | EK21: =FORECAST(#REF!,$CO$12:$GR$12,$CO$11:$GR$11) ->  | EL21: =FORECAST(#REF!,$CO$12:$GR$12,$CO$11:$GR$11) ->  | EM21: =FORECAST(#REF!,$CO$12:$GR$12,$CO$11:$GR$11) ->  | EN21: =FORECAST(#REF!,$CO$12:$GR$12,$CO$11:$GR$11) ->  | EO21: =FORECAST(#REF!,$CO$12:$GR$12,$CO$11:$GR$11) ->  | EP21: =FORECAST(#REF!,$CO$12:$GR$12,$CO$11:$GR$11) ->  | EQ21: =FORECAST(#REF!,$CO$12:$GR$12,$CO$11:$GR$11) ->  | ER21: =FORECAST(#REF!,$CO$12:$GR$12,$CO$11:$GR$11) ->  | ES21: =FORECAST(#REF!,$CO$12:$GR$12,$CO$11:$GR$11) ->  | ET21: =FORECAST(#REF!,$CO$12:$GR$12,$CO$11:$GR$11) ->  | EU21: =FORECAST(#REF!,$CO$12:$GR$12,$CO$11:$GR$11) ->  | EV21: =FORECAST(#REF!,$CO$12:$GR$12,$CO$11:$GR$11) ->  | EW21: =FORECAST(#REF!,$CO$12:$GR$12,$CO$11:$GR$11) ->  | EX21: =FORECAST(#REF!,$CO$12:$GR$12,$CO$11:$GR$11) ->  | EY21: =FORECAST(#REF!,$CO$12:$GR$12,$CO$11:$GR$11) ->  | EZ21: =FORECAST(#REF!,$CO$12:$GR$12,$CO$11:$GR$11) ->  | FA21: =FORECAST(#REF!,$CO$12:$GR$12,$CO$11:$GR$11) ->  | FB21: =FORECAST(#REF!,$CO$12:$GR$12,$CO$11:$GR$11) ->  | FC21: =FORECAST(#REF!,$CO$12:$GR$12,$CO$11:$GR$11) ->  | FD21: =FORECAST(#REF!,$CO$12:$GR$12,$CO$11:$GR$11) ->  | FE21: =FORECAST(#REF!,$CO$12:$GR$12,$CO$11:$GR$11) ->  | FF21: =FORECAST(#REF!,$CO$12:$GR$12,$CO$11:$GR$11) ->  | FG21: =FORECAST(#REF!,$CO$12:$GR$12,$CO$11:$GR$11) ->  | FH21: =FORECAST(#REF!,$CO$12:$GR$12,$CO$11:$GR$11) ->  | FI21: =FORECAST(#REF!,$CO$12:$GR$12,$CO$11:$GR$11) ->  | FJ21: =FORECAST(#REF!,$CO$12:$GR$12,$CO$11:$GR$11) ->  | FK21: =FORECAST(#REF!,$CO$12:$GR$12,$CO$11:$GR$11) ->  | FL21: =FORECAST(#REF!,$CO$12:$GR$12,$CO$11:$GR$11) ->  | FM21: =FORECAST(#REF!,$CO$12:$GR$12,$CO$11:$GR$11) ->  | FN21: =FORECAST(#REF!,$CO$12:$GR$12,$CO$11:$GR$11) ->  | FO21: =FORECAST(#REF!,$CO$12:$GR$12,$CO$11:$GR$11) ->  | FP21: =FORECAST(#REF!,$CO$12:$GR$12,$CO$11:$GR$11) ->  | FQ21: =FORECAST(#REF!,$CO$12:$GR$12,$CO$11:$GR$11) ->  | FR21: =FORECAST(#REF!,$CO$12:$GR$12,$CO$11:$GR$11) ->  | FS21: =FORECAST(#REF!,$CO$12:$GR$12,$CO$11:$GR$11) ->  | FT21: =FORECAST(#REF!,$CO$12:$GR$12,$CO$11:$GR$11) ->  | FU21: =FORECAST(#REF!,$CO$12:$GR$12,$CO$11:$GR$11) ->  | FV21: =FORECAST(#REF!,$CO$12:$GR$12,$CO$11:$GR$11) ->  | FW21: =FORECAST(#REF!,$CO$12:$GR$12,$CO$11:$GR$11) ->  | FX21: =FORECAST(#REF!,$CO$12:$GR$12,$CO$11:$GR$11) ->  | FY21: =FORECAST(#REF!,$CO$12:$GR$12,$CO$11:$GR$11) ->  | FZ21: =FORECAST(#REF!,$CO$12:$GR$12,$CO$11:$GR$11) ->  | GA21: =FORECAST(#REF!,$CO$12:$GR$12,$CO$11:$GR$11) ->  | GB21: =FORECAST(#REF!,$CO$12:$GR$12,$CO$11:$GR$11) ->  | GC21: =FORECAST(#REF!,$CO$12:$GR$12,$CO$11:$GR$11) ->  | GD21: =FORECAST(#REF!,$CO$12:$GR$12,$CO$11:$GR$11) ->  | GE21: =FORECAST(#REF!,$CO$12:$GR$12,$CO$11:$GR$11) ->  | GF21: =FORECAST(#REF!,$CO$12:$GR$12,$CO$11:$GR$11) ->  | GG21: =FORECAST(#REF!,$CO$12:$GR$12,$CO$11:$GR$11) ->  | GH21: =FORECAST(#REF!,$CO$12:$GR$12,$CO$11:$GR$11) ->  | GI21: =FORECAST(#REF!,$CO$12:$GR$12,$CO$11:$GR$11) ->  | GJ21: =FORECAST(#REF!,$CO$12:$GR$12,$CO$11:$GR$11) ->  | GK21: =FORECAST(#REF!,$CO$12:$GR$12,$CO$11:$GR$11) ->  | GL21: =FORECAST(#REF!,$CO$12:$GR$12,$CO$11:$GR$11) ->  | GM21: =FORECAST(#REF!,$CO$12:$GR$12,$CO$11:$GR$11) ->  | GN21: =FORECAST(#REF!,$CO$12:$GR$12,$CO$11:$GR$11) ->  | GO21: =FORECAST(#REF!,$CO$12:$GR$12,$CO$11:$GR$11) ->  | GP21: =FORECAST(#REF!,$CO$12:$GR$12,$CO$11:$GR$11) ->  | GQ21: =FORECAST(#REF!,$CO$12:$GR$12,$CO$11:$GR$11) ->  | GR21: =FORECAST(#REF!,$CO$12:$GR$12,$CO$11:$GR$11) ->  | GS21: =FORECAST(#REF!,$CO$12:$GR$12,$CO$11:$GR$11) ->  | GT21: =FORECAST(#REF!,$CO$12:$GR$12,$CO$11:$GR$11) ->  | GU21: =FORECAST(#REF!,$CO$12:$GR$12,$CO$11:$GR$11) ->  | GV21: =FORECAST(#REF!,$CO$12:$GR$12,$CO$11:$GR$11) ->  | GW21: =FORECAST(#REF!,$CO$12:$GR$12,$CO$11:$GR$11) ->  | GX21: =FORECAST(#REF!,$CO$12:$GR$12,$CO$11:$GR$11) ->  | GY21: =FORECAST(#REF!,$CO$12:$GR$12,$CO$11:$GR$11) ->  | GZ21: =FORECAST(#REF!,$CO$12:$GR$12,$CO$11:$GR$11) ->  | HA21: =FORECAST(#REF!,$CO$12:$GR$12,$CO$11:$GR$11) ->  | HB21: =FORECAST(#REF!,$CO$12:$GR$12,$CO$11:$GR$11) ->  | HC21: =FORECAST(#REF!,$CO$12:$GR$12,$CO$11:$GR$11) ->  | HD21: =FORECAST(#REF!,$CO$12:$GR$12,$CO$11:$GR$11) ->  | HE21: =FORECAST(#REF!,$CO$12:$GR$12,$CO$11:$GR$11) ->  | HF21: =FORECAST(#REF!,$CO$12:$GR$12,$CO$11:$GR$11) ->  | HG21: =FORECAST(#REF!,$CO$12:$GR$12,$CO$11:$GR$11) ->  | HH21: =FORECAST(#REF!,$CO$12:$GR$12,$CO$11:$GR$11) ->  | HI21: =FORECAST(#REF!,$CO$12:$GR$12,$CO$11:$GR$11) ->  | HJ21: =FORECAST(#REF!,$CO$12:$GR$12,$CO$11:$GR$11) ->  | HK21: =FORECAST(#REF!,$CO$12:$GR$12,$CO$11:$GR$11) ->  | HL21: =FORECAST(#REF!,$CO$12:$GR$12,$CO$11:$GR$11) ->  | HM21: =FORECAST(#REF!,$CO$12:$GR$12,$CO$11:$GR$11) ->  | HN21: =FORECAST(#REF!,$CO$12:$GR$12,$CO$11:$GR$11) ->  | HO21: =FORECAST(#REF!,$CO$12:$GR$12,$CO$11:$GR$11) ->  | HP21: =FORECAST(#REF!,$CO$12:$GR$12,$CO$11:$GR$11) -> 
B22: Redescuentos cartera nueva 5 (tasa compensada 3)
B23: Total Redescuentos | C23: =SUM(C18:C22) -> 1500000000 | D23: =SUM(D18:D22) -> 1574999999 | E23: 1645874998 | F23: 1719939372 | G23: 1797336643 | H23: 1878216791 | I23: 1962736545
B25: Variables Internas FINDETER 2 | C25: =+C17 -> 2009 | D25: =+D17 -> 2010 | E25: 2011 | F25: 2012 | G25: 2013 | H25: 2014 | I25: 2015
B26: Spread de cartera antigua (Spread S/DTF T.A). | C26: 0.0277 | D26: 0.0277 | E26: 0.0277 | F26: 0.0277 | G26: 0.0277 | H26: 0.0277 | I26: 0.0277
B27: Spread de cartera nueva 1 (Spread S/DTF T.A). | C27: 0.0344 | D27: =+C27 -> 0.0344 | E27: 0.0344 | F27: 0.0344 | G27: 0.0344 | H27: 0.0344 | I27: 0.0344
B28: Spread de cartera nueva 2 (Spread S/DTF T.A). | C28: 0.0314 | D28: 0.0314 | E28: 0.0314 | F28: 0.0314 | G28: 0.0314 | H28: 0.0314 | I28: 0.0314
B29: Spread de cartera nueva 3 (Spread S/DTF T.A). | C29: 0.025 | D29: 0.025 | E29: 0.025 | F29: 0.025 | G29: 0.025 | H29: 0.025 | I29: 0.025
B30: Spread de cartera nueva 4 (Spread S/DTF T.A). | C30: 0 | D30: 0 | E30: 0 | F30: 0 | G30: 0 | H30: 0 | I30: 0
B31: Spread de cartera nueva 5 (Spread S/DTF T.A). | C31: 0 | D31: 0 | E31: 0 | F31: 0 | G31: 0 | H31: 0 | I31: 0
B34: Consolidado proyecciones financieras | CJ34: TRM | CK34: 0.7 | CL34: =100%-CK34 -> 0.3 | CN34: DTF E.A%(fin mes) | CO34: =FORECAST(#REF!,#REF!,$CO$11:$GR$11) ->  | CP34: =FORECAST(#REF!,#REF!,$CO$11:$GR$11) ->  | CQ34: =FORECAST(#REF!,#REF!,$CO$11:$GR$11) ->  | CR34: =FORECAST(#REF!,#REF!,$CO$11:$GR$11) ->  | CS34: =FORECAST(#REF!,#REF!,$CO$11:$GR$11) ->  | CT34: =FORECAST(#REF!,#REF!,$CO$11:$GR$11) ->  | CU34: =FORECAST(#REF!,#REF!,$CO$11:$GR$11) ->  | CV34: =FORECAST(#REF!,#REF!,$CO$11:$GR$11) ->  | CW34: =FORECAST(#REF!,#REF!,$CO$11:$GR$11) ->  | CX34: =FORECAST(#REF!,#REF!,$CO$11:$GR$11) ->  | CY34: =FORECAST(#REF!,#REF!,$CO$11:$GR$11) ->  | CZ34: =FORECAST(#REF!,#REF!,$CO$11:$GR$11) ->  | DA34: =FORECAST(#REF!,#REF!,$CO$11:$GR$11) ->  | DB34: =FORECAST(#REF!,#REF!,$CO$11:$GR$11) ->  | DC34: =FORECAST(#REF!,#REF!,$CO$11:$GR$11) ->  | DD34: =FORECAST(#REF!,#REF!,$CO$11:$GR$11) ->  | DE34: =FORECAST(#REF!,#REF!,$CO$11:$GR$11) ->  | DF34: =FORECAST(#REF!,#REF!,$CO$11:$GR$11) ->  | DG34: =FORECAST(#REF!,#REF!,$CO$11:$GR$11) ->  | DH34: =FORECAST(#REF!,#REF!,$CO$11:$GR$11) ->  | DI34: =FORECAST(#REF!,#REF!,$CO$11:$GR$11) ->  | DJ34: =FORECAST(#REF!,#REF!,$CO$11:$GR$11) ->  | DK34: =FORECAST(#REF!,#REF!,$CO$11:$GR$11) ->  | DL34: =FORECAST(#REF!,#REF!,$CO$11:$GR$11) ->  | DM34: =FORECAST(#REF!,#REF!,$CO$11:$GR$11) ->  | DN34: =FORECAST(#REF!,#REF!,$CO$11:$GR$11) ->  | DO34: =FORECAST(#REF!,#REF!,$CO$11:$GR$11) ->  | DP34: =FORECAST(#REF!,#REF!,$CO$11:$GR$11) ->  | DQ34: =FORECAST(#REF!,#REF!,$CO$11:$GR$11) ->  | DR34: =FORECAST(#REF!,#REF!,$CO$11:$GR$11) ->  | DS34: =FORECAST(#REF!,#REF!,$CO$11:$GR$11) ->  | DT34: =FORECAST(#REF!,#REF!,$CO$11:$GR$11) ->  | DU34: =FORECAST(#REF!,#REF!,$CO$11:$GR$11) ->  | DV34: =FORECAST(#REF!,#REF!,$CO$11:$GR$11) ->  | DW34: =FORECAST(#REF!,#REF!,$CO$11:$GR$11) ->  | DX34: =FORECAST(#REF!,#REF!,$CO$11:$GR$11) ->  | DY34: =FORECAST(#REF!,#REF!,$CO$11:$GR$11) ->  | DZ34: =FORECAST(#REF!,#REF!,$CO$11:$GR$11) ->  | EA34: =FORECAST(#REF!,#REF!,$CO$11:$GR$11) ->  | EB34: =FORECAST(#REF!,#REF!,$CO$11:$GR$11) ->  | EC34: =FORECAST(#REF!,#REF!,$CO$11:$GR$11) ->  | ED34: =FORECAST(#REF!,#REF!,$CO$11:$GR$11) ->  | EE34: =FORECAST(#REF!,#REF!,$CO$11:$GR$11) ->  | EF34: =FORECAST(#REF!,#REF!,$CO$11:$GR$11) ->  | EG34: =FORECAST(#REF!,#REF!,$CO$11:$GR$11) ->  | EH34: =FORECAST(#REF!,#REF!,$CO$11:$GR$11) ->  | EI34: =FORECAST(#REF!,#REF!,$CO$11:$GR$11) ->  | EJ34: =FORECAST(#REF!,#REF!,$CO$11:$GR$11) ->  | EK34: =FORECAST(#REF!,#REF!,$CO$11:$GR$11) ->  | EL34: =FORECAST(#REF!,#REF!,$CO$11:$GR$11) ->  | EM34: =FORECAST(#REF!,#REF!,$CO$11:$GR$11) ->  | EN34: =FORECAST(#REF!,#REF!,$CO$11:$GR$11) ->  | EO34: =FORECAST(#REF!,#REF!,$CO$11:$GR$11) ->  | EP34: =FORECAST(#REF!,#REF!,$CO$11:$GR$11) ->  | EQ34: =FORECAST(#REF!,#REF!,$CO$11:$GR$11) ->  | ER34: =FORECAST(#REF!,#REF!,$CO$11:$GR$11) ->  | ES34: =FORECAST(#REF!,#REF!,$CO$11:$GR$11) ->  | ET34: =FORECAST(#REF!,#REF!,$CO$11:$GR$11) ->  | EU34: =FORECAST(#REF!,#REF!,$CO$11:$GR$11) ->  | EV34: =FORECAST(#REF!,#REF!,$CO$11:$GR$11) ->  | EW34: =FORECAST(#REF!,#REF!,$CO$11:$GR$11) ->  | EX34: =FORECAST(#REF!,#REF!,$CO$11:$GR$11) ->  | EY34: =FORECAST(#REF!,#REF!,$CO$11:$GR$11) ->  | EZ34: =FORECAST(#REF!,#REF!,$CO$11:$GR$11) ->  | FA34: =FORECAST(#REF!,#REF!,$CO$11:$GR$11) ->  | FB34: =FORECAST(#REF!,#REF!,$CO$11:$GR$11) ->  | FC34: =FORECAST(#REF!,#REF!,$CO$11:$GR$11) ->  | FD34: =FORECAST(#REF!,#REF!,$CO$11:$GR$11) ->  | FE34: =FORECAST(#REF!,#REF!,$CO$11:$GR$11) ->  | FF34: =FORECAST(#REF!,#REF!,$CO$11:$GR$11) ->  | FG34: =FORECAST(#REF!,#REF!,$CO$11:$GR$11) ->  | FH34: =FORECAST(#REF!,#REF!,$CO$11:$GR$11) ->  | FI34: =FORECAST(#REF!,#REF!,$CO$11:$GR$11) ->  | FJ34: =FORECAST(#REF!,#REF!,$CO$11:$GR$11) ->  | FK34: =FORECAST(#REF!,#REF!,$CO$11:$GR$11) ->  | FL34: =FORECAST(#REF!,#REF!,$CO$11:$GR$11) ->  | FM34: =FORECAST(#REF!,#REF!,$CO$11:$GR$11) ->  | FN34: =FORECAST(#REF!,#REF!,$CO$11:$GR$11) ->  | FO34: =FORECAST(#REF!,#REF!,$CO$11:$GR$11) ->  | FP34: =FORECAST(#REF!,#REF!,$CO$11:$GR$11) ->  | FQ34: =FORECAST(#REF!,#REF!,$CO$11:$GR$11) ->  | FR34: =FORECAST(#REF!,#REF!,$CO$11:$GR$11) ->  | FS34: =FORECAST(#REF!,#REF!,$CO$11:$GR$11) ->  | FT34: =FORECAST(#REF!,#REF!,$CO$11:$GR$11) ->  | FU34: =FORECAST(#REF!,#REF!,$CO$11:$GR$11) ->  | FV34: =FORECAST(#REF!,#REF!,$CO$11:$GR$11) ->  | FW34: =FORECAST(#REF!,#REF!,$CO$11:$GR$11) ->  | FX34: =FORECAST(#REF!,#REF!,$CO$11:$GR$11) ->  | FY34: =FORECAST(#REF!,#REF!,$CO$11:$GR$11) ->  | FZ34: =FORECAST(#REF!,#REF!,$CO$11:$GR$11) ->  | GA34: =FORECAST(#REF!,#REF!,$CO$11:$GR$11) ->  | GB34: =FORECAST(#REF!,#REF!,$CO$11:$GR$11) ->  | GC34: =FORECAST(#REF!,#REF!,$CO$11:$GR$11) ->  | GD34: =FORECAST(#REF!,#REF!,$CO$11:$GR$11) ->  | GE34: =FORECAST(#REF!,#REF!,$CO$11:$GR$11) ->  | GF34: =FORECAST(#REF!,#REF!,$CO$11:$GR$11) ->  | GG34: =FORECAST(#REF!,#REF!,$CO$11:$GR$11) ->  | GH34: =FORECAST(#REF!,#REF!,$CO$11:$GR$11) ->  | GI34: =FORECAST(#REF!,#REF!,$CO$11:$GR$11) ->  | GJ34: =FORECAST(#REF!,#REF!,$CO$11:$GR$11) ->  | GK34: =FORECAST(#REF!,#REF!,$CO$11:$GR$11) ->  | GL34: =FORECAST(#REF!,#REF!,$CO$11:$GR$11) ->  | GM34: =FORECAST(#REF!,#REF!,$CO$11:$GR$11) ->  | GN34: =FORECAST(#REF!,#REF!,$CO$11:$GR$11) ->  | GO34: =FORECAST(#REF!,#REF!,$CO$11:$GR$11) ->  | GP34: =FORECAST(#REF!,#REF!,$CO$11:$GR$11) ->  | GQ34: =FORECAST(#REF!,#REF!,$CO$11:$GR$11) ->  | GR34: =FORECAST(#REF!,#REF!,$CO$11:$GR$11) ->  | GS34: =FORECAST(#REF!,#REF!,$CO$11:$GR$11) ->  | GT34: =FORECAST(#REF!,#REF!,$CO$11:$GR$11) ->  | GU34: =FORECAST(#REF!,#REF!,$CO$11:$GR$11) ->  | GV34: =FORECAST(#REF!,#REF!,$CO$11:$GR$11) ->  | GW34: =FORECAST(#REF!,#REF!,$CO$11:$GR$11) ->  | GX34: =FORECAST(#REF!,#REF!,$CO$11:$GR$11) ->  | GY34: =FORECAST(#REF!,#REF!,$CO$11:$GR$11) ->  | GZ34: =FORECAST(#REF!,#REF!,$CO$11:$GR$11) ->  | HA34: =FORECAST(#REF!,#REF!,$CO$11:$GR$11) ->  | HB34: =FORECAST(#REF!,#REF!,$CO$11:$GR$11) ->  | HC34: =FORECAST(#REF!,#REF!,$CO$11:$GR$11) ->  | HD34: =FORECAST(#REF!,#REF!,$CO$11:$GR$11) ->  | HE34: =FORECAST(#REF!,#REF!,$CO$11:$GR$11) ->  | HF34: =FORECAST(#REF!,#REF!,$CO$11:$GR$11) ->  | HG34: =FORECAST(#REF!,#REF!,$CO$11:$GR$11) ->  | HH34: =FORECAST(#REF!,#REF!,$CO$11:$GR$11) ->  | HI34: =FORECAST(#REF!,#REF!,$CO$11:$GR$11) ->  | HJ34: =FORECAST(#REF!,#REF!,$CO$11:$GR$11) ->  | HK34: =FORECAST(#REF!,#REF!,$CO$11:$GR$11) ->  | HL34: =FORECAST(#REF!,#REF!,$CO$11:$GR$11) ->  | HM34: =FORECAST(#REF!,#REF!,$CO$11:$GR$11) ->  | HN34: =FORECAST(#REF!,#REF!,$CO$11:$GR$11) ->  | HO34: =FORECAST(#REF!,#REF!,$CO$11:$GR$11) ->  | HP34: =FORECAST(#REF!,#REF!,$CO$11:$GR$11) -> 
B36: Estado de Resultados consolidado | C36: =+C25 -> 2009 | D36: =+D25 -> 2010 | E36: 2011 | F36: 2012 | G36: 2013 | H36: 2014 | I36: 2015
B37: Ingresos Financieros | C37: =+'EF Anuales'!D58 ->  | D37: =+'EF Anuales'!E58 ->  | E37: =+'EF Anuales'!F58 ->  | F37: =+'EF Anuales'!G58 ->  | G37: =+'EF Anuales'!H58 ->  | H37: =+'EF Anuales'!I58 ->  | I37: =+'EF Anuales'!J58 -> 
B38: Egresos Financieros | C38: =+'EF Anuales'!D65 ->  | D38: =+'EF Anuales'!E65 ->  | E38: =+'EF Anuales'!F65 ->  | F38: =+'EF Anuales'!G65 ->  | G38: =+'EF Anuales'!H65 ->  | H38: =+'EF Anuales'!I65 ->  | I38: =+'EF Anuales'!J65 -> 
B39: Margen Financiero | C39: =+'EF Anuales'!D72 ->  | D39: =+'EF Anuales'!E72 ->  | E39: =+'EF Anuales'!F72 ->  | F39: =+'EF Anuales'!G72 ->  | G39: =+'EF Anuales'!H72 ->  | H39: =+'EF Anuales'!I72 ->  | I39: =+'EF Anuales'!J72 -> 
B40: Utilidad Antes de Impuestos | C40: =+'EF Anuales'!D82 ->  | D40: =+'EF Anuales'!E82 ->  | E40: =+'EF Anuales'!F82 ->  | F40: =+'EF Anuales'!G82 ->  | G40: =+'EF Anuales'!H82 ->  | H40: =+'EF Anuales'!I82 ->  | I40: =+'EF Anuales'!J82 -> 
B41: Utilidad Neta | C41: =+'EF Anuales'!D84 ->  | D41: =+'EF Anuales'!E84 ->  | E41: =+'EF Anuales'!F84 ->  | F41: =+'EF Anuales'!G84 ->  | G41: =+'EF Anuales'!H84 ->  | H41: =+'EF Anuales'!I84 ->  | I41: =+'EF Anuales'!J84 -> 
B43: ROE% (Utilidad Neta/Patrimonio inicial) | C43: =+'Indicadores Financieros'!D17 ->  | D43: =+'Indicadores Financieros'!E17 ->  | E43: =+'Indicadores Financieros'!F17 ->  | F43: =+'Indicadores Financieros'!G17 ->  | G43: =+'Indicadores Financieros'!H17 ->  | H43: =+'Indicadores Financieros'!I17 ->  | I43: =+'Indicadores Financieros'!J17 -> 
B44: Solvencia (Patrimonio/Activo Total) | C44: =+'Indicadores Financieros'!C27 -> 0.1835147746 | D44: =+'Indicadores Financieros'!D27 ->  | E44: =+'Indicadores Financieros'!E27 ->  | F44: =+'Indicadores Financieros'!F27 ->  | G44: =+'Indicadores Financieros'!G27 ->  | H44: =+'Indicadores Financieros'!H27 ->  | I44: =+'Indicadores Financieros'!I27 -> 
B45: Endeudamiento (Pasivo Total/Activo Total) | C45: =+'Indicadores Financieros'!C30 -> 0.8164852254 | D45: =+'Indicadores Financieros'!D30 ->  | E45: =+'Indicadores Financieros'!E30 ->  | F45: =+'Indicadores Financieros'!F30 ->  | G45: =+'Indicadores Financieros'!G30 ->  | H45: =+'Indicadores Financieros'!H30 ->  | I45: =+'Indicadores Financieros'!I30 -> 
B66: Resumen sensibilidad proyecciones financieras | CJ66: TRM | CK66: 0.7 | CL66: =100%-CK66 -> 0.3 | CN66: DTF E.A%(fin mes) | CO66: =FORECAST(#REF!,#REF!,$CO$11:$GR$11) ->  | CP66: =FORECAST(#REF!,#REF!,$CO$11:$GR$11) ->  | CQ66: =FORECAST(#REF!,#REF!,$CO$11:$GR$11) ->  | CR66: =FORECAST(#REF!,#REF!,$CO$11:$GR$11) ->  | CS66: =FORECAST(#REF!,#REF!,$CO$11:$GR$11) ->  | CT66: =FORECAST(#REF!,#REF!,$CO$11:$GR$11) ->  | CU66: =FORECAST(#REF!,#REF!,$CO$11:$GR$11) ->  | CV66: =FORECAST(#REF!,#REF!,$CO$11:$GR$11) ->  | CW66: =FORECAST(#REF!,#REF!,$CO$11:$GR$11) ->  | CX66: =FORECAST(#REF!,#REF!,$CO$11:$GR$11) ->  | CY66: =FORECAST(#REF!,#REF!,$CO$11:$GR$11) ->  | CZ66: =FORECAST(#REF!,#REF!,$CO$11:$GR$11) ->  | DA66: =FORECAST(#REF!,#REF!,$CO$11:$GR$11) ->  | DB66: =FORECAST(#REF!,#REF!,$CO$11:$GR$11) ->  | DC66: =FORECAST(#REF!,#REF!,$CO$11:$GR$11) ->  | DD66: =FORECAST(#REF!,#REF!,$CO$11:$GR$11) ->  | DE66: =FORECAST(#REF!,#REF!,$CO$11:$GR$11) ->  | DF66: =FORECAST(#REF!,#REF!,$CO$11:$GR$11) ->  | DG66: =FORECAST(#REF!,#REF!,$CO$11:$GR$11) ->  | DH66: =FORECAST(#REF!,#REF!,$CO$11:$GR$11) ->  | DI66: =FORECAST(#REF!,#REF!,$CO$11:$GR$11) ->  | DJ66: =FORECAST(#REF!,#REF!,$CO$11:$GR$11) ->  | DK66: =FORECAST(#REF!,#REF!,$CO$11:$GR$11) ->  | DL66: =FORECAST(#REF!,#REF!,$CO$11:$GR$11) ->  | DM66: =FORECAST(#REF!,#REF!,$CO$11:$GR$11) ->  | DN66: =FORECAST(#REF!,#REF!,$CO$11:$GR$11) ->  | DO66: =FORECAST(#REF!,#REF!,$CO$11:$GR$11) ->  | DP66: =FORECAST(#REF!,#REF!,$CO$11:$GR$11) ->  | DQ66: =FORECAST(#REF!,#REF!,$CO$11:$GR$11) ->  | DR66: =FORECAST(#REF!,#REF!,$CO$11:$GR$11) ->  | DS66: =FORECAST(#REF!,#REF!,$CO$11:$GR$11) ->  | DT66: =FORECAST(#REF!,#REF!,$CO$11:$GR$11) ->  | DU66: =FORECAST(#REF!,#REF!,$CO$11:$GR$11) ->  | DV66: =FORECAST(#REF!,#REF!,$CO$11:$GR$11) ->  | DW66: =FORECAST(#REF!,#REF!,$CO$11:$GR$11) ->  | DX66: =FORECAST(#REF!,#REF!,$CO$11:$GR$11) ->  | DY66: =FORECAST(#REF!,#REF!,$CO$11:$GR$11) ->  | DZ66: =FORECAST(#REF!,#REF!,$CO$11:$GR$11) ->  | EA66: =FORECAST(#REF!,#REF!,$CO$11:$GR$11) ->  | EB66: =FORECAST(#REF!,#REF!,$CO$11:$GR$11) ->  | EC66: =FORECAST(#REF!,#REF!,$CO$11:$GR$11) ->  | ED66: =FORECAST(#REF!,#REF!,$CO$11:$GR$11) ->  | EE66: =FORECAST(#REF!,#REF!,$CO$11:$GR$11) ->  | EF66: =FORECAST(#REF!,#REF!,$CO$11:$GR$11) ->  | EG66: =FORECAST(#REF!,#REF!,$CO$11:$GR$11) ->  | EH66: =FORECAST(#REF!,#REF!,$CO$11:$GR$11) ->  | EI66: =FORECAST(#REF!,#REF!,$CO$11:$GR$11) ->  | EJ66: =FORECAST(#REF!,#REF!,$CO$11:$GR$11) ->  | EK66: =FORECAST(#REF!,#REF!,$CO$11:$GR$11) ->  | EL66: =FORECAST(#REF!,#REF!,$CO$11:$GR$11) ->  | EM66: =FORECAST(#REF!,#REF!,$CO$11:$GR$11) ->  | EN66: =FORECAST(#REF!,#REF!,$CO$11:$GR$11) ->  | EO66: =FORECAST(#REF!,#REF!,$CO$11:$GR$11) ->  | EP66: =FORECAST(#REF!,#REF!,$CO$11:$GR$11) ->  | EQ66: =FORECAST(#REF!,#REF!,$CO$11:$GR$11) ->  | ER66: =FORECAST(#REF!,#REF!,$CO$11:$GR$11) ->  | ES66: =FORECAST(#REF!,#REF!,$CO$11:$GR$11) ->  | ET66: =FORECAST(#REF!,#REF!,$CO$11:$GR$11) ->  | EU66: =FORECAST(#REF!,#REF!,$CO$11:$GR$11) ->  | EV66: =FORECAST(#REF!,#REF!,$CO$11:$GR$11) ->  | EW66: =FORECAST(#REF!,#REF!,$CO$11:$GR$11) ->  | EX66: =FORECAST(#REF!,#REF!,$CO$11:$GR$11) ->  | EY66: =FORECAST(#REF!,#REF!,$CO$11:$GR$11) ->  | EZ66: =FORECAST(#REF!,#REF!,$CO$11:$GR$11) ->  | FA66: =FORECAST(#REF!,#REF!,$CO$11:$GR$11) ->  | FB66: =FORECAST(#REF!,#REF!,$CO$11:$GR$11) ->  | FC66: =FORECAST(#REF!,#REF!,$CO$11:$GR$11) ->  | FD66: =FORECAST(#REF!,#REF!,$CO$11:$GR$11) ->  | FE66: =FORECAST(#REF!,#REF!,$CO$11:$GR$11) ->  | FF66: =FORECAST(#REF!,#REF!,$CO$11:$GR$11) ->  | FG66: =FORECAST(#REF!,#REF!,$CO$11:$GR$11) ->  | FH66: =FORECAST(#REF!,#REF!,$CO$11:$GR$11) ->  | FI66: =FORECAST(#REF!,#REF!,$CO$11:$GR$11) ->  | FJ66: =FORECAST(#REF!,#REF!,$CO$11:$GR$11) ->  | FK66: =FORECAST(#REF!,#REF!,$CO$11:$GR$11) ->  | FL66: =FORECAST(#REF!,#REF!,$CO$11:$GR$11) ->  | FM66: =FORECAST(#REF!,#REF!,$CO$11:$GR$11) ->  | FN66: =FORECAST(#REF!,#REF!,$CO$11:$GR$11) ->  | FO66: =FORECAST(#REF!,#REF!,$CO$11:$GR$11) ->  | FP66: =FORECAST(#REF!,#REF!,$CO$11:$GR$11) ->  | FQ66: =FORECAST(#REF!,#REF!,$CO$11:$GR$11) ->  | FR66: =FORECAST(#REF!,#REF!,$CO$11:$GR$11) ->  | FS66: =FORECAST(#REF!,#REF!,$CO$11:$GR$11) ->  | FT66: =FORECAST(#REF!,#REF!,$CO$11:$GR$11) ->  | FU66: =FORECAST(#REF!,#REF!,$CO$11:$GR$11) ->  | FV66: =FORECAST(#REF!,#REF!,$CO$11:$GR$11) ->  | FW66: =FORECAST(#REF!,#REF!,$CO$11:$GR$11) ->  | FX66: =FORECAST(#REF!,#REF!,$CO$11:$GR$11) ->  | FY66: =FORECAST(#REF!,#REF!,$CO$11:$GR$11) ->  | FZ66: =FORECAST(#REF!,#REF!,$CO$11:$GR$11) ->  | GA66: =FORECAST(#REF!,#REF!,$CO$11:$GR$11) ->  | GB66: =FORECAST(#REF!,#REF!,$CO$11:$GR$11) ->  | GC66: =FORECAST(#REF!,#REF!,$CO$11:$GR$11) ->  | GD66: =FORECAST(#REF!,#REF!,$CO$11:$GR$11) ->  | GE66: =FORECAST(#REF!,#REF!,$CO$11:$GR$11) ->  | GF66: =FORECAST(#REF!,#REF!,$CO$11:$GR$11) ->  | GG66: =FORECAST(#REF!,#REF!,$CO$11:$GR$11) ->  | GH66: =FORECAST(#REF!,#REF!,$CO$11:$GR$11) ->  | GI66: =FORECAST(#REF!,#REF!,$CO$11:$GR$11) ->  | GJ66: =FORECAST(#REF!,#REF!,$CO$11:$GR$11) ->  | GK66: =FORECAST(#REF!,#REF!,$CO$11:$GR$11) ->  | GL66: =FORECAST(#REF!,#REF!,$CO$11:$GR$11) ->  | GM66: =FORECAST(#REF!,#REF!,$CO$11:$GR$11) ->  | GN66: =FORECAST(#REF!,#REF!,$CO$11:$GR$11) ->  | GO66: =FORECAST(#REF!,#REF!,$CO$11:$GR$11) ->  | GP66: =FORECAST(#REF!,#REF!,$CO$11:$GR$11) ->  | GQ66: =FORECAST(#REF!,#REF!,$CO$11:$GR$11) ->  | GR66: =FORECAST(#REF!,#REF!,$CO$11:$GR$11) ->  | GS66: =FORECAST(#REF!,#REF!,$CO$11:$GR$11) ->  | GT66: =FORECAST(#REF!,#REF!,$CO$11:$GR$11) ->  | GU66: =FORECAST(#REF!,#REF!,$CO$11:$GR$11) ->  | GV66: =FORECAST(#REF!,#REF!,$CO$11:$GR$11) ->  | GW66: =FORECAST(#REF!,#REF!,$CO$11:$GR$11) ->  | GX66: =FORECAST(#REF!,#REF!,$CO$11:$GR$11) ->  | GY66: =FORECAST(#REF!,#REF!,$CO$11:$GR$11) ->  | GZ66: =FORECAST(#REF!,#REF!,$CO$11:$GR$11) ->  | HA66: =FORECAST(#REF!,#REF!,$CO$11:$GR$11) ->  | HB66: =FORECAST(#REF!,#REF!,$CO$11:$GR$11) ->  | HC66: =FORECAST(#REF!,#REF!,$CO$11:$GR$11) ->  | HD66: =FORECAST(#REF!,#REF!,$CO$11:$GR$11) ->  | HE66: =FORECAST(#REF!,#REF!,$CO$11:$GR$11) ->  | HF66: =FORECAST(#REF!,#REF!,$CO$11:$GR$11) ->  | HG66: =FORECAST(#REF!,#REF!,$CO$11:$GR$11) ->  | HH66: =FORECAST(#REF!,#REF!,$CO$11:$GR$11) ->  | HI66: =FORECAST(#REF!,#REF!,$CO$11:$GR$11) ->  | HJ66: =FORECAST(#REF!,#REF!,$CO$11:$GR$11) ->  | HK66: =FORECAST(#REF!,#REF!,$CO$11:$GR$11) ->  | HL66: =FORECAST(#REF!,#REF!,$CO$11:$GR$11) ->  | HM66: =FORECAST(#REF!,#REF!,$CO$11:$GR$11) ->  | HN66: =FORECAST(#REF!,#REF!,$CO$11:$GR$11) ->  | HO66: =FORECAST(#REF!,#REF!,$CO$11:$GR$11) ->  | HP66: =FORECAST(#REF!,#REF!,$CO$11:$GR$11) -> 
B68: Proyección | C68: =+C36 -> 2009 | D68: =+D36 -> 2010 | E68: 2011 | F68: 2012 | G68: 2013 | H68: 2014 | I68: 2015
B69: DTF E.A% | C69: =+C13 -> 0.079 | D69: =+D13 -> 0.08 | E69: 0.08 | F69: 0.08 | G69: 0.08 | H69: 0.08 | I69: 0.08
B70: IPC E.A% | C70: =+C12 -> 0.0563 | D70: =+D12 -> 0.05 | E70: 0.045 | F70: 0.045 | G70: 0.045 | H70: 0.045 | I70: 0.045
B71: Spread T.A/ Cartera Nueva | C71: =+Variables!D87 -> 0.03132 | D71: =+Variables!E87 -> 0.03018095238 | E71: =+Variables!F87 -> 0.02984459634 | F71: =+Variables!G87 -> 0.03065578772 | G71: =+Variables!H87 -> 0.03068783514 | H71: =+Variables!I87 -> 0.03071850253 | I71: =+Variables!J87 -> 0.03074784931
B72: Spread T.A/ Cartera Antigua | C72: =+Variables!D86 -> 0.0277 | D72: =+Variables!E86 -> 0.0277 | E72: =+Variables!F86 -> 0.0277 | F72: =+Variables!G86 -> 0.0277 | G72: =+Variables!H86 -> 0.0277 | H72: =+Variables!I86 -> 0.0277 | I72: =+Variables!J86 -> 0.0277
B73: Desembolsos (Miles de $) | C73: =+C23 -> 1500000000 | D73: =+D23 -> 1574999999 | E73: 1645874998 | F73: 1719939372 | G73: 1797336643 | H73: 1878216791 | I73: 1962736545
B74: Emisión de CDT´s (Miles de $) | C74: =+'Planeación Caja'!C21 -> 1185590549 | D74: =+'Planeación Caja'!D21 -> 2206810275 | E74: =+'Planeación Caja'!E21 -> 827131357.1 | F74: =+'Planeación Caja'!F21 -> 2655166207 | G74: =+'Planeación Caja'!G21 -> 497691417.8 | H74: =+'Planeación Caja'!H21 -> 910438935.5 | I74: =+'Planeación Caja'!I21 -> 2971915625
B75: Saldo de cartera bruta (Miles de $) | C75: =+'EF Anuales'!C15 -> 3645374746 | D75: =+'EF Anuales'!D15 -> 4133097926 | E75: =+'EF Anuales'!E15 -> 4590489731 | F75: =+'EF Anuales'!F15 -> 4996504083 | G75: =+'EF Anuales'!G15 -> 5319633317 | H75: =+'EF Anuales'!H15 -> 5547365157 | I75: =+'EF Anuales'!I15 -> 5669420156
B76: Patrimonio | C76: =+'EF Anuales'!C48 -> 745978369.8 | D76: =+'EF Anuales'!D48 ->  | E76: =+'EF Anuales'!E48 ->  | F76: =+'EF Anuales'!F48 ->  | G76: =+'EF Anuales'!G48 ->  | H76: =+'EF Anuales'!H48 ->  | I76: =+'EF Anuales'!I48 -> 
B77: Utilidad mínima requerida | C77: =+'EF Anuales'!C48*'Mod. Sensibilización'!C70 -> 41998582.22 | D77: =+'EF Anuales'!D48*'Mod. Sensibilización'!D70 ->  | E77: =+'EF Anuales'!E48*'Mod. Sensibilización'!E70 ->  | F77: =+'EF Anuales'!F48*'Mod. Sensibilización'!F70 ->  | G77: =+'EF Anuales'!G48*'Mod. Sensibilización'!G70 ->  | H77: =+'EF Anuales'!H48*'Mod. Sensibilización'!H70 ->  | I77: =+'EF Anuales'!I48*'Mod. Sensibilización'!I70 -> 
B78: Utilidad Neta | C78: =+C41 ->  | D78: =+D41 -> 
B79: ROE % | C79: =+'Indicadores Financieros'!D17 ->  | D79: =+'Indicadores Financieros'!E17 ->  | E79: =+'Indicadores Financieros'!F17 ->  | F79: =+'Indicadores Financieros'!G17 ->  | G79: =+'Indicadores Financieros'!H17 ->  | H79: =+'Indicadores Financieros'!I17 ->  | I79: =+'Indicadores Financieros'!J17 -> 
C107: =+C36 -> 2009 | D107: =+D36 -> 2010 | E107: 2011 | F107: 2012 | G107: 2013 | H107: 2014 | I107: 2015
B108: =+B41 -> Utilidad Neta | C108: =+C41/1000 ->  | D108: =+D41/1000 -> 
C109: =+C107 -> 2009 | D109: =+D107 -> 2010 | E109: 2011 | F109: 2012 | G109: 2013 | H109: 2014 | I109: 2015
B110: ROE% | C110: =+C43 ->  | D110: =+D43 -> 

Sheet Variables
B2: Variables de Proyección
B9: Fecha inicio base | C9: 2000-01-01
B10: Fecha inicio proyección | C10: 2009-01-01 | D10: =TEXT(C10,"yyyy") -> 2009
B12: Proyección de variables | CN12: Bases de datos y proyección estadística de variables
B14: Variables Macroeconómicas | C14: =IF(C10="","",C10) -> 2009-01-01 | D14: =EDATE(C14,1) -> 2009-02-01 | E14: =EDATE(D14,1) -> 2009-03-01 | F14: 2009-04-01 | G14: 2009-05-01 | H14: 2009-06-01 | I14: 2009-07-01 | J14: 2009-08-01 | K14: 2009-09-01 | L14: 2009-10-01 | M14: 2009-11-01 | N14: 2009-12-01 | O14: 2010-01-01 | P14: 2010-02-01 | Q14: 2010-03-01 | R14: 2010-04-01 | S14: 2010-05-01 | T14: 2010-06-01 | U14: 2010-07-01 | V14: 2010-08-01 | W14: 2010-09-01 | X14: 2010-10-01 | Y14: 2010-11-01 | Z14: 2010-12-01 | AA14: 2011-01-01 | AB14: 2011-02-01 | AC14: 2011-03-01 | AD14: 2011-04-01 | AE14: 2011-05-01 | AF14: 2011-06-01 | AG14: 2011-07-01 | AH14: 2011-08-01 | AI14: 2011-09-01 | AJ14: 2011-10-01 | AK14: 2011-11-01 | AL14: 2011-12-01 | AM14: 2012-01-01 | AN14: 2012-02-01 | AO14: 2012-03-01 | AP14: 2012-04-01 | AQ14: 2012-05-01 | AR14: 2012-06-01 | AS14: 2012-07-01 | AT14: 2012-08-01 | AU14: 2012-09-01 | AV14: 2012-10-01 | AW14: 2012-11-01 | AX14: 2012-12-01 | AY14: 2013-01-01 | AZ14: 2013-02-01 | BA14: 2013-03-01 | BB14: 2013-04-01 | BC14: 2013-05-01 | BD14: 2013-06-01 | BE14: 2013-07-01 | BF14: 2013-08-01 | BG14: 2013-09-01 | BH14: 2013-10-01 | BI14: 2013-11-01 | BJ14: 2013-12-01 | BK14: 2014-01-01 | BL14: 2014-02-01 | BM14: 2014-03-01 | BN14: 2014-04-01 | BO14: 2014-05-01 | BP14: 2014-06-01 | BQ14: =EDATE(BP14,1) -> 2014-07-01 | BR14: 2014-08-01 | BS14: 2014-09-01 | BT14: 2014-10-01 | BU14: 2014-11-01 | BV14: 2014-12-01 | BW14: 2015-01-01 | BX14: 2015-02-01 | BY14: 2015-03-01 | BZ14: 2015-04-01 | CA14: 2015-05-01 | CB14: 2015-06-01 | CC14: 2015-07-01 | CD14: 2015-08-01 | CE14: 2015-09-01 | CF14: 2015-10-01 | CG14: 2015-11-01 | CH14: =EDATE(CG14,1) -> 2015-12-01 | CN14: Base de Datos Variables Macro | CO14: =IF(C9="","",C9) -> 2000-01-01 | CP14: =EDATE(CO14,1) -> 2000-02-01 | CQ14: =EDATE(CP14,1) -> 2000-03-01 | CR14: 2000-04-01 | CS14: 2000-05-01 | CT14: 2000-06-01 | CU14: 2000-07-01 | CV14: 2000-08-01 | CW14: 2000-09-01 | CX14: 2000-10-01 | CY14: 2000-11-01 | CZ14: 2000-12-01 | DA14: 2001-01-01 | DB14: 2001-02-01 | DC14: 2001-03-01 | DD14: 2001-04-01 | DE14: 2001-05-01 | DF14: 2001-06-01 | DG14: 2001-07-01 | DH14: 2001-08-01 | DI14: 2001-09-01 | DJ14: 2001-10-01 | DK14: 2001-11-01 | DL14: 2001-12-01 | DM14: 2002-01-01 | DN14: 2002-02-01 | DO14: 2002-03-01 | DP14: 2002-04-01 | DQ14: 2002-05-01 | DR14: 2002-06-01 | DS14: 2002-07-01 | DT14: 2002-08-01 | DU14: 2002-09-01 | DV14: 2002-10-01 | DW14: 2002-11-01 | DX14: 2002-12-01 | DY14: 2003-01-01 | DZ14: 2003-02-01 | EA14: 2003-03-01 | EB14: 2003-04-01 | EC14: 2003-05-01 | ED14: 2003-06-01 | EE14: 2003-07-01 | EF14: 2003-08-01 | EG14: 2003-09-01 | EH14: 2003-10-01 | EI14: 2003-11-01 | EJ14: 2003-12-01 | EK14: 2004-01-01 | EL14: 2004-02-01 | EM14: 2004-03-01 | EN14: 2004-04-01 | EO14: 2004-05-01 | EP14: 2004-06-01 | EQ14: 2004-07-01 | ER14: 2004-08-01 | ES14: 2004-09-01 | ET14: 2004-10-01 | EU14: 2004-11-01 | EV14: 2004-12-01 | EW14: 2005-01-01 | EX14: 2005-02-01 | EY14: 2005-03-01 | EZ14: 2005-04-01 | FA14: 2005-05-01 | FB14: 2005-06-01 | FC14: =EDATE(FB14,1) -> 2005-07-01 | FD14: 2005-08-01 | FE14: 2005-09-01 | FF14: 2005-10-01 | FG14: 2005-11-01 | FH14: 2005-12-01 | FI14: 2006-01-01 | FJ14: 2006-02-01 | FK14: 2006-03-01 | FL14: 2006-04-01 | FM14: 2006-05-01 | FN14: 2006-06-01 | FO14: 2006-07-01 | FP14: 2006-08-01 | FQ14: 2006-09-01 | FR14: 2006-10-01 | FS14: 2006-11-01 | FT14: 2006-12-01 | FU14: 2007-01-01 | FV14: 2007-02-01 | FW14: 2007-03-01 | FX14: 2007-04-01 | FY14: 2007-05-01 | FZ14: 2007-06-01 | GA14: 2007-07-01 | GB14: 2007-08-01 | GC14: 2007-09-01 | GD14: 2007-10-01 | GE14: 2007-11-01 | GF14: 2007-12-01 | GG14: 2008-01-01 | GH14: 2008-02-01 | GI14: 2008-03-01 | GJ14: 2008-04-01 | GK14: 2008-05-01 | GL14: 2008-06-01 | GM14: 2008-07-01 | GN14: 2008-08-01 | GO14: 2008-09-01 | GP14: 2008-10-01 | GQ14: 2008-11-01 | GR14: 2008-12-01 | GS14: 2009-01-01 | GT14: 2009-02-01 | GU14: 2009-03-01 | GV14: 2009-04-01 | GW14: 2009-05-01 | GX14: 2009-06-01 | GY14: 2009-07-01 | GZ14: 2009-08-01 | HA14: 2009-09-01 | HB14: 2009-10-01 | HC14: 2009-11-01 | HD14: 2009-12-01 | HE14: 2010-01-01 | HF14: 2010-02-01 | HG14: 2010-03-01 | HH14: 2010-04-01 | HI14: 2010-05-01 | HJ14: 2010-06-01 | HK14: 2010-07-01 | HL14: 2010-08-01 | HM14: 2010-09-01 | HN14: 2010-10-01 | HO14: =EDATE(HN14,1) -> 2010-11-01 | HP14: 2010-12-01
B15: IPC % | C15: =+C47 -> 0.0563 | D15: =+D47 -> 0.0563 | E15: 0.0563 | F15: 0.0563 | G15: 0.0563 | H15: 0.0563 | I15: 0.0563 | J15: 0.0563 | K15: 0.0563 | L15: 0.0563 | M15: 0.0563 | N15: 0.0563 | O15: 0.05 | P15: 0.05 | Q15: 0.05 | R15: 0.05 | S15: 0.05 | T15: 0.05 | U15: 0.05 | V15: 0.05 | W15: 0.05 | X15: 0.05 | Y15: 0.05 | Z15: 0.05 | AA15: 0.045 | AB15: 0.045 | AC15: 0.045 | AD15: 0.045 | AE15: 0.045 | AF15: 0.045 | AG15: 0.045 | AH15: 0.045 | AI15: 0.045 | AJ15: 0.045 | AK15: 0.045 | AL15: 0.045 | AM15: 0.045 | AN15: 0.045 | AO15: 0.045 | AP15: 0.045 | AQ15: 0.045 | AR15: 0.045 | AS15: 0.045 | AT15: 0.045 | AU15: 0.045 | AV15: 0.045 | AW15: 0.045 | AX15: 0.045 | AY15: 0.045 | AZ15: 0.045 | BA15: 0.045 | BB15: 0.045 | BC15: 0.045 | BD15: 0.045 | BE15: 0.045 | BF15: 0.045 | BG15: 0.045 | BH15: 0.045 | BI15: 0.045 | BJ15: 0.045 | BK15: 0.045 | BL15: 0.045 | BM15: 0.045 | BN15: 0.045 | BO15: 0.045 | BP15: =+BP47 -> 0.045 | BQ15: 0.045 | BR15: 0.045 | BS15: 0.045 | BT15: 0.045 | BU15: 0.045 | BV15: 0.045 | BW15: 0.045 | BX15: 0.045 | BY15: 0.045 | BZ15: 0.045 | CA15: 0.045 | CB15: 0.045 | CC15: 0.045 | CD15: 0.045 | CE15: 0.045 | CF15: 0.045 | CG15: 0.045 | CH15: 0.045 | CN15: IPC % | CO15: 0.0825 | CP15: 0.089 | CQ15: 0.0972 | CR15: 0.0996 | CS15: 0.1 | CT15: 0.0968 | CU15: 0.0929 | CV15: 0.091 | CW15: 0.0921 | CX15: 0.0899 | CY15: 0.0882 | CZ15: 0.0875 | DA15: 0.085 | DB15: 0.0806 | DC15: 0.0782 | DD15: 0.0797 | DE15: 0.0786 | DF15: 0.0792 | DG15: 0.0809 | DH15: 0.0803 | DI15: 0.0797 | DJ15: 0.08 | DK15: 0.0778 | DL15: 0.0765 | DM15: 0.0737 | DN15: 0.067 | DO15: 0.0589 | DP15: 0.0565 | DQ15: 0.0584 | DR15: 0.0625 | DS15: 0.0616 | DT15: 0.0598 | DU15: 0.0597 | DV15: 0.0637 | DW15: 0.0707 | DX15: 0.0699 | DY15: 0.0739 | DZ15: 0.0724 | EA15: 0.076 | EB15: 0.0785 | EC15: 0.0773 | ED15: 0.0721 | EE15: 0.0704 | EF15: 0.0726 | EG15: 0.0711 | EH15: 0.0658 | EI15: 0.0613 | EJ15: 0.0649 | EK15: 0.0619 | EL15: 0.0628 | EM15: 0.0621 | EN15: 0.0549 | EO15: 0.0537 | EP15: 0.0607 | EQ15: 0.0619 | ER15: 0.0589 | ES15: 0.0597 | ET15: 0.059 | EU15: 0.0582 | EV15: 0.055 | EW15: 0.0543 | EX15: 0.0525 | EY15: 0.0503 | EZ15: 0.0501 | FA15: 0.0504 | FB15: 0.0483 | FC15: 0.0491 | FD15: 0.0488 | FE15: 0.0502 | FF15: 0.0527 | FG15: 0.051 | FH15: 0.0485 | FI15: 0.0456 | FJ15: 0.0419 | FK15: 0.0411 | FL15: 0.0412 | FM15: 0.0404 | FN15: 0.0394 | FO15: 0.0432 | FP15: 0.0472 | FQ15: 0.0458 | FR15: 0.0419 | FS15: 0.0431 | FT15: 0.0448 | FU15: 0.0471 | FV15: 0.0525 | FW15: 0.0578 | FX15: 0.0626 | FY15: 0.0623 | FZ15: 0.0603 | GA15: 0.0577 | GB15: 0.0522 | GC15: 0.0501 | GD15: 0.0516 | GE15: 0.0541 | GF15: 0.0569 | GG15: 0.06 | GH15: 0.0635 | GI15: 0.0593 | GJ15: 0.0573 | GK15: 0.0639 | GL15: 0.0718 | GM15: 0.0752 | GN15: 0.0787 | GO15: =FORECAST(GO14,$CO$15:GN15,$CO$14:GN14) -> 0.044921775 | GP15: =FORECAST(GP14,$CO$15:GO15,$CO$14:GO14) -> 0.04455451336 | GQ15: =FORECAST(GQ14,$CO$15:GP15,$CO$14:GP14) -> 0.04417500966 | GR15: =FORECAST(GR14,$CO$15:GQ15,$CO$14:GQ14) -> 0.04380774802
B16: Inflación mensual | C16: =+((1+C15)^(1/12))-1 -> 0.004574785513 | D16: =+((1+D15)^(1/12))-1 -> 0.004574785513 | E16: 0.004574785513 | F16: 0.004574785513 | G16: 0.004574785513 | H16: 0.004574785513 | I16: 0.004574785513 | J16: =+((1+J15)^(1/12))-1 -> 0.004574785513 | K16: 0.004574785513 | L16: 0.004574785513 | M16: 0.004574785513 | N16: 0.004574785513 | O16: 0.004074123784 | P16: 0.004074123784 | Q16: 0.004074123784 | R16: 0.004074123784 | S16: 0.004074123784 | T16: 0.004074123784 | U16: 0.004074123784 | V16: 0.004074123784 | W16: 0.004074123784 | X16: 0.004074123784 | Y16: 0.004074123784 | Z16: 0.004074123784 | AA16: 0.0036748094 | AB16: 0.0036748094 | AC16: 0.0036748094 | AD16: 0.0036748094 | AE16: 0.0036748094 | AF16: 0.0036748094 | AG16: 0.0036748094 | AH16: 0.0036748094 | AI16: 0.0036748094 | AJ16: 0.0036748094 | AK16: 0.0036748094 | AL16: 0.0036748094 | AM16: 0.0036748094 | AN16: 0.0036748094 | AO16: 0.0036748094 | AP16: =+((1+AP15)^(1/12))-1 -> 0.0036748094 | AQ16: 0.0036748094 | AR16: 0.0036748094 | AS16: 0.0036748094 | AT16: 0.0036748094 | AU16: 0.0036748094 | AV16: 0.0036748094 | AW16: 0.0036748094 | AX16: 0.0036748094 | AY16: 0.0036748094 | AZ16: 0.0036748094 | BA16: 0.0036748094 | BB16: 0.0036748094 | BC16: 0.0036748094 | BD16: 0.0036748094 | BE16: 0.0036748094 | BF16: 0.0036748094 | BG16: 0.0036748094 | BH16: 0.0036748094 | BI16: 0.0036748094 | BJ16: 0.0036748094 | BK16: 0.0036748094 | BL16: 0.0036748094 | BM16: 0.0036748094 | BN16: 0.0036748094 | BO16: 0.0036748094 | BP16: 0.0036748094 | BQ16: 0.0036748094 | BR16: 0.0036748094 | BS16: 0.0036748094 | BT16: 0.0036748094 | BU16: 0.0036748094 | BV16: =+((1+BV15)^(1/12))-1 -> 0.0036748094 | BW16: 0.0036748094 | BX16: 0.0036748094 | BY16: 0.0036748094 | BZ16: 0.0036748094 | CA16: 0.0036748094 | CB16: 0.0036748094 | CC16: 0.0036748094 | CD16: 0.0036748094 | CE16: 0.0036748094 | CF16: 0.0036748094 | CG16: 0.0036748094 | CH16: 0.0036748094 | CN16: DTF E.A% (fin mes) | CO16: 0.1215 | CP16: 0.1037 | CQ16: 0.1098 | CR16: 0.1147 | CS16: 0.1182 | CT16: 0.1197 | CU16: 0.123 | CV16: 0.1258 | CW16: 0.1295 | CX16: 0.1295 | CY16: 0.131 | CZ16: 0.1335 | DA16: 0.1354 | DB16: 0.1329 | DC16: 0.1296 | DD16: 0.1271 | DE16: 0.1273 | DF16: 0.1275 | DG16: 0.1266 | DH16: 0.1229 | DI16: 0.1189 | DJ16: 0.1138 | DK16: 0.1144 | DL16: 0.1147 | DM16: 0.1115 | DN16: 0.1067 | DO16: 0.1055 | DP16: 0.0975 | DQ16: 0.0901 | DR16: 0.0821 | DS16: 0.0774 | DT16: 0.08 | DU16: 0.0791 | DV16: 0.079 | DW16: 0.0791 | DX16: 0.077 | DY16: 0.0765 | DZ16: 0.0782 | EA16: 0.0768 | EB16: 0.0771 | EC16: 0.0781 | ED16: 0.0781 | EE16: 0.0783 | EF16: 0.0788 | EG16: 0.0777 | EH16: 0.0782 | EI16: 0.0785 | EJ16: 0.0792 | EK16: 0.0799 | EL16: 0.0776 | EM16: 0.0781 | EN16: 0.0775 | EO16: 0.0789 | EP16: 0.0781 | EQ16: 0.0779 | ER16: 0.078 | ES16: 0.0772 | ET16: 0.0772 | EU16: 0.0768 | EV16: 0.0771 | EW16: 0.0764 | EX16: 0.0742 | EY16: 0.0744 | EZ16: 0.0726 | FA16: 0.0712 | FB16: 0.0718 | FC16: 0.0714 | FD16: 0.0694 | FE16: 0.0682 | FF16: 0.0646 | FG16: 0.0639 | FH16: 0.0631 | FI16: 0.0609 | FJ16: 0.0598 | FK16: 0.0592 | FL16: 0.0589 | FM16: 0.0598 | FN16: 0.0614 | FO16: 0.0674 | FP16: 0.0616 | FQ16: 0.0653 | FR16: 0.0668 | FS16: 0.067 | FT16: 0.0682 | FU16: 0.0682 | FV16: 0.0666 | FW16: 0.076 | FX16: 0.0743 | FY16: 0.0773 | FZ16: 0.0793 | GA16: 0.0838 | GB16: 0.0843 | GC16: 0.0888 | GD16: 0.0884 | GE16: 0.0856 | GF16: 0.0915 | GG16: 0.0926 | GH16: 0.0932 | GI16: 0.0982 | GJ16: 0.0975 | GK16: 0.0949 | GL16: 0.098 | GM16: 0.0961 | GN16: 0.0989 | GO16: 0.0961 | GP16: =FORECAST(GP14,$CO$16:GO16,$CO$14:GO14) -> 0.0647723339 | GQ16: =FORECAST(GQ14,$CO$16:GP16,$CO$14:GP14) -> 0.06431274167 | GR16: =FORECAST(GR14,$CO$16:GQ16,$CO$14:GQ14) -> 0.063867975
B17: DTF E.A%(fin mes) | C17: =+C55 -> 0.079 | D17: =+D55 -> 0.079 | E17: 0.079 | F17: 0.079 | G17: 0.079 | H17: 0.079 | I17: 0.079 | J17: 0.079 | K17: 0.079 | L17: 0.079 | M17: 0.079 | N17: 0.079 | O17: 0.08 | P17: 0.08 | Q17: 0.08 | R17: 0.08 | S17: 0.08 | T17: 0.08 | U17: 0.08 | V17: 0.08 | W17: 0.08 | X17: 0.08 | Y17: 0.08 | Z17: 0.08 | AA17: 0.08 | AB17: 0.08 | AC17: 0.08 | AD17: 0.08 | AE17: 0.08 | AF17: 0.08 | AG17: 0.08 | AH17: 0.08 | AI17: 0.08 | AJ17: 0.08 | AK17: 0.08 | AL17: 0.08 | AM17: 0.08 | AN17: 0.08 | AO17: 0.08 | AP17: 0.08 | AQ17: 0.08 | AR17: 0.08 | AS17: 0.08 | AT17: 0.08 | AU17: 0.08 | AV17: 0.08 | AW17: 0.08 | AX17: 0.08 | AY17: 0.08 | AZ17: 0.08 | BA17: 0.08 | BB17: 0.08 | BC17: 0.08 | BD17: 0.08 | BE17: 0.08 | BF17: 0.08 | BG17: 0.08 | BH17: 0.08 | BI17: 0.08 | BJ17: 0.08 | BK17: 0.08 | BL17: 0.08 | BM17: 0.08 | BN17: 0.08 | BO17: 0.08 | BP17: =+BP55 -> 0.08 | BQ17: 0.08 | BR17: 0.08 | BS17: 0.08 | BT17: 0.08 | BU17: 0.08 | BV17: 0.08 | BW17: 0.08 | BX17: 0.08 | BY17: 0.08 | BZ17: 0.08 | CA17: 0.08 | CB17: 0.08 | CC17: 0.08 | CD17: 0.08 | CE17: 0.08 | CF17: 0.08 | CG17: 0.08 | CH17: 0.08 | CN17: TRM (fin mes) | CO17: 1976.72 | CP17: 1946.17 | CQ17: 1951.56 | CR17: 2004.47 | CS17: 2084.92 | CT17: 2139.11 | CU17: 2172.79 | CV17: 2208.21 | CW17: 2212.26 | CX17: 2158.36 | CY17: 2172.84 | CZ17: 2229.18 | DA17: 2240.8 | DB17: 2257.45 | DC17: 2310.57 | DD17: 2346.73 | DE17: 2324.98 | DF17: 2298.85 | DG17: 2298.27 | DH17: 2301.23 | DI17: 2332.19 | DJ17: 2310.02 | DK17: 2308.59 | DL17: 2291.18 | DM17: 2264.82 | DN17: 2309.82 | DO17: 2261.23 | DP17: 2275.35 | DQ17: 2321.16 | DR17: 2398.82 | DS17: 2625.06 | DT17: 2703.55 | DU17: 2828.08 | DV17: 2773.73 | DW17: 2784.21 | DX17: 2864.79 | DY17: 2926.46 | DZ17: 2956.31 | EA17: 2958.25 | EB17: 2887.82 | EC17: 2853.33 | ED17: 2817.32 | EE17: 2880.4 | EF17: 2832.94 | EG17: 2889.39 | EH17: 2884.17 | EI17: 2836.05 | EJ17: 2778.21 | EK17: 2742.47 | EL17: 2682.34 | EM17: 2678.16 | EN17: 2646.99 | EO17: 2724.92 | EP17: 2699.58 | EQ17: 2612.44 | ER17: 2551.43 | ES17: 2595.17 | ET17: 2575.19 | EU17: 2479.1 | EV17: 2389.75 | EW17: 2367.76 | EX17: 2323.77 | EY17: 2376.48 | EZ17: 2348.32 | FA17: 2332.79 | FB17: 2331.81 | FC17: 2308.49 | FD17: 2304.3 | FE17: 2289.61 | FF17: 2289.57 | FG17: 2274.04 | FH17: 2284.22 | FI17: 2265.65 | FJ17: 2247.32 | FK17: 2289.98 | FL17: 2375.03 | FM17: 2482.41 | FN17: 2633.12 | FO17: 2426 | FP17: 2396.63 | FQ17: 2394.31 | FR17: 2315.38 | FS17: 2300.42 | FT17: 2238.79 | FU17: 2259.72 | FV17: 2224.12 | FW17: 2190.3 | FX17: 2110.67 | FY17: 1930.64 | FZ17: 1960.61 | GA17: 1971.8 | GB17: 2173.17 | GC17: 2023.19 | GD17: 1999.44 | GE17: 2060.42 | GF17: 2014.76 | GG17: 1939.6 | GH17: 1843.59 | GI17: 1821.6 | GJ17: 1780.21 | GK17: 1744.01 | GL17: 1923.02 | GM17: 1792.24 | GN17: 1932.2 | GO17: 2174.62 | GP17: =FORECAST(GP14,$CO$17:GO17,$CO$14:GO14) -> 2204.056468 | GQ17: =FORECAST(GQ14,$CO$17:GP17,$CO$14:GP14) -> 2201.164314 | GR17: =FORECAST(GR14,$CO$17:GQ17,$CO$14:GQ14) -> 2198.365456
B18: DTF T.A.% | C18: =(1-(1+C17)^-(90/360))*(360/90) -> 0.07531658434 | D18: =(1-(1+D17)^-(90/360))*(360/90) -> 0.07531658434 | E18: =(1-(1+E17)^-(90/360))*(360/90) -> 0.07531658434 | F18: 0.07531658434 | G18: 0.07531658434 | H18: 0.07531658434 | I18: 0.07531658434 | J18: 0.07531658434 | K18: 0.07531658434 | L18: 0.07531658434 | M18: 0.07531658434 | N18: 0.07531658434 | O18: 0.07622539149 | P18: 0.07622539149 | Q18: 0.07622539149 | R18: 0.07622539149 | S18: 0.07622539149 | T18: 0.07622539149 | U18: 0.07622539149 | V18: 0.07622539149 | W18: 0.07622539149 | X18: 0.07622539149 | Y18: 0.07622539149 | Z18: 0.07622539149 | AA18: 0.07622539149 | AB18: 0.07622539149 | AC18: 0.07622539149 | AD18: 0.07622539149 | AE18: 0.07622539149 | AF18: 0.07622539149 | AG18: 0.07622539149 | AH18: 0.07622539149 | AI18: 0.07622539149 | AJ18: 0.07622539149 | AK18: 0.07622539149 | AL18: 0.07622539149 | AM18: 0.07622539149 | AN18: 0.07622539149 | AO18: 0.07622539149 | AP18: 0.07622539149 | AQ18: 0.07622539149 | AR18: 0.07622539149 | AS18: 0.07622539149 | AT18: 0.07622539149 | AU18: 0.07622539149 | AV18: 0.07622539149 | AW18: 0.07622539149 | AX18: 0.07622539149 | AY18: 0.07622539149 | AZ18: 0.07622539149 | BA18: 0.07622539149 | BB18: 0.07622539149 | BC18: 0.07622539149 | BD18: 0.07622539149 | BE18: 0.07622539149 | BF18: 0.07622539149 | BG18: 0.07622539149 | BH18: 0.07622539149 | BI18: 0.07622539149 | BJ18: 0.07622539149 | BK18: 0.07622539149 | BL18: 0.07622539149 | BM18: 0.07622539149 | BN18: 0.07622539149 | BO18: 0.07622539149 | BP18: 0.07622539149 | BQ18: =(1-(1+BQ17)^-(90/360))*(360/90) -> 0.07622539149 | BR18: 0.07622539149 | BS18: 0.07622539149 | BT18: 0.07622539149 | BU18: 0.07622539149 | BV18: 0.07622539149 | BW18: 0.07622539149 | BX18: 0.07622539149 | BY18: 0.07622539149 | BZ18: 0.07622539149 | CA18: 0.07622539149 | CB18: 0.07622539149 | CC18: 0.07622539149 | CD18: 0.07622539149 | CE18: 0.07622539149 | CF18: 0.07622539149 | CG18: 0.07622539149 | CH18: 0.07622539149 | CN18: UVR (fin mes) | CO18: 103.8462 | CP18: 104.7584 | CQ18: 106.6219 | CR18: 108.7992 | CS18: 110.2905 | CT18: 111.1106 | CU18: 111.3876 | CV18: 111.3538 | CW18: 111.5102 | CX18: 111.9361 | CY18: 112.2529 | CZ18: 112.5283 | DA18: 112.9751 | DB18: 113.7767 | DC18: 115.5262 | DD18: 117.4371 | DE18: 119.0031 | DF18: 119.9144 | DG18: 120.1908 | DH18: 120.2823 | DI18: 120.5026 | DJ18: 120.8894 | DK18: 121.2206 | DL18: 121.4108 | DM18: 121.6943 | DN18: 122.3461 | DO18: 123.6661 | DP18: 124.8586 | DQ18: 125.8948 | DR18: 126.8327 | DS18: 127.4946 | DT18: 127.7728 | DU18: 127.8427 | DV18: 128.1376 | DW18: 128.7195 | DX18: 129.5981 | DY18: 130.2674 | DZ18: 131.1437 | EA18: 132.7175 | EB18: 134.127 | EC18: 135.6274 | ED18: 136.7135 | EE18: 137.0127 | EF18: 136.8806 | EG18: 136.9997 | EH18: 137.3675 | EI18: 137.5549 | EJ18: 137.8446 | EK18: 138.5119 | EL18: 139.5156 | EM18: 141.0221 | EN18: 142.5317 | EO18: 143.5681 | EP18: 144.1604 | EQ18: 144.8807 | ER18: 145.2782 | ES18: 145.2789 | ET18: 145.5255 | EU18: 145.7293 | EV18: 145.9324 | EW18: 146.3561 | EX18: 147.1252 | EY18: 148.5463 | EZ18: 149.8512 | FA18: 150.7683 | FB18: 151.3983 | FC18: 152.0213 | FD18: 152.3545 | FE18: 152.3914 | FF18: 152.7293 | FG18: 153.2226 | FH18: 153.4858 | FI18: 153.6229 | FJ18: 154.0596 | FK18: 155.0302 | FL18: 156.0678 | FM18: 156.9765 | FN18: 157.5773 | FO18: 158.0812 | FP18: 158.6452 | FQ18: 159.2693 | FR18: 159.8182 | FS18: 159.9302 | FT18: 160.0161 | FU18: 160.3919 | FV18: 161.1432 | FW18: 162.7811 | FX18: 164.6872 | FY18: 166.4485 | FZ18: 167.4223 | GA18: 167.777 | GB18: 168.0216 | GC18: 168.0505 | GD18: 168.0105 | GE18: 168.084 | GF18: 168.4997 | GG18: 169.309 | GH18: 170.576 | GI18: 172.8406 | GJ18: 174.8023 | GK18: 176.1509 | GL18: 177.5749 | GM18: 179.1889 | GN18: 180.3782 | GO18: 180.9683 | GP18: =FORECAST(GP14,$CO$18:GO18,$CO$14:GO14) -> 177.4968192 | GQ18: =FORECAST(GQ14,$CO$18:GP18,$CO$14:GP14) -> 178.1855549 | GR18: =FORECAST(GR14,$CO$18:GQ18,$CO$14:GQ14) -> 178.8520733
B19: DTF T.V.% | C19: =(((1+((1-(C18/4))^-4-1))^(90/360))-1)*(360/90) -> 0.07676194624 | D19: =(((1+((1-(D18/4))^-4-1))^(90/360))-1)*(360/90) -> 0.07676194624 | E19: =(((1+((1-(E18/4))^-4-1))^(90/360))-1)*(360/90) -> 0.07676194624 | F19: 0.07676194624 | G19: 0.07676194624 | H19: 0.07676194624 | I19: 0.07676194624 | J19: 0.07676194624 | K19: 0.07676194624 | L19: =(((1+((1-(L18/4))^-4-1))^(90/360))-1)*(360/90) -> 0.07676194624 | M19: 0.07676194624 | N19: 0.07676194624 | O19: 0.07770618763 | P19: 0.07770618763 | Q19: 0.07770618763 | R19: 0.07770618763 | S19: 0.07770618763 | T19: 0.07770618763 | U19: 0.07770618763 | V19: 0.07770618763 | W19: 0.07770618763 | X19: 0.07770618763 | Y19: 0.07770618763 | Z19: 0.07770618763 | AA19: 0.07770618763 | AB19: 0.07770618763 | AC19: 0.07770618763 | AD19: 0.07770618763 | AE19: 0.07770618763 | AF19: 0.07770618763 | AG19: 0.07770618763 | AH19: 0.07770618763 | AI19: 0.07770618763 | AJ19: 0.07770618763 | AK19: 0.07770618763 | AL19: 0.07770618763 | AM19: 0.07770618763 | AN19: 0.07770618763 | AO19: 0.07770618763 | AP19: 0.07770618763 | AQ19: 0.07770618763 | AR19: =(((1+((1-(AR18/4))^-4-1))^(90/360))-1)*(360/90) -> 0.07770618763 | AS19: 0.07770618763 | AT19: 0.07770618763 | AU19: 0.07770618763 | AV19: 0.07770618763 | AW19: 0.07770618763 | AX19: 0.07770618763 | AY19: 0.07770618763 | AZ19: 0.07770618763 | BA19: 0.07770618763 | BB19: 0.07770618763 | BC19: 0.07770618763 | BD19: 0.07770618763 | BE19: 0.07770618763 | BF19: 0.07770618763 | BG19: 0.07770618763 | BH19: 0.07770618763 | BI19: 0.07770618763 | BJ19: 0.07770618763 | BK19: 0.07770618763 | BL19: 0.07770618763 | BM19: 0.07770618763 | BN19: 0.07770618763 | BO19: 0.07770618763 | BP19: 0.07770618763 | BQ19: 0.07770618763 | BR19: 0.07770618763 | BS19: 0.07770618763 | BT19: 0.07770618763 | BU19: 0.07770618763 | BV19: 0.07770618763 | BW19: 0.07770618763 | BX19: =(((1+((1-(BX18/4))^-4-1))^(90/360))-1)*(360/90) -> 0.07770618763 | BY19: 0.07770618763 | BZ19: 0.07770618763 | CA19: 0.07770618763 | CB19: 0.07770618763 | CC19: 0.07770618763 | CD19: 0.07770618763 | CE19: 0.07770618763 | CF19: 0.07770618763 | CG19: 0.07770618763 | CH19: 0.07770618763
B20: DTF mensual periodica | C20: =+C19/12 -> 0.006396828853 | D20: =+D19/12 -> 0.006396828853 | E20: 0.006396828853 | F20: 0.006396828853 | G20: 0.006396828853 | H20: 0.006396828853 | I20: 0.006396828853 | J20: 0.006396828853 | K20: 0.006396828853 | L20: 0.006396828853 | M20: 0.006396828853 | N20: 0.006396828853 | O20: 0.006475515636 | P20: 0.006475515636 | Q20: 0.006475515636 | R20: 0.006475515636 | S20: 0.006475515636 | T20: 0.006475515636 | U20: =+U19/12 -> 0.006475515636 | V20: 0.006475515636 | W20: 0.006475515636 | X20: 0.006475515636 | Y20: 0.006475515636 | Z20: 0.006475515636 | AA20: 0.006475515636 | AB20: 0.006475515636 | AC20: 0.006475515636 | AD20: 0.006475515636 | AE20: 0.006475515636 | AF20: 0.006475515636 | AG20: 0.006475515636 | AH20: 0.006475515636 | AI20: 0.006475515636 | AJ20: 0.006475515636 | AK20: 0.006475515636 | AL20: 0.006475515636 | AM20: 0.006475515636 | AN20: 0.006475515636 | AO20: 0.006475515636 | AP20: 0.006475515636 | AQ20: 0.006475515636 | AR20: 0.006475515636 | AS20: 0.006475515636 | AT20: 0.006475515636 | AU20: 0.006475515636 | AV20: 0.006475515636 | AW20: 0.006475515636 | AX20: 0.006475515636 | AY20: 0.006475515636 | AZ20: 0.006475515636 | BA20: =+BA19/12 -> 0.006475515636 | BB20: 0.006475515636 | BC20: 0.006475515636 | BD20: 0.006475515636 | BE20: 0.006475515636 | BF20: 0.006475515636 | BG20: 0.006475515636 | BH20: 0.006475515636 | BI20: 0.006475515636 | BJ20: 0.006475515636 | BK20: 0.006475515636 | BL20: 0.006475515636 | BM20: 0.006475515636 | BN20: 0.006475515636 | BO20: 0.006475515636 | BP20: 0.006475515636 | BQ20: 0.006475515636 | BR20: 0.006475515636 | BS20: 0.006475515636 | BT20: 0.006475515636 | BU20: 0.006475515636 | BV20: 0.006475515636 | BW20: 0.006475515636 | BX20: 0.006475515636 | BY20: 0.006475515636 | BZ20: 0.006475515636 | CA20: 0.006475515636 | CB20: 0.006475515636 | CC20: 0.006475515636 | CD20: 0.006475515636 | CE20: 0.006475515636 | CF20: 0.006475515636 | CG20: =+CG19/12 -> 0.006475515636 | CH20: =+CH19/12 -> 0.006475515636
B21: UVR (fin mes) | C21: =+C63 -> 189 | D21: =+D63 -> 189 | E21: 189 | F21: 189 | G21: 189 | H21: 189 | I21: 189 | J21: 189 | K21: 189 | L21: 189 | M21: 189 | N21: 189 | O21: 199 | P21: 199 | Q21: 199 | R21: 199 | S21: 199 | T21: 199 | U21: 199 | V21: 199 | W21: 199 | X21: 199 | Y21: 199 | Z21: 199 | AA21: 209 | AB21: 209 | AC21: 209 | AD21: 209 | AE21: 209 | AF21: 209 | AG21: 209 | AH21: 209 | AI21: 209 | AJ21: 209 | AK21: 209 | AL21: 209 | AM21: 219 | AN21: 219 | AO21: 219 | AP21: 219 | AQ21: 219 | AR21: 219 | AS21: 219 | AT21: 219 | AU21: 219 | AV21: 219 | AW21: 219 | AX21: 219 | AY21: 229 | AZ21: 229 | BA21: 229 | BB21: 229 | BC21: 229 | BD21: 229 | BE21: 229 | BF21: 229 | BG21: 229 | BH21: 229 | BI21: 229 | BJ21: 229 | BK21: 239 | BL21: 239 | BM21: 239 | BN21: 239 | BO21: 239 | BP21: =+BP63 -> 239 | BQ21: 239 | BR21: 239 | BS21: 239 | BT21: 239 | BU21: 239 | BV21: 239 | BW21: 249 | BX21: 249 | BY21: 249 | BZ21: 249 | CA21: 249 | CB21: 249 | CC21: 249 | CD21: 249 | CE21: 249 | CF21: 249 | CG21: 249 | CH21: 249 | CN21: Base de Datos Variables Macro | CO21: =+CO14 -> 2000-01-01 | CP21: 2000-02-01 | CQ21: 2000-03-01 | CR21: 2000-04-01 | CS21: 2000-05-01 | CT21: 2000-06-01 | CU21: 2000-07-01 | CV21: 2000-08-01 | CW21: 2000-09-01 | CX21: 2000-10-01 | CY21: 2000-11-01 | CZ21: 2000-12-01 | DA21: 2001-01-01 | DB21: 2001-02-01 | DC21: 2001-03-01 | DD21: 2001-04-01 | DE21: 2001-05-01 | DF21: 2001-06-01 | DG21: 2001-07-01 | DH21: 2001-08-01 | DI21: 2001-09-01 | DJ21: 2001-10-01 | DK21: 2001-11-01 | DL21: 2001-12-01 | DM21: 2002-01-01 | DN21: 2002-02-01 | DO21: 2002-03-01 | DP21: 2002-04-01 | DQ21: 2002-05-01 | DR21: 2002-06-01 | DS21: 2002-07-01 | DT21: 2002-08-01 | DU21: =+DU14 -> 2002-09-01 | DV21: 2002-10-01 | DW21: 2002-11-01 | DX21: 2002-12-01 | DY21: 2003-01-01 | DZ21: 2003-02-01 | EA21: 2003-03-01 | EB21: 2003-04-01 | EC21: 2003-05-01 | ED21: 2003-06-01 | EE21: 2003-07-01 | EF21: 2003-08-01 | EG21: 2003-09-01 | EH21: 2003-10-01 | EI21: 2003-11-01 | EJ21: 2003-12-01 | EK21: 2004-01-01 | EL21: 2004-02-01 | EM21: 2004-03-01 | EN21: 2004-04-01 | EO21: 2004-05-01 | EP21: 2004-06-01 | EQ21: 2004-07-01 | ER21: 2004-08-01 | ES21: 2004-09-01 | ET21: 2004-10-01 | EU21: 2004-11-01 | EV21: 2004-12-01 | EW21: 2005-01-01 | EX21: 2005-02-01 | EY21: 2005-03-01 | EZ21: 2005-04-01 | FA21: =+FA14 -> 2005-05-01 | FB21: 2005-06-01 | FC21: 2005-07-01 | FD21: 2005-08-01 | FE21: 2005-09-01 | FF21: 2005-10-01 | FG21: 2005-11-01 | FH21: 2005-12-01 | FI21: 2006-01-01 | FJ21: 2006-02-01 | FK21: 2006-03-01 | FL21: 2006-04-01 | FM21: 2006-05-01 | FN21: 2006-06-01 | FO21: 2006-07-01 | FP21: 2006-08-01 | FQ21: 2006-09-01 | FR21: 2006-10-01 | FS21: 2006-11-01 | FT21: 2006-12-01 | FU21: 2007-01-01 | FV21: 2007-02-01 | FW21: 2007-03-01 | FX21: 2007-04-01 | FY21: 2007-05-01 | FZ21: 2007-06-01 | GA21: 2007-07-01 | GB21: 2007-08-01 | GC21: 2007-09-01 | GD21: 2007-10-01 | GE21: 2007-11-01 | GF21: 2007-12-01 | GG21: =+GG14 -> 2008-01-01 | GH21: 2008-02-01 | GI21: 2008-03-01 | GJ21: 2008-04-01 | GK21: 2008-05-01 | GL21: 2008-06-01 | GM21: 2008-07-01 | GN21: 2008-08-01 | GO21: 2008-09-01 | GP21: 2008-10-01 | GQ21: 2008-11-01 | GR21: 2008-12-01 | GS21: 2009-01-01 | GT21: 2009-02-01 | GU21: 2009-03-01 | GV21: 2009-04-01 | GW21: 2009-05-01 | GX21: 2009-06-01 | GY21: 2009-07-01 | GZ21: 2009-08-01 | HA21: 2009-09-01 | HB21: 2009-10-01 | HC21: 2009-11-01 | HD21: 2009-12-01 | HE21: 2010-01-01 | HF21: 2010-02-01 | HG21: 2010-03-01 | HH21: 2010-04-01 | HI21: 2010-05-01 | HJ21: 2010-06-01 | HK21: 2010-07-01 | HL21: 2010-08-01 | HM21: 2010-09-01 | HN21: 2010-10-01 | HO21: 2010-11-01 | HP21: 2010-12-01
B22: TRM | C22: =+C71 -> 2255.130196 | D22: =+D71 -> 2266.72975 | E22: 2278.388968 | F22: 2290.108157 | G22: 2301.887625 | H22: 2313.727683 | I22: 2325.628641 | J22: 2337.590813 | K22: 2349.614514 | L22: 2361.700061 | M22: 2373.847771 | N22: 2386.057965 | O22: 2395.779061 | P22: 2405.539761 | Q22: 2415.340228 | R22: 2425.180623 | S22: 2435.061109 | T22: 2444.981849 | U22: 2454.943008 | V22: 2464.94475 | W22: 2474.98724 | X22: 2485.070644 | Y22: 2495.195129 | Z22: 2505.360863 | AA22: 2515.568014 | AB22: 2525.816749 | AC22: 2536.107239 | AD22: 2546.439654 | AE22: 2556.814164 | AF22: 2567.230942 | AG22: 2577.690158 | AH22: 2588.191987 | AI22: 2598.736602 | AJ22: 2609.324176 | AK22: 2619.954886 | AL22: 2630.628906 | AM22: 2641.346414 | AN22: 2652.107586 | AO22: 2662.912601 | AP22: 2673.761637 | AQ22: 2684.654872 | AR22: 2695.592489 | AS22: 2706.574666 | AT22: 2717.601586 | AU22: 2728.673432 | AV22: 2739.790385 | AW22: 2750.95263 | AX22: 2762.160352 | AY22: 2773.413735 | AZ22: 2784.712966 | BA22: 2796.058231 | BB22: 2807.449718 | BC22: 2818.887616 | BD22: 2830.372113 | BE22: 2841.9034 | BF22: 2853.481666 | BG22: 2865.107103 | BH22: 2876.779904 | BI22: 2888.500262 | BJ22: 2900.268369 | BK22: 2912.084422 | BL22: 2923.948614 | BM22: 2935.861143 | BN22: 2947.822204 | BO22: 2959.831997 | BP22: =+BP71 -> 2971.890719 | BQ22: 2983.99857 | BR22: 2996.155749 | BS22: 3008.362458 | BT22: 3020.618899 | BU22: 3032.925275 | BV22: 3045.281788 | BW22: 3057.688643 | BX22: 3070.146045 | BY22: 3082.6542 | BZ22: 3095.213315 | CA22: 3107.823597 | CB22: 3120.485255 | CC22: 3133.198498 | CD22: 3145.963537 | CE22: 3158.780581 | CF22: 3171.649844 | CG22: 3184.571539 | CH22: 3197.545877 | CN22: IPC % | CP22: =IF(CP15="","",(CP15/CO15)) -> 1.078787879 | CQ22: 1.092134831 | CR22: 1.024691358 | CS22: 1.004016064 | CT22: 0.968 | CU22: 0.9597107438 | CV22: 0.979547901 | CW22: 1.012087912 | CX22: 0.9761129207 | CY22: 0.9810901001 | CZ22: 0.9920634921 | DA22: 0.9714285714 | DB22: 0.9482352941 | DC22: 0.9702233251 | DD22: 1.019181586 | DE22: 0.9861982434 | DF22: 1.007633588 | DG22: 1.021464646 | DH22: 0.9925834363 | DI22: 0.9925280199 | DJ22: 1.003764115 | DK22: 0.9725 | DL22: 0.9832904884 | DM22: 0.9633986928 | DN22: 0.9090909091 | DO22: 0.8791044776 | DP22: 0.9592529711 | DQ22: 1.033628319 | DR22: 1.070205479 | DS22: 0.9856 | DT22: 0.9707792208 | DU22: 0.9983277592 | DV22: =IF(DV15="","",(DV15/DU15)) -> 1.067001675 | DW22: 1.10989011 | DX22: 0.9886845827 | DY22: 1.057224607 | DZ22: 0.9797023004 | EA22: 1.049723757 | EB22: 1.032894737 | EC22: 0.9847133758 | ED22: 0.9327296248 | EE22: 0.9764216366 | EF22: 1.03125 | EG22: 0.979338843 | EH22: 0.9254571027 | EI22: 0.9316109422 | EJ22: 1.058727569 | EK22: 0.9537750385 | EL22: 1.01453958 | EM22: 0.9888535032 | EN22: 0.884057971 | EO22: 0.9781420765 | EP22: 1.130353818 | EQ22: 1.019769357 | ER22: 0.9515347334 | ES22: 1.013582343 | ET22: 0.9882747069 | EU22: 0.986440678 | EV22: 0.9450171821 | EW22: 0.9872727273 | EX22: 0.9668508287 | EY22: 0.9580952381 | EZ22: 0.9960238569 | FA22: 1.005988024 | FB22: =IF(FB15="","",(FB15/FA15)) -> 0.9583333333 | FC22: 1.016563147 | FD22: 0.9938900204 | FE22: 1.028688525 | FF22: 1.049800797 | FG22: 0.9677419355 | FH22: 0.9509803922 | FI22: 0.9402061856 | FJ22: 0.9188596491 | FK22: 0.9809069212 | FL22: 1.00243309 | FM22: 0.9805825243 | FN22: 0.9752475248 | FO22: 1.096446701 | FP22: 1.092592593 | FQ22: 0.9703389831 | FR22: 0.9148471616 | FS22: 1.028639618 | FT22: 1.039443155 | FU22: 1.051339286 | FV22: 1.114649682 | FW22: 1.100952381 | FX22: 1.083044983 | FY22: 0.9952076677 | FZ22: 0.9678972713 | GA22: 0.9568822554 | GB22: 0.9046793761 | GC22: 0.9597701149 | GD22: 1.02994012 | GE22: 1.048449612 | GF22: 1.051756007 | GG22: 1.054481547 | GH22: =IF(GH15="","",(GH15/GG15)) -> 1.058333333 | GI22: 0.9338582677 | GJ22: 0.9662731872 | GK22: 1.115183246 | GL22: 1.123630673 | GM22: 1.04735376 | GN22: 1.046542553 | GO22: 0.5707976493 | GP22: 0.9918244183 | GQ22: 0.9914822615 | GR22: 0.9916862126
B23: Devaluación anual | C23: =+D38 -> 0.0635 | D23: =+C23 -> 0.0635 | E23: =+D23 -> 0.0635 | F23: 0.0635 | G23: 0.0635 | H23: 0.0635 | I23: 0.0635 | J23: 0.0635 | K23: 0.0635 | L23: 0.0635 | M23: 0.0635 | N23: 0.0635 | O23: =+E38 -> 0.05 | P23: =+O23 -> 0.05 | Q23: =+P23 -> 0.05 | R23: 0.05 | S23: 0.05 | T23: 0.05 | U23: 0.05 | V23: 0.05 | W23: 0.05 | X23: 0.05 | Y23: 0.05 | Z23: 0.05 | AA23: =+F38 -> 0.05 | AB23: =+AA23 -> 0.05 | AC23: =+AB23 -> 0.05 | AD23: 0.05 | AE23: 0.05 | AF23: 0.05 | AG23: 0.05 | AH23: 0.05 | AI23: 0.05 | AJ23: 0.05 | AK23: 0.05 | AL23: 0.05 | AM23: =+G38 -> 0.05 | AN23: =+AM23 -> 0.05 | AO23: =+AN23 -> 0.05 | AP23: 0.05 | AQ23: 0.05 | AR23: 0.05 | AS23: 0.05 | AT23: 0.05 | AU23: 0.05 | AV23: 0.05 | AW23: 0.05 | AX23: 0.05 | AY23: =+H38 -> 0.05 | AZ23: =+AY23 -> 0.05 | BA23: =+AZ23 -> 0.05 | BB23: 0.05 | BC23: 0.05 | BD23: 0.05 | BE23: 0.05 | BF23: 0.05 | BG23: 0.05 | BH23: 0.05 | BI23: 0.05 | BJ23: 0.05 | BK23: =+I38 -> 0.05 | BL23: =+BK23 -> 0.05 | BM23: =+BL23 -> 0.05 | BN23: 0.05 | BO23: 0.05 | BP23: 0.05 | BQ23: 0.05 | BR23: 0.05 | BS23: 0.05 | BT23: 0.05 | BU23: 0.05 | BV23: 0.05 | BW23: =+J38 -> 0.05 | BX23: =+BW23 -> 0.05 | BY23: =+BX23 -> 0.05 | BZ23: 0.05 | CA23: 0.05 | CB23: 0.05 | CC23: 0.05 | CD23: 0.05 | CE23: 0.05 | CF23: 0.05 | CG23: 0.05 | CH23: =+CG23 -> 0.05 | CN23: DTF E.A%(fin mes) | CP23: =IF(CP16="","",(CP16/CO16)) -> 0.8534979424 | CQ23: =IF(CQ16="","",(CQ16/CP16)) -> 1.058823529 | CR23: 1.044626594 | CS23: 1.030514385 | CT23: 1.012690355 | CU23: 1.027568922 | CV23: 1.022764228 | CW23: 1.029411765 | CX23: 1 | CY23: 1.011583012 | CZ23: 1.019083969 | DA23: 1.01423221 | DB23: 0.9815361891 | DC23: 0.9751693002 | DD23: 0.9807098765 | DE23: 1.001573564 | DF23: 1.001571092 | DG23: 0.9929411765 | DH23: 0.9707740916 | DI23: 0.967453214 | DJ23: 0.9571068124 | DK23: 1.005272408 | DL23: 1.002622378 | DM23: 0.9721011334 | DN23: 0.9569506726 | DO23: 0.9887535145 | DP23: 0.9241706161 | DQ23: 0.9241025641 | DR23: 0.9112097669 | DS23: 0.9427527406 | DT23: 1.033591731 | DU23: 0.98875 | DV23: 0.9987357775 | DW23: 1.001265823 | DX23: 0.9734513274 | DY23: 0.9935064935 | DZ23: 1.022222222 | EA23: 0.9820971867 | EB23: 1.00390625 | EC23: 1.012970169 | ED23: 1 | EE23: 1.002560819 | EF23: 1.006385696 | EG23: 0.9860406091 | EH23: 1.006435006 | EI23: 1.003836317 | EJ23: 1.008917197 | EK23: 1.008838384 | EL23: 0.9712140175 | EM23: 1.006443299 | EN23: 0.9923175416 | EO23: 1.018064516 | EP23: 0.989860583 | EQ23: 0.9974391805 | ER23: 1.001283697 | ES23: 0.9897435897 | ET23: 1 | EU23: 0.9948186528 | EV23: 1.00390625 | EW23: 0.990920882 | EX23: 0.9712041885 | EY23: 1.002695418 | EZ23: 0.9758064516 | FA23: 0.9807162534 | FB23: 1.008426966 | FC23: 0.9944289694 | FD23: 0.9719887955 | FE23: 0.9827089337 | FF23: 0.9472140762 | FG23: 0.9891640867 | FH23: 0.9874804382 | FI23: 0.9651347068 | FJ23: 0.9819376026 | FK23: 0.9899665552 | FL23: 0.9949324324 | FM23: 1.015280136 | FN23: 1.026755853 | FO23: 1.09771987 | FP23: 0.9139465875 | FQ23: 1.060064935 | FR23: 1.022970904 | FS23: 1.002994012 | FT23: 1.017910448 | FU23: 1 | FV23: 0.9765395894 | FW23: 1.141141141 | FX23: 0.9776315789 | FY23: 1.040376851 | FZ23: 1.025873221 | GA23: 1.056746532 | GB23: 1.005966587 | GC23: 1.053380783 | GD23: 0.9954954955 | GE23: 0.9683257919 | GF23: 1.068925234 | GG23: 1.012021858 | GH23: 1.006479482 | GI23: 1.053648069 | GJ23: 0.9928716904 | GK23: 0.9733333333 | GL23: 1.032665964 | GM23: 0.9806122449 | GN23: 1.029136316 | GO23: 0.9716885743 | GP23: 0.674009718 | GQ23: 0.992904498 | GR23: 0.9930843149 | GS23: =IF(GS16="","",(GS16/GR16)) -> 
B24: Devaluación forward | C24: =+D39 -> 0.06 | D24: =+C24 -> 0.06 | E24: 0.06 | F24: 0.06 | G24: 0.06 | H24: 0.06 | I24: 0.06 | J24: 0.06 | K24: 0.06 | L24: 0.06 | M24: 0.06 | N24: 0.06 | O24: =+E39 -> 0.06 | P24: =+O24 -> 0.06 | Q24: 0.06 | R24: 0.06 | S24: 0.06 | T24: 0.06 | U24: 0.06 | V24: 0.06 | W24: 0.06 | X24: 0.06 | Y24: 0.06 | Z24: 0.06 | AA24: =+F39 -> 0.06 | AB24: =+AA24 -> 0.06 | AC24: 0.06 | AD24: 0.06 | AE24: 0.06 | AF24: 0.06 | AG24: 0.06 | AH24: 0.06 | AI24: 0.06 | AJ24: 0.06 | AK24: 0.06 | AL24: 0.06 | AM24: =+G39 -> 0.06 | AN24: =+AM24 -> 0.06 | AO24: 0.06 | AP24: 0.06 | AQ24: 0.06 | AR24: 0.06 | AS24: 0.06 | AT24: 0.06 | AU24: 0.06 | AV24: 0.06 | AW24: 0.06 | AX24: 0.06 | AY24: =+H39 -> 0.06 | AZ24: =+AY24 -> 0.06 | BA24: 0.06 | BB24: 0.06 | BC24: 0.06 | BD24: 0.06 | BE24: 0.06 | BF24: 0.06 | BG24: 0.06 | BH24: 0.06 | BI24: 0.06 | BJ24: 0.06 | BK24: =+I39 -> 0.06 | BL24: =+BK24 -> 0.06 | BM24: 0.06 | BN24: 0.06 | BO24: 0.06 | BP24: 0.06 | BQ24: 0.06 | BR24: 0.06 | BS24: 0.06 | BT24: 0.06 | BU24: 0.06 | BV24: 0.06 | BW24: =+J39 -> 0.06 | BX24: =+BW24 -> 0.06 | BY24: 0.06 | BZ24: 0.06 | CA24: 0.06 | CB24: 0.06 | CC24: 0.06 | CD24: 0.06 | CE24: 0.06 | CF24: 0.06 | CG24: 0.06 | CH24: =+CG24 -> 0.06 | CN24: TRM | CP24: =IF(CP17="","",(CP17/CO17)) -> 0.984545105 | CQ24: 1.002769542 | CR24: 1.027111644 | CS24: 1.040135298 | CT24: 1.025991405 | CU24: 1.015744866 | CV24: 1.016301621 | CW24: 1.001834065 | CX24: 0.9756357752 | CY24: 1.006708797 | CZ24: 1.025929199 | DA24: 1.005212679 | DB24: 1.007430382 | DC24: 1.023530975 | DD24: 1.015649818 | DE24: 0.9907317842 | DF24: 0.9887611936 | DG24: 0.9997476999 | DH24: 1.001287925 | DI24: 1.013453675 | DJ24: 0.9904939134 | DK24: 0.9993809577 | DL24: 0.9924586003 | DM24: 0.9884950113 | DN24: 1.019869129 | DO24: 0.9789637288 | DP24: 1.006244389 | DQ24: 1.020133166 | DR24: 1.033457409 | DS24: 1.094313037 | DT24: 1.029900269 | DU24: 1.04606166 | DV24: 0.9807820147 | DW24: 1.003778306 | DX24: 1.028941782 | DY24: 1.021526883 | DZ24: 1.010200037 | EA24: 1.000656223 | EB24: 0.9761920054 | EC24: 0.9880567348 | ED24: 0.9873796582 | EE24: 1.022390073 | EF24: 0.9835231218 | EG24: 1.019926296 | EH24: 0.9981933903 | EI24: 0.983315824 | EJ24: 0.9796054371 | EK24: 0.9871356017 | EL24: 0.9780745095 | EM24: 0.9984416591 | EN24: 0.9883614123 | EO24: 1.029440988 | EP24: 0.9907006444 | EQ24: 0.9677209047 | ER24: 0.9766463536 | ES24: 1.017143327 | ET24: 0.9923010824 | EU24: 0.9626862484 | EV24: 0.9639586947 | EW24: 0.9907982006 | EX24: 0.9814212589 | EY24: 1.022682968 | EZ24: 0.988150542 | FA24: 0.9933867616 | FB24: 0.9995799022 | FC24: 0.9899991852 | FD24: 0.9981849607 | FE24: 0.993624962 | FF24: 0.9999825298 | FG24: 0.993217067 | FH24: 1.004476614 | FI24: 0.9918703102 | FJ24: 0.9919096065 | FK24: 1.01898261 | FL24: 1.037140062 | FM24: 1.04521206 | FN24: 1.060711164 | FO24: 0.921340463 | FP24: 0.9878936521 | FQ24: 0.9990319741 | FR24: 0.9670343439 | FS24: 0.9935388576 | FT24: 0.9732092401 | FU24: 1.0093488 | FV24: 0.9842458358 | FW24: 0.9847939859 | FX24: 0.9636442496 | FY24: 0.9147048094 | FZ24: 1.01552335 | GA24: 1.005707407 | GB24: 1.102124962 | GC24: 0.9309856109 | GD24: 0.9882611124 | GE24: 1.03049854 | GF24: 0.9778394696 | GG24: 0.9626953086 | GH24: 0.9505001031 | GI24: 0.9880721852 | GJ24: 0.977278217 | GK24: 0.9796653204 | GL24: 1.10264276 | GM24: 0.931992387 | GN24: 1.07809222 | GO24: 1.125463203 | GP24: 1.013536373 | GQ24: 0.9986878041 | GR24: 0.9987284645
CN25: UVR (fin mes) | CP25: =IF(CP18="","",(CP18/CO18)) -> 1.008784144 | CQ25: =IF(CQ18="","",(CQ18/CP18)) -> 1.01778855 | CR25: 1.020420758 | CS25: 1.013706902 | CT25: 1.007435817 | CU25: 1.002493011 | CV25: 0.9996965551 | CW25: 1.001404532 | CX25: 1.003819382 | CY25: 1.002830186 | CZ25: 1.002453389 | DA25: 1.003970557 | DB25: 1.007095369 | DC25: 1.015376611 | DD25: 1.016540837 | DE25: 1.013334798 | DF25: 1.007657784 | DG25: 1.002304978 | DH25: 1.00076129 | DI25: 1.001831525 | DJ25: 1.003209889 | DK25: 1.002739694 | DL25: 1.00156904 | DM25: 1.002335048 | DN25: 1.005356044 | DO25: 1.010789065 | DP25: 1.009642901 | DQ25: 1.008298988 | DR25: 1.007449871 | DS25: 1.005218686 | DT25: 1.002182053 | DU25: 1.000547065 | DV25: 1.002306741 | DW25: 1.004541212 | DX25: 1.006825695 | DY25: 1.005164428 | DZ25: 1.006726932 | EA25: 1.012000576 | EB25: 1.010620303 | EC25: 1.011186413 | ED25: 1.008007969 | EE25: 1.002188518 | EF25: 0.9990358558 | EG25: 1.000870101 | EH25: 1.002684677 | EI25: 1.001364224 | EJ25: 1.002106068 | EK25: 1.004840959 | EL25: 1.007246309 | EM25: 1.010798076 | EN25: 1.010704705 | EO25: 1.007271365 | EP25: 1.004125568 | EQ25: 1.004996518 | ER25: 1.002743637 | ES25: 1.000004818 | ET25: 1.001697425 | EU25: 1.001400442 | EV25: 1.00139368 | EW25: 1.002903399 | EX25: 1.005254991 | EY25: 1.00965912 | EZ25: 1.008784467 | FA25: 1.006120071 | FB25: 1.004178597 | FC25: =IF(FC18="","",(FC18/FB18)) -> 1.004114974 | FD25: 1.002191798 | FE25: 1.000242198 | FF25: 1.002217317 | FG25: 1.003229898 | FH25: 1.001717762 | FI25: 1.000893242 | FJ25: 1.002842675 | FK25: 1.006300159 | FL25: 1.00669289 | FM25: 1.005822469 | FN25: 1.003827324 | FO25: 1.003197796 | FP25: 1.003567787 | FQ25: 1.003933936 | FR25: 1.003446364 | FS25: 1.000700796 | FT25: 1.000537109 | FU25: 1.002348514 | FV25: 1.004684152 | FW25: 1.010164251 | FX25: 1.01170959 | FY25: 1.01069482 | FZ25: 1.005850458 | GA25: 1.002118595 | GB25: 1.001457888 | GC25: 1.000172002 | GD25: 0.9997619763 | GE25: 1.000437473 | GF25: 1.002473168 | GG25: 1.004802976 | GH25: 1.007483359 | GI25: 1.013276194 | GJ25: 1.011349764 | GK25: 1.007715001 | GL25: 1.008083978 | GM25: 1.009089122 | GN25: 1.00663713 | GO25: 1.00327146 | GP25: 0.9808171883 | GQ25: 1.003880271 | GR25: 1.003740586
CJ26: Ponderación %
B27: Variables Internas FINDETER | D27: =+D10 -> 2009 | E27: =+D27+1 -> 2010 | F27: =+E27+1 -> 2011 | G27: =+F27+1 -> 2012 | H27: 2013 | I27: 2014 | J27: 2015 | K27: 2016 | L27: 2017 | M27: 2018 | CJ27: Variable | CK27: Lineal | CL27: Probable
B28: Proyección de Redescuentos (Miles de $) | D28: =+'Mod. Sensibilización'!C23 -> 1500000000 | E28: =+'Mod. Sensibilización'!D23 -> 1574999999 | F28: =+'Mod. Sensibilización'!E23 -> 1645874998 | G28: =+'Mod. Sensibilización'!F23 -> 1719939372 | H28: =+'Mod. Sensibilización'!G23 -> 1797336643 | I28: =+'Mod. Sensibilización'!H23 -> 1878216791 | J28: =+'Mod. Sensibilización'!I23 -> 1962736545 | K28: =J28*(1+J32) -> 2051059690 | L28: =K28*(1+K32) -> 2143357376 | M28: =L28*(1+L32) -> 2239808458 | CJ28: IPC | CK28: 0.5 | CL28: =100%-CK28 -> 0.5 | CN28: Pronostico | CO28: =+C10 -> 2009-01-01 | CP28: =EDATE(CO28,1) -> 2009-02-01 | CQ28: =EDATE(CP28,1) -> 2009-03-01 | CR28: =EDATE(CQ28,1) -> 2009-04-01 | CS28: 2009-05-01 | CT28: 2009-06-01 | CU28: 2009-07-01 | CV28: 2009-08-01 | CW28: 2009-09-01 | CX28: 2009-10-01 | CY28: 2009-11-01 | CZ28: 2009-12-01 | DA28: 2010-01-01 | DB28: 2010-02-01 | DC28: 2010-03-01 | DD28: 2010-04-01 | DE28: 2010-05-01 | DF28: 2010-06-01 | DG28: 2010-07-01 | DH28: 2010-08-01 | DI28: 2010-09-01 | DJ28: 2010-10-01 | DK28: 2010-11-01 | DL28: 2010-12-01 | DM28: 2011-01-01 | DN28: 2011-02-01 | DO28: 2011-03-01 | DP28: 2011-04-01 | DQ28: 2011-05-01 | DR28: 2011-06-01 | DS28: 2011-07-01 | DT28: 2011-08-01 | DU28: 2011-09-01 | DV28: 2011-10-01 | DW28: 2011-11-01 | DX28: 2011-12-01 | DY28: 2012-01-01 | DZ28: 2012-02-01 | EA28: 2012-03-01 | EB28: 2012-04-01 | EC28: 2012-05-01 | ED28: 2012-06-01 | EE28: 2012-07-01 | EF28: 2012-08-01 | EG28: 2012-09-01 | EH28: 2012-10-01 | EI28: 2012-11-01 | EJ28: 2012-12-01 | EK28: 2013-01-01 | EL28: 2013-02-01 | EM28: 2013-03-01 | EN28: 2013-04-01 | EO28: 2013-05-01 | EP28: 2013-06-01 | EQ28: 2013-07-01 | ER28: 2013-08-01 | ES28: 2013-09-01 | ET28: 2013-10-01 | EU28: 2013-11-01 | EV28: 2013-12-01 | EW28: 2014-01-01 | EX28: 2014-02-01 | EY28: 2014-03-01 | EZ28: 2014-04-01 | FA28: 2014-05-01 | FB28: 2014-06-01 | FC28: 2014-07-01 | FD28: =EDATE(FC28,1) -> 2014-08-01 | FE28: 2014-09-01 | FF28: 2014-10-01 | FG28: 2014-11-01 | FH28: 2014-12-01 | FI28: 2015-01-01 | FJ28: 2015-02-01 | FK28: 2015-03-01 | FL28: 2015-04-01 | FM28: 2015-05-01 | FN28: 2015-06-01 | FO28: 2015-07-01 | FP28: 2015-08-01 | FQ28: 2015-09-01 | FR28: 2015-10-01 | FS28: 2015-11-01 | FT28: 2015-12-01 | FU28: 2016-01-01 | FV28: 2016-02-01 | FW28: 2016-03-01 | FX28: 2016-04-01 | FY28: 2016-05-01 | FZ28: 2016-06-01 | GA28: 2016-07-01 | GB28: 2016-08-01 | GC28: 2016-09-01 | GD28: 2016-10-01 | GE28: 2016-11-01 | GF28: 2016-12-01 | GG28: 2017-01-01 | GH28: 2017-02-01 | GI28: 2017-03-01 | GJ28: 2017-04-01 | GK28: 2017-05-01 | GL28: 2017-06-01 | GM28: 2017-07-01 | GN28: 2017-08-01 | GO28: 2017-09-01 | GP28: 2017-10-01 | GQ28: 2017-11-01 | GR28: 2017-12-01 | GS28: 2018-01-01 | GT28: 2018-02-01 | GU28: 2018-03-01 | GV28: 2018-04-01 | GW28: 2018-05-01 | GX28: 2018-06-01 | GY28: 2018-07-01 | GZ28: 2018-08-01 | HA28: 2018-09-01 | HB28: 2018-10-01 | HC28: 2018-11-01 | HD28: 2018-12-01 | HE28: 2019-01-01 | HF28: 2019-02-01 | HG28: 2019-03-01 | HH28: 2019-04-01 | HI28: 2019-05-01 | HJ28: 2019-06-01 | HK28: 2019-07-01 | HL28: 2019-08-01 | HM28: 2019-09-01 | HN28: 2019-10-01 | HO28: 2019-11-01 | HP28: =EDATE(HO28,1) -> 2019-12-01
CJ29: DTF | CK29: 0.5 | CL29: =100%-CK29 -> 0.5 | CN29: IPC % | CO29: =FORECAST(CO28,$CO$15:$GR$15,$CO$14:$GR$14) -> 0.04342824433 | CP29: =FORECAST(CP28,$CO$15:$GR$15,$CO$14:$GR$14) -> 0.04304874063 | CQ29: =FORECAST(CQ28,$CO$15:$GR$15,$CO$14:$GR$14) -> 0.0427059631 | CR29: 0.04232645941 | CS29: 0.04195919776 | CT29: 0.04157969407 | CU29: 0.04121243243 | CV29: 0.04083292873 | CW29: 0.04045342504 | CX29: 0.0400861634 | CY29: 0.0397066597 | CZ29: 0.03933939806 | DA29: 0.03895989437 | DB29: 0.03858039067 | DC29: 0.03823761314 | DD29: 0.03785810945 | DE29: 0.03749084781 | DF29: 0.03711134411 | DG29: 0.03674408247 | DH29: 0.03636457878 | DI29: 0.03598507508 | DJ29: 0.03561781344 | DK29: 0.03523830974 | DL29: 0.0348710481 | DM29: 0.03449154441 | DN29: 0.03411204071 | DO29: 0.03376926318 | DP29: 0.03338975949 | DQ29: 0.03302249785 | DR29: 0.03264299415 | DS29: 0.03227573251 | DT29: 0.03189622882 | DU29: =FORECAST(DU28,$CO$15:$GR$15,$CO$14:$GR$14) -> 0.03151672512 | DV29: 0.03114946348 | DW29: 0.03076995979 | DX29: 0.03040269815 | DY29: 0.03002319445 | DZ29: 0.02964369075 | EA29: 0.02928867117 | EB29: 0.02890916747 | EC29: 0.02854190583 | ED29: 0.02816240214 | EE29: 0.0277951405 | EF29: 0.0274156368 | EG29: 0.02703613311 | EH29: 0.02666887147 | EI29: 0.02628936777 | EJ29: 0.02592210613 | EK29: 0.02554260244 | EL29: 0.02516309874 | EM29: 0.02482032121 | EN29: 0.02444081751 | EO29: 0.02407355587 | EP29: 0.02369405218 | EQ29: 0.02332679054 | ER29: 0.02294728684 | ES29: 0.02256778315 | ET29: 0.02220052151 | EU29: 0.02182101781 | EV29: 0.02145375617 | EW29: 0.02107425248 | EX29: 0.02069474878 | EY29: 0.02035197125 | EZ29: 0.01997246756 | FA29: =FORECAST(FA28,$CO$15:$GR$15,$CO$14:$GR$14) -> 0.01960520592 | FB29: 0.01922570222 | FC29: 0.01885844058 | FD29: 0.01847893688 | FE29: 0.01809943319 | FF29: 0.01773217155 | FG29: 0.01735266785 | FH29: 0.01698540621 | FI29: 0.01660590252 | FJ29: 0.01622639882 | FK29: 0.01588362129 | FL29: 0.0155041176 | FM29: 0.01513685596 | FN29: 0.01475735226 | FO29: 0.01439009062 | FP29: 0.01401058693 | FQ29: 0.01363108323 | FR29: 0.01326382159 | FS29: 0.01288431789 | FT29: 0.01251705625 | FU29: 0.01213755256 | FV29: 0.01175804886 | FW29: 0.01140302928 | FX29: 0.01102352558 | FY29: 0.01065626394 | FZ29: 0.01027676025 | GA29: 0.009909498607 | GB29: 0.009529994912 | GC29: 0.009150491217 | GD29: 0.008783229576 | GE29: 0.008403725881 | GF29: 0.008036464241 | GG29: =FORECAST(GG28,$CO$15:$GR$15,$CO$14:$GR$14) -> 0.007656960546 | GH29: 0.007277456851 | GI29: 0.00693467932 | GJ29: 0.006555175624 | GK29: 0.006187913984 | GL29: 0.005808410289 | GM29: 0.005441148648 | GN29: 0.005061644953 | GO29: 0.004682141258 | GP29: 0.004314879618 | GQ29: 0.003935375922 | GR29: 0.003568114282 | GS29: 0.003188610587 | GT29: 0.002809106892 | GU29: 0.002466329361 | GV29: 0.002086825665 | GW29: 0.001719564025 | GX29: 0.00134006033 | GY29: 0.0009727986893 | GZ29: 0.0005932949942 | HA29: 0.000213791299 | HB29: -0.0001534703414 | HC29: -0.0005329740366 | HD29: -0.000900235677 | HE29: -0.001279739372 | HF29: -0.001659243067 | HG29: -0.002002020598 | HH29: -0.002381524294 | HI29: -0.002748785934 | HJ29: -0.003128289629 | HK29: -0.00349555127 | HL29: -0.003875054965 | HM29: =FORECAST(HM28,$CO$15:$GR$15,$CO$14:$GR$14) -> -0.00425455866 | HN29: =FORECAST(HN28,$CO$15:$GR$15,$CO$14:$GR$14) -> -0.0046218203 | HO29: =FORECAST(HO28,$CO$15:$GR$15,$CO$14:$GR$14) -> -0.005001323996 | HP29: =FORECAST(HP28,$CO$15:$GR$15,$CO$14:$GR$14) -> -0.005368585636
CJ30: TRM | CK30: 0.7 | CL30: =100%-CK30 -> 0.3 | CN30: DTF E.A%(fin mes) | CO30: =FORECAST(CO28,$CO$16:$GR$16,$CO$14:$GR$14) -> 0.06340838278 | CP30: =FORECAST(CP28,$CO$16:$GR$16,$CO$14:$GR$14) -> 0.06294879055 | CQ30: 0.06253367499 | CR30: 0.06207408277 | CS30: 0.0616293161 | CT30: 0.06116972387 | CU30: 0.0607249572 | CV30: 0.06026536498 | CW30: 0.05980577275 | CX30: 0.05936100608 | CY30: 0.05890141386 | CZ30: 0.05845664719 | DA30: 0.05799705496 | DB30: 0.05753746274 | DC30: 0.05712234718 | DD30: 0.05666275495 | DE30: 0.05621798828 | DF30: 0.05575839606 | DG30: 0.05531362939 | DH30: 0.05485403716 | DI30: 0.05439444494 | DJ30: 0.05394967827 | DK30: 0.05349008604 | DL30: 0.05304531938 | DM30: 0.05258572715 | DN30: 0.05212613492 | DO30: 0.05171101937 | DP30: 0.05125142714 | DQ30: 0.05080666047 | DR30: 0.05034706825 | DS30: 0.04990230158 | DT30: 0.04944270935 | DU30: 0.04898311713 | DV30: 0.04853835046 | DW30: 0.04807875823 | DX30: 0.04763399156 | DY30: 0.04717439934 | DZ30: 0.04671480711 | EA30: 0.046284866 | EB30: 0.04582527377 | EC30: 0.0453805071 | ED30: 0.04492091488 | EE30: 0.04447614821 | EF30: 0.04401655598 | EG30: 0.04355696376 | EH30: 0.04311219709 | EI30: 0.04265260486 | EJ30: 0.04220783819 | EK30: 0.04174824597 | EL30: 0.04128865374 | EM30: 0.04087353818 | EN30: 0.04041394596 | EO30: 0.03996917929 | EP30: 0.03950958706 | EQ30: 0.03906482039 | ER30: 0.03860522817 | ES30: 0.03814563594 | ET30: 0.03770086927 | EU30: 0.03724127705 | EV30: 0.03679651038 | EW30: 0.03633691815 | EX30: 0.03587732593 | EY30: 0.03546221037 | EZ30: 0.03500261815 | FA30: 0.03455785148 | FB30: =FORECAST(FB28,$CO$16:$GR$16,$CO$14:$GR$14) -> 0.03409825925 | FC30: 0.03365349258 | FD30: 0.03319390036 | FE30: 0.03273430813 | FF30: 0.03228954146 | FG30: 0.03182994924 | FH30: 0.03138518257 | FI30: 0.03092559034 | FJ30: 0.03046599812 | FK30: 0.03005088256 | FL30: 0.02959129033 | FM30: 0.02914652366 | FN30: 0.02868693144 | FO30: 0.02824216477 | FP30: 0.02778257254 | FQ30: 0.02732298032 | FR30: 0.02687821365 | FS30: 0.02641862142 | FT30: 0.02597385475 | FU30: 0.02551426253 | FV30: 0.0250546703 | FW30: 0.02462472919 | FX30: 0.02416513696 | FY30: 0.02372037029 | FZ30: 0.02326077807 | GA30: 0.0228160114 | GB30: 0.02235641917 | GC30: 0.02189682695 | GD30: 0.02145206028 | GE30: 0.02099246805 | GF30: 0.02054770138 | GG30: 0.02008810916 | GH30: 0.01962851693 | GI30: 0.01921340138 | GJ30: 0.01875380915 | GK30: 0.01830904248 | GL30: 0.01784945026 | GM30: 0.01740468359 | GN30: 0.01694509136 | GO30: 0.01648549914 | GP30: 0.01604073247 | GQ30: 0.01558114024 | GR30: 0.01513637357 | GS30: 0.01467678135 | GT30: 0.01421718912 | GU30: 0.01380207356 | GV30: 0.01334248134 | GW30: 0.01289771467 | GX30: 0.01243812244 | GY30: 0.01199335577 | GZ30: 0.01153376355 | HA30: 0.01107417132 | HB30: 0.01062940465 | HC30: 0.01016981243 | HD30: 0.009725045759 | HE30: 0.009265453533 | HF30: 0.008805861308 | HG30: 0.00839074575 | HH30: 0.007931153525 | HI30: 0.007486386855 | HJ30: 0.00702679463 | HK30: 0.00658202796 | HL30: 0.006122435735 | HM30: 0.00566284351 | HN30: =FORECAST(HN28,$CO$16:$GR$16,$CO$14:$GR$14) -> 0.00521807684 | HO30: =FORECAST(HO28,$CO$16:$GR$16,$CO$14:$GR$14) -> 0.004758484615 | HP30: =FORECAST(HP28,$CO$16:$GR$16,$CO$14:$GR$14) -> 0.004313717945
B31: Variables Macroeconómicas (contribuidores) | C31: =+D10-1 -> 2008 | D31: =+C31+1 -> 2009 | E31: =+D31+1 -> 2010 | F31: =+E31+1 -> 2011 | G31: 2012 | H31: 2013 | I31: 2014 | J31: 2015 | K31: 2016 | L31: 2017 | M31: 2018 | CJ31: UVR | CK31: 0.5 | CL31: =100%-CK31 -> 0.5 | CN31: TRM | CO31: =FORECAST(CO28,$CO$17:$GR$17,$CO$14:$GR$14) -> 2195.473302 | CP31: =FORECAST(CP28,$CO$17:$GR$17,$CO$14:$GR$14) -> 2192.581148 | CQ31: =FORECAST(CQ28,$CO$17:$GR$17,$CO$14:$GR$14) -> 2189.96888 | CR31: 2187.076726 | CS31: 2184.277867 | CT31: 2181.385713 | CU31: 2178.586854 | CV31: 2175.694701 | CW31: 2172.802547 | CX31: 2170.003688 | CY31: 2167.111534 | CZ31: 2164.312675 | DA31: 2161.420522 | DB31: 2158.528368 | DC31: 2155.9161 | DD31: 2153.023946 | DE31: 2150.225087 | DF31: 2147.332933 | DG31: 2144.534074 | DH31: 2141.641921 | DI31: 2138.749767 | DJ31: 2135.950908 | DK31: 2133.058754 | DL31: 2130.259895 | DM31: 2127.367741 | DN31: 2124.475588 | DO31: 2121.863319 | DP31: 2118.971166 | DQ31: 2116.172307 | DR31: 2113.280153 | DS31: 2110.481294 | DT31: 2107.58914 | DU31: 2104.696987 | DV31: 2101.898128 | DW31: 2099.005974 | DX31: 2096.207115 | DY31: 2093.314961 | DZ31: 2090.422807 | EA31: 2087.717244 | EB31: 2084.82509 | EC31: 2082.026232 | ED31: 2079.134078 | EE31: 2076.335219 | EF31: 2073.443065 | EG31: 2070.550911 | EH31: 2067.752053 | EI31: 2064.859899 | EJ31: 2062.06104 | EK31: 2059.168886 | EL31: 2056.276732 | EM31: 2053.664464 | EN31: 2050.77231 | EO31: 2047.973451 | EP31: 2045.081298 | EQ31: 2042.282439 | ER31: 2039.390285 | ES31: 2036.498131 | ET31: 2033.699272 | EU31: 2030.807119 | EV31: 2028.00826 | EW31: 2025.116106 | EX31: 2022.223952 | EY31: 2019.611684 | EZ31: 2016.71953 | FA31: 2013.920671 | FB31: 2011.028517 | FC31: =FORECAST(FC28,$CO$17:$GR$17,$CO$14:$GR$14) -> 2008.229659 | FD31: 2005.337505 | FE31: 2002.445351 | FF31: 1999.646492 | FG31: 1996.754338 | FH31: 1993.95548 | FI31: 1991.063326 | FJ31: 1988.171172 | FK31: 1985.558904 | FL31: 1982.66675 | FM31: 1979.867891 | FN31: 1976.975737 | FO31: 1974.176879 | FP31: 1971.284725 | FQ31: 1968.392571 | FR31: 1965.593712 | FS31: 1962.701558 | FT31: 1959.9027 | FU31: 1957.010546 | FV31: 1954.118392 | FW31: 1951.412829 | FX31: 1948.520675 | FY31: 1945.721816 | FZ31: 1942.829662 | GA31: 1940.030803 | GB31: 1937.13865 | GC31: 1934.246496 | GD31: 1931.447637 | GE31: 1928.555483 | GF31: 1925.756624 | GG31: 1922.86447 | GH31: 1919.972317 | GI31: 1917.360048 | GJ31: 1914.467895 | GK31: 1911.669036 | GL31: 1908.776882 | GM31: 1905.978023 | GN31: 1903.085869 | GO31: 1900.193716 | GP31: 1897.394857 | GQ31: 1894.502703 | GR31: 1891.703844 | GS31: 1888.81169 | GT31: 1885.919536 | GU31: 1883.307268 | GV31: 1880.415114 | GW31: 1877.616256 | GX31: 1874.724102 | GY31: 1871.925243 | GZ31: 1869.033089 | HA31: 1866.140935 | HB31: 1863.342077 | HC31: 1860.449923 | HD31: 1857.651064 | HE31: 1854.75891 | HF31: 1851.866756 | HG31: 1849.254488 | HH31: 1846.362334 | HI31: 1843.563476 | HJ31: 1840.671322 | HK31: 1837.872463 | HL31: 1834.980309 | HM31: 1832.088155 | HN31: 1829.289297 | HO31: =FORECAST(HO28,$CO$17:$GR$17,$CO$14:$GR$14) -> 1826.397143 | HP31: =FORECAST(HP28,$CO$17:$GR$17,$CO$14:$GR$14) -> 1823.598284
B32: IPC% (fin de año) | C32: 0.0767 | D32: =+'Mod. Sensibilización'!C12 -> 0.0563 | E32: =+'Mod. Sensibilización'!D12 -> 0.05 | F32: =+'Mod. Sensibilización'!E12 -> 0.045 | G32: =+'Mod. Sensibilización'!F12 -> 0.045 | H32: =+'Mod. Sensibilización'!G12 -> 0.045 | I32: =+'Mod. Sensibilización'!H12 -> 0.045 | J32: =+'Mod. Sensibilización'!I12 -> 0.045 | K32: =+J32 -> 0.045 | L32: 0.045 | M32: 0.045 | CN32: UVR (fin mes) | CO32: =FORECAST(CO28,$CO$18:$GR$18,$CO$14:$GR$14) -> 179.540809 | CP32: =FORECAST(CP28,$CO$18:$GR$18,$CO$14:$GR$14) -> 180.2295447 | CQ32: =FORECAST(CQ28,$CO$18:$GR$18,$CO$14:$GR$14) -> 180.8516286 | CR32: 181.5403643 | CS32: 182.2068827 | CT32: 182.8956184 | CU32: 183.5621369 | CV32: 184.2508726 | CW32: 184.9396083 | CX32: 185.6061267 | CY32: 186.2948624 | CZ32: 186.9613809 | DA32: 187.6501166 | DB32: 188.3388523 | DC32: 188.9609362 | DD32: 189.6496719 | DE32: 190.3161903 | DF32: 191.004926 | DG32: 191.6714444 | DH32: 192.3601801 | DI32: 193.0489159 | DJ32: 193.7154343 | DK32: 194.40417 | DL32: 195.0706884 | DM32: 195.7594241 | DN32: 196.4481598 | DO32: 197.0702437 | DP32: 197.7589794 | DQ32: 198.4254979 | DR32: 199.1142336 | DS32: 199.780752 | DT32: 200.4694877 | DU32: 201.1582234 | DV32: 201.8247418 | DW32: 202.5134776 | DX32: 203.179996 | DY32: 203.8687317 | DZ32: 204.5574674 | EA32: 205.2017686 | EB32: 205.8905043 | EC32: 206.5570227 | ED32: 207.2457584 | EE32: 207.9122768 | EF32: 208.6010125 | EG32: 209.2897483 | EH32: 209.9562667 | EI32: 210.6450024 | EJ32: 211.3115208 | EK32: 212.0002565 | EL32: 212.6889922 | EM32: 213.3110761 | EN32: 213.9998118 | EO32: 214.6663303 | EP32: 215.355066 | EQ32: 216.0215844 | ER32: 216.7103201 | ES32: 217.3990558 | ET32: 218.0655742 | EU32: 218.75431 | EV32: 219.4208284 | EW32: 220.1095641 | EX32: 220.7982998 | EY32: 221.4203837 | EZ32: 222.1091194 | FA32: 222.7756378 | FB32: 223.4643735 | FC32: =FORECAST(FC28,$CO$18:$GR$18,$CO$14:$GR$14) -> 224.1308919 | FD32: 224.8196277 | FE32: 225.5083634 | FF32: 226.1748818 | FG32: 226.8636175 | FH32: 227.5301359 | FI32: 228.2188716 | FJ32: 228.9076074 | FK32: 229.5296912 | FL32: 230.2184269 | FM32: 230.8849454 | FN32: 231.5736811 | FO32: 232.2401995 | FP32: 232.9289352 | FQ32: 233.6176709 | FR32: 234.2841894 | FS32: 234.9729251 | FT32: 235.6394435 | FU32: 236.3281792 | FV32: 237.0169149 | FW32: 237.6612161 | FX32: 238.3499518 | FY32: 239.0164702 | FZ32: 239.7052059 | GA32: 240.3717243 | GB32: 241.0604601 | GC32: 241.7491958 | GD32: 242.4157142 | GE32: 243.1044499 | GF32: 243.7709683 | GG32: 244.459704 | GH32: 245.1484398 | GI32: 245.7705236 | GJ32: 246.4592593 | GK32: 247.1257778 | GL32: 247.8145135 | GM32: 248.4810319 | GN32: 249.1697676 | GO32: 249.8585033 | GP32: 250.5250218 | GQ32: 251.2137575 | GR32: 251.8802759 | GS32: 252.5690116 | GT32: 253.2577473 | GU32: 253.8798312 | GV32: 254.5685669 | GW32: 255.2350853 | GX32: 255.923821 | GY32: 256.5903395 | GZ32: 257.2790752 | HA32: 257.9678109 | HB32: 258.6343293 | HC32: 259.323065 | HD32: 259.9895835 | HE32: 260.6783192 | HF32: 261.3670549 | HG32: 261.9891387 | HH32: 262.6778745 | HI32: 263.3443929 | HJ32: 264.0331286 | HK32: 264.699647 | HL32: 265.3883827 | HM32: 266.0771184 | HN32: 266.7436369 | HO32: =FORECAST(HO28,$CO$18:$GR$18,$CO$14:$GR$14) -> 267.4323726 | HP32: =FORECAST(HP28,$CO$18:$GR$18,$CO$14:$GR$14) -> 268.098891
B33: DTF E.A% (Promedio) | C33: 0.0982 | D33: =+'Mod. Sensibilización'!C13 -> 0.079 | E33: =+'Mod. Sensibilización'!D13 -> 0.08 | F33: =+'Mod. Sensibilización'!E13 -> 0.08 | G33: =+'Mod. Sensibilización'!F13 -> 0.08 | H33: =+'Mod. Sensibilización'!G13 -> 0.08 | I33: =+'Mod. Sensibilización'!H13 -> 0.08 | J33: =+'Mod. Sensibilización'!I13 -> 0.08 | K33: 0.08 | L33: 0.08 | M33: 0.08 | CJ33: =+CJ27 -> Variable | CK33: % Dev. Anual
B34: UVR (promedio) | C34: 181.6907 | D34: 189 | E34: 199 | F34: 209 | G34: 219 | H34: 229 | I34: 239 | J34: 249 | K34: 259 | L34: 269 | M34: 279 | CJ34: Dev. Fwd | CK34: 0.85
B35: TRM (fin de año) | C35: 2243.59 | D35: =(C35*(1+D38)) -> 2386.057965 | E35: =(D35*(1+E38)) -> 2505.360863 | F35: =(E35*(1+F38)) -> 2630.628906 | G35: 2762.160352 | H35: 2900.268369 | I35: 3045.281788 | J35: 3197.545877 | K35: 3357.423171 | L35: 3525.29433 | M35: 3701.559046 | CN35: Estadistica descriptiva | CO35: Med. Geom | CP35: Promedio | CQ35: Desvest | CR35: Coef. Var% | CS35: Probable
B36: LIBOR 3m | C36: 0.01425 | D36: 0.029 | E36: 0.0295 | F36: 0.03 | G36: 0.04 | H36: 0.04 | I36: 0.045 | J36: 0.045 | K36: 0.045 | L36: 0.045 | M36: 0.045 | CN36: IPC % | CO36: =GEOMEAN(CP22:IV22)-1 -> -0.005898308202 | CP36: =AVERAGE(CO15:IV15) -> 0.06374869487 | CQ36: =STDEV(CO15:IV15) -> 0.0153842565 | CR36: =+CQ36/CP36 -> 0.2413266112 | CS36: =NORMINV(0.95,CP36,CQ36) -> 0.08905354497
B37: LIBOR 6m | C37: 0.0175 | D37: 0.03 | E37: 0.0315 | F37: 0.04 | G37: 0.05 | H37: 0.05 | I37: 0.05 | J37: 0.05 | K37: 0.05 | L37: 0.05 | M37: 0.05 | CN37: DTF E.A%(fin mes) | CO37: =GEOMEAN(CP23:IV23)-1 -> -0.005992219475 | CP37: =AVERAGE(CO16:IV16) -> 0.08801715788 | CQ37: =STDEV(CO16:IV16) -> 0.02174987024 | CR37: =+CQ37/CP37 -> 0.2471094359 | CS37: =NORMINV(0.95,CP37,CQ37) -> 0.1237925108
B38: Devaluación anual | D38: =+'Mod. Sensibilización'!C14 -> 0.0635 | E38: =+'Mod. Sensibilización'!D14 -> 0.05 | F38: =+'Mod. Sensibilización'!E14 -> 0.05 | G38: =+'Mod. Sensibilización'!F14 -> 0.05 | H38: =+'Mod. Sensibilización'!G14 -> 0.05 | I38: =+'Mod. Sensibilización'!H14 -> 0.05 | J38: =+'Mod. Sensibilización'!I14 -> 0.05 | K38: 0.05 | L38: 0.05 | M38: 0.05 | CN38: TRM | CO38: =GEOMEAN(CP24:IV24)-1 -> 0.0009937196184 | CP38: =AVERAGE(CO17:IV17) -> 2350.333113 | CQ38: =STDEV(CO17:IV17) -> 300.1782175 | CR38: =+CQ38/CP38 -> 0.1277173077 | CS38: =NORMINV(0.95,CP38,CQ38) -> 2844.082343
B39: Devaluación forward | D39: =+'Mod. Sensibilización'!C15 -> 0.06 | E39: =+'Mod. Sensibilización'!D15 -> 0.06 | F39: =+'Mod. Sensibilización'!E15 -> 0.06 | G39: =+'Mod. Sensibilización'!F15 -> 0.06 | H39: =+'Mod. Sensibilización'!G15 -> 0.06 | I39: =+'Mod. Sensibilización'!H15 -> 0.06 | J39: =+'Mod. Sensibilización'!I15 -> 0.06 | K39: 0.06 | L39: 0.06 | M39: 0.06 | CN39: UVR (fin mes) | CO39: =GEOMEAN(CP25:IV25)-1 -> 0.005093752632 | CP39: =AVERAGE(CO18:IV18) -> 142.6625912 | CQ39: =STDEV(CO18:IV18) -> 21.2276169 | CR39: =+CQ39/CP39 -> 0.1487959578 | CS39: =NORMINV(0.95,CP39,CQ39) -> 177.5789138
C40: 1 | D40: Proyección de IPC Crystall Ball | G40: 3
D41: Proyección de IPC (EXCEL)
C42: 3 | D42: Proyección de IPC FINDETER | CN42: Proyección 1 (EXCEL) | CO42: =+CO28 -> 2009-01-01 | CP42: =+CP28 -> 2009-02-01 | CQ42: =+CQ28 -> 2009-03-01 | CR42: =+CR28 -> 2009-04-01 | CS42: =+CS28 -> 2009-05-01 | CT42: =+CT28 -> 2009-06-01 | CU42: 2009-07-01 | CV42: 2009-08-01 | CW42: 2009-09-01 | CX42: 2009-10-01 | CY42: 2009-11-01 | CZ42: 2009-12-01 | DA42: 2010-01-01 | DB42: 2010-02-01 | DC42: 2010-03-01 | DD42: 2010-04-01 | DE42: 2010-05-01 | DF42: 2010-06-01 | DG42: 2010-07-01 | DH42: 2010-08-01 | DI42: 2010-09-01 | DJ42: 2010-10-01 | DK42: 2010-11-01 | DL42: 2010-12-01 | DM42: 2011-01-01 | DN42: 2011-02-01 | DO42: 2011-03-01 | DP42: 2011-04-01 | DQ42: 2011-05-01 | DR42: 2011-06-01 | DS42: 2011-07-01 | DT42: 2011-08-01 | DU42: 2011-09-01 | DV42: 2011-10-01 | DW42: 2011-11-01 | DX42: 2011-12-01 | DY42: 2012-01-01 | DZ42: 2012-02-01 | EA42: 2012-03-01 | EB42: 2012-04-01 | EC42: 2012-05-01 | ED42: 2012-06-01 | EE42: 2012-07-01 | EF42: 2012-08-01 | EG42: 2012-09-01 | EH42: 2012-10-01 | EI42: 2012-11-01 | EJ42: 2012-12-01 | EK42: 2013-01-01 | EL42: 2013-02-01 | EM42: 2013-03-01 | EN42: 2013-04-01 | EO42: 2013-05-01 | EP42: 2013-06-01 | EQ42: 2013-07-01 | ER42: 2013-08-01 | ES42: 2013-09-01 | ET42: 2013-10-01 | EU42: 2013-11-01 | EV42: 2013-12-01 | EW42: 2014-01-01 | EX42: 2014-02-01 | EY42: 2014-03-01 | EZ42: 2014-04-01 | FA42: 2014-05-01 | FB42: =+FB28 -> 2014-06-01 | FC42: 2014-07-01 | FD42: 2014-08-01 | FE42: 2014-09-01 | FF42: 2014-10-01 | FG42: 2014-11-01 | FH42: 2014-12-01 | FI42: 2015-01-01 | FJ42: 2015-02-01 | FK42: 2015-03-01 | FL42: 2015-04-01 | FM42: 2015-05-01 | FN42: 2015-06-01 | FO42: 2015-07-01 | FP42: 2015-08-01 | FQ42: 2015-09-01 | FR42: 2015-10-01 | FS42: 2015-11-01 | FT42: 2015-12-01 | FU42: 2016-01-01 | FV42: 2016-02-01 | FW42: 2016-03-01 | FX42: 2016-04-01 | FY42: 2016-05-01 | FZ42: 2016-06-01 | GA42: 2016-07-01 | GB42: 2016-08-01 | GC42: 2016-09-01 | GD42: 2016-10-01 | GE42: 2016-11-01 | GF42: 2016-12-01 | GG42: 2017-01-01 | GH42: 2017-02-01 | GI42: 2017-03-01 | GJ42: 2017-04-01 | GK42: 2017-05-01 | GL42: 2017-06-01 | GM42: 2017-07-01 | GN42: 2017-08-01 | GO42: 2017-09-01 | GP42: 2017-10-01 | GQ42: 2017-11-01 | GR42: 2017-12-01 | GS42: 2018-01-01 | GT42: 2018-02-01 | GU42: 2018-03-01 | GV42: 2018-04-01 | GW42: 2018-05-01 | GX42: 2018-06-01 | GY42: 2018-07-01 | GZ42: 2018-08-01 | HA42: 2018-09-01 | HB42: 2018-10-01 | HC42: 2018-11-01 | HD42: 2018-12-01 | HE42: 2019-01-01 | HF42: 2019-02-01 | HG42: 2019-03-01 | HH42: 2019-04-01 | HI42: 2019-05-01 | HJ42: 2019-06-01 | HK42: 2019-07-01 | HL42: 2019-08-01 | HM42: 2019-09-01 | HN42: =+HN28 -> 2019-10-01 | HO42: =+HO28 -> 2019-11-01 | HP42: =+HP28 -> 2019-12-01
B43: Proyección de IPC | C43: =+C14 -> 2009-01-01 | D43: 2009-02-01 | E43: 2009-03-01 | F43: 2009-04-01 | G43: 2009-05-01 | H43: 2009-06-01 | I43: 2009-07-01 | J43: 2009-08-01 | K43: 2009-09-01 | L43: 2009-10-01 | M43: 2009-11-01 | N43: 2009-12-01 | O43: 2010-01-01 | P43: 2010-02-01 | Q43: 2010-03-01 | R43: 2010-04-01 | S43: 2010-05-01 | T43: 2010-06-01 | U43: 2010-07-01 | V43: 2010-08-01 | W43: 2010-09-01 | X43: 2010-10-01 | Y43: 2010-11-01 | Z43: 2010-12-01 | AA43: 2011-01-01 | AB43: 2011-02-01 | AC43: 2011-03-01 | AD43: 2011-04-01 | AE43: 2011-05-01 | AF43: 2011-06-01 | AG43: 2011-07-01 | AH43: 2011-08-01 | AI43: =+AI14 -> 2011-09-01 | AJ43: 2011-10-01 | AK43: 2011-11-01 | AL43: 2011-12-01 | AM43: 2012-01-01 | AN43: 2012-02-01 | AO43: 2012-03-01 | AP43: 2012-04-01 | AQ43: 2012-05-01 | AR43: 2012-06-01 | AS43: 2012-07-01 | AT43: 2012-08-01 | AU43: 2012-09-01 | AV43: 2012-10-01 | AW43: 2012-11-01 | AX43: 2012-12-01 | AY43: 2013-01-01 | AZ43: 2013-02-01 | BA43: 2013-03-01 | BB43: 2013-04-01 | BC43: 2013-05-01 | BD43: 2013-06-01 | BE43: 2013-07-01 | BF43: 2013-08-01 | BG43: 2013-09-01 | BH43: 2013-10-01 | BI43: 2013-11-01 | BJ43: 2013-12-01 | BK43: 2014-01-01 | BL43: 2014-02-01 | BM43: 2014-03-01 | BN43: 2014-04-01 | BO43: =+BO14 -> 2014-05-01 | BP43: 2014-06-01 | BQ43: 2014-07-01 | BR43: 2014-08-01 | BS43: 2014-09-01 | BT43: 2014-10-01 | BU43: 2014-11-01 | BV43: 2014-12-01 | BW43: 2015-01-01 | BX43: 2015-02-01 | BY43: 2015-03-01 | BZ43: 2015-04-01 | CA43: 2015-05-01 | CB43: 2015-06-01 | CC43: 2015-07-01 | CD43: 2015-08-01 | CE43: 2015-09-01 | CF43: 2015-10-01 | CG43: 2015-11-01 | CH43: 2015-12-01 | CN43: IPC % | CO43: =+CO29*$CK$28+$CS$36*$CL$28 -> 0.06624089465 | CP43: 0.0660511428 | CQ43: 0.06587975404 | CR43: 0.06569000219 | CS43: 0.06550637137 | CT43: 0.06531661952 | CU43: 0.0651329887 | CV43: 0.06494323685 | CW43: 0.06475348501 | CX43: 0.06456985419 | CY43: 0.06438010234 | CZ43: 0.06419647152 | DA43: 0.06400671967 | DB43: 0.06381696782 | DC43: 0.06364557906 | DD43: 0.06345582721 | DE43: 0.06327219639 | DF43: 0.06308244454 | DG43: 0.06289881372 | DH43: 0.06270906187 | DI43: 0.06251931003 | DJ43: 0.06233567921 | DK43: 0.06214592736 | DL43: 0.06196229654 | DM43: 0.06177254469 | DN43: 0.06158279284 | DO43: 0.06141140408 | DP43: 0.06122165223 | DQ43: 0.06103802141 | DR43: 0.06084826956 | DS43: 0.06066463874 | DT43: 0.06047488689 | DU43: =+DU29*$CK$28+$CS$36*$CL$28 -> 0.06028513505 | DV43: 0.06010150423 | DW43: 0.05991175238 | DX43: 0.05972812156 | DY43: 0.05953836971 | DZ43: 0.05934861786 | EA43: 0.05917110807 | EB43: 0.05898135622 | EC43: 0.0587977254 | ED43: 0.05860797356 | EE43: 0.05842434273 | EF43: 0.05823459089 | EG43: 0.05804483904 | EH43: 0.05786120822 | EI43: 0.05767145637 | EJ43: 0.05748782555 | EK43: 0.0572980737 | EL43: 0.05710832186 | EM43: 0.05693693309 | EN43: 0.05674718124 | EO43: 0.05656355042 | EP43: 0.05637379858 | EQ43: 0.05619016776 | ER43: 0.05600041591 | ES43: 0.05581066406 | ET43: 0.05562703324 | EU43: 0.05543728139 | EV43: 0.05525365057 | EW43: 0.05506389872 | EX43: 0.05487414688 | EY43: 0.05470275811 | EZ43: 0.05451300626 | FA43: =+FA29*$CK$28+$CS$36*$CL$28 -> 0.05432937544 | FB43: 0.0541396236 | FC43: 0.05395599278 | FD43: 0.05376624093 | FE43: 0.05357648908 | FF43: 0.05339285826 | FG43: 0.05320310641 | FH43: 0.05301947559 | FI43: 0.05282972375 | FJ43: 0.0526399719 | FK43: 0.05246858313 | FL43: 0.05227883128 | FM43: 0.05209520046 | FN43: 0.05190544862 | FO43: 0.0517218178 | FP43: 0.05153206595 | FQ43: 0.0513423141 | FR43: 0.05115868328 | FS43: 0.05096893143 | FT43: 0.05078530061 | FU43: 0.05059554877 | FV43: 0.05040579692 | FW43: 0.05022828713 | FX43: 0.05003853528 | FY43: 0.04985490446 | FZ43: 0.04966515261 | GA43: 0.04948152179 | GB43: 0.04929176994 | GC43: 0.04910201809 | GD43: 0.04891838727 | GE43: 0.04872863543 | GF43: 0.04854500461 | GG43: =+GG29*$CK$28+$CS$36*$CL$28 -> 0.04835525276 | GH43: 0.04816550091 | GI43: 0.04799411215 | GJ43: 0.0478043603 | GK43: 0.04762072948 | GL43: 0.04743097763 | GM43: 0.04724734681 | GN43: 0.04705759496 | GO43: 0.04686784312 | GP43: 0.04668421229 | GQ43: 0.04649446045 | GR43: 0.04631082963 | GS43: 0.04612107778 | GT43: 0.04593132593 | GU43: 0.04575993717 | GV43: 0.04557018532 | GW43: 0.0453865545 | GX43: 0.04519680265 | GY43: 0.04501317183 | GZ43: 0.04482341998 | HA43: 0.04463366814 | HB43: 0.04445003732 | HC43: 0.04426028547 | HD43: 0.04407665465 | HE43: 0.0438869028 | HF43: 0.04369715095 | HG43: 0.04352576219 | HH43: 0.04333601034 | HI43: 0.04315237952 | HJ43: 0.04296262767 | HK43: 0.04277899685 | HL43: 0.042589245 | HM43: 0.04239949316 | HN43: 0.04221586234 | HO43: 0.04202611049 | HP43: 0.04184247967
A44: 1 | B44: Proyección de IPC Crystal Ball | C44: =+CO52 -> 0.06 | D44: =+CP52 -> 0.06 | E44: =+CQ52 -> 0.06 | F44: =+CR52 -> 0.06 | G44: =+CS52 -> 0.06 | H44: =+CT52 -> 0.06 | I44: 0.06 | J44: 0.06 | K44: 0.06 | L44: 0.06 | M44: 0.06 | N44: 0.06 | O44: 0.05 | P44: 0.05 | Q44: 0.05 | R44: 0.05 | S44: 0.05 | T44: 0.05 | U44: 0.05 | V44: 0.05 | W44: 0.05 | X44: 0.05 | Y44: 0.05 | Z44: 0.05 | AA44: 0.04 | AB44: 0.04 | AC44: 0.04 | AD44: 0.04 | AE44: 0.04 | AF44: 0.04 | AG44: 0.04 | AH44: 0.04 | AI44: =+DU52 -> 0.04 | AJ44: 0.04 | AK44: 0.04 | AL44: 0.04 | AM44: 0.04 | AN44: 0.04 | AO44: 0.04 | AP44: 0.04 | AQ44: 0.04 | AR44: 0.04 | AS44: 0.04 | AT44: 0.04 | AU44: 0.04 | AV44: 0.04 | AW44: 0.04 | AX44: 0.04 | AY44: 0.04 | AZ44: 0.04 | BA44: 0.04 | BB44: 0.04 | BC44: 0.04 | BD44: 0.04 | BE44: 0.04 | BF44: 0.04 | BG44: 0.04 | BH44: 0.04 | BI44: 0.04 | BJ44: 0.04 | BK44: 0.04 | BL44: 0.04 | BM44: 0.04 | BN44: 0.04 | BO44: =+FA52 -> 0.04 | BP44: 0.04 | BQ44: 0.04 | BR44: 0.04 | BS44: 0.04 | BT44: 0.04 | BU44: 0.04 | BV44: 0.04 | BW44: 0.04 | BX44: 0.04 | BY44: 0.04 | BZ44: 0.04 | CA44: 0.04 | CB44: 0.04 | CC44: 0.04 | CD44: 0.04 | CE44: 0.04 | CF44: 0.04 | CG44: 0.04 | CH44: 0.04 | CN44: DTF E.A%(fin mes) | CO44: =+CO30*$CK$29+$CS$37*$CL$29 -> 0.0936004468 | CP44: 0.09337065069 | CQ44: 0.09316309291 | CR44: 0.09293329679 | CS44: 0.09271091346 | CT44: 0.09248111735 | CU44: 0.09225873401 | CV44: 0.0920289379 | CW44: 0.09179914179 | CX44: 0.09157675845 | CY44: 0.09134696234 | CZ44: 0.091124579 | DA44: 0.09089478289 | DB44: 0.09066498678 | DC44: 0.090457429 | DD44: 0.09022763289 | DE44: 0.09000524955 | DF44: 0.08977545344 | DG44: 0.0895530701 | DH44: 0.08932327399 | DI44: 0.08909347788 | DJ44: 0.08887109454 | DK44: 0.08864129843 | DL44: 0.0884189151 | DM44: 0.08818911898 | DN44: 0.08795932287 | DO44: 0.08775176509 | DP44: 0.08752196898 | DQ44: 0.08729958565 | DR44: 0.08706978953 | DS44: 0.0868474062 | DT44: 0.08661761009 | DU44: =+DU30*$CK$29+$CS$37*$CL$29 -> 0.08638781397 | DV44: 0.08616543064 | DW44: 0.08593563453 | DX44: 0.08571325119 | DY44: 0.08548345508 | DZ44: 0.08525365897 | EA44: 0.08503868841 | EB44: 0.0848088923 | EC44: 0.08458650896 | ED44: 0.08435671285 | EE44: 0.08413432951 | EF44: 0.0839045334 | EG44: 0.08367473729 | EH44: 0.08345235395 | EI44: 0.08322255784 | EJ44: 0.08300017451 | EK44: 0.08277037839 | EL44: 0.08254058228 | EM44: 0.0823330245 | EN44: 0.08210322839 | EO44: 0.08188084505 | EP44: 0.08165104894 | EQ44: 0.08142866561 | ER44: 0.08119886949 | ES44: 0.08096907338 | ET44: 0.08074669005 | EU44: 0.08051689393 | EV44: 0.0802945106 | EW44: 0.08006471449 | EX44: 0.07983491837 | EY44: 0.0796273606 | EZ44: 0.07939756448 | FA44: =+FA30*$CK$29+$CS$37*$CL$29 -> 0.07917518115 | FB44: 0.07894538504 | FC44: 0.0787230017 | FD44: 0.07849320559 | FE44: 0.07826340948 | FF44: 0.07804102614 | FG44: 0.07781123003 | FH44: 0.07758884669 | FI44: 0.07735905058 | FJ44: 0.07712925447 | FK44: 0.07692169669 | FL44: 0.07669190058 | FM44: 0.07646951724 | FN44: 0.07623972113 | FO44: 0.07601733779 | FP44: 0.07578754168 | FQ44: 0.07555774557 | FR44: 0.07533536223 | FS44: 0.07510556612 | FT44: 0.07488318279 | FU44: 0.07465338667 | FV44: 0.07442359056 | FW44: 0.07420862 | FX44: 0.07397882389 | FY44: 0.07375644056 | FZ44: 0.07352664444 | GA44: 0.07330426111 | GB44: 0.073074465 | GC44: 0.07284466888 | GD44: 0.07262228555 | GE44: 0.07239248944 | GF44: 0.0721701061 | GG44: =+GG30*$CK$29+$CS$37*$CL$29 -> 0.07194030999 | GH44: 0.07171051388 | GI44: 0.0715029561 | GJ44: 0.07127315999 | GK44: 0.07105077665 | GL44: 0.07082098054 | GM44: 0.0705985972 | GN44: 0.07036880109 | GO44: 0.07013900498 | GP44: 0.06991662164 | GQ44: 0.06968682553 | GR44: 0.0694644422 | GS44: 0.06923464608 | GT44: 0.06900484997 | GU44: 0.06879729219 | GV44: 0.06856749608 | GW44: 0.06834511274 | GX44: 0.06811531663 | GY44: 0.0678929333 | GZ44: 0.06766313718 | HA44: 0.06743334107 | HB44: 0.06721095774 | HC44: 0.06698116162 | HD44: 0.06675877829 | HE44: 0.06652898218 | HF44: 0.06629918606 | HG44: 0.06609162828 | HH44: 0.06586183217 | HI44: 0.06563944884 | HJ44: 0.06540965272 | HK44: 0.06518726939 | HL44: 0.06495747328 | HM44: 0.06472767716 | HN44: 0.06450529383 | HO44: 0.06427549772 | HP44: 0.06405311438
A45: 2 | B45: Proyección de IPC (EXCEL) | C45: =+CO43 -> 0.06624089465 | D45: =+CP43 -> 0.0660511428 | E45: =+CQ43 -> 0.06587975404 | F45: =+CR43 -> 0.06569000219 | G45: =+CS43 -> 0.06550637137 | H45: =+CT43 -> 0.06531661952 | I45: 0.0651329887 | J45: 0.06494323685 | K45: 0.06475348501 | L45: 0.06456985419 | M45: 0.06438010234 | N45: 0.06419647152 | O45: 0.06400671967 | P45: 0.06381696782 | Q45: 0.06364557906 | R45: 0.06345582721 | S45: 0.06327219639 | T45: 0.06308244454 | U45: 0.06289881372 | V45: 0.06270906187 | W45: 0.06251931003 | X45: 0.06233567921 | Y45: 0.06214592736 | Z45: 0.06196229654 | AA45: 0.06177254469 | AB45: 0.06158279284 | AC45: 0.06141140408 | AD45: 0.06122165223 | AE45: 0.06103802141 | AF45: 0.06084826956 | AG45: 0.06066463874 | AH45: 0.06047488689 | AI45: =+DU43 -> 0.06028513505 | AJ45: 0.06010150423 | AK45: 0.05991175238 | AL45: 0.05972812156 | AM45: 0.05953836971 | AN45: 0.05934861786 | AO45: 0.05917110807 | AP45: 0.05898135622 | AQ45: 0.0587977254 | AR45: 0.05860797356 | AS45: 0.05842434273 | AT45: 0.05823459089 | AU45: 0.05804483904 | AV45: 0.05786120822 | AW45: 0.05767145637 | AX45: 0.05748782555 | AY45: 0.0572980737 | AZ45: 0.05710832186 | BA45: 0.05693693309 | BB45: 0.05674718124 | BC45: 0.05656355042 | BD45: 0.05637379858 | BE45: 0.05619016776 | BF45: 0.05600041591 | BG45: 0.05581066406 | BH45: 0.05562703324 | BI45: 0.05543728139 | BJ45: 0.05525365057 | BK45: 0.05506389872 | BL45: 0.05487414688 | BM45: 0.05470275811 | BN45: 0.05451300626 | BO45: =+FA43 -> 0.05432937544 | BP45: 0.0541396236 | BQ45: 0.05395599278 | BR45: 0.05376624093 | BS45: 0.05357648908 | BT45: 0.05339285826 | BU45: 0.05320310641 | BV45: 0.05301947559 | BW45: 0.05282972375 | BX45: 0.0526399719 | BY45: 0.05246858313 | BZ45: 0.05227883128 | CA45: 0.05209520046 | CB45: 0.05190544862 | CC45: 0.0517218178 | CD45: 0.05153206595 | CE45: 0.0513423141 | CF45: 0.05115868328 | CG45: 0.05096893143 | CH45: 0.05078530061 | CN45: TRM | CO45: =+CO31*$CK$30+$CS$38*$CL$30 -> 2390.056014 | CP45: 2388.031506 | CQ45: 2386.202919 | CR45: 2384.178411 | CS45: 2382.21921 | CT45: 2380.194702 | CU45: 2378.235501 | CV45: 2376.210993 | CW45: 2374.186486 | CX45: 2372.227285 | CY45: 2370.202777 | CZ45: 2368.243576 | DA45: 2366.219068 | DB45: 2364.19456 | DC45: 2362.365973 | DD45: 2360.341465 | DE45: 2358.382264 | DF45: 2356.357756 | DG45: 2354.398555 | DH45: 2352.374047 | DI45: 2350.34954 | DJ45: 2348.390338 | DK45: 2346.365831 | DL45: 2344.40663 | DM45: 2342.382122 | DN45: 2340.357614 | DO45: 2338.529027 | DP45: 2336.504519 | DQ45: 2334.545318 | DR45: 2332.52081 | DS45: 2330.561609 | DT45: 2328.537101 | DU45: =+DU31*$CK$30+$CS$38*$CL$30 -> 2326.512593 | DV45: 2324.553392 | DW45: 2322.528885 | DX45: 2320.569684 | DY45: 2318.545176 | DZ45: 2316.520668 | EA45: 2314.626774 | EB45: 2312.602266 | EC45: 2310.643065 | ED45: 2308.618557 | EE45: 2306.659356 | EF45: 2304.634848 | EG45: 2302.610341 | EH45: 2300.65114 | EI45: 2298.626632 | EJ45: 2296.667431 | EK45: 2294.642923 | EL45: 2292.618415 | EM45: 2290.789828 | EN45: 2288.76532 | EO45: 2286.806119 | EP45: 2284.781611 | EQ45: 2282.82241 | ER45: 2280.797902 | ES45: 2278.773395 | ET45: 2276.814194 | EU45: 2274.789686 | EV45: 2272.830485 | EW45: 2270.805977 | EX45: 2268.781469 | EY45: 2266.952882 | EZ45: 2264.928374 | FA45: =+FA31*$CK$30+$CS$38*$CL$30 -> 2262.969173 | FB45: 2260.944665 | FC45: 2258.985464 | FD45: 2256.960956 | FE45: 2254.936449 | FF45: 2252.977248 | FG45: 2250.95274 | FH45: 2248.993539 | FI45: 2246.969031 | FJ45: 2244.944523 | FK45: 2243.115936 | FL45: 2241.091428 | FM45: 2239.132227 | FN45: 2237.107719 | FO45: 2235.148518 | FP45: 2233.12401 | FQ45: 2231.099503 | FR45: 2229.140302 | FS45: 2227.115794 | FT45: 2225.156593 | FU45: 2223.132085 | FV45: 2221.107577 | FW45: 2219.213683 | FX45: 2217.189175 | FY45: 2215.229974 | FZ45: 2213.205466 | GA45: 2211.246265 | GB45: 2209.221758 | GC45: 2207.19725 | GD45: 2205.238049 | GE45: 2203.213541 | GF45: 2201.25434 | GG45: =+GG31*$CK$30+$CS$38*$CL$30 -> 2199.229832 | GH45: 2197.205325 | GI45: 2195.376737 | GJ45: 2193.352229 | GK45: 2191.393028 | GL45: 2189.36852 | GM45: 2187.409319 | GN45: 2185.384812 | GO45: 2183.360304 | GP45: 2181.401103 | GQ45: 2179.376595 | GR45: 2177.417394 | GS45: 2175.392886 | GT45: 2173.368378 | GU45: 2171.539791 | GV45: 2169.515283 | GW45: 2167.556082 | GX45: 2165.531574 | GY45: 2163.572373 | GZ45: 2161.547865 | HA45: 2159.523358 | HB45: 2157.564157 | HC45: 2155.539649 | HD45: 2153.580448 | HE45: 2151.55594 | HF45: 2149.531432 | HG45: 2147.702845 | HH45: 2145.678337 | HI45: 2143.719136 | HJ45: 2141.694628 | HK45: 2139.735427 | HL45: 2137.710919 | HM45: 2135.686412 | HN45: 2133.727211 | HO45: 2131.702703 | HP45: 2129.743502
A46: 3 | B46: Proyección de IPC FINDETER | C46: =+D32 -> 0.0563 | D46: =+C46 -> 0.0563 | E46: =+D46 -> 0.0563 | F46: 0.0563 | G46: 0.0563 | H46: 0.0563 | I46: 0.0563 | J46: 0.0563 | K46: 0.0563 | L46: 0.0563 | M46: 0.0563 | N46: 0.0563 | O46: =+E32 -> 0.05 | P46: =+O46 -> 0.05 | Q46: =+P46 -> 0.05 | R46: 0.05 | S46: 0.05 | T46: 0.05 | U46: 0.05 | V46: 0.05 | W46: 0.05 | X46: 0.05 | Y46: 0.05 | Z46: 0.05 | AA46: =+F32 -> 0.045 | AB46: =+AA46 -> 0.045 | AC46: =+AB46 -> 0.045 | AD46: 0.045 | AE46: 0.045 | AF46: 0.045 | AG46: 0.045 | AH46: 0.045 | AI46: 0.045 | AJ46: 0.045 | AK46: 0.045 | AL46: 0.045 | AM46: =+G32 -> 0.045 | AN46: =+AM46 -> 0.045 | AO46: =+AN46 -> 0.045 | AP46: 0.045 | AQ46: 0.045 | AR46: 0.045 | AS46: 0.045 | AT46: 0.045 | AU46: 0.045 | AV46: 0.045 | AW46: 0.045 | AX46: 0.045 | AY46: =+H32 -> 0.045 | AZ46: =+AY46 -> 0.045 | BA46: =+AZ46 -> 0.045 | BB46: 0.045 | BC46: 0.045 | BD46: 0.045 | BE46: 0.045 | BF46: 0.045 | BG46: 0.045 | BH46: 0.045 | BI46: 0.045 | BJ46: 0.045 | BK46: =+I32 -> 0.045 | BL46: =+BK46 -> 0.045 | BM46: =+BL46 -> 0.045 | BN46: 0.045 | BO46: 0.045 | BP46: 0.045 | BQ46: 0.045 | BR46: 0.045 | BS46: 0.045 | BT46: 0.045 | BU46: 0.045 | BV46: 0.045 | BW46: =+J32 -> 0.045 | BX46: =+BW46 -> 0.045 | BY46: =+BX46 -> 0.045 | BZ46: 0.045 | CA46: 0.045 | CB46: 0.045 | CC46: 0.045 | CD46: 0.045 | CE46: 0.045 | CF46: 0.045 | CG46: 0.045 | CH46: 0.045 | CN46: UVR (fin mes) | CO46: =+CO32*$CK$31+$CS$39*$CL$31 -> 178.5598614 | CP46: 178.9042293 | CQ46: 179.2152712 | CR46: 179.5596391 | CS46: 179.8928983 | CT46: 180.2372661 | CU46: 180.5705254 | CV46: 180.9148932 | CW46: 181.2592611 | CX46: 181.5925203 | CY46: 181.9368881 | CZ46: 182.2701474 | DA46: 182.6145152 | DB46: 182.9588831 | DC46: 183.269925 | DD46: 183.6142928 | DE46: 183.9475521 | DF46: 184.2919199 | DG46: 184.6251791 | DH46: 184.969547 | DI46: 185.3139148 | DJ46: 185.6471741 | DK46: 185.9915419 | DL46: 186.3248011 | DM46: 186.669169 | DN46: 187.0135368 | DO46: 187.3245788 | DP46: 187.6689466 | DQ46: 188.0022058 | DR46: 188.3465737 | DS46: 188.6798329 | DT46: 189.0242008 | DU46: =+DU32*$CK$31+$CS$39*$CL$31 -> 189.3685686 | DV46: 189.7018278 | DW46: 190.0461957 | DX46: 190.3794549 | DY46: 190.7238228 | DZ46: 191.0681906 | EA46: 191.3903412 | EB46: 191.734709 | EC46: 192.0679683 | ED46: 192.4123361 | EE46: 192.7455953 | EF46: 193.0899632 | EG46: 193.434331 | EH46: 193.7675903 | EI46: 194.1119581 | EJ46: 194.4452173 | EK46: 194.7895852 | EL46: 195.133953 | EM46: 195.444995 | EN46: 195.7893628 | EO46: 196.122622 | EP46: 196.4669899 | EQ46: 196.8002491 | ER46: 197.144617 | ES46: 197.4889848 | ET46: 197.822244 | EU46: 198.1666119 | EV46: 198.4998711 | EW46: 198.844239 | EX46: 199.1886068 | EY46: 199.4996488 | EZ46: 199.8440166 | FA46: =+FA32*$CK$31+$CS$39*$CL$31 -> 200.1772758 | FB46: 200.5216437 | FC46: 200.8549029 | FD46: 201.1992707 | FE46: 201.5436386 | FF46: 201.8768978 | FG46: 202.2212657 | FH46: 202.5545249 | FI46: 202.8988927 | FJ46: 203.2432606 | FK46: 203.5543025 | FL46: 203.8986704 | FM46: 204.2319296 | FN46: 204.5762975 | FO46: 204.9095567 | FP46: 205.2539245 | FQ46: 205.5982924 | FR46: 205.9315516 | FS46: 206.2759194 | FT46: 206.6091787 | FU46: 206.9535465 | FV46: 207.2979144 | FW46: 207.6200649 | FX46: 207.9644328 | FY46: 208.297692 | FZ46: 208.6420599 | GA46: 208.9753191 | GB46: 209.3196869 | GC46: 209.6640548 | GD46: 209.997314 | GE46: 210.3416819 | GF46: 210.6749411 | GG46: =+GG32*$CK$31+$CS$39*$CL$31 -> 211.0193089 | GH46: 211.3636768 | GI46: 211.6747187 | GJ46: 212.0190866 | GK46: 212.3523458 | GL46: 212.6967137 | GM46: 213.0299729 | GN46: 213.3743407 | GO46: 213.7187086 | GP46: 214.0519678 | GQ46: 214.3963356 | GR46: 214.7295949 | GS46: 215.0739627 | GT46: 215.4183306 | GU46: 215.7293725 | GV46: 216.0737404 | GW46: 216.4069996 | GX46: 216.7513674 | GY46: 217.0846266 | GZ46: 217.4289945 | HA46: 217.7733624 | HB46: 218.1066216 | HC46: 218.4509894 | HD46: 218.7842486 | HE46: 219.1286165 | HF46: 219.4729844 | HG46: 219.7840263 | HH46: 220.1283941 | HI46: 220.4616534 | HJ46: 220.8060212 | HK46: 221.1392804 | HL46: 221.4836483 | HM46: 221.8280161 | HN46: 222.1612754 | HO46: 222.5056432 | HP46: 222.8389024
C47: =VLOOKUP($G$40,$A$44:$CH$46,C79,1) -> 0.0563 | D47: 0.0563 | E47: 0.0563 | F47: 0.0563 | G47: 0.0563 | H47: 0.0563 | I47: 0.0563 | J47: 0.0563 | K47: 0.0563 | L47: 0.0563 | M47: 0.0563 | N47: 0.0563 | O47: 0.05 | P47: 0.05 | Q47: 0.05 | R47: 0.05 | S47: 0.05 | T47: 0.05 | U47: 0.05 | V47: 0.05 | W47: 0.05 | X47: 0.05 | Y47: 0.05 | Z47: 0.05 | AA47: 0.045 | AB47: 0.045 | AC47: 0.045 | AD47: 0.045 | AE47: 0.045 | AF47: 0.045 | AG47: 0.045 | AH47: 0.045 | AI47: =VLOOKUP($G$40,$A$44:$CH$46,AI79,1) -> 0.045 | AJ47: 0.045 | AK47: 0.045 | AL47: 0.045 | AM47: 0.045 | AN47: 0.045 | AO47: 0.045 | AP47: 0.045 | AQ47: 0.045 | AR47: 0.045 | AS47: 0.045 | AT47: 0.045 | AU47: 0.045 | AV47: 0.045 | AW47: 0.045 | AX47: 0.045 | AY47: 0.045 | AZ47: 0.045 | BA47: 0.045 | BB47: 0.045 | BC47: 0.045 | BD47: 0.045 | BE47: 0.045 | BF47: 0.045 | BG47: 0.045 | BH47: 0.045 | BI47: 0.045 | BJ47: 0.045 | BK47: 0.045 | BL47: 0.045 | BM47: 0.045 | BN47: 0.045 | BO47: =VLOOKUP($G$40,$A$44:$CH$46,BO79,1) -> 0.045 | BP47: 0.045 | BQ47: 0.045 | BR47: 0.045 | BS47: 0.045 | BT47: 0.045 | BU47: 0.045 | BV47: 0.045 | BW47: 0.045 | BX47: 0.045 | BY47: 0.045 | BZ47: 0.045 | CA47: 0.045 | CB47: 0.045 | CC47: 0.045 | CD47: 0.045 | CE47: 0.045 | CF47: 0.045 | CG47: 0.045 | CH47: 0.045 | CN47: Devaluación anual | CO47: =+(CO45-CO31)/CO31 -> 0.08862904974 | CP47: 0.08914167616 | CQ47: 0.08960585736 | CR47: 0.09012106567 | CS47: 0.09062095341 | CT47: 0.09113885169 | CU47: 0.09164135282 | CV47: 0.0921619622 | CW47: 0.09268395752 | CX47: 0.0931904391 | CY47: 0.09371517779 | CZ47: 0.09422432471 | DA47: 0.09475182845 | DB47: 0.09528074578 | DC47: 0.09575969729 | DD47: 0.09629132071 | DE47: 0.09680715665 | DF47: 0.0973415998 | DG47: 0.09786017537 | DH47: 0.09839746074 | DI47: 0.09893619921 | DJ47: 0.09945894812 | DK47: 0.1000005632 | DL47: 0.1005261071 | DM47: 0.1010706218 | DN47: 0.1016166191 | DO47: 0.1021110573 | DP47: 0.1026598931 | DQ47: 0.1031924528 | DR47: 0.1037442465 | DS47: 0.1042796803 | DT47: 0.1048344559 | DU47: =+(DU45-DU31)/DU31 -> 0.1053907562 | DV47: 0.105930569 | DW47: 0.1064898878 | DX47: 0.1070326337 | DY47: 0.1075949958 | DZ47: 0.108158914 | EA47: 0.1086878649 | EB47: 0.1092548132 | EC47: 0.1098049727 | ED47: 0.1103750268 | EE47: 0.1109282042 | EF47: 0.1115013898 | EG47: 0.1120761766 | EH47: 0.1126339528 | EI47: 0.1132119102 | EJ47: 0.1137727673 | EK47: 0.1143539215 | EL47: 0.1149367104 | EM47: 0.1154645113 | EN47: 0.1160504307 | EO47: 0.1166190252 | EP47: 0.1172082078 | EQ47: 0.1177799734 | ER47: 0.1183724465 | ES47: 0.1189666025 | ET47: 0.1195432011 | EU47: 0.1201406895 | EV47: 0.1207205265 | EW47: 0.1213213753 | EX47: 0.1219239427 | EY47: 0.1224696805 | EZ47: 0.1230755394 | FA47: =+(FA45-FA31)/FA31 -> 0.1236635112 | FB47: 0.1242728015 | FC47: 0.1248641081 | FD47: 0.125476859 | FE47: 0.12609138 | FF47: 0.1266877702 | FG47: 0.1273057965 | FH47: 0.1279055935 | FI47: 0.1285271552 | FJ47: 0.1291505253 | FK47: 0.1297151302 | FL47: 0.1303419639 | FM47: 0.1309503208 | FN47: 0.1315807659 | FO47: 0.1321926328 | FP47: 0.1328267207 | FQ47: 0.1334626718 | FR47: 0.1340798903 | FS47: 0.134719532 | FT47: 0.1353403376 | FU47: 0.1359837022 | FV47: 0.1366289711 | FW47: 0.1372343414 | FX47: 0.1378833204 | FY47: 0.1385132016 | FZ47: 0.1391659854 | GA47: 0.1397995647 | GB47: 0.1404561868 | GC47: 0.1411147725 | GD47: 0.1417539915 | GE47: 0.1424164669 | GF47: 0.1430594667 | GG47: =+(GG45-GG31)/GG31 -> 0.1437258663 | GH47: 0.1443942736 | GI47: 0.1449997295 | GJ47: 0.145671983 | GK47: 0.1463244876 | GL47: 0.1470007527 | GM47: 0.1476571568 | GN47: 0.1483374695 | GO47: 0.1490198531 | GP47: 0.149682205 | GQ47: 0.1503686913 | GR47: 0.1510350315 | GS47: 0.1517256576 | GT47: 0.152418402 | GU47: 0.1530459353 | GV47: 0.1537427382 | GW47: 0.1544191074 | GX47: 0.1551201438 | GY47: 0.1558006288 | GZ47: 0.1565059376 | HA47: 0.1572134327 | HB47: 0.1579001964 | HC47: 0.1586120231 | HD47: 0.1593029979 | HE47: 0.1600191961 | HF47: 0.1607376314 | HG47: 0.1613884721 | HH47: 0.162111194 | HI47: 0.1628127613 | HJ47: 0.1635399557 | HK47: 0.1642458713 | HL47: 0.1649775797 | HM47: 0.1657115982 | HN47: 0.1664241487 | HO47: 0.1671627451 | HP47: 0.1678797465
C48: 1 | D48: Proyección de DTF Crystall Ball | G48: 3 | CN48: Devaluación forward | CO48: =+CO47*$CK$34 -> 0.07533469228 | CP48: 0.07577042474 | CQ48: 0.07616497876 | CR48: 0.07660290582 | CS48: 0.07702781039 | CT48: 0.07746802394 | CU48: 0.0778951499 | CV48: 0.07833766787 | CW48: 0.07878136389 | CX48: 0.07921187323 | CY48: 0.07965790112 | CZ48: 0.080090676 | DA48: 0.08053905419 | DB48: 0.08098863391 | DC48: 0.08139574269 | DD48: 0.0818476226 | DE48: 0.08228608316 | DF48: 0.08274035983 | DG48: 0.08318114906 | DH48: 0.08363784162 | DI48: 0.08409576933 | DJ48: 0.08454010591 | DK48: 0.08500047871 | DL48: 0.085447191 | DM48: 0.08591002856 | DN48: 0.08637412628 | DO48: 0.08679439874 | DP48: 0.08726090911 | DQ48: 0.08771358486 | DR48: 0.08818260949 | DS48: 0.08863772824 | DT48: 0.08910928752 | DU48: =+DU47*$CK$34 -> 0.08958214277 | DV48: 0.09004098361 | DW48: 0.09051640467 | DX48: 0.09097773865 | DY48: 0.09145574644 | DZ48: 0.09193507691 | EA48: 0.09238468513 | EB48: 0.09286659126 | EC48: 0.09333422677 | ED48: 0.09381877282 | EE48: 0.0942889736 | EF48: 0.09477618132 | EG48: 0.09526475011 | EH48: 0.09573885992 | EI48: 0.09623012365 | EJ48: 0.09670685224 | EK48: 0.09720083326 | EL48: 0.09769620386 | EM48: 0.09814483461 | EN48: 0.09864286611 | EO48: 0.09912617139 | EP48: 0.09962697662 | EQ48: 0.1001129774 | ER48: 0.1006165795 | ES48: 0.1011216121 | ET48: 0.101611721 | EU48: 0.102119586 | EV48: 0.1026124476 | EW48: 0.103123169 | EX48: 0.1036353513 | EY48: 0.1040992285 | EZ48: 0.1046142085 | FA48: =+FA47*$CK$34 -> 0.1051139845 | FB48: 0.1056318812 | FC48: 0.1061344919 | FD48: 0.1066553302 | FE48: 0.107177673 | FF48: 0.1076846046 | FG48: 0.108209927 | FH48: 0.1087197544 | FI48: 0.1092480819 | FJ48: 0.1097779465 | FK48: 0.1102578607 | FL48: 0.1107906693 | FM48: 0.1113077727 | FN48: 0.111843651 | FO48: 0.1123637379 | FP48: 0.1129027126 | FQ48: 0.113443271 | FR48: 0.1139679067 | FS48: 0.1145116022 | FT48: 0.1150392869 | FU48: 0.1155861468 | FV48: 0.1161346255 | FW48: 0.1166491902 | FX48: 0.1172008224 | FY48: 0.1177362214 | FZ48: 0.1182910876 | GA48: 0.11882963 | GB48: 0.1193877588 | GC48: 0.1199475567 | GD48: 0.1204908927 | GE48: 0.1210539968 | GF48: 0.1216005467 | GG48: =+GG47*$CK$34 -> 0.1221669864 | GH48: 0.1227351326 | GI48: 0.1232497701 | GJ48: 0.1238211855 | GK48: 0.1243758145 | GL48: 0.1249506398 | GM48: 0.1255085833 | GN48: 0.1260868491 | GO48: 0.1266668751 | GP48: 0.1272298742 | GQ48: 0.1278133876 | GR48: 0.1283797767 | GS48: 0.128966809 | GT48: 0.1295556417 | GU48: 0.130089045 | GV48: 0.1306813274 | GW48: 0.1312562412 | GX48: 0.1318521223 | GY48: 0.1324305345 | GZ48: 0.133030047 | HA48: 0.1336314178 | HB48: 0.1342151669 | HC48: 0.1348202196 | HD48: 0.1354075482 | HE48: 0.1360163167 | HF48: 0.1366269867 | HG48: 0.1371802013 | HH48: 0.1377945149 | HI48: 0.1383908471 | HJ48: 0.1390089623 | HK48: 0.1396089906 | HL48: 0.1402309427 | HM48: =+HM47*$CK$34 -> 0.1408548585 | HN48: =+HN47*$CK$34 -> 0.1414605264 | HO48: =+HO47*$CK$34 -> 0.1420883334 | HP48: =+HP47*$CK$34 -> 0.1426977845
C49: 2 | D49: Proyección de DTF (EXCEL)
C50: 3 | D50: Proyección de DTF FINDETER
B51: Proyección DTF | C51: =+C43 -> 2009-01-01 | D51: 2009-02-01 | E51: 2009-03-01 | F51: 2009-04-01 | G51: 2009-05-01 | H51: 2009-06-01 | I51: 2009-07-01 | J51: 2009-08-01 | K51: 2009-09-01 | L51: 2009-10-01 | M51: 2009-11-01 | N51: 2009-12-01 | O51: 2010-01-01 | P51: 2010-02-01 | Q51: 2010-03-01 | R51: 2010-04-01 | S51: 2010-05-01 | T51: 2010-06-01 | U51: 2010-07-01 | V51: 2010-08-01 | W51: 2010-09-01 | X51: 2010-10-01 | Y51: 2010-11-01 | Z51: 2010-12-01 | AA51: 2011-01-01 | AB51: 2011-02-01 | AC51: 2011-03-01 | AD51: 2011-04-01 | AE51: 2011-05-01 | AF51: 2011-06-01 | AG51: 2011-07-01 | AH51: 2011-08-01 | AI51: =+AI43 -> 2011-09-01 | AJ51: 2011-10-01 | AK51: 2011-11-01 | AL51: 2011-12-01 | AM51: 2012-01-01 | AN51: 2012-02-01 | AO51: 2012-03-01 | AP51: 2012-04-01 | AQ51: 2012-05-01 | AR51: 2012-06-01 | AS51: 2012-07-01 | AT51: 2012-08-01 | AU51: 2012-09-01 | AV51: 2012-10-01 | AW51: 2012-11-01 | AX51: 2012-12-01 | AY51: 2013-01-01 | AZ51: 2013-02-01 | BA51: 2013-03-01 | BB51: 2013-04-01 | BC51: 2013-05-01 | BD51: 2013-06-01 | BE51: 2013-07-01 | BF51: 2013-08-01 | BG51: 2013-09-01 | BH51: 2013-10-01 | BI51: 2013-11-01 | BJ51: 2013-12-01 | BK51: 2014-01-01 | BL51: 2014-02-01 | BM51: 2014-03-01 | BN51: 2014-04-01 | BO51: =+BO43 -> 2014-05-01 | BP51: 2014-06-01 | BQ51: 2014-07-01 | BR51: 2014-08-01 | BS51: 2014-09-01 | BT51: 2014-10-01 | BU51: 2014-11-01 | BV51: 2014-12-01 | BW51: 2015-01-01 | BX51: 2015-02-01 | BY51: 2015-03-01 | BZ51: 2015-04-01 | CA51: 2015-05-01 | CB51: 2015-06-01 | CC51: 2015-07-01 | CD51: 2015-08-01 | CE51: 2015-09-01 | CF51: 2015-10-01 | CG51: 2015-11-01 | CH51: 2015-12-01 | CN51: Proyección 2 (Crystall Ball) | CO51: =+CO42 -> 2009-01-01 | CP51: =+CP42 -> 2009-02-01 | CQ51: 2009-03-01 | CR51: 2009-04-01 | CS51: 2009-05-01 | CT51: 2009-06-01 | CU51: 2009-07-01 | CV51: 2009-08-01 | CW51: 2009-09-01 | CX51: 2009-10-01 | CY51: 2009-11-01 | CZ51: 2009-12-01 | DA51: 2010-01-01 | DB51: 2010-02-01 | DC51: 2010-03-01 | DD51: 2010-04-01 | DE51: 2010-05-01 | DF51: 2010-06-01 | DG51: 2010-07-01 | DH51: 2010-08-01 | DI51: 2010-09-01 | DJ51: 2010-10-01 | DK51: 2010-11-01 | DL51: 2010-12-01 | DM51: 2011-01-01 | DN51: 2011-02-01 | DO51: 2011-03-01 | DP51: 2011-04-01 | DQ51: 2011-05-01 | DR51: 2011-06-01 | DS51: 2011-07-01 | DT51: 2011-08-01 | DU51: 2011-09-01 | DV51: 2011-10-01 | DW51: 2011-11-01 | DX51: 2011-12-01 | DY51: 2012-01-01 | DZ51: 2012-02-01 | EA51: 2012-03-01 | EB51: 2012-04-01 | EC51: 2012-05-01 | ED51: 2012-06-01 | EE51: 2012-07-01 | EF51: 2012-08-01 | EG51: 2012-09-01 | EH51: 2012-10-01 | EI51: 2012-11-01 | EJ51: 2012-12-01 | EK51: 2013-01-01 | EL51: 2013-02-01 | EM51: 2013-03-01 | EN51: 2013-04-01 | EO51: 2013-05-01 | EP51: 2013-06-01 | EQ51: 2013-07-01 | ER51: 2013-08-01 | ES51: 2013-09-01 | ET51: 2013-10-01 | EU51: 2013-11-01 | EV51: 2013-12-01 | EW51: 2014-01-01 | EX51: 2014-02-01 | EY51: 2014-03-01 | EZ51: 2014-04-01 | FA51: 2014-05-01 | FB51: =+FB42 -> 2014-06-01 | FC51: 2014-07-01 | FD51: 2014-08-01 | FE51: 2014-09-01 | FF51: 2014-10-01 | FG51: 2014-11-01 | FH51: 2014-12-01 | FI51: 2015-01-01 | FJ51: 2015-02-01 | FK51: 2015-03-01 | FL51: 2015-04-01 | FM51: 2015-05-01 | FN51: 2015-06-01 | FO51: 2015-07-01 | FP51: 2015-08-01 | FQ51: 2015-09-01 | FR51: 2015-10-01 | FS51: 2015-11-01 | FT51: 2015-12-01 | FU51: 2016-01-01 | FV51: 2016-02-01 | FW51: 2016-03-01 | FX51: 2016-04-01 | FY51: 2016-05-01 | FZ51: 2016-06-01 | GA51: 2016-07-01 | GB51: 2016-08-01 | GC51: 2016-09-01 | GD51: 2016-10-01 | GE51: 2016-11-01 | GF51: 2016-12-01 | GG51: 2017-01-01 | GH51: 2017-02-01 | GI51: 2017-03-01 | GJ51: 2017-04-01 | GK51: 2017-05-01 | GL51: 2017-06-01 | GM51: 2017-07-01 | GN51: 2017-08-01 | GO51: 2017-09-01 | GP51: 2017-10-01 | GQ51: 2017-11-01 | GR51: 2017-12-01 | GS51: 2018-01-01 | GT51: 2018-02-01 | GU51: 2018-03-01 | GV51: 2018-04-01 | GW51: 2018-05-01 | GX51: 2018-06-01 | GY51: 2018-07-01 | GZ51: 2018-08-01 | HA51: 2018-09-01 | HB51: 2018-10-01 | HC51: 2018-11-01 | HD51: 2018-12-01 | HE51: 2019-01-01 | HF51: 2019-02-01 | HG51: 2019-03-01 | HH51: 2019-04-01 | HI51: 2019-05-01 | HJ51: 2019-06-01 | HK51: 2019-07-01 | HL51: 2019-08-01 | HM51: 2019-09-01 | HN51: =+HN42 -> 2019-10-01 | HO51: =+HO42 -> 2019-11-01 | HP51: =+HP42 -> 2019-12-01
A52: 1 | B52: Proyección de DTF Crystal Ball | C52: =+CO53 -> 0.1172819078 | D52: =+CP53 -> 0.1030757873 | E52: =+CQ53 -> 0.08253633074 | F52: =+CR53 -> 0.08591292607 | G52: =+CS53 -> 0.09003604291 | H52: =+CT53 -> 0.09071355829 | I52: 0.09331007034 | J52: 0.09505921152 | K52: 0.09778201708 | L52: 0.1005430085 | M52: 0.102323825 | N52: 0.1046339853 | O52: 0.1053386431 | P52: 0.1066624407 | Q52: 0.1166824012 | R52: 0.09485212914 | S52: 0.0839383899 | T52: 0.08736223926 | U52: 0.0913373918 | V52: 0.09348445051 | W52: 0.09602703385 | X52: 0.09797349898 | Y52: 0.09713033133 | Z52: 0.09713033133 | AA52: 0.09713033133 | AB52: 0.09713033133 | AC52: 0.09713033133 | AD52: 0.09713033133 | AE52: 0.09713033133 | AF52: 0.09713033133 | AG52: 0.09713033133 | AH52: 0.09713033133 | AI52: 0.09713033133 | AJ52: 0.09713033133 | AK52: 0.09713033133 | AL52: 0.09713033133 | AM52: 0.09713033133 | AN52: 0.09713033133 | AO52: 0.09713033133 | AP52: 0.09713033133 | AQ52: 0.09713033133 | AR52: 0.09713033133 | AS52: 0.09713033133 | AT52: 0.09713033133 | AU52: 0.09713033133 | AV52: 0.09713033133 | AW52: 0.09713033133 | AX52: 0.09713033133 | AY52: 0.09713033133 | AZ52: 0.09713033133 | BA52: 0.09713033133 | BB52: 0.09713033133 | BC52: 0.09713033133 | BD52: 0.09713033133 | BE52: 0.09713033133 | BF52: 0.09713033133 | BG52: 0.09713033133 | BH52: 0.09713033133 | BI52: 0.09713033133 | BJ52: 0.09713033133 | BK52: 0.09713033133 | BL52: 0.09713033133 | BM52: 0.09713033133 | BN52: 0.09713033133 | BO52: 0.09713033133 | BP52: =+FB53 -> 0.09713033133 | BQ52: 0.09713033133 | BR52: 0.09713033133 | BS52: 0.09713033133 | BT52: 0.09713033133 | BU52: 0.09713033133 | BV52: 0.09713033133 | BW52: 0.09713033133 | BX52: 0.09713033133 | BY52: 0.09713033133 | BZ52: 0.09713033133 | CA52: 0.09713033133 | CB52: 0.09713033133 | CC52: 0.09713033133 | CD52: 0.09713033133 | CE52: 0.09713033133 | CF52: 0.09713033133 | CG52: 0.09713033133 | CH52: 0.09713033133 | CN52: IPC % | CO52: 0.06 | CP52: 0.06 | CQ52: 0.06 | CR52: 0.06 | CS52: 0.06 | CT52: 0.06 | CU52: 0.06 | CV52: 0.06 | CW52: 0.06 | CX52: 0.06 | CY52: 0.06 | CZ52: 0.06 | DA52: 0.05 | DB52: 0.05 | DC52: 0.05 | DD52: 0.05 | DE52: 0.05 | DF52: 0.05 | DG52: 0.05 | DH52: 0.05 | DI52: 0.05 | DJ52: 0.05 | DK52: 0.05 | DL52: 0.05 | DM52: 0.04 | DN52: 0.04 | DO52: 0.04 | DP52: 0.04 | DQ52: 0.04 | DR52: 0.04 | DS52: 0.04 | DT52: 0.04 | DU52: 0.04 | DV52: 0.04 | DW52: 0.04 | DX52: 0.04 | DY52: 0.04 | DZ52: 0.04 | EA52: 0.04 | EB52: 0.04 | EC52: 0.04 | ED52: 0.04 | EE52: 0.04 | EF52: 0.04 | EG52: 0.04 | EH52: 0.04 | EI52: 0.04 | EJ52: 0.04 | EK52: 0.04 | EL52: 0.04 | EM52: 0.04 | EN52: 0.04 | EO52: 0.04 | EP52: 0.04 | EQ52: 0.04 | ER52: 0.04 | ES52: 0.04 | ET52: 0.04 | EU52: 0.04 | EV52: 0.04 | EW52: 0.04 | EX52: 0.04 | EY52: 0.04 | EZ52: 0.04 | FA52: 0.04 | FB52: 0.04 | FC52: 0.04 | FD52: 0.04 | FE52: 0.04 | FF52: 0.04 | FG52: 0.04 | FH52: 0.04 | FI52: 0.04 | FJ52: 0.04 | FK52: 0.04 | FL52: 0.04 | FM52: 0.04 | FN52: 0.04 | FO52: 0.04 | FP52: 0.04 | FQ52: 0.04 | FR52: 0.04 | FS52: 0.04 | FT52: 0.04 | FU52: 0.04 | FV52: 0.04 | FW52: 0.04 | FX52: 0.04 | FY52: 0.04 | FZ52: 0.04 | GA52: 0.04 | GB52: 0.04 | GC52: 0.04 | GD52: 0.04 | GE52: 0.04 | GF52: 0.04 | GG52: 0.04 | GH52: 0.04 | GI52: 0.04 | GJ52: 0.04 | GK52: 0.04 | GL52: 0.04 | GM52: 0.04 | GN52: 0.04 | GO52: 0.04 | GP52: 0.04 | GQ52: 0.04 | GR52: 0.04 | GS52: 0.04 | GT52: 0.04 | GU52: 0.04 | GV52: 0.04 | GW52: 0.04 | GX52: 0.04 | GY52: 0.04 | GZ52: 0.04 | HA52: 0.04 | HB52: 0.04 | HC52: 0.04 | HD52: 0.04 | HE52: 0.04 | HF52: 0.04 | HG52: 0.04 | HH52: 0.04 | HI52: 0.04 | HJ52: 0.04 | HK52: 0.04 | HL52: 0.04 | HM52: 0.04 | HN52: 0.04 | HO52: 0.04 | HP52: 0.04
A53: 2 | B53: Proyección de DTF (EXCEL) | C53: =+CO44 -> 0.0936004468 | D53: =+CP44 -> 0.09337065069 | E53: =+CQ44 -> 0.09316309291 | F53: =+CR44 -> 0.09293329679 | G53: =+CS44 -> 0.09271091346 | H53: =+CT44 -> 0.09248111735 | I53: 0.09225873401 | J53: 0.0920289379 | K53: 0.09179914179 | L53: 0.09157675845 | M53: 0.09134696234 | N53: 0.091124579 | O53: 0.09089478289 | P53: 0.09066498678 | Q53: 0.090457429 | R53: 0.09022763289 | S53: 0.09000524955 | T53: 0.08977545344 | U53: 0.0895530701 | V53: 0.08932327399 | W53: 0.08909347788 | X53: 0.08887109454 | Y53: 0.08864129843 | Z53: 0.0884189151 | AA53: 0.08818911898 | AB53: 0.08795932287 | AC53: 0.08775176509 | AD53: 0.08752196898 | AE53: 0.08729958565 | AF53: 0.08706978953 | AG53: 0.0868474062 | AH53: 0.08661761009 | AI53: 0.08638781397 | AJ53: 0.08616543064 | AK53: 0.08593563453 | AL53: 0.08571325119 | AM53: 0.08548345508 | AN53: 0.08525365897 | AO53: 0.08503868841 | AP53: 0.0848088923 | AQ53: 0.08458650896 | AR53: 0.08435671285 | AS53: 0.08413432951 | AT53: 0.0839045334 | AU53: 0.08367473729 | AV53: 0.08345235395 | AW53: 0.08322255784 | AX53: 0.08300017451 | AY53: 0.08277037839 | AZ53: 0.08254058228 | BA53: 0.0823330245 | BB53: 0.08210322839 | BC53: 0.08188084505 | BD53: 0.08165104894 | BE53: 0.08142866561 | BF53: 0.08119886949 | BG53: 0.08096907338 | BH53: 0.08074669005 | BI53: 0.08051689393 | BJ53: 0.0802945106 | BK53: 0.08006471449 | BL53: 0.07983491837 | BM53: 0.0796273606 | BN53: 0.07939756448 | BO53: 0.07917518115 | BP53: =+FB44 -> 0.07894538504 | BQ53: 0.0787230017 | BR53: 0.07849320559 | BS53: 0.07826340948 | BT53: 0.07804102614 | BU53: 0.07781123003 | BV53: 0.07758884669 | BW53: 0.07735905058 | BX53: 0.07712925447 | BY53: 0.07692169669 | BZ53: 0.07669190058 | CA53: 0.07646951724 | CB53: 0.07623972113 | CC53: 0.07601733779 | CD53: 0.07578754168 | CE53: 0.07555774557 | CF53: 0.07533536223 | CG53: 0.07510556612 | CH53: 0.07488318279 | CN53: DTF E.A%(fin mes) | CO53: =+'[1]Proyección DTF'!F562 -> 0.1172819078 | CP53: =+'[1]Proyección DTF'!G562 -> 0.1030757873 | CQ53: =+'[1]Proyección DTF'!H562 -> 0.08253633074 | CR53: =+'[1]Proyección DTF'!I562 -> 0.08591292607 | CS53: =+'[1]Proyección DTF'!J562 -> 0.09003604291 | CT53: =+'[1]Proyección DTF'!K562 -> 0.09071355829 | CU53: =+'[1]Proyección DTF'!L562 -> 0.09331007034 | CV53: =+'[1]Proyección DTF'!M562 -> 0.09505921152 | CW53: =+'[1]Proyección DTF'!N562 -> 0.09778201708 | CX53: =+'[1]Proyección DTF'!O562 -> 0.1005430085 | CY53: =+'[1]Proyección DTF'!P562 -> 0.102323825 | CZ53: =+'[1]Proyección DTF'!Q562 -> 0.1046339853 | DA53: =+'[1]Proyección DTF'!R562 -> 0.1053386431 | DB53: =+'[1]Proyección DTF'!S562 -> 0.1066624407 | DC53: =+'[1]Proyección DTF'!T562 -> 0.1166824012 | DD53: =+'[1]Proyección DTF'!U562 -> 0.09485212914 | DE53: =+'[1]Proyección DTF'!V562 -> 0.0839383899 | DF53: =+'[1]Proyección DTF'!W562 -> 0.08736223926 | DG53: =+'[1]Proyección DTF'!X562 -> 0.0913373918 | DH53: =+'[1]Proyección DTF'!Y562 -> 0.09348445051 | DI53: =+'[1]Proyección DTF'!Z562 -> 0.09602703385 | DJ53: =+'[1]Proyección DTF'!AA562 -> 0.09797349898 | DK53: =AVERAGE(CO53:DJ53) -> 0.09713033133 | DL53: =+DK53 -> 0.09713033133 | DM53: =+DL53 -> 0.09713033133 | DN53: 0.09713033133 | DO53: 0.09713033133 | DP53: 0.09713033133 | DQ53: 0.09713033133 | DR53: 0.09713033133 | DS53: 0.09713033133 | DT53: 0.09713033133 | DU53: 0.09713033133 | DV53: 0.09713033133 | DW53: 0.09713033133 | DX53: 0.09713033133 | DY53: 0.09713033133 | DZ53: 0.09713033133 | EA53: 0.09713033133 | EB53: 0.09713033133 | EC53: 0.09713033133 | ED53: 0.09713033133 | EE53: 0.09713033133 | EF53: 0.09713033133 | EG53: 0.09713033133 | EH53: 0.09713033133 | EI53: 0.09713033133 | EJ53: 0.09713033133 | EK53: 0.09713033133 | EL53: 0.09713033133 | EM53: 0.09713033133 | EN53: 0.09713033133 | EO53: 0.09713033133 | EP53: 0.09713033133 | EQ53: 0.09713033133 | ER53: 0.09713033133 | ES53: 0.09713033133 | ET53: 0.09713033133 | EU53: 0.09713033133 | EV53: 0.09713033133 | EW53: 0.09713033133 | EX53: 0.09713033133 | EY53: 0.09713033133 | EZ53: 0.09713033133 | FA53: 0.09713033133 | FB53: 0.09713033133 | FC53: 0.09713033133 | FD53: 0.09713033133 | FE53: 0.09713033133 | FF53: 0.09713033133 | FG53: 0.09713033133 | FH53: 0.09713033133 | FI53: 0.09713033133 | FJ53: 0.09713033133 | FK53: 0.09713033133 | FL53: 0.09713033133 | FM53: 0.09713033133 | FN53: 0.09713033133 | FO53: 0.09713033133 | FP53: 0.09713033133 | FQ53: 0.09713033133 | FR53: 0.09713033133 | FS53: 0.09713033133 | FT53: 0.09713033133 | FU53: 0.09713033133 | FV53: 0.09713033133 | FW53: 0.09713033133 | FX53: 0.09713033133 | FY53: =+FX53 -> 0.09713033133 | FZ53: 0.09713033133 | GA53: 0.09713033133 | GB53: 0.09713033133 | GC53: 0.09713033133 | GD53: 0.09713033133 | GE53: 0.09713033133 | GF53: 0.09713033133 | GG53: 0.09713033133 | GH53: 0.09713033133 | GI53: 0.09713033133 | GJ53: 0.09713033133 | GK53: 0.09713033133 | GL53: 0.09713033133 | GM53: 0.09713033133 | GN53: 0.09713033133 | GO53: 0.09713033133 | GP53: 0.09713033133 | GQ53: 0.09713033133 | GR53: 0.09713033133 | GS53: 0.09713033133 | GT53: 0.09713033133 | GU53: 0.09713033133 | GV53: 0.09713033133 | GW53: 0.09713033133 | GX53: 0.09713033133 | GY53: 0.09713033133 | GZ53: 0.09713033133 | HA53: 0.09713033133 | HB53: 0.09713033133 | HC53: 0.09713033133 | HD53: 0.09713033133 | HE53: 0.09713033133 | HF53: 0.09713033133 | HG53: 0.09713033133 | HH53: 0.09713033133 | HI53: 0.09713033133 | HJ53: 0.09713033133 | HK53: 0.09713033133 | HL53: 0.09713033133 | HM53: 0.09713033133 | HN53: 0.09713033133 | HO53: 0.09713033133 | HP53: 0.09713033133
A54: 3 | B54: Proyección de DTF FINDETER | C54: =+D33 -> 0.079 | D54: =+C54 -> 0.079 | E54: =+D54 -> 0.079 | F54: 0.079 | G54: 0.079 | H54: 0.079 | I54: 0.079 | J54: 0.079 | K54: 0.079 | L54: 0.079 | M54: 0.079 | N54: 0.079 | O54: =+E33 -> 0.08 | P54: =+O54 -> 0.08 | Q54: =+P54 -> 0.08 | R54: 0.08 | S54: 0.08 | T54: 0.08 | U54: 0.08 | V54: 0.08 | W54: 0.08 | X54: 0.08 | Y54: 0.08 | Z54: 0.08 | AA54: =+F33 -> 0.08 | AB54: =+AA54 -> 0.08 | AC54: =+AB54 -> 0.08 | AD54: 0.08 | AE54: 0.08 | AF54: 0.08 | AG54: 0.08 | AH54: 0.08 | AI54: 0.08 | AJ54: 0.08 | AK54: 0.08 | AL54: 0.08 | AM54: =+G33 -> 0.08 | AN54: =+AM54 -> 0.08 | AO54: =+AN54 -> 0.08 | AP54: 0.08 | AQ54: 0.08 | AR54: 0.08 | AS54: 0.08 | AT54: 0.08 | AU54: 0.08 | AV54: 0.08 | AW54: 0.08 | AX54: 0.08 | AY54: =+H33 -> 0.08 | AZ54: =+AY54 -> 0.08 | BA54: =+AZ54 -> 0.08 | BB54: 0.08 | BC54: 0.08 | BD54: 0.08 | BE54: 0.08 | BF54: 0.08 | BG54: 0.08 | BH54: 0.08 | BI54: 0.08 | BJ54: 0.08 | BK54: =+I33 -> 0.08 | BL54: =+BK54 -> 0.08 | BM54: =+BL54 -> 0.08 | BN54: 0.08 | BO54: 0.08 | BP54: 0.08 | BQ54: 0.08 | BR54: 0.08 | BS54: 0.08 | BT54: 0.08 | BU54: 0.08 | BV54: 0.08 | BW54: =+J33 -> 0.08 | BX54: =+BW54 -> 0.08 | BY54: =+BX54 -> 0.08 | BZ54: 0.08 | CA54: 0.08 | CB54: 0.08 | CC54: 0.08 | CD54: 0.08 | CE54: 0.08 | CF54: 0.08 | CG54: 0.08 | CH54: 0.08 | CN54: TRM | CO54: =+CO45 -> 2390.056014 | CP54: =+CP45 -> 2388.031506 | CQ54: 2386.202919 | CR54: 2384.178411 | CS54: 2382.21921 | CT54: 2380.194702 | CU54: 2378.235501 | CV54: 2376.210993 | CW54: 2374.186486 | CX54: 2372.227285 | CY54: 2370.202777 | CZ54: 2368.243576 | DA54: 2366.219068 | DB54: 2364.19456 | DC54: 2362.365973 | DD54: 2360.341465 | DE54: 2358.382264 | DF54: 2356.357756 | DG54: 2354.398555 | DH54: 2352.374047 | DI54: 2350.34954 | DJ54: 2348.390338 | DK54: 2346.365831 | DL54: 2344.40663 | DM54: 2342.382122 | DN54: 2340.357614 | DO54: 2338.529027 | DP54: 2336.504519 | DQ54: 2334.545318 | DR54: 2332.52081 | DS54: 2330.561609 | DT54: 2328.537101 | DU54: 2326.512593 | DV54: 2324.553392 | DW54: 2322.528885 | DX54: 2320.569684 | DY54: 2318.545176 | DZ54: 2316.520668 | EA54: 2314.626774 | EB54: 2312.602266 | EC54: 2310.643065 | ED54: 2308.618557 | EE54: 2306.659356 | EF54: 2304.634848 | EG54: 2302.610341 | EH54: 2300.65114 | EI54: 2298.626632 | EJ54: 2296.667431 | EK54: 2294.642923 | EL54: 2292.618415 | EM54: 2290.789828 | EN54: 2288.76532 | EO54: 2286.806119 | EP54: 2284.781611 | EQ54: 2282.82241 | ER54: 2280.797902 | ES54: 2278.773395 | ET54: 2276.814194 | EU54: 2274.789686 | EV54: 2272.830485 | EW54: 2270.805977 | EX54: 2268.781469 | EY54: 2266.952882 | EZ54: 2264.928374 | FA54: 2262.969173 | FB54: =+FB45 -> 2260.944665 | FC54: 2258.985464 | FD54: 2256.960956 | FE54: 2254.936449 | FF54: 2252.977248 | FG54: 2250.95274 | FH54: 2248.993539 | FI54: 2246.969031 | FJ54: 2244.944523 | FK54: 2243.115936 | FL54: 2241.091428 | FM54: 2239.132227 | FN54: 2237.107719 | FO54: 2235.148518 | FP54: 2233.12401 | FQ54: 2231.099503 | FR54: 2229.140302 | FS54: 2227.115794 | FT54: 2225.156593 | FU54: 2223.132085 | FV54: 2221.107577 | FW54: 2219.213683 | FX54: 2217.189175 | FY54: 2215.229974 | FZ54: 2213.205466 | GA54: 2211.246265 | GB54: 2209.221758 | GC54: 2207.19725 | GD54: 2205.238049 | GE54: 2203.213541 | GF54: 2201.25434 | GG54: 2199.229832 | GH54: 2197.205325 | GI54: 2195.376737 | GJ54: 2193.352229 | GK54: 2191.393028 | GL54: 2189.36852 | GM54: 2187.409319 | GN54: 2185.384812 | GO54: 2183.360304 | GP54: 2181.401103 | GQ54: 2179.376595 | GR54: 2177.417394 | GS54: 2175.392886 | GT54: 2173.368378 | GU54: 2171.539791 | GV54: 2169.515283 | GW54: 2167.556082 | GX54: 2165.531574 | GY54: 2163.572373 | GZ54: 2161.547865 | HA54: 2159.523358 | HB54: 2157.564157 | HC54: 2155.539649 | HD54: 2153.580448 | HE54: 2151.55594 | HF54: 2149.531432 | HG54: 2147.702845 | HH54: 2145.678337 | HI54: 2143.719136 | HJ54: 2141.694628 | HK54: 2139.735427 | HL54: 2137.710919 | HM54: 2135.686412 | HN54: =+HN45 -> 2133.727211 | HO54: 2131.702703 | HP54: 2129.743502
C55: =VLOOKUP($G$48,$A$52:$CH$54,C79,1) -> 0.079 | D55: 0.079 | E55: 0.079 | F55: 0.079 | G55: 0.079 | H55: 0.079 | I55: 0.079 | J55: 0.079 | K55: 0.079 | L55: 0.079 | M55: 0.079 | N55: 0.079 | O55: 0.08 | P55: 0.08 | Q55: 0.08 | R55: 0.08 | S55: 0.08 | T55: 0.08 | U55: 0.08 | V55: 0.08 | W55: 0.08 | X55: 0.08 | Y55: 0.08 | Z55: 0.08 | AA55: 0.08 | AB55: 0.08 | AC55: 0.08 | AD55: 0.08 | AE55: 0.08 | AF55: 0.08 | AG55: 0.08 | AH55: 0.08 | AI55: =VLOOKUP($G$48,$A$52:$CH$54,AI79,1) -> 0.08 | AJ55: 0.08 | AK55: 0.08 | AL55: 0.08 | AM55: 0.08 | AN55: 0.08 | AO55: 0.08 | AP55: 0.08 | AQ55: 0.08 | AR55: 0.08 | AS55: 0.08 | AT55: 0.08 | AU55: 0.08 | AV55: 0.08 | AW55: 0.08 | AX55: 0.08 | AY55: 0.08 | AZ55: 0.08 | BA55: 0.08 | BB55: 0.08 | BC55: 0.08 | BD55: 0.08 | BE55: 0.08 | BF55: 0.08 | BG55: 0.08 | BH55: 0.08 | BI55: 0.08 | BJ55: 0.08 | BK55: 0.08 | BL55: 0.08 | BM55: 0.08 | BN55: 0.08 | BO55: =VLOOKUP($G$48,$A$52:$CH$54,BO79,1) -> 0.08 | BP55: 0.08 | BQ55: 0.08 | BR55: 0.08 | BS55: 0.08 | BT55: 0.08 | BU55: 0.08 | BV55: 0.08 | BW55: 0.08 | BX55: 0.08 | BY55: 0.08 | BZ55: 0.08 | CA55: 0.08 | CB55: 0.08 | CC55: 0.08 | CD55: 0.08 | CE55: 0.08 | CF55: 0.08 | CG55: 0.08 | CH55: 0.08 | CN55: UVR (fin mes) | CO55: =+CO46 -> 178.5598614 | CP55: =+CP46 -> 178.9042293 | CQ55: 179.2152712 | CR55: 179.5596391 | CS55: 179.8928983 | CT55: 180.2372661 | CU55: 180.5705254 | CV55: 180.9148932 | CW55: 181.2592611 | CX55: 181.5925203 | CY55: 181.9368881 | CZ55: 182.2701474 | DA55: 182.6145152 | DB55: 182.9588831 | DC55: 183.269925 | DD55: 183.6142928 | DE55: 183.9475521 | DF55: 184.2919199 | DG55: 184.6251791 | DH55: 184.969547 | DI55: 185.3139148 | DJ55: 185.6471741 | DK55: 185.9915419 | DL55: 186.3248011 | DM55: 186.669169 | DN55: 187.0135368 | DO55: 187.3245788 | DP55: 187.6689466 | DQ55: 188.0022058 | DR55: 188.3465737 | DS55: 188.6798329 | DT55: 189.0242008 | DU55: 189.3685686 | DV55: 189.7018278 | DW55: 190.0461957 | DX55: 190.3794549 | DY55: 190.7238228 | DZ55: 191.0681906 | EA55: 191.3903412 | EB55: 191.734709 | EC55: 192.0679683 | ED55: 192.4123361 | EE55: 192.7455953 | EF55: 193.0899632 | EG55: 193.434331 | EH55: 193.7675903 | EI55: 194.1119581 | EJ55: 194.4452173 | EK55: 194.7895852 | EL55: 195.133953 | EM55: 195.444995 | EN55: 195.7893628 | EO55: 196.122622 | EP55: 196.4669899 | EQ55: 196.8002491 | ER55: 197.144617 | ES55: 197.4889848 | ET55: 197.822244 | EU55: 198.1666119 | EV55: 198.4998711 | EW55: 198.844239 | EX55: 199.1886068 | EY55: 199.4996488 | EZ55: 199.8440166 | FA55: 200.1772758 | FB55: =+FB46 -> 200.5216437 | FC55: 200.8549029 | FD55: 201.1992707 | FE55: 201.5436386 | FF55: 201.8768978 | FG55: 202.2212657 | FH55: 202.5545249 | FI55: 202.8988927 | FJ55: 203.2432606 | FK55: 203.5543025 | FL55: 203.8986704 | FM55: 204.2319296 | FN55: 204.5762975 | FO55: 204.9095567 | FP55: 205.2539245 | FQ55: 205.5982924 | FR55: 205.9315516 | FS55: 206.2759194 | FT55: 206.6091787 | FU55: 206.9535465 | FV55: 207.2979144 | FW55: 207.6200649 | FX55: 207.9644328 | FY55: 208.297692 | FZ55: 208.6420599 | GA55: 208.9753191 | GB55: 209.3196869 | GC55: 209.6640548 | GD55: 209.997314 | GE55: 210.3416819 | GF55: 210.6749411 | GG55: 211.0193089 | GH55: 211.3636768 | GI55: 211.6747187 | GJ55: 212.0190866 | GK55: 212.3523458 | GL55: 212.6967137 | GM55: 213.0299729 | GN55: 213.3743407 | GO55: 213.7187086 | GP55: 214.0519678 | GQ55: 214.3963356 | GR55: 214.7295949 | GS55: 215.0739627 | GT55: 215.4183306 | GU55: 215.7293725 | GV55: 216.0737404 | GW55: 216.4069996 | GX55: 216.7513674 | GY55: 217.0846266 | GZ55: 217.4289945 | HA55: 217.7733624 | HB55: 218.1066216 | HC55: 218.4509894 | HD55: 218.7842486 | HE55: 219.1286165 | HF55: 219.4729844 | HG55: 219.7840263 | HH55: 220.1283941 | HI55: 220.4616534 | HJ55: 220.8060212 | HK55: 221.1392804 | HL55: 221.4836483 | HM55: 221.8280161 | HN55: 222.1612754 | HO55: 222.5056432 | HP55: 222.8389024
C56: 1 | D56: Proyección de UVR Crystall Ball | G56: 3 | CN56: Devaluación anual | CO56: =+(CO54-CO31)/CO31 -> 0.08862904974 | CP56: 0.08914167616 | CQ56: 0.08960585736 | CR56: 0.09012106567 | CS56: 0.09062095341 | CT56: 0.09113885169 | CU56: 0.09164135282 | CV56: 0.0921619622 | CW56: 0.09268395752 | CX56: 0.0931904391 | CY56: 0.09371517779 | CZ56: 0.09422432471 | DA56: 0.09475182845 | DB56: 0.09528074578 | DC56: 0.09575969729 | DD56: 0.09629132071 | DE56: 0.09680715665 | DF56: 0.0973415998 | DG56: 0.09786017537 | DH56: 0.09839746074 | DI56: 0.09893619921 | DJ56: 0.09945894812 | DK56: 0.1000005632 | DL56: 0.1005261071 | DM56: 0.1010706218 | DN56: 0.1016166191 | DO56: 0.1021110573 | DP56: 0.1026598931 | DQ56: 0.1031924528 | DR56: 0.1037442465 | DS56: 0.1042796803 | DT56: 0.1048344559 | DU56: =+(DU54-DU31)/DU31 -> 0.1053907562 | DV56: 0.105930569 | DW56: 0.1064898878 | DX56: 0.1070326337 | DY56: 0.1075949958 | DZ56: 0.108158914 | EA56: 0.1086878649 | EB56: 0.1092548132 | EC56: 0.1098049727 | ED56: 0.1103750268 | EE56: 0.1109282042 | EF56: 0.1115013898 | EG56: 0.1120761766 | EH56: 0.1126339528 | EI56: 0.1132119102 | EJ56: 0.1137727673 | EK56: 0.1143539215 | EL56: 0.1149367104 | EM56: 0.1154645113 | EN56: 0.1160504307 | EO56: 0.1166190252 | EP56: 0.1172082078 | EQ56: 0.1177799734 | ER56: 0.1183724465 | ES56: 0.1189666025 | ET56: 0.1195432011 | EU56: 0.1201406895 | EV56: 0.1207205265 | EW56: 0.1213213753 | EX56: 0.1219239427 | EY56: 0.1224696805 | EZ56: 0.1230755394 | FA56: =+(FA54-FA31)/FA31 -> 0.1236635112 | FB56: 0.1242728015 | FC56: 0.1248641081 | FD56: 0.125476859 | FE56: 0.12609138 | FF56: 0.1266877702 | FG56: 0.1273057965 | FH56: 0.1279055935 | FI56: 0.1285271552 | FJ56: 0.1291505253 | FK56: 0.1297151302 | FL56: 0.1303419639 | FM56: 0.1309503208 | FN56: 0.1315807659 | FO56: 0.1321926328 | FP56: 0.1328267207 | FQ56: 0.1334626718 | FR56: 0.1340798903 | FS56: 0.134719532 | FT56: 0.1353403376 | FU56: 0.1359837022 | FV56: 0.1366289711 | FW56: 0.1372343414 | FX56: 0.1378833204 | FY56: 0.1385132016 | FZ56: 0.1391659854 | GA56: 0.1397995647 | GB56: 0.1404561868 | GC56: 0.1411147725 | GD56: 0.1417539915 | GE56: 0.1424164669 | GF56: 0.1430594667 | GG56: =+(GG54-GG31)/GG31 -> 0.1437258663 | GH56: 0.1443942736 | GI56: 0.1449997295 | GJ56: 0.145671983 | GK56: 0.1463244876 | GL56: 0.1470007527 | GM56: 0.1476571568 | GN56: 0.1483374695 | GO56: 0.1490198531 | GP56: 0.149682205 | GQ56: 0.1503686913 | GR56: 0.1510350315 | GS56: 0.1517256576 | GT56: 0.152418402 | GU56: 0.1530459353 | GV56: 0.1537427382 | GW56: 0.1544191074 | GX56: 0.1551201438 | GY56: 0.1558006288 | GZ56: 0.1565059376 | HA56: 0.1572134327 | HB56: 0.1579001964 | HC56: 0.1586120231 | HD56: 0.1593029979 | HE56: 0.1600191961 | HF56: 0.1607376314 | HG56: 0.1613884721 | HH56: 0.162111194 | HI56: 0.1628127613 | HJ56: 0.1635399557 | HK56: 0.1642458713 | HL56: 0.1649775797 | HM56: 0.1657115982 | HN56: 0.1664241487 | HO56: 0.1671627451 | HP56: 0.1678797465
C57: 2 | D57: Proyección de UVR (EXCEL) | CN57: Devaluación forward | CO57: =+CO56*$CK$34 -> 0.07533469228 | CP57: =+CP56*$CK$34 -> 0.07577042474 | CQ57: 0.07616497876 | CR57: 0.07660290582 | CS57: 0.07702781039 | CT57: 0.07746802394 | CU57: 0.0778951499 | CV57: 0.07833766787 | CW57: 0.07878136389 | CX57: 0.07921187323 | CY57: 0.07965790112 | CZ57: 0.080090676 | DA57: 0.08053905419 | DB57: 0.08098863391 | DC57: 0.08139574269 | DD57: 0.0818476226 | DE57: 0.08228608316 | DF57: 0.08274035983 | DG57: 0.08318114906 | DH57: 0.08363784162 | DI57: 0.08409576933 | DJ57: 0.08454010591 | DK57: 0.08500047871 | DL57: 0.085447191 | DM57: 0.08591002856 | DN57: 0.08637412628 | DO57: 0.08679439874 | DP57: 0.08726090911 | DQ57: 0.08771358486 | DR57: 0.08818260949 | DS57: 0.08863772824 | DT57: 0.08910928752 | DU57: 0.08958214277 | DV57: 0.09004098361 | DW57: 0.09051640467 | DX57: 0.09097773865 | DY57: 0.09145574644 | DZ57: 0.09193507691 | EA57: 0.09238468513 | EB57: 0.09286659126 | EC57: 0.09333422677 | ED57: 0.09381877282 | EE57: 0.0942889736 | EF57: 0.09477618132 | EG57: 0.09526475011 | EH57: 0.09573885992 | EI57: 0.09623012365 | EJ57: 0.09670685224 | EK57: 0.09720083326 | EL57: 0.09769620386 | EM57: 0.09814483461 | EN57: 0.09864286611 | EO57: 0.09912617139 | EP57: 0.09962697662 | EQ57: 0.1001129774 | ER57: 0.1006165795 | ES57: 0.1011216121 | ET57: 0.101611721 | EU57: 0.102119586 | EV57: 0.1026124476 | EW57: 0.103123169 | EX57: 0.1036353513 | EY57: 0.1040992285 | EZ57: 0.1046142085 | FA57: 0.1051139845 | FB57: =+FB56*$CK$34 -> 0.1056318812 | FC57: 0.1061344919 | FD57: 0.1066553302 | FE57: 0.107177673 | FF57: 0.1076846046 | FG57: 0.108209927 | FH57: 0.1087197544 | FI57: 0.1092480819 | FJ57: 0.1097779465 | FK57: 0.1102578607 | FL57: 0.1107906693 | FM57: 0.1113077727 | FN57: 0.111843651 | FO57: 0.1123637379 | FP57: 0.1129027126 | FQ57: 0.113443271 | FR57: 0.1139679067 | FS57: 0.1145116022 | FT57: 0.1150392869 | FU57: 0.1155861468 | FV57: 0.1161346255 | FW57: 0.1166491902 | FX57: 0.1172008224 | FY57: 0.1177362214 | FZ57: 0.1182910876 | GA57: 0.11882963 | GB57: 0.1193877588 | GC57: 0.1199475567 | GD57: 0.1204908927 | GE57: 0.1210539968 | GF57: 0.1216005467 | GG57: 0.1221669864 | GH57: 0.1227351326 | GI57: 0.1232497701 | GJ57: 0.1238211855 | GK57: 0.1243758145 | GL57: 0.1249506398 | GM57: 0.1255085833 | GN57: 0.1260868491 | GO57: 0.1266668751 | GP57: 0.1272298742 | GQ57: 0.1278133876 | GR57: 0.1283797767 | GS57: 0.128966809 | GT57: 0.1295556417 | GU57: 0.130089045 | GV57: 0.1306813274 | GW57: 0.1312562412 | GX57: 0.1318521223 | GY57: 0.1324305345 | GZ57: 0.133030047 | HA57: 0.1336314178 | HB57: 0.1342151669 | HC57: 0.1348202196 | HD57: 0.1354075482 | HE57: 0.1360163167 | HF57: 0.1366269867 | HG57: 0.1371802013 | HH57: 0.1377945149 | HI57: 0.1383908471 | HJ57: 0.1390089623 | HK57: 0.1396089906 | HL57: 0.1402309427 | HM57: 0.1408548585 | HN57: =+HN56*$CK$34 -> 0.1414605264 | HO57: =+HO56*$CK$34 -> 0.1420883334 | HP57: =+HP56*$CK$34 -> 0.1426977845
C58: 3 | D58: Proyección de UVR FINDETER
B59: Proyección UVR | C59: =+C51 -> 2009-01-01 | D59: 2009-02-01 | E59: 2009-03-01 | F59: 2009-04-01 | G59: 2009-05-01 | H59: 2009-06-01 | I59: 2009-07-01 | J59: 2009-08-01 | K59: 2009-09-01 | L59: 2009-10-01 | M59: 2009-11-01 | N59: 2009-12-01 | O59: 2010-01-01 | P59: 2010-02-01 | Q59: 2010-03-01 | R59: 2010-04-01 | S59: 2010-05-01 | T59: 2010-06-01 | U59: 2010-07-01 | V59: 2010-08-01 | W59: 2010-09-01 | X59: 2010-10-01 | Y59: 2010-11-01 | Z59: 2010-12-01 | AA59: 2011-01-01 | AB59: 2011-02-01 | AC59: 2011-03-01 | AD59: 2011-04-01 | AE59: 2011-05-01 | AF59: 2011-06-01 | AG59: 2011-07-01 | AH59: 2011-08-01 | AI59: =+AI51 -> 2011-09-01 | AJ59: 2011-10-01 | AK59: 2011-11-01 | AL59: 2011-12-01 | AM59: 2012-01-01 | AN59: 2012-02-01 | AO59: 2012-03-01 | AP59: 2012-04-01 | AQ59: 2012-05-01 | AR59: 2012-06-01 | AS59: 2012-07-01 | AT59: 2012-08-01 | AU59: 2012-09-01 | AV59: 2012-10-01 | AW59: 2012-11-01 | AX59: 2012-12-01 | AY59: 2013-01-01 | AZ59: 2013-02-01 | BA59: 2013-03-01 | BB59: 2013-04-01 | BC59: 2013-05-01 | BD59: 2013-06-01 | BE59: 2013-07-01 | BF59: 2013-08-01 | BG59: 2013-09-01 | BH59: 2013-10-01 | BI59: 2013-11-01 | BJ59: 2013-12-01 | BK59: 2014-01-01 | BL59: 2014-02-01 | BM59: 2014-03-01 | BN59: 2014-04-01 | BO59: =+BO51 -> 2014-05-01 | BP59: 2014-06-01 | BQ59: 2014-07-01 | BR59: 2014-08-01 | BS59: 2014-09-01 | BT59: 2014-10-01 | BU59: 2014-11-01 | BV59: 2014-12-01 | BW59: 2015-01-01 | BX59: 2015-02-01 | BY59: 2015-03-01 | BZ59: 2015-04-01 | CA59: 2015-05-01 | CB59: 2015-06-01 | CC59: 2015-07-01 | CD59: 2015-08-01 | CE59: 2015-09-01 | CF59: 2015-10-01 | CG59: 2015-11-01 | CH59: 2015-12-01
A60: 1 | B60: Proyección de UVR Crystal Ball | C60: =+CO55 -> 178.5598614 | D60: =+CP55 -> 178.9042293 | E60: =+CQ55 -> 179.2152712 | F60: =+CR55 -> 179.5596391 | G60: =+CS55 -> 179.8928983 | H60: =+CT55 -> 180.2372661 | I60: 180.5705254 | J60: 180.9148932 | K60: 181.2592611 | L60: 181.5925203 | M60: 181.9368881 | N60: 182.2701474 | O60: 182.6145152 | P60: 182.9588831 | Q60: 183.269925 | R60: 183.6142928 | S60: 183.9475521 | T60: 184.2919199 | U60: 184.6251791 | V60: 184.969547 | W60: 185.3139148 | X60: 185.6471741 | Y60: 185.9915419 | Z60: 186.3248011 | AA60: 186.669169 | AB60: 187.0135368 | AC60: 187.3245788 | AD60: 187.6689466 | AE60: 188.0022058 | AF60: 188.3465737 | AG60: 188.6798329 | AH60: 189.0242008 | AI60: =+DU55 -> 189.3685686 | AJ60: 189.7018278 | AK60: 190.0461957 | AL60: 190.3794549 | AM60: 190.7238228 | AN60: 191.0681906 | AO60: 191.3903412 | AP60: 191.734709 | AQ60: 192.0679683 | AR60: 192.4123361 | AS60: 192.7455953 | AT60: 193.0899632 | AU60: 193.434331 | AV60: 193.7675903 | AW60: 194.1119581 | AX60: 194.4452173 | AY60: 194.7895852 | AZ60: 195.133953 | BA60: 195.444995 | BB60: 195.7893628 | BC60: 196.122622 | BD60: 196.4669899 | BE60: 196.8002491 | BF60: 197.144617 | BG60: 197.4889848 | BH60: 197.822244 | BI60: 198.1666119 | BJ60: 198.4998711 | BK60: 198.844239 | BL60: 199.1886068 | BM60: 199.4996488 | BN60: 199.8440166 | BO60: =+FA55 -> 200.1772758 | BP60: 200.5216437 | BQ60: 200.8549029 | BR60: 201.1992707 | BS60: 201.5436386 | BT60: 201.8768978 | BU60: 202.2212657 | BV60: 202.5545249 | BW60: 202.8988927 | BX60: 203.2432606 | BY60: 203.5543025 | BZ60: 203.8986704 | CA60: 204.2319296 | CB60: 204.5762975 | CC60: 204.9095567 | CD60: 205.2539245 | CE60: 205.5982924 | CF60: 205.9315516 | CG60: 206.2759194 | CH60: 206.6091787 | CN60: Proyección 3 (Manual) | CO60: =+CO42 -> 2009-01-01 | CP60: =+CP42 -> 2009-02-01 | CQ60: 2009-03-01 | CR60: 2009-04-01 | CS60: 2009-05-01 | CT60: 2009-06-01 | CU60: 2009-07-01 | CV60: 2009-08-01 | CW60: 2009-09-01 | CX60: 2009-10-01 | CY60: 2009-11-01 | CZ60: 2009-12-01 | DA60: 2010-01-01 | DB60: 2010-02-01 | DC60: 2010-03-01 | DD60: 2010-04-01 | DE60: 2010-05-01 | DF60: 2010-06-01 | DG60: 2010-07-01 | DH60: 2010-08-01 | DI60: 2010-09-01 | DJ60: 2010-10-01 | DK60: 2010-11-01 | DL60: 2010-12-01 | DM60: 2011-01-01 | DN60: 2011-02-01 | DO60: 2011-03-01 | DP60: 2011-04-01 | DQ60: 2011-05-01 | DR60: 2011-06-01 | DS60: 2011-07-01 | DT60: 2011-08-01 | DU60: 2011-09-01 | DV60: 2011-10-01 | DW60: 2011-11-01 | DX60: 2011-12-01 | DY60: 2012-01-01 | DZ60: 2012-02-01 | EA60: 2012-03-01 | EB60: 2012-04-01 | EC60: 2012-05-01 | ED60: 2012-06-01 | EE60: 2012-07-01 | EF60: 2012-08-01 | EG60: 2012-09-01 | EH60: 2012-10-01 | EI60: 2012-11-01 | EJ60: 2012-12-01 | EK60: 2013-01-01 | EL60: 2013-02-01 | EM60: 2013-03-01 | EN60: 2013-04-01 | EO60: 2013-05-01 | EP60: 2013-06-01 | EQ60: 2013-07-01 | ER60: 2013-08-01 | ES60: 2013-09-01 | ET60: 2013-10-01 | EU60: 2013-11-01 | EV60: 2013-12-01 | EW60: 2014-01-01 | EX60: 2014-02-01 | EY60: 2014-03-01 | EZ60: 2014-04-01 | FA60: 2014-05-01 | FB60: =+FB42 -> 2014-06-01 | FC60: 2014-07-01 | FD60: 2014-08-01 | FE60: 2014-09-01 | FF60: 2014-10-01 | FG60: 2014-11-01 | FH60: 2014-12-01 | FI60: 2015-01-01 | FJ60: 2015-02-01 | FK60: 2015-03-01 | FL60: 2015-04-01 | FM60: 2015-05-01 | FN60: 2015-06-01 | FO60: 2015-07-01 | FP60: 2015-08-01 | FQ60: 2015-09-01 | FR60: 2015-10-01 | FS60: 2015-11-01 | FT60: 2015-12-01 | FU60: 2016-01-01 | FV60: 2016-02-01 | FW60: 2016-03-01 | FX60: 2016-04-01 | FY60: 2016-05-01 | FZ60: 2016-06-01 | GA60: 2016-07-01 | GB60: 2016-08-01 | GC60: 2016-09-01 | GD60: 2016-10-01 | GE60: 2016-11-01 | GF60: 2016-12-01 | GG60: 2017-01-01 | GH60: 2017-02-01 | GI60: 2017-03-01 | GJ60: 2017-04-01 | GK60: 2017-05-01 | GL60: 2017-06-01 | GM60: 2017-07-01 | GN60: 2017-08-01 | GO60: 2017-09-01 | GP60: 2017-10-01 | GQ60: 2017-11-01 | GR60: 2017-12-01 | GS60: 2018-01-01 | GT60: 2018-02-01 | GU60: 2018-03-01 | GV60: 2018-04-01 | GW60: 2018-05-01 | GX60: 2018-06-01 | GY60: 2018-07-01 | GZ60: 2018-08-01 | HA60: 2018-09-01 | HB60: 2018-10-01 | HC60: 2018-11-01 | HD60: 2018-12-01 | HE60: 2019-01-01 | HF60: 2019-02-01 | HG60: 2019-03-01 | HH60: 2019-04-01 | HI60: 2019-05-01 | HJ60: 2019-06-01 | HK60: 2019-07-01 | HL60: 2019-08-01 | HM60: 2019-09-01 | HN60: =+HN42 -> 2019-10-01 | HO60: =+HO42 -> 2019-11-01 | HP60: =+HP42 -> 2019-12-01
A61: 2 | B61: Proyección de UVR (EXCEL) | C61: =+CO46 -> 178.5598614 | D61: =+CP46 -> 178.9042293 | E61: =+CQ46 -> 179.2152712 | F61: =+CR46 -> 179.5596391 | G61: =+CS46 -> 179.8928983 | H61: =+CT46 -> 180.2372661 | I61: 180.5705254 | J61: 180.9148932 | K61: 181.2592611 | L61: 181.5925203 | M61: 181.9368881 | N61: 182.2701474 | O61: 182.6145152 | P61: 182.9588831 | Q61: 183.269925 | R61: 183.6142928 | S61: 183.9475521 | T61: 184.2919199 | U61: 184.6251791 | V61: 184.969547 | W61: 185.3139148 | X61: 185.6471741 | Y61: 185.9915419 | Z61: 186.3248011 | AA61: 186.669169 | AB61: 187.0135368 | AC61: 187.3245788 | AD61: 187.6689466 | AE61: 188.0022058 | AF61: 188.3465737 | AG61: 188.6798329 | AH61: 189.0242008 | AI61: 189.3685686 | AJ61: 189.7018278 | AK61: 190.0461957 | AL61: 190.3794549 | AM61: 190.7238228 | AN61: 191.0681906 | AO61: 191.3903412 | AP61: 191.734709 | AQ61: 192.0679683 | AR61: 192.4123361 | AS61: 192.7455953 | AT61: 193.0899632 | AU61: 193.434331 | AV61: 193.7675903 | AW61: 194.1119581 | AX61: 194.4452173 | AY61: 194.7895852 | AZ61: 195.133953 | BA61: 195.444995 | BB61: 195.7893628 | BC61: 196.122622 | BD61: 196.4669899 | BE61: 196.8002491 | BF61: 197.144617 | BG61: 197.4889848 | BH61: 197.822244 | BI61: 198.1666119 | BJ61: 198.4998711 | BK61: 198.844239 | BL61: 199.1886068 | BM61: 199.4996488 | BN61: 199.8440166 | BO61: 200.1772758 | BP61: =+FB46 -> 200.5216437 | BQ61: 200.8549029 | BR61: 201.1992707 | BS61: 201.5436386 | BT61: 201.8768978 | BU61: 202.2212657 | BV61: 202.5545249 | BW61: 202.8988927 | BX61: 203.2432606 | BY61: 203.5543025 | BZ61: 203.8986704 | CA61: 204.2319296 | CB61: 204.5762975 | CC61: 204.9095567 | CD61: 205.2539245 | CE61: 205.5982924 | CF61: 205.9315516 | CG61: 206.2759194 | CH61: 206.6091787 | CN61: IPC % | CO61: =+D32 -> 0.0563 | CP61: =+CO61 -> 0.0563 | CQ61: =+CP61 -> 0.0563 | CR61: 0.0563 | CS61: 0.0563 | CT61: =+CS61 -> 0.0563 | CU61: 0.0563 | CV61: 0.0563 | CW61: 0.0563 | CX61: 0.0563 | CY61: 0.0563 | CZ61: 0.0563 | DA61: =+E32 -> 0.05 | DB61: =+DA61 -> 0.05 | DC61: =+DB61 -> 0.05 | DD61: 0.05 | DE61: 0.05 | DF61: 0.05 | DG61: 0.05 | DH61: 0.05 | DI61: 0.05 | DJ61: 0.05 | DK61: 0.05 | DL61: 0.05 | DM61: =+F32 -> 0.045 | DN61: =+DM61 -> 0.045 | DO61: 0.045 | DP61: 0.045 | DQ61: 0.045 | DR61: 0.045 | DS61: 0.045 | DT61: 0.045 | DU61: 0.045 | DV61: 0.045 | DW61: 0.045 | DX61: 0.045 | DY61: =+G32 -> 0.045 | DZ61: =+DY61 -> 0.045 | EA61: =+DZ61 -> 0.045 | EB61: 0.045 | EC61: 0.045 | ED61: 0.045 | EE61: 0.045 | EF61: 0.045 | EG61: 0.045 | EH61: 0.045 | EI61: 0.045 | EJ61: 0.045 | EK61: =+H32 -> 0.045 | EL61: =+EK61 -> 0.045 | EM61: =+EL61 -> 0.045 | EN61: 0.045 | EO61: 0.045 | EP61: 0.045 | EQ61: 0.045 | ER61: 0.045 | ES61: 0.045 | ET61: 0.045 | EU61: 0.045 | EV61: 0.045 | EW61: =+I32 -> 0.045 | EX61: =+EW61 -> 0.045 | EY61: =+EX61 -> 0.045 | EZ61: 0.045 | FA61: 0.045 | FB61: 0.045 | FC61: 0.045 | FD61: 0.045 | FE61: 0.045 | FF61: 0.045 | FG61: 0.045 | FH61: 0.045 | FI61: =+J32 -> 0.045 | FJ61: =+FI61 -> 0.045 | FK61: =+FJ61 -> 0.045 | FL61: 0.045 | FM61: 0.045 | FN61: 0.045 | FO61: 0.045 | FP61: 0.045 | FQ61: 0.045 | FR61: 0.045 | FS61: 0.045 | FT61: 0.045 | FU61: =+K32 -> 0.045 | FV61: =+FU61 -> 0.045 | FW61: =+FV61 -> 0.045 | FX61: 0.045 | FY61: 0.045 | FZ61: 0.045 | GA61: 0.045 | GB61: 0.045 | GC61: 0.045 | GD61: 0.045 | GE61: 0.045 | GF61: 0.045 | GG61: =+L32 -> 0.045 | GH61: =+GG61 -> 0.045 | GI61: =+GH61 -> 0.045 | GJ61: 0.045 | GK61: 0.045 | GL61: 0.045 | GM61: 0.045 | GN61: 0.045 | GO61: 0.045 | GP61: 0.045 | GQ61: 0.045 | GR61: 0.045 | GS61: =+M32 -> 0.045 | GT61: =+GS61 -> 0.045 | GU61: =+GT61 -> 0.045 | GV61: 0.045 | GW61: 0.045 | GX61: 0.045 | GY61: 0.045 | GZ61: 0.045 | HA61: 0.045 | HB61: 0.045 | HC61: 0.045 | HD61: 0.045
A62: 3 | B62: Proyección de UVR FINDETER | C62: =+D34 -> 189 | D62: =+C62 -> 189 | E62: =+D62 -> 189 | F62: 189 | G62: 189 | H62: 189 | I62: 189 | J62: 189 | K62: 189 | L62: 189 | M62: 189 | N62: 189 | O62: =+E34 -> 199 | P62: =+O62 -> 199 | Q62: =+P62 -> 199 | R62: 199 | S62: 199 | T62: 199 | U62: 199 | V62: 199 | W62: 199 | X62: 199 | Y62: 199 | Z62: 199 | AA62: =+F34 -> 209 | AB62: =+AA62 -> 209 | AC62: =+AB62 -> 209 | AD62: 209 | AE62: 209 | AF62: 209 | AG62: 209 | AH62: 209 | AI62: 209 | AJ62: 209 | AK62: 209 | AL62: 209 | AM62: =+G34 -> 219 | AN62: =+AM62 -> 219 | AO62: =+AN62 -> 219 | AP62: 219 | AQ62: 219 | AR62: 219 | AS62: 219 | AT62: 219 | AU62: 219 | AV62: 219 | AW62: 219 | AX62: 219 | AY62: =+H34 -> 229 | AZ62: =+AY62 -> 229 | BA62: =+AZ62 -> 229 | BB62: 229 | BC62: 229 | BD62: 229 | BE62: 229 | BF62: 229 | BG62: 229 | BH62: 229 | BI62: 229 | BJ62: 229 | BK62: =+I34 -> 239 | BL62: =+BK62 -> 239 | BM62: =+BL62 -> 239 | BN62: 239 | BO62: 239 | BP62: 239 | BQ62: 239 | BR62: 239 | BS62: 239 | BT62: 239 | BU62: 239 | BV62: 239 | BW62: =+J34 -> 249 | BX62: =+BW62 -> 249 | BY62: =+BX62 -> 249 | BZ62: 249 | CA62: 249 | CB62: 249 | CC62: 249 | CD62: 249 | CE62: 249 | CF62: 249 | CG62: 249 | CH62: 249 | CN62: DTF E.A%(fin mes) | CO62: =+D33 -> 0.079 | CP62: =+CO62 -> 0.079 | CQ62: 0.079 | CR62: 0.079 | CS62: 0.079 | CT62: =+CS62 -> 0.079 | CU62: 0.079 | CV62: 0.079 | CW62: 0.079 | CX62: 0.079 | CY62: 0.079 | CZ62: 0.079 | DA62: =+E33 -> 0.08 | DB62: =+DA62 -> 0.08 | DC62: 0.08 | DD62: 0.08 | DE62: 0.08 | DF62: 0.08 | DG62: 0.08 | DH62: 0.08 | DI62: 0.08 | DJ62: 0.08 | DK62: 0.08 | DL62: 0.08 | DM62: =+F33 -> 0.08 | DN62: =+DM62 -> 0.08 | DO62: 0.08 | DP62: 0.08 | DQ62: 0.08 | DR62: 0.08 | DS62: 0.08 | DT62: 0.08 | DU62: 0.08 | DV62: 0.08 | DW62: 0.08 | DX62: 0.08 | DY62: =+G33 -> 0.08 | DZ62: =+DY62 -> 0.08 | EA62: 0.08 | EB62: 0.08 | EC62: 0.08 | ED62: 0.08 | EE62: 0.08 | EF62: 0.08 | EG62: 0.08 | EH62: 0.08 | EI62: 0.08 | EJ62: 0.08 | EK62: =+H33 -> 0.08 | EL62: =+EK62 -> 0.08 | EM62: 0.08 | EN62: 0.08 | EO62: 0.08 | EP62: 0.08 | EQ62: 0.08 | ER62: 0.08 | ES62: 0.08 | ET62: 0.08 | EU62: 0.08 | EV62: 0.08 | EW62: =+I33 -> 0.08 | EX62: =+EW62 -> 0.08 | EY62: 0.08 | EZ62: 0.08 | FA62: 0.08 | FB62: 0.08 | FC62: 0.08 | FD62: 0.08 | FE62: 0.08 | FF62: 0.08 | FG62: 0.08 | FH62: 0.08 | FI62: =+J33 -> 0.08 | FJ62: =+FI62 -> 0.08 | FK62: 0.08 | FL62: 0.08 | FM62: 0.08 | FN62: 0.08 | FO62: 0.08 | FP62: 0.08 | FQ62: 0.08 | FR62: 0.08 | FS62: 0.08 | FT62: 0.08 | FU62: =+K33 -> 0.08 | FV62: =+FU62 -> 0.08 | FW62: 0.08 | FX62: 0.08 | FY62: 0.08 | FZ62: 0.08 | GA62: 0.08 | GB62: 0.08 | GC62: 0.08 | GD62: 0.08 | GE62: 0.08 | GF62: 0.08 | GG62: =+L33 -> 0.08 | GH62: =+GG62 -> 0.08 | GI62: 0.08 | GJ62: 0.08 | GK62: 0.08 | GL62: 0.08 | GM62: 0.08 | GN62: 0.08 | GO62: 0.08 | GP62: 0.08 | GQ62: 0.08 | GR62: 0.08 | GS62: =+M33 -> 0.08 | GT62: =+GS62 -> 0.08 | GU62: 0.08 | GV62: 0.08 | GW62: 0.08 | GX62: 0.08 | GY62: 0.08 | GZ62: 0.08 | HA62: 0.08 | HB62: 0.08 | HC62: 0.08 | HD62: 0.08
C63: =VLOOKUP($G$56,$A$60:$CH$62,C79,1) -> 189 | D63: 189 | E63: 189 | F63: 189 | G63: 189 | H63: 189 | I63: 189 | J63: 189 | K63: 189 | L63: 189 | M63: 189 | N63: 189 | O63: 199 | P63: 199 | Q63: 199 | R63: 199 | S63: 199 | T63: 199 | U63: 199 | V63: 199 | W63: 199 | X63: 199 | Y63: 199 | Z63: 199 | AA63: 209 | AB63: 209 | AC63: 209 | AD63: 209 | AE63: 209 | AF63: 209 | AG63: 209 | AH63: 209 | AI63: =VLOOKUP($G$56,$A$60:$CH$62,AI79,1) -> 209 | AJ63: 209 | AK63: 209 | AL63: 209 | AM63: 219 | AN63: 219 | AO63: 219 | AP63: 219 | AQ63: 219 | AR63: 219 | AS63: 219 | AT63: 219 | AU63: 219 | AV63: 219 | AW63: 219 | AX63: 219 | AY63: 229 | AZ63: 229 | BA63: 229 | BB63: 229 | BC63: 229 | BD63: 229 | BE63: 229 | BF63: 229 | BG63: 229 | BH63: 229 | BI63: 229 | BJ63: 229 | BK63: 239 | BL63: 239 | BM63: 239 | BN63: 239 | BO63: =VLOOKUP($G$56,$A$60:$CH$62,BO79,1) -> 239 | BP63: 239 | BQ63: 239 | BR63: 239 | BS63: 239 | BT63: 239 | BU63: 239 | BV63: 239 | BW63: 249 | BX63: 249 | BY63: 249 | BZ63: 249 | CA63: 249 | CB63: 249 | CC63: 249 | CD63: 249 | CE63: 249 | CF63: 249 | CG63: 249 | CH63: 249 | CN63: TRM | CO63: =(C35*(1+C153)) -> 2255.130196 | CP63: =(CO63*(1+D153)) -> 2266.72975 | CQ63: 2278.388968 | CR63: 2290.108157 | CS63: 2301.887625 | CT63: 2313.727683 | CU63: 2325.628641 | CV63: 2337.590813 | CW63: 2349.614514 | CX63: 2361.700061 | CY63: 2373.847771 | CZ63: 2386.057965 | DA63: 2395.779061 | DB63: 2405.539761 | DC63: 2415.340228 | DD63: 2425.180623 | DE63: 2435.061109 | DF63: 2444.981849 | DG63: 2454.943008 | DH63: 2464.94475 | DI63: 2474.98724 | DJ63: 2485.070644 | DK63: 2495.195129 | DL63: 2505.360863 | DM63: 2515.568014 | DN63: 2525.816749 | DO63: 2536.107239 | DP63: 2546.439654 | DQ63: 2556.814164 | DR63: 2567.230942 | DS63: 2577.690158 | DT63: 2588.191987 | DU63: 2598.736602 | DV63: =(DU63*(1+AJ153)) -> 2609.324176 | DW63: 2619.954886 | DX63: 2630.628906 | DY63: 2641.346414 | DZ63: 2652.107586 | EA63: 2662.912601 | EB63: 2673.761637 | EC63: 2684.654872 | ED63: 2695.592489 | EE63: 2706.574666 | EF63: 2717.601586 | EG63: 2728.673432 | EH63: 2739.790385 | EI63: 2750.95263 | EJ63: 2762.160352 | EK63: 2773.413735 | EL63: 2784.712966 | EM63: 2796.058231 | EN63: 2807.449718 | EO63: 2818.887616 | EP63: 2830.372113 | EQ63: 2841.9034 | ER63: 2853.481666 | ES63: 2865.107103 | ET63: 2876.779904 | EU63: 2888.500262 | EV63: 2900.268369 | EW63: 2912.084422 | EX63: 2923.948614 | EY63: 2935.861143 | EZ63: 2947.822204 | FA63: 2959.831997 | FB63: =(FA63*(1+BP153)) -> 2971.890719 | FC63: 2983.99857 | FD63: 2996.155749 | FE63: 3008.362458 | FF63: 3020.618899 | FG63: 3032.925275 | FH63: 3045.281788 | FI63: 3057.688643 | FJ63: 3070.146045 | FK63: 3082.6542 | FL63: 3095.213315 | FM63: 3107.823597 | FN63: 3120.485255 | FO63: 3133.198498 | FP63: 3145.963537 | FQ63: 3158.780581 | FR63: 3171.649844 | FS63: 3184.571539 | FT63: 3197.545877 | FU63: 3197.545877 | FV63: 3197.545877 | FW63: 3197.545877 | FX63: 3197.545877 | FY63: 3197.545877 | FZ63: =(FY63*(1+CN151)) -> 3197.545877 | GA63: 3197.545877 | GB63: 3197.545877 | GC63: 3197.545877 | GD63: 3197.545877 | GE63: 3197.545877 | GF63: 3197.545877 | GG63: 3197.545877 | GH63: 3197.545877 | GI63: 3197.545877 | GJ63: 3197.545877 | GK63: 3197.545877 | GL63: 3197.545877 | GM63: 3197.545877 | GN63: 3197.545877 | GO63: 3197.545877 | GP63: 3197.545877 | GQ63: 3197.545877 | GR63: 3197.545877 | GS63: 3197.545877 | GT63: 3197.545877 | GU63: 3197.545877 | GV63: 3197.545877 | GW63: 3197.545877 | GX63: 3197.545877 | GY63: 3197.545877 | GZ63: 3197.545877 | HA63: 3197.545877 | HB63: 3197.545877 | HC63: 3197.545877 | HD63: 3197.545877
CN64: UVR (fin mes) | CO64: =+D34 -> 189 | CP64: =+CO64 -> 189 | CQ64: 189 | CR64: 189 | CS64: 189 | CT64: =+CS64 -> 189 | CU64: 189 | CV64: 189 | CW64: 189 | CX64: 189 | CY64: 189 | CZ64: 189 | DA64: =+E34 -> 199 | DB64: =+DA64 -> 199 | DC64: 199 | DD64: 199 | DE64: 199 | DF64: 199 | DG64: 199 | DH64: 199 | DI64: 199 | DJ64: 199 | DK64: 199 | DL64: 199 | DM64: =+F34 -> 209 | DN64: =+DM64 -> 209 | DO64: 209 | DP64: 209 | DQ64: 209 | DR64: 209 | DS64: 209 | DT64: 209 | DU64: 209 | DV64: 209 | DW64: 209 | DX64: 209 | DY64: =+G34 -> 219 | DZ64: =+DY64 -> 219 | EA64: 219 | EB64: 219 | EC64: 219 | ED64: 219 | EE64: 219 | EF64: 219 | EG64: 219 | EH64: 219 | EI64: 219 | EJ64: 219 | EK64: =+H34 -> 229 | EL64: =+EK64 -> 229 | EM64: 229 | EN64: 229 | EO64: 229 | EP64: 229 | EQ64: 229 | ER64: 229 | ES64: 229 | ET64: 229 | EU64: 229 | EV64: 229 | EW64: =+I34 -> 239 | EX64: =+EW64 -> 239 | EY64: 239 | EZ64: 239 | FA64: 239 | FB64: 239 | FC64: 239 | FD64: 239 | FE64: 239 | FF64: 239 | FG64: 239 | FH64: 239 | FI64: =+J34 -> 249 | FJ64: =+FI64 -> 249 | FK64: 249 | FL64: 249 | FM64: 249 | FN64: 249 | FO64: 249 | FP64: 249 | FQ64: 249 | FR64: 249 | FS64: 249 | FT64: 249 | FU64: =+K34 -> 259 | FV64: =+FU64 -> 259 | FW64: 259 | FX64: 259 | FY64: 259 | FZ64: 259 | GA64: 259 | GB64: 259 | GC64: 259 | GD64: 259 | GE64: 259 | GF64: 259 | GG64: =+L34 -> 269 | GH64: =+GG64 -> 269 | GI64: 269 | GJ64: 269 | GK64: 269 | GL64: 269 | GM64: 269 | GN64: 269 | GO64: 269 | GP64: 269 | GQ64: 269 | GR64: 269 | GS64: =+M34 -> 279 | GT64: =+GS64 -> 279 | GU64: 279 | GV64: 279 | GW64: 279 | GX64: 279 | GY64: 279 | GZ64: 279 | HA64: 279 | HB64: 279 | HC64: 279 | HD64: 279
CN65: Devaluación anual | CO65: =+D38 -> 0.0635 | CP65: =+CO65 -> 0.0635 | CQ65: 0.0635 | CR65: 0.0635 | CS65: 0.0635 | CT65: =+CS65 -> 0.0635 | CU65: 0.0635 | CV65: 0.0635 | CW65: 0.0635 | CX65: 0.0635 | CY65: 0.0635 | CZ65: 0.0635 | DA65: =+E38 -> 0.05 | DB65: =+DA65 -> 0.05 | DC65: 0.05 | DD65: 0.05 | DE65: 0.05 | DF65: 0.05 | DG65: 0.05 | DH65: 0.05 | DI65: 0.05 | DJ65: 0.05 | DK65: 0.05 | DL65: 0.05 | DM65: =+F38 -> 0.05 | DN65: =+DM65 -> 0.05 | DO65: 0.05 | DP65: 0.05 | DQ65: 0.05 | DR65: 0.05 | DS65: 0.05 | DT65: 0.05 | DU65: 0.05 | DV65: 0.05 | DW65: 0.05 | DX65: 0.05 | DY65: =+G38 -> 0.05 | DZ65: =+DY65 -> 0.05 | EA65: 0.05 | EB65: 0.05 | EC65: 0.05 | ED65: 0.05 | EE65: 0.05 | EF65: 0.05 | EG65: 0.05 | EH65: 0.05 | EI65: 0.05 | EJ65: 0.05 | EK65: =+H38 -> 0.05 | EL65: =+EK65 -> 0.05 | EM65: 0.05 | EN65: 0.05 | EO65: 0.05 | EP65: 0.05 | EQ65: 0.05 | ER65: 0.05 | ES65: 0.05 | ET65: 0.05 | EU65: 0.05 | EV65: 0.05 | EW65: =+I38 -> 0.05 | EX65: =+EW65 -> 0.05 | EY65: 0.05 | EZ65: 0.05 | FA65: 0.05 | FB65: 0.05 | FC65: 0.05 | FD65: 0.05 | FE65: 0.05 | FF65: 0.05 | FG65: 0.05 | FH65: 0.05 | FI65: =+J38 -> 0.05 | FJ65: =+FI65 -> 0.05 | FK65: 0.05 | FL65: 0.05 | FM65: 0.05 | FN65: 0.05 | FO65: 0.05 | FP65: 0.05 | FQ65: 0.05 | FR65: 0.05 | FS65: 0.05 | FT65: 0.05 | FU65: =+K38 -> 0.05 | FV65: =+FU65 -> 0.05 | FW65: 0.05 | FX65: 0.05 | FY65: 0.05 | FZ65: 0.05 | GA65: 0.05 | GB65: 0.05 | GC65: 0.05 | GD65: 0.05 | GE65: 0.05 | GF65: 0.05 | GG65: =+L38 -> 0.05 | GH65: =+GG65 -> 0.05 | GI65: 0.05 | GJ65: 0.05 | GK65: 0.05 | GL65: 0.05 | GM65: 0.05 | GN65: 0.05 | GO65: 0.05 | GP65: 0.05 | GQ65: 0.05 | GR65: 0.05 | GS65: =+M38 -> 0.05 | GT65: =+GS65 -> 0.05 | GU65: 0.05 | GV65: 0.05 | GW65: 0.05 | GX65: 0.05 | GY65: 0.05 | GZ65: 0.05 | HA65: 0.05 | HB65: 0.05 | HC65: 0.05 | HD65: 0.05
CN66: Devaluación forward | CO66: =+D39 -> 0.06 | CP66: =+CO66 -> 0.06 | CQ66: 0.06 | CR66: 0.06 | CS66: 0.06 | CT66: =+CS66 -> 0.06 | CU66: 0.06 | CV66: 0.06 | CW66: 0.06 | CX66: 0.06 | CY66: 0.06 | CZ66: 0.06 | DA66: =+E39 -> 0.06 | DB66: =+DA66 -> 0.06 | DC66: 0.06 | DD66: 0.06 | DE66: 0.06 | DF66: 0.06 | DG66: 0.06 | DH66: 0.06 | DI66: 0.06 | DJ66: 0.06 | DK66: 0.06 | DL66: 0.06 | DM66: =+F39 -> 0.06 | DN66: =+DM66 -> 0.06 | DO66: 0.06 | DP66: 0.06 | DQ66: 0.06 | DR66: 0.06 | DS66: 0.06 | DT66: 0.06 | DU66: 0.06 | DV66: 0.06 | DW66: 0.06 | DX66: 0.06 | DY66: =+G39 -> 0.06 | DZ66: =+DY66 -> 0.06 | EA66: 0.06 | EB66: 0.06 | EC66: 0.06 | ED66: 0.06 | EE66: 0.06 | EF66: 0.06 | EG66: 0.06 | EH66: 0.06 | EI66: 0.06 | EJ66: 0.06 | EK66: =+H39 -> 0.06 | EL66: =+EK66 -> 0.06 | EM66: 0.06 | EN66: 0.06 | EO66: 0.06 | EP66: 0.06 | EQ66: 0.06 | ER66: 0.06 | ES66: 0.06 | ET66: 0.06 | EU66: 0.06 | EV66: 0.06 | EW66: =+I39 -> 0.06 | EX66: =+EW66 -> 0.06 | EY66: 0.06 | EZ66: 0.06 | FA66: 0.06 | FB66: 0.06 | FC66: 0.06 | FD66: 0.06 | FE66: 0.06 | FF66: 0.06 | FG66: 0.06 | FH66: 0.06 | FI66: =+J39 -> 0.06 | FJ66: =+FI66 -> 0.06 | FK66: 0.06 | FL66: 0.06 | FM66: 0.06 | FN66: 0.06 | FO66: 0.06 | FP66: 0.06 | FQ66: 0.06 | FR66: 0.06 | FS66: 0.06 | FT66: 0.06 | FU66: =+K39 -> 0.06 | FV66: =+FU66 -> 0.06 | FW66: 0.06 | FX66: 0.06 | FY66: 0.06 | FZ66: 0.06 | GA66: 0.06 | GB66: 0.06 | GC66: 0.06 | GD66: 0.06 | GE66: 0.06 | GF66: 0.06 | GG66: =+L39 -> 0.06 | GH66: =+GG66 -> 0.06 | GI66: 0.06 | GJ66: 0.06 | GK66: 0.06 | GL66: 0.06 | GM66: 0.06 | GN66: 0.06 | GO66: 0.06 | GP66: 0.06 | GQ66: 0.06 | GR66: 0.06 | GS66: =+M39 -> 0.06 | GT66: =+GS66 -> 0.06 | GU66: 0.06 | GV66: 0.06 | GW66: 0.06 | GX66: 0.06 | GY66: 0.06 | GZ66: 0.06 | HA66: 0.06 | HB66: 0.06 | HC66: 0.06 | HD66: 0.06
B67: Proyección TRM | C67: =+C59 -> 2009-01-01 | D67: =+D59 -> 2009-02-01 | E67: 2009-03-01 | F67: 2009-04-01 | G67: 2009-05-01 | H67: 2009-06-01 | I67: 2009-07-01 | J67: 2009-08-01 | K67: 2009-09-01 | L67: 2009-10-01 | M67: 2009-11-01 | N67: 2009-12-01 | O67: 2010-01-01 | P67: 2010-02-01 | Q67: 2010-03-01 | R67: 2010-04-01 | S67: 2010-05-01 | T67: 2010-06-01 | U67: 2010-07-01 | V67: 2010-08-01 | W67: 2010-09-01 | X67: 2010-10-01 | Y67: 2010-11-01 | Z67: 2010-12-01 | AA67: 2011-01-01 | AB67: 2011-02-01 | AC67: 2011-03-01 | AD67: 2011-04-01 | AE67: 2011-05-01 | AF67: 2011-06-01 | AG67: 2011-07-01 | AH67: 2011-08-01 | AI67: 2011-09-01 | AJ67: 2011-10-01 | AK67: 2011-11-01 | AL67: 2011-12-01 | AM67: 2012-01-01 | AN67: 2012-02-01 | AO67: 2012-03-01 | AP67: 2012-04-01 | AQ67: 2012-05-01 | AR67: 2012-06-01 | AS67: 2012-07-01 | AT67: 2012-08-01 | AU67: 2012-09-01 | AV67: 2012-10-01 | AW67: 2012-11-01 | AX67: 2012-12-01 | AY67: 2013-01-01 | AZ67: 2013-02-01 | BA67: 2013-03-01 | BB67: 2013-04-01 | BC67: 2013-05-01 | BD67: 2013-06-01 | BE67: 2013-07-01 | BF67: 2013-08-01 | BG67: 2013-09-01 | BH67: 2013-10-01 | BI67: 2013-11-01 | BJ67: 2013-12-01 | BK67: 2014-01-01 | BL67: 2014-02-01 | BM67: 2014-03-01 | BN67: 2014-04-01 | BO67: 2014-05-01 | BP67: =+BP59 -> 2014-06-01 | BQ67: 2014-07-01 | BR67: 2014-08-01 | BS67: 2014-09-01 | BT67: 2014-10-01 | BU67: 2014-11-01 | BV67: 2014-12-01 | BW67: 2015-01-01 | BX67: 2015-02-01 | BY67: 2015-03-01 | BZ67: 2015-04-01 | CA67: 2015-05-01 | CB67: 2015-06-01 | CC67: 2015-07-01 | CD67: 2015-08-01 | CE67: 2015-09-01 | CF67: 2015-10-01 | CG67: 2015-11-01 | CH67: 2015-12-01
A68: 1 | B68: Proyección de TRM Crystal Ball | C68: =+CO54 -> 2390.056014 | D68: =+CP54 -> 2388.031506 | E68: =+CQ54 -> 2386.202919 | F68: =+CR54 -> 2384.178411 | G68: =+CS54 -> 2382.21921 | H68: =+CT54 -> 2380.194702 | I68: 2378.235501 | J68: 2376.210993 | K68: 2374.186486 | L68: 2372.227285 | M68: 2370.202777 | N68: 2368.243576 | O68: 2366.219068 | P68: 2364.19456 | Q68: 2362.365973 | R68: 2360.341465 | S68: 2358.382264 | T68: 2356.357756 | U68: 2354.398555 | V68: 2352.374047 | W68: 2350.34954 | X68: 2348.390338 | Y68: 2346.365831 | Z68: 2344.40663 | AA68: 2342.382122 | AB68: 2340.357614 | AC68: 2338.529027 | AD68: 2336.504519 | AE68: 2334.545318 | AF68: 2332.52081 | AG68: 2330.561609 | AH68: 2328.537101 | AI68: =+DU54 -> 2326.512593 | AJ68: 2324.553392 | AK68: 2322.528885 | AL68: 2320.569684 | AM68: 2318.545176 | AN68: 2316.520668 | AO68: 2314.626774 | AP68: 2312.602266 | AQ68: 2310.643065 | AR68: 2308.618557 | AS68: 2306.659356 | AT68: 2304.634848 | AU68: 2302.610341 | AV68: 2300.65114 | AW68: 2298.626632 | AX68: 2296.667431 | AY68: 2294.642923 | AZ68: 2292.618415 | BA68: 2290.789828 | BB68: 2288.76532 | BC68: 2286.806119 | BD68: 2284.781611 | BE68: 2282.82241 | BF68: 2280.797902 | BG68: 2278.773395 | BH68: 2276.814194 | BI68: 2274.789686 | BJ68: 2272.830485 | BK68: 2270.805977 | BL68: 2268.781469 | BM68: 2266.952882 | BN68: 2264.928374 | BO68: =+FA54 -> 2262.969173 | BP68: 2260.944665 | BQ68: 2258.985464 | BR68: 2256.960956 | BS68: 2254.936449 | BT68: 2252.977248 | BU68: 2250.95274 | BV68: 2248.993539 | BW68: 2246.969031 | BX68: 2244.944523 | BY68: 2243.115936 | BZ68: 2241.091428 | CA68: 2239.132227 | CB68: 2237.107719 | CC68: 2235.148518 | CD68: 2233.12401 | CE68: 2231.099503 | CF68: 2229.140302 | CG68: 2227.115794 | CH68: 2225.156593
A69: 2 | B69: Proyección de TRM (EXCEL) | C69: =+CO45 -> 2390.056014 | D69: =+CP45 -> 2388.031506 | E69: =+CQ45 -> 2386.202919 | F69: =+CR45 -> 2384.178411 | G69: =+CS45 -> 2382.21921 | H69: =+CT45 -> 2380.194702 | I69: 2378.235501 | J69: 2376.210993 | K69: 2374.186486 | L69: 2372.227285 | M69: 2370.202777 | N69: 2368.243576 | O69: 2366.219068 | P69: 2364.19456 | Q69: 2362.365973 | R69: 2360.341465 | S69: 2358.382264 | T69: 2356.357756 | U69: 2354.398555 | V69: 2352.374047 | W69: 2350.34954 | X69: 2348.390338 | Y69: 2346.365831 | Z69: 2344.40663 | AA69: 2342.382122 | AB69: 2340.357614 | AC69: 2338.529027 | AD69: 2336.504519 | AE69: 2334.545318 | AF69: 2332.52081 | AG69: 2330.561609 | AH69: 2328.537101 | AI69: 2326.512593 | AJ69: 2324.553392 | AK69: 2322.528885 | AL69: 2320.569684 | AM69: 2318.545176 | AN69: 2316.520668 | AO69: 2314.626774 | AP69: 2312.602266 | AQ69: 2310.643065 | AR69: 2308.618557 | AS69: 2306.659356 | AT69: 2304.634848 | AU69: 2302.610341 | AV69: 2300.65114 | AW69: 2298.626632 | AX69: 2296.667431 | AY69: 2294.642923 | AZ69: 2292.618415 | BA69: 2290.789828 | BB69: 2288.76532 | BC69: 2286.806119 | BD69: 2284.781611 | BE69: 2282.82241 | BF69: 2280.797902 | BG69: 2278.773395 | BH69: 2276.814194 | BI69: 2274.789686 | BJ69: 2272.830485 | BK69: 2270.805977 | BL69: 2268.781469 | BM69: 2266.952882 | BN69: 2264.928374 | BO69: 2262.969173 | BP69: =+FB45 -> 2260.944665 | BQ69: 2258.985464 | BR69: 2256.960956 | BS69: 2254.936449 | BT69: 2252.977248 | BU69: 2250.95274 | BV69: 2248.993539 | BW69: 2246.969031 | BX69: 2244.944523 | BY69: 2243.115936 | BZ69: 2241.091428 | CA69: 2239.132227 | CB69: 2237.107719 | CC69: 2235.148518 | CD69: 2233.12401 | CE69: 2231.099503 | CF69: 2229.140302 | CG69: 2227.115794 | CH69: 2225.156593
A70: 3 | B70: Proyección de TRM FINDETER | C70: =+CO63 -> 2255.130196 | D70: =+CP63 -> 2266.72975 | E70: =+CQ63 -> 2278.388968 | F70: =+CR63 -> 2290.108157 | G70: =+CS63 -> 2301.887625 | H70: =+CT63 -> 2313.727683 | I70: 2325.628641 | J70: 2337.590813 | K70: 2349.614514 | L70: 2361.700061 | M70: 2373.847771 | N70: 2386.057965 | O70: 2395.779061 | P70: 2405.539761 | Q70: 2415.340228 | R70: 2425.180623 | S70: 2435.061109 | T70: 2444.981849 | U70: 2454.943008 | V70: 2464.94475 | W70: 2474.98724 | X70: 2485.070644 | Y70: 2495.195129 | Z70: 2505.360863 | AA70: 2515.568014 | AB70: 2525.816749 | AC70: 2536.107239 | AD70: 2546.439654 | AE70: 2556.814164 | AF70: 2567.230942 | AG70: 2577.690158 | AH70: 2588.191987 | AI70: 2598.736602 | AJ70: 2609.324176 | AK70: 2619.954886 | AL70: 2630.628906 | AM70: 2641.346414 | AN70: 2652.107586 | AO70: 2662.912601 | AP70: 2673.761637 | AQ70: 2684.654872 | AR70: 2695.592489 | AS70: 2706.574666 | AT70: 2717.601586 | AU70: 2728.673432 | AV70: 2739.790385 | AW70: 2750.95263 | AX70: 2762.160352 | AY70: 2773.413735 | AZ70: 2784.712966 | BA70: 2796.058231 | BB70: 2807.449718 | BC70: 2818.887616 | BD70: 2830.372113 | BE70: 2841.9034 | BF70: 2853.481666 | BG70: 2865.107103 | BH70: 2876.779904 | BI70: 2888.500262 | BJ70: 2900.268369 | BK70: 2912.084422 | BL70: 2923.948614 | BM70: 2935.861143 | BN70: 2947.822204 | BO70: 2959.831997 | BP70: =+FB63 -> 2971.890719 | BQ70: 2983.99857 | BR70: 2996.155749 | BS70: 3008.362458 | BT70: 3020.618899 | BU70: 3032.925275 | BV70: 3045.281788 | BW70: 3057.688643 | BX70: 3070.146045 | BY70: 3082.6542 | BZ70: 3095.213315 | CA70: 3107.823597 | CB70: 3120.485255 | CC70: 3133.198498 | CD70: 3145.963537 | CE70: 3158.780581 | CF70: 3171.649844 | CG70: 3184.571539 | CH70: 3197.545877
A71: 3 | C71: =SUMIF($A$68:$A$70,$A$71,C68:C70) -> 2255.130196 | D71: =SUMIF($A$68:$A$70,$A$71,D68:D70) -> 2266.72975 | E71: =SUMIF($A$68:$A$70,$A$71,E68:E70) -> 2278.388968 | F71: 2290.108157 | G71: 2301.887625 | H71: 2313.727683 | I71: 2325.628641 | J71: 2337.590813 | K71: 2349.614514 | L71: 2361.700061 | M71: 2373.847771 | N71: 2386.057965 | O71: 2395.779061 | P71: 2405.539761 | Q71: 2415.340228 | R71: 2425.180623 | S71: 2435.061109 | T71: 2444.981849 | U71: =SUMIF($A$68:$A$70,$A$71,U68:U70) -> 2454.943008 | V71: 2464.94475 | W71: 2474.98724 | X71: 2485.070644 | Y71: 2495.195129 | Z71: 2505.360863 | AA71: 2515.568014 | AB71: 2525.816749 | AC71: 2536.107239 | AD71: 2546.439654 | AE71: 2556.814164 | AF71: 2567.230942 | AG71: 2577.690158 | AH71: 2588.191987 | AI71: 2598.736602 | AJ71: 2609.324176 | AK71: 2619.954886 | AL71: 2630.628906 | AM71: 2641.346414 | AN71: 2652.107586 | AO71: 2662.912601 | AP71: 2673.761637 | AQ71: 2684.654872 | AR71: 2695.592489 | AS71: 2706.574666 | AT71: 2717.601586 | AU71: 2728.673432 | AV71: 2739.790385 | AW71: 2750.95263 | AX71: 2762.160352 | AY71: 2773.413735 | AZ71: 2784.712966 | BA71: =SUMIF($A$68:$A$70,$A$71,BA68:BA70) -> 2796.058231 | BB71: 2807.449718 | BC71: 2818.887616 | BD71: 2830.372113 | BE71: 2841.9034 | BF71: 2853.481666 | BG71: 2865.107103 | BH71: 2876.779904 | BI71: 2888.500262 | BJ71: 2900.268369 | BK71: 2912.084422 | BL71: 2923.948614 | BM71: 2935.861143 | BN71: 2947.822204 | BO71: 2959.831997 | BP71: 2971.890719 | BQ71: 2983.99857 | BR71: 2996.155749 | BS71: 3008.362458 | BT71: 3020.618899 | BU71: 3032.925275 | BV71: 3045.281788 | BW71: 3057.688643 | BX71: 3070.146045 | BY71: 3082.6542 | BZ71: 3095.213315 | CA71: 3107.823597 | CB71: 3120.485255 | CC71: 3133.198498 | CD71: 3145.963537 | CE71: 3158.780581 | CF71: 3171.649844 | CG71: =SUMIF($A$68:$A$70,$A$71,CG68:CG70) -> 3184.571539 | CH71: =SUMIF($A$68:$A$70,$A$71,CH68:CH70) -> 3197.545877
C73: 1 | D73: Proyección de Redescuentos Crystal Ball | G73: 2
C74: 2 | D74: Proyección de Redescuentos FINDETER
B75: Proyección de Redescuentos FINDETER | C75: =+C14 -> 2009-01-01 | D75: 2009-02-01 | E75: 2009-03-01 | F75: 2009-04-01 | G75: 2009-05-01 | H75: 2009-06-01 | I75: 2009-07-01 | J75: 2009-08-01 | K75: 2009-09-01 | L75: 2009-10-01 | M75: 2009-11-01 | N75: 2009-12-01 | O75: 2010-01-01 | P75: 2010-02-01 | Q75: 2010-03-01 | R75: 2010-04-01 | S75: 2010-05-01 | T75: 2010-06-01 | U75: 2010-07-01 | V75: 2010-08-01 | W75: 2010-09-01 | X75: 2010-10-01 | Y75: 2010-11-01 | Z75: 2010-12-01 | AA75: 2011-01-01 | AB75: 2011-02-01 | AC75: 2011-03-01 | AD75: 2011-04-01 | AE75: 2011-05-01 | AF75: 2011-06-01 | AG75: 2011-07-01 | AH75: 2011-08-01 | AI75: =+AI14 -> 2011-09-01 | AJ75: 2011-10-01 | AK75: 2011-11-01 | AL75: 2011-12-01 | AM75: 2012-01-01 | AN75: 2012-02-01 | AO75: 2012-03-01 | AP75: 2012-04-01 | AQ75: 2012-05-01 | AR75: 2012-06-01 | AS75: 2012-07-01 | AT75: 2012-08-01 | AU75: 2012-09-01 | AV75: 2012-10-01 | AW75: 2012-11-01 | AX75: 2012-12-01 | AY75: 2013-01-01 | AZ75: 2013-02-01 | BA75: 2013-03-01 | BB75: 2013-04-01 | BC75: 2013-05-01 | BD75: 2013-06-01 | BE75: 2013-07-01 | BF75: 2013-08-01 | BG75: 2013-09-01 | BH75: 2013-10-01 | BI75: 2013-11-01 | BJ75: 2013-12-01 | BK75: 2014-01-01 | BL75: 2014-02-01 | BM75: 2014-03-01 | BN75: 2014-04-01 | BO75: =+BO14 -> 2014-05-01 | BP75: 2014-06-01 | BQ75: 2014-07-01 | BR75: 2014-08-01 | BS75: 2014-09-01 | BT75: 2014-10-01 | BU75: 2014-11-01 | BV75: 2014-12-01 | BW75: 2015-01-01 | BX75: 2015-02-01 | BY75: 2015-03-01 | BZ75: 2015-04-01 | CA75: 2015-05-01 | CB75: 2015-06-01 | CC75: 2015-07-01 | CD75: 2015-08-01 | CE75: 2015-09-01 | CF75: 2015-10-01 | CG75: 2015-11-01 | CH75: 2015-12-01
A76: 1 | B76: Proyección de Redescuentos Crystal Ball | C76: =(+'[1]Proyección Redescuentos (trim)'!G8/4)*1000 -> 96383161.97 | D76: =+C76 -> 96383161.97 | E76: =+D76 -> 96383161.97 | F76: =(+'[1]Proyección Redescuentos (trim)'!H8/4)*1000 -> 90892828.03 | G76: =+F76 -> 90892828.03 | H76: =+G76 -> 90892828.03 | I76: =(+'[1]Proyección Redescuentos (trim)'!I8/4)*1000 -> 97586561.82 | J76: =+I76 -> 97586561.82 | K76: =+J76 -> 97586561.82 | L76: =(+'[1]Proyección Redescuentos (trim)'!J8/4)*1000 -> 102507542.7 | M76: =+L76 -> 102507542.7 | N76: =+M76 -> 102507542.7 | O76: =(+'[1]Proyección Redescuentos (trim)'!K8/4)*1000 -> 95961877.42 | P76: =+O76 -> 95961877.42 | Q76: =+P76 -> 95961877.42 | R76: =(+'[1]Proyección Redescuentos (trim)'!L8/4)*1000 -> 92400015.01 | S76: =+R76 -> 92400015.01 | T76: =+S76 -> 92400015.01 | U76: =(+'[1]Proyección Redescuentos (trim)'!M8/4)*1000 -> 96035817.64 | V76: =+U76 -> 96035817.64 | W76: =+V76 -> 96035817.64 | X76: =(+'[1]Proyección Redescuentos (trim)'!N8/4)*1000 -> 96334143.76 | Y76: =+X76 -> 96334143.76 | Z76: =+Y76 -> 96334143.76 | AA76: =(+'[1]Proyección Redescuentos (trim)'!O8/4)*1000 -> 96806983.35 | AB76: =+AA76 -> 96806983.35 | AC76: =+AB76 -> 96806983.35 | AD76: =(+'[1]Proyección Redescuentos (trim)'!P8/4)*1000 -> 100668831.6 | AE76: =+AD76 -> 100668831.6 | AF76: =+AE76 -> 100668831.6 | AG76: =(+'[1]Proyección Redescuentos (trim)'!Q8/4)*1000 -> 102688433.7 | AH76: =+AG76 -> 102688433.7 | AI76: =+AH76 -> 102688433.7 | AJ76: =(+'[1]Proyección Redescuentos (trim)'!R8/4)*1000 -> 102851476.4 | AK76: =+AJ76 -> 102851476.4 | AL76: =+AK76 -> 102851476.4 | AM76: =(+'[1]Proyección Redescuentos (trim)'!S8/4)*1000 -> 99676229.31 | AN76: =+AM76 -> 99676229.31 | AO76: =+AN76 -> 99676229.31 | AP76: =(+'[1]Proyección Redescuentos (trim)'!T8/4)*1000 -> 103669784.5 | AQ76: =+AP76 -> 103669784.5 | AR76: =+AQ76 -> 103669784.5 | AS76: =(+'[1]Proyección Redescuentos (trim)'!U8/4)*1000 -> 101804953.1 | AT76: =+AS76 -> 101804953.1 | AU76: =+AT76 -> 101804953.1 | AV76: =(+'[1]Proyección Redescuentos (trim)'!V8/4)*1000 -> 103790666.8 | AW76: =+AV76 -> 103790666.8 | AX76: =+AW76 -> 103790666.8 | AY76: =(+'[1]Proyección Redescuentos (trim)'!W8/4)*1000 -> 103007503.5 | AZ76: =+AY76 -> 103007503.5 | BA76: =+AZ76 -> 103007503.5 | BB76: =(+'[1]Proyección Redescuentos (trim)'!X8/4)*1000 -> 105796366.7 | BC76: =+BB76 -> 105796366.7 | BD76: =+BC76 -> 105796366.7 | BE76: =(+'[1]Proyección Redescuentos (trim)'!Y8/4)*1000 -> 104388329.2 | BF76: =+BE76 -> 104388329.2 | BG76: =+BF76 -> 104388329.2 | BH76: =(+'[1]Proyección Redescuentos (trim)'!Z8/4)*1000 -> 104686655.3 | BI76: =+BH76 -> 104686655.3 | BJ76: =+BI76 -> 104686655.3 | BK76: =(+'[1]Proyección Redescuentos (trim)'!AA8/4)*1000 -> 105159494.9 | BL76: =+BK76 -> 105159494.9 | BM76: =+BL76 -> 105159494.9 | BN76: =(+'[1]Proyección Redescuentos (trim)'!AB8/4)*1000 -> 109021343.2 | BO76: =+BN76 -> 109021343.2 | BP76: =+BO76 -> 109021343.2 | BQ76: =(+'[1]Proyección Redescuentos (trim)'!AC8/4)*1000 -> 111040945.2 | BR76: =+BQ76 -> 111040945.2 | BS76: =+BR76 -> 111040945.2 | BT76: =(+'[1]Proyección Redescuentos (trim)'!AD8/4)*1000 -> 111203987.9 | BU76: =+BT76 -> 111203987.9 | BV76: =+BU76 -> 111203987.9 | BW76: =(+'[1]Proyección Redescuentos (trim)'!AE8/4)*1000 -> 108028740.9 | BX76: =+BW76 -> 108028740.9 | BY76: =+BX76 -> 108028740.9 | BZ76: =(+'[1]Proyección Redescuentos (trim)'!AF8/4)*1000 -> 112022296 | CA76: =+BZ76 -> 112022296 | CB76: =+CA76 -> 112022296 | CC76: =(+'[1]Proyección Redescuentos (trim)'!AG8/4)*1000 -> 110157464.7 | CD76: =+CC76 -> 110157464.7 | CE76: =+CD76 -> 110157464.7 | CF76: =(+'[1]Proyección Redescuentos (trim)'!AH8/4)*1000 -> 112143178.4 | CG76: =+CF76 -> 112143178.4 | CH76: =+CG76 -> 112143178.4
A77: 2 | B77: Proyección de Redescuentos FINDETER | C77: =+D28/12 -> 125000000 | D77: =+C77 -> 125000000 | E77: =+D77 -> 125000000 | F77: 125000000 | G77: 125000000 | H77: 125000000 | I77: 125000000 | J77: 125000000 | K77: 125000000 | L77: 125000000 | M77: 125000000 | N77: 125000000 | O77: =+E28/12 -> 131249999.9 | P77: =+O77 -> 131249999.9 | Q77: =+P77 -> 131249999.9 | R77: 131249999.9 | S77: 131249999.9 | T77: 131249999.9 | U77: 131249999.9 | V77: 131249999.9 | W77: 131249999.9 | X77: 131249999.9 | Y77: 131249999.9 | Z77: 131249999.9 | AA77: =+F28/12 -> 137156249.8 | AB77: =+AA77 -> 137156249.8 | AC77: =+AB77 -> 137156249.8 | AD77: 137156249.8 | AE77: 137156249.8 | AF77: 137156249.8 | AG77: 137156249.8 | AH77: 137156249.8 | AI77: 137156249.8 | AJ77: 137156249.8 | AK77: 137156249.8 | AL77: 137156249.8 | AM77: =+G28/12 -> 143328281 | AN77: =+AM77 -> 143328281 | AO77: =+AN77 -> 143328281 | AP77: 143328281 | AQ77: 143328281 | AR77: 143328281 | AS77: 143328281 | AT77: 143328281 | AU77: 143328281 | AV77: 143328281 | AW77: 143328281 | AX77: 143328281 | AY77: =+H28/12 -> 149778053.5 | AZ77: =+AY77 -> 149778053.5 | BA77: =+AZ77 -> 149778053.5 | BB77: 149778053.5 | BC77: 149778053.5 | BD77: 149778053.5 | BE77: 149778053.5 | BF77: 149778053.5 | BG77: 149778053.5 | BH77: 149778053.5 | BI77: 149778053.5 | BJ77: 149778053.5 | BK77: =+I28/12 -> 156518065.9 | BL77: =+BK77 -> 156518065.9 | BM77: =+BL77 -> 156518065.9 | BN77: 156518065.9 | BO77: 156518065.9 | BP77: 156518065.9 | BQ77: 156518065.9 | BR77: 156518065.9 | BS77: 156518065.9 | BT77: 156518065.9 | BU77: 156518065.9 | BV77: 156518065.9 | BW77: =+J28/12 -> 163561378.8 | BX77: =+BW77 -> 163561378.8 | BY77: =+BX77 -> 163561378.8 | BZ77: 163561378.8 | CA77: 163561378.8 | CB77: 163561378.8 | CC77: 163561378.8 | CD77: 163561378.8 | CE77: 163561378.8 | CF77: 163561378.8 | CG77: 163561378.8 | CH77: 163561378.8
C78: =SUMIF($A$76:$A$77,$G$73,C76:C77) -> 125000000 | D78: 125000000 | E78: 125000000 | F78: 125000000 | G78: 125000000 | H78: 125000000 | I78: 125000000 | J78: 125000000 | K78: 125000000 | L78: 125000000 | M78: 125000000 | N78: 125000000 | O78: 131249999.9 | P78: 131249999.9 | Q78: 131249999.9 | R78: 131249999.9 | S78: 131249999.9 | T78: 131249999.9 | U78: 131249999.9 | V78: 131249999.9 | W78: 131249999.9 | X78: 131249999.9 | Y78: 131249999.9 | Z78: 131249999.9 | AA78: 137156249.8 | AB78: 137156249.8 | AC78: 137156249.8 | AD78: 137156249.8 | AE78: 137156249.8 | AF78: 137156249.8 | AG78: 137156249.8 | AH78: 137156249.8 | AI78: =SUMIF($A$76:$A$77,$G$73,AI76:AI77) -> 137156249.8 | AJ78: 137156249.8 | AK78: 137156249.8 | AL78: 137156249.8 | AM78: 143328281 | AN78: 143328281 | AO78: 143328281 | AP78: 143328281 | AQ78: 143328281 | AR78: 143328281 | AS78: 143328281 | AT78: 143328281 | AU78: 143328281 | AV78: 143328281 | AW78: 143328281 | AX78: 143328281 | AY78: 149778053.5 | AZ78: 149778053.5 | BA78: 149778053.5 | BB78: 149778053.5 | BC78: 149778053.5 | BD78: 149778053.5 | BE78: 149778053.5 | BF78: 149778053.5 | BG78: 149778053.5 | BH78: 149778053.5 | BI78: 149778053.5 | BJ78: 149778053.5 | BK78: 156518065.9 | BL78: 156518065.9 | BM78: 156518065.9 | BN78: 156518065.9 | BO78: =SUMIF($A$76:$A$77,$G$73,BO76:BO77) -> 156518065.9 | BP78: 156518065.9 | BQ78: 156518065.9 | BR78: 156518065.9 | BS78: 156518065.9 | BT78: 156518065.9 | BU78: 156518065.9 | BV78: 156518065.9 | BW78: 163561378.8 | BX78: 163561378.8 | BY78: 163561378.8 | BZ78: 163561378.8 | CA78: 163561378.8 | CB78: 163561378.8 | CC78: 163561378.8 | CD78: 163561378.8 | CE78: 163561378.8 | CF78: 163561378.8 | CG78: 163561378.8 | CH78: 163561378.8
C79: 3 | D79: 4 | E79: 5 | F79: 6 | G79: 7 | H79: 8 | I79: 9 | J79: 10 | K79: 11 | L79: 12 | M79: 13 | N79: 14 | O79: 15 | P79: 16 | Q79: 17 | R79: 18 | S79: 19 | T79: 20 | U79: 21 | V79: 22 | W79: 23 | X79: 24 | Y79: 25 | Z79: 26 | AA79: 27 | AB79: 28 | AC79: 29 | AD79: 30 | AE79: 31 | AF79: 32 | AG79: 33 | AH79: 34 | AI79: 35 | AJ79: 36 | AK79: 37 | AL79: 38 | AM79: 39 | AN79: 40 | AO79: 41 | AP79: 42 | AQ79: 43 | AR79: 44 | AS79: 45 | AT79: 46 | AU79: 47 | AV79: 48 | AW79: 49 | AX79: 50 | AY79: 51 | AZ79: 52 | BA79: 53 | BB79: 54 | BC79: 55 | BD79: 56 | BE79: 57 | BF79: 58 | BG79: 59 | BH79: 60 | BI79: 61 | BJ79: 62 | BK79: 63 | BL79: 64 | BM79: 65 | BN79: 66 | BO79: 67 | BP79: 68 | BQ79: 69 | BR79: 70 | BS79: 71 | BT79: 72 | BU79: 73 | BV79: 74 | BW79: 75 | BX79: 76 | BY79: 77 | BZ79: 78 | CA79: 79 | CB79: 80 | CC79: 81 | CD79: 82 | CE79: 83 | CF79: 84 | CG79: 85 | CH79: 86
B83: Proyección otras variables
B85: Variables internas FINDETER 1 | C85: =+C31 -> 2008 | D85: =+D31 -> 2009 | E85: 2010 | F85: 2011 | G85: 2012 | H85: 2013 | I85: 2014 | J85: =+J31 -> 2015 | K85: 2016 | L85: 2017 | M85: 2018
B86: Spread de cartera antigua anual pesos. (Spread S/DTF T.A). | C86: 0.023 | D86: =+'Mod. Sensibilización'!C26 -> 0.0277 | E86: =+'Mod. Sensibilización'!D26 -> 0.0277 | F86: =+'Mod. Sensibilización'!E26 -> 0.0277 | G86: =+'Mod. Sensibilización'!F26 -> 0.0277 | H86: =+'Mod. Sensibilización'!G26 -> 0.0277 | I86: =+'Mod. Sensibilización'!H26 -> 0.0277 | J86: =+'Mod. Sensibilización'!I26 -> 0.0277 | K86: =+J86 -> 0.0277 | L86: 0.0277 | M86: 0.0277
B87: Spread de cartera nueva anual pesos. (Spread S/DTF T.A). | C87: 0.033 | D87: =SUMPRODUCT('Mod. Sensibilización'!C18:C22,'Mod. Sensibilización'!C27:C31)/SUM('Mod. Sensibilización'!C18:C22) -> 0.03132 | E87: =SUMPRODUCT('Mod. Sensibilización'!D18:D22,'Mod. Sensibilización'!D27:D31)/SUM('Mod. Sensibilización'!D18:D22) -> 0.03018095238 | F87: =SUMPRODUCT('Mod. Sensibilización'!E18:E22,'Mod. Sensibilización'!E27:E31)/SUM('Mod. Sensibilización'!E18:E22) -> 0.02984459634 | G87: =SUMPRODUCT('Mod. Sensibilización'!F18:F22,'Mod. Sensibilización'!F27:F31)/SUM('Mod. Sensibilización'!F18:F22) -> 0.03065578772 | H87: =SUMPRODUCT('Mod. Sensibilización'!G18:G22,'Mod. Sensibilización'!G27:G31)/SUM('Mod. Sensibilización'!G18:G22) -> 0.03068783514 | I87: =SUMPRODUCT('Mod. Sensibilización'!H18:H22,'Mod. Sensibilización'!H27:H31)/SUM('Mod. Sensibilización'!H18:H22) -> 0.03071850253 | J87: =SUMPRODUCT('Mod. Sensibilización'!I18:I22,'Mod. Sensibilización'!I27:I31)/SUM('Mod. Sensibilización'!I18:I22) -> 0.03074784931 | K87: =+J87 -> 0.03074784931 | L87: =+K87 -> 0.03074784931 | M87: =+L87 -> 0.03074784931
B88: Tasa de Redescuento VIS (UVR) Anual | C88: 0.02 | D88: 0.02 | E88: 0.02 | F88: 0.02 | G88: 0.02 | H88: 0.02 | I88: 0.02 | J88: 0.02 | K88: 0.02 | L88: 0.02 | M88: 0.02
B89: Spread de cartera nueva anual pesos. (Libor 6m + Spread). | C89: 0.02 | D89: 0.02 | E89: 0.02 | F89: =+E89 -> 0.02 | G89: =+F89 -> 0.02 | H89: 0.02 | I89: 0.02 | J89: 0.02 | K89: 0.02 | L89: 0.02 | M89: 0.02
B90: Tasa de captación (Spread/DTF T.A) 1 año | C90: 0.019 | D90: 0.0205 | E90: 0.0205 | F90: 0.0205 | G90: 0.0205 | H90: 0.0205 | I90: 0.0205 | J90: 0.0205 | K90: 0.0205 | L90: 0.0205 | M90: 0.0205
B91: Tasa de captación (Spread/DTF T.A) 2 años | C91: 0.021 | D91: 0.0215 | E91: 0.0215 | F91: 0.0215 | G91: 0.0215 | H91: 0.0215 | I91: 0.0215 | J91: 0.0215 | K91: 0.0215 | L91: 0.0215 | M91: 0.0215
B92: Tasa de captación (Spread/DTF T.A) 3 años | C92: 0.021 | D92: 0.0225 | E92: 0.0225 | F92: 0.0225 | G92: 0.0225 | H92: 0.0225 | I92: 0.0225 | J92: 0.0225 | K92: 0.0225 | L92: 0.0225 | M92: 0.0225
B93: Tasa de captación (Spread/DTF T.A) 4 años | C93: 0.0225 | D93: 0.0235 | E93: 0.0235 | F93: 0.0235 | G93: 0.0235 | H93: 0.0235 | I93: 0.0235 | J93: 0.0235 | K93: 0.0235 | L93: 0.0235 | M93: 0.0235
B94: Tasa de captación (Spread/DTF T.A) 5 años | C94: 0.023 | D94: 0.0245 | E94: 0.0245 | F94: 0.0245 | G94: 0.0245 | H94: 0.0245 | I94: 0.0245 | J94: 0.0245 | K94: 0.0245 | L94: 0.0245 | M94: 0.0245
B95: Tasa de captación (Spread/DTF T.A) 6 años | C95: 0.0235 | D95: 0.0255 | E95: 0.0255 | F95: 0.0255 | G95: 0.0255 | H95: 0.0255 | I95: 0.0255 | J95: 0.0255 | K95: 0.0255 | L95: 0.0255 | M95: 0.0255
B96: Tasa de captación (Spread/DTF T.A) 7 años | C96: 0.024 | D96: 0.027 | E96: 0.027 | F96: 0.027 | G96: 0.027 | H96: 0.027 | I96: 0.027 | J96: 0.027 | K96: 0.027 | L96: 0.027 | M96: 0.027
B97: Rentabilidad de inversiones en pesos anual | C97: 0.1 | D97: 0.08 | E97: 0.08 | F97: 0.08 | G97: 0.07 | H97: 0.07 | I97: 0.07 | J97: 0.07 | K97: 0.07 | L97: 0.06 | M97: 0.06
B98: Rentabilidad de inversiónes en USD anual | C98: 0.02 | D98: 0.02 | E98: 0.02 | F98: 0.02 | G98: 0.02 | H98: 0.02 | I98: 0.02 | J98: 0.02 | K98: 0.02 | L98: 0.02 | M98: 0.02
B101: Variables internas FINDETER 2 | C101: =+C85 -> 2008 | D101: =+D85 -> 2009 | E101: 2010 | F101: 2011 | G101: 2012 | H101: 2013 | I101: 2014 | J101: 2015 | K101: 2016 | L101: 2017 | M101: 2018
B102: Prepagos de cartera en pesos (% cartera) | C102: 0.012 | D102: 0.012 | E102: 0.012 | F102: 0.012 | G102: 0.012 | H102: 0.012 | I102: 0.012 | J102: 0.012 | K102: 0.012 | L102: 0.012 | M102: 0.012
B103: Prepagos de cartera en dólares (% cartera)
B104: % Utilidades a proyectos de inversión
B105: % Desembolso utilidades anteriores
B106: Patrimonio líquido | C106: 699343468 | D106: =C106*(1+'Mod. Sensibilización'!C12) -> 738716505.2 | E106: =D106*(1+'Mod. Sensibilización'!D12) -> 775652330.5 | F106: =E106*(1+'Mod. Sensibilización'!E12) -> 810556685.4 | G106: =F106*(1+'Mod. Sensibilización'!F12) -> 847031736.2 | H106: =G106*(1+'Mod. Sensibilización'!G12) -> 885148164.4 | I106: =H106*(1+'Mod. Sensibilización'!H12) -> 924979831.8 | J106: =I106*(1+'Mod. Sensibilización'!I12) -> 966603924.2 | K106: =J106*(1+'Mod. Sensibilización'!J12) -> 966603924.2 | L106: =K106*(1+'Mod. Sensibilización'!K12) -> 966603924.2 | M106: =L106*(1+'Mod. Sensibilización'!L12) -> 966603924.2
B107: Impuesto al patrimonio | D107: =+C106*1.2% -> 8392121.616 | E107: =+D106*1.2% -> 8864598.063 | F107: 9307827.966 | G107: 9726680.225 | H107: 10164380.83 | I107: 10621777.97 | J107: 11099757.98 | K107: 11599247.09 | L107: 11599247.09 | M107: =+L106*1.2% -> 11599247.09
B108: Mandato Fondo Nacional de Garantías | C108: 10000000 | D108: 10000000 | E108: 10000000 | F108: 10000000 | G108: 10000000 | H108: 10000000 | I108: 10000000 | J108: 10000000
B109: Provisión general de cartera (% cartera) | C109: 0.01 | D109: 0.01 | E109: 0.01 | F109: 0.01 | G109: 0.01 | H109: 0.01 | I109: 0.01 | J109: 0.01 | K109: 0.01 | L109: 0.01 | M109: 0.01
B110: Provisión para impuesto de renta | C110: 0.33 | D110: 0.2 | E110: 0.2 | F110: 0.2 | G110: =+F110 -> 0.2 | H110: =+G110 -> 0.2 | I110: 0.2 | J110: 0.2 | K110: 0.2 | L110: 0.2 | M110: 0.2
B113: Tasas de cartera | C113: =+C75 -> 2009-01-01 | D113: =+D75 -> 2009-02-01 | E113: 2009-03-01 | F113: 2009-04-01 | G113: 2009-05-01 | H113: 2009-06-01 | I113: 2009-07-01 | J113: 2009-08-01 | K113: 2009-09-01 | L113: 2009-10-01 | M113: 2009-11-01 | N113: 2009-12-01 | O113: 2010-01-01 | P113: 2010-02-01 | Q113: 2010-03-01 | R113: 2010-04-01 | S113: 2010-05-01 | T113: 2010-06-01 | U113: 2010-07-01 | V113: 2010-08-01 | W113: 2010-09-01 | X113: 2010-10-01 | Y113: 2010-11-01 | Z113: 2010-12-01 | AA113: 2011-01-01 | AB113: 2011-02-01 | AC113: 2011-03-01 | AD113: 2011-04-01 | AE113: 2011-05-01 | AF113: 2011-06-01 | AG113: 2011-07-01 | AH113: 2011-08-01 | AI113: 2011-09-01 | AJ113: 2011-10-01 | AK113: 2011-11-01 | AL113: 2011-12-01 | AM113: 2012-01-01 | AN113: 2012-02-01 | AO113: 2012-03-01 | AP113: 2012-04-01 | AQ113: 2012-05-01 | AR113: 2012-06-01 | AS113: 2012-07-01 | AT113: 2012-08-01 | AU113: 2012-09-01 | AV113: 2012-10-01 | AW113: 2012-11-01 | AX113: 2012-12-01 | AY113: 2013-01-01 | AZ113: 2013-02-01 | BA113: 2013-03-01 | BB113: 2013-04-01 | BC113: 2013-05-01 | BD113: 2013-06-01 | BE113: 2013-07-01 | BF113: 2013-08-01 | BG113: 2013-09-01 | BH113: 2013-10-01 | BI113: 2013-11-01 | BJ113: 2013-12-01 | BK113: 2014-01-01 | BL113: 2014-02-01 | BM113: 2014-03-01 | BN113: 2014-04-01 | BO113: 2014-05-01 | BP113: =+BP75 -> 2014-06-01 | BQ113: 2014-07-01 | BR113: 2014-08-01 | BS113: 2014-09-01 | BT113: 2014-10-01 | BU113: 2014-11-01 | BV113: 2014-12-01 | BW113: 2015-01-01 | BX113: 2015-02-01 | BY113: 2015-03-01 | BZ113: 2015-04-01 | CA113: 2015-05-01 | CB113: 2015-06-01 | CC113: 2015-07-01 | CD113: 2015-08-01 | CE113: 2015-09-01 | CF113: 2015-10-01 | CG113: 2015-11-01 | CH113: 2015-12-01
B114: Tasa de cartera antigua (T.A.) | C114: =+C18+$D$86 -> 0.1030165843 | D114: =+D18+$D$86 -> 0.1030165843 | E114: 0.1030165843 | F114: 0.1030165843 | G114: 0.1030165843 | H114: 0.1030165843 | I114: 0.1030165843 | J114: 0.1030165843 | K114: 0.1030165843 | L114: 0.1030165843 | M114: 0.1030165843 | N114: 0.1030165843 | O114: =+O18+$E$86 -> 0.1039253915 | P114: =+P18+$E$86 -> 0.1039253915 | Q114: 0.1039253915 | R114: 0.1039253915 | S114: 0.1039253915 | T114: 0.1039253915 | U114: 0.1039253915 | V114: 0.1039253915 | W114: 0.1039253915 | X114: 0.1039253915 | Y114: 0.1039253915 | Z114: 0.1039253915 | AA114: =+AA18+$F$86 -> 0.1039253915 | AB114: =+AB18+$F$86 -> 0.1039253915 | AC114: 0.1039253915 | AD114: 0.1039253915 | AE114: 0.1039253915 | AF114: 0.1039253915 | AG114: 0.1039253915 | AH114: 0.1039253915 | AI114: 0.1039253915 | AJ114: 0.1039253915 | AK114: 0.1039253915 | AL114: 0.1039253915 | AM114: =+AM18+$G$86 -> 0.1039253915 | AN114: =+AN18+$G$86 -> 0.1039253915 | AO114: 0.1039253915 | AP114: 0.1039253915 | AQ114: 0.1039253915 | AR114: 0.1039253915 | AS114: 0.1039253915 | AT114: 0.1039253915 | AU114: 0.1039253915 | AV114: 0.1039253915 | AW114: 0.1039253915 | AX114: 0.1039253915 | AY114: =+AY18+$H$86 -> 0.1039253915 | AZ114: =+AZ18+$H$86 -> 0.1039253915 | BA114: 0.1039253915 | BB114: 0.1039253915 | BC114: 0.1039253915 | BD114: 0.1039253915 | BE114: 0.1039253915 | BF114: 0.1039253915 | BG114: 0.1039253915 | BH114: 0.1039253915 | BI114: 0.1039253915 | BJ114: 0.1039253915 | BK114: =+BK18+$I$86 -> 0.1039253915 | BL114: =+BL18+$I$86 -> 0.1039253915 | BM114: 0.1039253915 | BN114: 0.1039253915 | BO114: 0.1039253915 | BP114: 0.1039253915 | BQ114: 0.1039253915 | BR114: 0.1039253915 | BS114: 0.1039253915 | BT114: 0.1039253915 | BU114: 0.1039253915 | BV114: 0.1039253915 | BW114: =+BW18+$J$86 -> 0.1039253915 | BX114: =+BX18+$J$86 -> 0.1039253915 | BY114: 0.1039253915 | BZ114: 0.1039253915 | CA114: 0.1039253915 | CB114: 0.1039253915 | CC114: 0.1039253915 | CD114: 0.1039253915 | CE114: 0.1039253915 | CF114: 0.1039253915 | CG114: 0.1039253915 | CH114: 0.1039253915
B115: Tasa de cartera antigua (T.V). | C115: =(((1+((1-(C114/4))^-4-1))^(90/360))-1)*(360/90) -> 0.1057398232 | D115: 0.1057398232 | E115: 0.1057398232 | F115: 0.1057398232 | G115: 0.1057398232 | H115: 0.1057398232 | I115: 0.1057398232 | J115: 0.1057398232 | K115: 0.1057398232 | L115: 0.1057398232 | M115: 0.1057398232 | N115: 0.1057398232 | O115: 0.1066975373 | P115: 0.1066975373 | Q115: 0.1066975373 | R115: 0.1066975373 | S115: 0.1066975373 | T115: 0.1066975373 | U115: 0.1066975373 | V115: 0.1066975373 | W115: 0.1066975373 | X115: 0.1066975373 | Y115: 0.1066975373 | Z115: 0.1066975373 | AA115: 0.1066975373 | AB115: 0.1066975373 | AC115: 0.1066975373 | AD115: 0.1066975373 | AE115: 0.1066975373 | AF115: 0.1066975373 | AG115: 0.1066975373 | AH115: 0.1066975373 | AI115: =(((1+((1-(AI114/4))^-4-1))^(90/360))-1)*(360/90) -> 0.1066975373 | AJ115: 0.1066975373 | AK115: 0.1066975373 | AL115: 0.1066975373 | AM115: 0.1066975373 | AN115: 0.1066975373 | AO115: 0.1066975373 | AP115: 0.1066975373 | AQ115: 0.1066975373 | AR115: 0.1066975373 | AS115: 0.1066975373 | AT115: 0.1066975373 | AU115: 0.1066975373 | AV115: 0.1066975373 | AW115: 0.1066975373 | AX115: 0.1066975373 | AY115: 0.1066975373 | AZ115: 0.1066975373 | BA115: 0.1066975373 | BB115: 0.1066975373 | BC115: 0.1066975373 | BD115: 0.1066975373 | BE115: 0.1066975373 | BF115: 0.1066975373 | BG115: 0.1066975373 | BH115: 0.1066975373 | BI115: 0.1066975373 | BJ115: 0.1066975373 | BK115: 0.1066975373 | BL115: 0.1066975373 | BM115: 0.1066975373 | BN115: 0.1066975373 | BO115: =(((1+((1-(BO114/4))^-4-1))^(90/360))-1)*(360/90) -> 0.1066975373 | BP115: 0.1066975373 | BQ115: 0.1066975373 | BR115: 0.1066975373 | BS115: 0.1066975373 | BT115: 0.1066975373 | BU115: 0.1066975373 | BV115: 0.1066975373 | BW115: 0.1066975373 | BX115: 0.1066975373 | BY115: 0.1066975373 | BZ115: 0.1066975373 | CA115: 0.1066975373 | CB115: 0.1066975373 | CC115: 0.1066975373 | CD115: 0.1066975373 | CE115: 0.1066975373 | CF115: 0.1066975373 | CG115: 0.1066975373 | CH115: 0.1066975373
B116: Tasa de cartera antigua periodica | C116: =+C115/12 -> 0.008811651933 | D116: =+D115/12 -> 0.008811651933 | E116: 0.008811651933 | F116: 0.008811651933 | G116: 0.008811651933 | H116: 0.008811651933 | I116: 0.008811651933 | J116: 0.008811651933 | K116: 0.008811651933 | L116: 0.008811651933 | M116: 0.008811651933 | N116: 0.008811651933 | O116: 0.008891461444 | P116: 0.008891461444 | Q116: 0.008891461444 | R116: 0.008891461444 | S116: 0.008891461444 | T116: 0.008891461444 | U116: 0.008891461444 | V116: 0.008891461444 | W116: 0.008891461444 | X116: 0.008891461444 | Y116: 0.008891461444 | Z116: 0.008891461444 | AA116: 0.008891461444 | AB116: 0.008891461444 | AC116: 0.008891461444 | AD116: 0.008891461444 | AE116: 0.008891461444 | AF116: 0.008891461444 | AG116: 0.008891461444 | AH116: 0.008891461444 | AI116: 0.008891461444 | AJ116: 0.008891461444 | AK116: 0.008891461444 | AL116: 0.008891461444 | AM116: 0.008891461444 | AN116: 0.008891461444 | AO116: 0.008891461444 | AP116: 0.008891461444 | AQ116: 0.008891461444 | AR116: 0.008891461444 | AS116: 0.008891461444 | AT116: 0.008891461444 | AU116: 0.008891461444 | AV116: 0.008891461444 | AW116: 0.008891461444 | AX116: 0.008891461444 | AY116: 0.008891461444 | AZ116: 0.008891461444 | BA116: 0.008891461444 | BB116: 0.008891461444 | BC116: 0.008891461444 | BD116: 0.008891461444 | BE116: 0.008891461444 | BF116: 0.008891461444 | BG116: 0.008891461444 | BH116: 0.008891461444 | BI116: 0.008891461444 | BJ116: 0.008891461444 | BK116: 0.008891461444 | BL116: 0.008891461444 | BM116: 0.008891461444 | BN116: 0.008891461444 | BO116: 0.008891461444 | BP116: =+BP115/12 -> 0.008891461444 | BQ116: 0.008891461444 | BR116: 0.008891461444 | BS116: 0.008891461444 | BT116: 0.008891461444 | BU116: 0.008891461444 | BV116: 0.008891461444 | BW116: 0.008891461444 | BX116: 0.008891461444 | BY116: 0.008891461444 | BZ116: 0.008891461444 | CA116: 0.008891461444 | CB116: 0.008891461444 | CC116: 0.008891461444 | CD116: 0.008891461444 | CE116: 0.008891461444 | CF116: 0.008891461444 | CG116: 0.008891461444 | CH116: 0.008891461444
B117: Tasa de cartera nueva (T.A.) | C117: =+C18+$D$87 -> 0.1066365843 | D117: 0.1066365843 | E117: 0.1066365843 | F117: 0.1066365843 | G117: 0.1066365843 | H117: 0.1066365843 | I117: 0.1066365843 | J117: 0.1066365843 | K117: 0.1066365843 | L117: 0.1066365843 | M117: 0.1066365843 | N117: 0.1066365843 | O117: =+O18+$E$87 -> 0.1064063439 | P117: 0.1064063439 | Q117: 0.1064063439 | R117: 0.1064063439 | S117: 0.1064063439 | T117: 0.1064063439 | U117: 0.1064063439 | V117: 0.1064063439 | W117: 0.1064063439 | X117: 0.1064063439 | Y117: 0.1064063439 | Z117: 0.1064063439 | AA117: =+AA18+$F$87 -> 0.1060699878 | AB117: 0.1060699878 | AC117: 0.1060699878 | AD117: 0.1060699878 | AE117: 0.1060699878 | AF117: 0.1060699878 | AG117: 0.1060699878 | AH117: 0.1060699878 | AI117: 0.1060699878 | AJ117: 0.1060699878 | AK117: 0.1060699878 | AL117: 0.1060699878 | AM117: =+AM18+$G$87 -> 0.1068811792 | AN117: 0.1068811792 | AO117: 0.1068811792 | AP117: 0.1068811792 | AQ117: 0.1068811792 | AR117: 0.1068811792 | AS117: 0.1068811792 | AT117: 0.1068811792 | AU117: 0.1068811792 | AV117: 0.1068811792 | AW117: 0.1068811792 | AX117: 0.1068811792 | AY117: =+AY18+$H$87 -> 0.1069132266 | AZ117: 0.1069132266 | BA117: 0.1069132266 | BB117: 0.1069132266 | BC117: 0.1069132266 | BD117: 0.1069132266 | BE117: 0.1069132266 | BF117: 0.1069132266 | BG117: 0.1069132266 | BH117: 0.1069132266 | BI117: 0.1069132266 | BJ117: 0.1069132266 | BK117: =+BK18+$I$87 -> 0.106943894 | BL117: 0.106943894 | BM117: 0.106943894 | BN117: 0.106943894 | BO117: 0.106943894 | BP117: 0.106943894 | BQ117: 0.106943894 | BR117: 0.106943894 | BS117: 0.106943894 | BT117: 0.106943894 | BU117: 0.106943894 | BV117: 0.106943894 | BW117: =+BW18+$J$87 -> 0.1069732408 | BX117: 0.1069732408 | BY117: 0.1069732408 | BZ117: 0.1069732408 | CA117: 0.1069732408 | CB117: 0.1069732408 | CC117: 0.1069732408 | CD117: 0.1069732408 | CE117: 0.1069732408 | CF117: 0.1069732408 | CG117: 0.1069732408 | CH117: 0.1069732408
B118: Tasa de cartera nueva (T.V). | C118: =(((1+((1-(C117/4))^-4-1))^(90/360))-1)*(360/90) -> 0.1095572881 | D118: 0.1095572881 | E118: 0.1095572881 | F118: 0.1095572881 | G118: 0.1095572881 | H118: 0.1095572881 | I118: 0.1095572881 | J118: 0.1095572881 | K118: 0.1095572881 | L118: 0.1095572881 | M118: 0.1095572881 | N118: 0.1095572881 | O118: 0.109314277 | P118: 0.109314277 | Q118: 0.109314277 | R118: 0.109314277 | S118: 0.109314277 | T118: 0.109314277 | U118: 0.109314277 | V118: 0.109314277 | W118: 0.109314277 | X118: 0.109314277 | Y118: 0.109314277 | Z118: 0.109314277 | AA118: 0.1089593162 | AB118: 0.1089593162 | AC118: 0.1089593162 | AD118: 0.1089593162 | AE118: 0.1089593162 | AF118: 0.1089593162 | AG118: 0.1089593162 | AH118: 0.1089593162 | AI118: =(((1+((1-(AI117/4))^-4-1))^(90/360))-1)*(360/90) -> 0.1089593162 | AJ118: 0.1089593162 | AK118: 0.1089593162 | AL118: 0.1089593162 | AM118: 0.1098154812 | AN118: 0.1098154812 | AO118: 0.1098154812 | AP118: 0.1098154812 | AQ118: 0.1098154812 | AR118: 0.1098154812 | AS118: 0.1098154812 | AT118: 0.1098154812 | AU118: 0.1098154812 | AV118: 0.1098154812 | AW118: 0.1098154812 | AX118: 0.1098154812 | AY118: 0.1098493127 | AZ118: 0.1098493127 | BA118: 0.1098493127 | BB118: 0.1098493127 | BC118: 0.1098493127 | BD118: 0.1098493127 | BE118: 0.1098493127 | BF118: 0.1098493127 | BG118: 0.1098493127 | BH118: 0.1098493127 | BI118: 0.1098493127 | BJ118: 0.1098493127 | BK118: 0.1098816879 | BL118: 0.1098816879 | BM118: 0.1098816879 | BN118: 0.1098816879 | BO118: =(((1+((1-(BO117/4))^-4-1))^(90/360))-1)*(360/90) -> 0.1098816879 | BP118: 0.1098816879 | BQ118: 0.1098816879 | BR118: 0.1098816879 | BS118: 0.1098816879 | BT118: 0.1098816879 | BU118: 0.1098816879 | BV118: 0.1098816879 | BW118: 0.1099126694 | BX118: 0.1099126694 | BY118: 0.1099126694 | BZ118: 0.1099126694 | CA118: 0.1099126694 | CB118: 0.1099126694 | CC118: 0.1099126694 | CD118: 0.1099126694 | CE118: 0.1099126694 | CF118: 0.1099126694 | CG118: 0.1099126694 | CH118: 0.1099126694
B119: Tasa de cartera nueva periodica | C119: =+C118/12 -> 0.009129774007 | D119: 0.009129774007 | E119: 0.009129774007 | F119: 0.009129774007 | G119: 0.009129774007 | H119: 0.009129774007 | I119: 0.009129774007 | J119: 0.009129774007 | K119: 0.009129774007 | L119: 0.009129774007 | M119: 0.009129774007 | N119: 0.009129774007 | O119: 0.009109523084 | P119: 0.009109523084 | Q119: 0.009109523084 | R119: 0.009109523084 | S119: 0.009109523084 | T119: 0.009109523084 | U119: 0.009109523084 | V119: 0.009109523084 | W119: 0.009109523084 | X119: 0.009109523084 | Y119: 0.009109523084 | Z119: 0.009109523084 | AA119: 0.009079943013 | AB119: 0.009079943013 | AC119: 0.009079943013 | AD119: 0.009079943013 | AE119: 0.009079943013 | AF119: 0.009079943013 | AG119: 0.009079943013 | AH119: 0.009079943013 | AI119: =+AI118/12 -> 0.009079943013 | AJ119: 0.009079943013 | AK119: 0.009079943013 | AL119: 0.009079943013 | AM119: 0.009151290104 | AN119: 0.009151290104 | AO119: 0.009151290104 | AP119: 0.009151290104 | AQ119: 0.009151290104 | AR119: 0.009151290104 | AS119: 0.009151290104 | AT119: 0.009151290104 | AU119: 0.009151290104 | AV119: 0.009151290104 | AW119: 0.009151290104 | AX119: 0.009151290104 | AY119: 0.009154109396 | AZ119: 0.009154109396 | BA119: 0.009154109396 | BB119: 0.009154109396 | BC119: 0.009154109396 | BD119: 0.009154109396 | BE119: 0.009154109396 | BF119: 0.009154109396 | BG119: 0.009154109396 | BH119: 0.009154109396 | BI119: 0.009154109396 | BJ119: 0.009154109396 | BK119: 0.009156807326 | BL119: 0.009156807326 | BM119: 0.009156807326 | BN119: 0.009156807326 | BO119: =+BO118/12 -> 0.009156807326 | BP119: 0.009156807326 | BQ119: 0.009156807326 | BR119: 0.009156807326 | BS119: 0.009156807326 | BT119: 0.009156807326 | BU119: 0.009156807326 | BV119: 0.009156807326 | BW119: 0.009159389117 | BX119: 0.009159389117 | BY119: 0.009159389117 | BZ119: 0.009159389117 | CA119: 0.009159389117 | CB119: 0.009159389117 | CC119: 0.009159389117 | CD119: 0.009159389117 | CE119: 0.009159389117 | CF119: 0.009159389117 | CG119: 0.009159389117 | CH119: 0.009159389117
B120: Tasa de cartera nueva UVR Anual | C120: =+$D$88 -> 0.02 | D120: =+$D$88 -> 0.02 | E120: 0.02 | F120: 0.02 | G120: 0.02 | H120: 0.02 | I120: 0.02 | J120: 0.02 | K120: 0.02 | L120: 0.02 | M120: 0.02 | N120: 0.02 | O120: =+$E$88 -> 0.02 | P120: =+$E$88 -> 0.02 | Q120: 0.02 | R120: 0.02 | S120: 0.02 | T120: 0.02 | U120: 0.02 | V120: 0.02 | W120: 0.02 | X120: 0.02 | Y120: 0.02 | Z120: 0.02 | AA120: =+$F$88 -> 0.02 | AB120: =+$F$88 -> 0.02 | AC120: 0.02 | AD120: 0.02 | AE120: 0.02 | AF120: 0.02 | AG120: 0.02 | AH120: 0.02 | AI120: 0.02 | AJ120: 0.02 | AK120: 0.02 | AL120: 0.02 | AM120: =+$G$88 -> 0.02 | AN120: =+$G$88 -> 0.02 | AO120: 0.02 | AP120: 0.02 | AQ120: 0.02 | AR120: 0.02 | AS120: 0.02 | AT120: 0.02 | AU120: 0.02 | AV120: 0.02 | AW120: 0.02 | AX120: 0.02 | AY120: =+$H$88 -> 0.02 | AZ120: =+$H$88 -> 0.02 | BA120: 0.02 | BB120: 0.02 | BC120: 0.02 | BD120: 0.02 | BE120: 0.02 | BF120: 0.02 | BG120: 0.02 | BH120: 0.02 | BI120: 0.02 | BJ120: 0.02 | BK120: =+$I$88 -> 0.02 | BL120: =+$I$88 -> 0.02 | BM120: 0.02 | BN120: 0.02 | BO120: 0.02 | BP120: 0.02 | BQ120: 0.02 | BR120: 0.02 | BS120: 0.02 | BT120: 0.02 | BU120: 0.02 | BV120: 0.02 | BW120: =+$J$88 -> 0.02 | BX120: =+$J$88 -> 0.02 | BY120: 0.02 | BZ120: 0.02 | CA120: 0.02 | CB120: 0.02 | CC120: 0.02 | CD120: 0.02 | CE120: 0.02 | CF120: 0.02 | CG120: 0.02 | CH120: 0.02
B121: Tasa de cartera nueva UVR periodica | C121: =(1+C120)^(1/12)-1 -> 0.001651581302 | D121: 0.001651581302 | E121: 0.001651581302 | F121: 0.001651581302 | G121: 0.001651581302 | H121: 0.001651581302 | I121: 0.001651581302 | J121: 0.001651581302 | K121: 0.001651581302 | L121: 0.001651581302 | M121: 0.001651581302 | N121: 0.001651581302 | O121: 0.001651581302 | P121: 0.001651581302 | Q121: 0.001651581302 | R121: 0.001651581302 | S121: 0.001651581302 | T121: 0.001651581302 | U121: 0.001651581302 | V121: 0.001651581302 | W121: 0.001651581302 | X121: 0.001651581302 | Y121: 0.001651581302 | Z121: 0.001651581302 | AA121: 0.001651581302 | AB121: 0.001651581302 | AC121: 0.001651581302 | AD121: 0.001651581302 | AE121: 0.001651581302 | AF121: 0.001651581302 | AG121: 0.001651581302 | AH121: 0.001651581302 | AI121: =(1+AI120)^(1/12)-1 -> 0.001651581302 | AJ121: 0.001651581302 | AK121: 0.001651581302 | AL121: 0.001651581302 | AM121: 0.001651581302 | AN121: 0.001651581302 | AO121: 0.001651581302 | AP121: 0.001651581302 | AQ121: 0.001651581302 | AR121: 0.001651581302 | AS121: 0.001651581302 | AT121: 0.001651581302 | AU121: 0.001651581302 | AV121: 0.001651581302 | AW121: 0.001651581302 | AX121: 0.001651581302 | AY121: 0.001651581302 | AZ121: 0.001651581302 | BA121: 0.001651581302 | BB121: 0.001651581302 | BC121: 0.001651581302 | BD121: 0.001651581302 | BE121: 0.001651581302 | BF121: 0.001651581302 | BG121: 0.001651581302 | BH121: 0.001651581302 | BI121: 0.001651581302 | BJ121: 0.001651581302 | BK121: 0.001651581302 | BL121: 0.001651581302 | BM121: 0.001651581302 | BN121: 0.001651581302 | BO121: =(1+BO120)^(1/12)-1 -> 0.001651581302 | BP121: 0.001651581302 | BQ121: 0.001651581302 | BR121: 0.001651581302 | BS121: 0.001651581302 | BT121: 0.001651581302 | BU121: 0.001651581302 | BV121: 0.001651581302 | BW121: 0.001651581302 | BX121: 0.001651581302 | BY121: 0.001651581302 | BZ121: 0.001651581302 | CA121: 0.001651581302 | CB121: 0.001651581302 | CC121: 0.001651581302 | CD121: 0.001651581302 | CE121: 0.001651581302 | CF121: 0.001651581302 | CG121: 0.001651581302 | CH121: 0.001651581302
B122: Tasa de cartera nueva en USD Anual | C122: =+$D$37+$D$89 -> 0.05 | D122: =+$D$37+$D$89 -> 0.05 | E122: 0.05 | F122: 0.05 | G122: 0.05 | H122: 0.05 | I122: 0.05 | J122: 0.05 | K122: 0.05 | L122: 0.05 | M122: 0.05 | N122: 0.05 | O122: =+$E$37+$E$89 -> 0.0515 | P122: =+$E$37+$E$89 -> 0.0515 | Q122: 0.0515 | R122: 0.0515 | S122: 0.0515 | T122: 0.0515 | U122: 0.0515 | V122: 0.0515 | W122: 0.0515 | X122: 0.0515 | Y122: 0.0515 | Z122: 0.0515 | AA122: =+$F$37+$F$89 -> 0.06 | AB122: =+$F$37+$F$89 -> 0.06 | AC122: 0.06 | AD122: 0.06 | AE122: 0.06 | AF122: 0.06 | AG122: 0.06 | AH122: 0.06 | AI122: 0.06 | AJ122: 0.06 | AK122: 0.06 | AL122: 0.06 | AM122: =+$G$37+$G$89 -> 0.07 | AN122: =+$G$37+$G$89 -> 0.07 | AO122: 0.07 | AP122: 0.07 | AQ122: 0.07 | AR122: 0.07 | AS122: 0.07 | AT122: 0.07 | AU122: 0.07 | AV122: 0.07 | AW122: 0.07 | AX122: 0.07 | AY122: =+$H$37+$H$89 -> 0.07 | AZ122: =+$H$37+$H$89 -> 0.07 | BA122: 0.07 | BB122: 0.07 | BC122: 0.07 | BD122: 0.07 | BE122: 0.07 | BF122: 0.07 | BG122: 0.07 | BH122: 0.07 | BI122: 0.07 | BJ122: 0.07 | BK122: =+$I$37+$I$89 -> 0.07 | BL122: =+$I$37+$I$89 -> 0.07 | BM122: 0.07 | BN122: 0.07 | BO122: 0.07 | BP122: 0.07 | BQ122: 0.07 | BR122: 0.07 | BS122: 0.07 | BT122: 0.07 | BU122: 0.07 | BV122: 0.07 | BW122: =+$J$37+$J$89 -> 0.07 | BX122: =+$J$37+$J$89 -> 0.07 | BY122: 0.07 | BZ122: 0.07 | CA122: 0.07 | CB122: 0.07 | CC122: 0.07 | CD122: 0.07 | CE122: 0.07 | CF122: 0.07 | CG122: 0.07 | CH122: 0.07
B123: Tasa de cartera nueva en USD Periodica | C123: =+C122/12 -> 0.004166666667 | D123: 0.004166666667 | E123: 0.004166666667 | F123: 0.004166666667 | G123: 0.004166666667 | H123: 0.004166666667 | I123: 0.004166666667 | J123: 0.004166666667 | K123: 0.004166666667 | L123: 0.004166666667 | M123: 0.004166666667 | N123: 0.004166666667 | O123: 0.004291666667 | P123: 0.004291666667 | Q123: 0.004291666667 | R123: 0.004291666667 | S123: 0.004291666667 | T123: 0.004291666667 | U123: 0.004291666667 | V123: 0.004291666667 | W123: 0.004291666667 | X123: 0.004291666667 | Y123: 0.004291666667 | Z123: 0.004291666667 | AA123: 0.005 | AB123: 0.005 | AC123: 0.005 | AD123: 0.005 | AE123: 0.005 | AF123: 0.005 | AG123: 0.005 | AH123: 0.005 | AI123: =+AI122/12 -> 0.005 | AJ123: 0.005 | AK123: 0.005 | AL123: 0.005 | AM123: 0.005833333333 | AN123: 0.005833333333 | AO123: 0.005833333333 | AP123: 0.005833333333 | AQ123: 0.005833333333 | AR123: 0.005833333333 | AS123: 0.005833333333 | AT123: 0.005833333333 | AU123: 0.005833333333 | AV123: 0.005833333333 | AW123: 0.005833333333 | AX123: 0.005833333333 | AY123: 0.005833333333 | AZ123: 0.005833333333 | BA123: 0.005833333333 | BB123: 0.005833333333 | BC123: 0.005833333333 | BD123: 0.005833333333 | BE123: 0.005833333333 | BF123: 0.005833333333 | BG123: 0.005833333333 | BH123: 0.005833333333 | BI123: 0.005833333333 | BJ123: 0.005833333333 | BK123: 0.005833333333 | BL123: 0.005833333333 | BM123: 0.005833333333 | BN123: 0.005833333333 | BO123: =+BO122/12 -> 0.005833333333 | BP123: 0.005833333333 | BQ123: 0.005833333333 | BR123: 0.005833333333 | BS123: 0.005833333333 | BT123: 0.005833333333 | BU123: 0.005833333333 | BV123: 0.005833333333 | BW123: 0.005833333333 | BX123: 0.005833333333 | BY123: 0.005833333333 | BZ123: 0.005833333333 | CA123: 0.005833333333 | CB123: 0.005833333333 | CC123: 0.005833333333 | CD123: 0.005833333333 | CE123: 0.005833333333 | CF123: 0.005833333333 | CG123: 0.005833333333 | CH123: 0.005833333333
B124: Tasa Libor 3 meses (Créditos en USD) | C124: =+$D$36 -> 0.029 | D124: =+$D$36 -> 0.029 | E124: 0.029 | F124: 0.029 | G124: 0.029 | H124: 0.029 | I124: 0.029 | J124: 0.029 | K124: 0.029 | L124: 0.029 | M124: 0.029 | N124: 0.029 | O124: =+$E$36 -> 0.0295 | P124: =+$E$36 -> 0.0295 | Q124: 0.0295 | R124: 0.0295 | S124: 0.0295 | T124: 0.0295 | U124: 0.0295 | V124: 0.0295 | W124: 0.0295 | X124: 0.0295 | Y124: 0.0295 | Z124: 0.0295 | AA124: =+$F$36 -> 0.03 | AB124: =+$F$36 -> 0.03 | AC124: 0.03 | AD124: 0.03 | AE124: 0.03 | AF124: 0.03 | AG124: 0.03 | AH124: 0.03 | AI124: 0.03 | AJ124: 0.03 | AK124: 0.03 | AL124: 0.03 | AM124: =+$G$36 -> 0.04 | AN124: =+$G$36 -> 0.04 | AO124: 0.04 | AP124: 0.04 | AQ124: 0.04 | AR124: 0.04 | AS124: 0.04 | AT124: 0.04 | AU124: 0.04 | AV124: 0.04 | AW124: 0.04 | AX124: 0.04 | AY124: =+$H$36 -> 0.04 | AZ124: =+$H$36 -> 0.04 | BA124: 0.04 | BB124: 0.04 | BC124: 0.04 | BD124: 0.04 | BE124: 0.04 | BF124: 0.04 | BG124: 0.04 | BH124: 0.04 | BI124: 0.04 | BJ124: 0.04 | BK124: =+$I$36 -> 0.045 | BL124: =+$I$36 -> 0.045 | BM124: 0.045 | BN124: 0.045 | BO124: 0.045 | BP124: 0.045 | BQ124: 0.045 | BR124: 0.045 | BS124: 0.045 | BT124: 0.045 | BU124: 0.045 | BV124: 0.045 | BW124: =+$J$36 -> 0.045 | BX124: =+$J$36 -> 0.045 | BY124: 0.045 | BZ124: 0.045 | CA124: 0.045 | CB124: 0.045 | CC124: 0.045 | CD124: 0.045 | CE124: 0.045 | CF124: 0.045 | CG124: 0.045 | CH124: 0.045
B125: Tasa Libor 6 meses (Créditos en USD) | C125: =+$D$37 -> 0.03 | D125: =+$D$37 -> 0.03 | E125: 0.03 | F125: 0.03 | G125: 0.03 | H125: 0.03 | I125: 0.03 | J125: 0.03 | K125: 0.03 | L125: 0.03 | M125: 0.03 | N125: 0.03 | O125: =+$E$37 -> 0.0315 | P125: =+$E$37 -> 0.0315 | Q125: 0.0315 | R125: 0.0315 | S125: 0.0315 | T125: 0.0315 | U125: 0.0315 | V125: 0.0315 | W125: 0.0315 | X125: 0.0315 | Y125: 0.0315 | Z125: 0.0315 | AA125: =+$F$37 -> 0.04 | AB125: =+$F$37 -> 0.04 | AC125: 0.04 | AD125: 0.04 | AE125: 0.04 | AF125: 0.04 | AG125: 0.04 | AH125: 0.04 | AI125: 0.04 | AJ125: 0.04 | AK125: 0.04 | AL125: 0.04 | AM125: =+$G$37 -> 0.05 | AN125: =+$G$37 -> 0.05 | AO125: 0.05 | AP125: 0.05 | AQ125: 0.05 | AR125: 0.05 | AS125: 0.05 | AT125: 0.05 | AU125: 0.05 | AV125: 0.05 | AW125: 0.05 | AX125: 0.05 | AY125: =+$H$37 -> 0.05 | AZ125: =+$H$37 -> 0.05 | BA125: 0.05 | BB125: 0.05 | BC125: 0.05 | BD125: 0.05 | BE125: 0.05 | BF125: 0.05 | BG125: 0.05 | BH125: 0.05 | BI125: 0.05 | BJ125: 0.05 | BK125: =+$I$37 -> 0.05 | BL125: =+$I$37 -> 0.05 | BM125: 0.05 | BN125: 0.05 | BO125: 0.05 | BP125: 0.05 | BQ125: 0.05 | BR125: 0.05 | BS125: 0.05 | BT125: 0.05 | BU125: 0.05 | BV125: 0.05 | BW125: =+$J$37 -> 0.05 | BX125: =+$J$37 -> 0.05 | BY125: 0.05 | BZ125: 0.05 | CA125: 0.05 | CB125: 0.05 | CC125: 0.05 | CD125: 0.05 | CE125: 0.05 | CF125: 0.05 | CG125: 0.05 | CH125: 0.05
B128: Tasas de captación | C128: =+C113 -> 2009-01-01 | D128: =+D113 -> 2009-02-01 | E128: 2009-03-01 | F128: 2009-04-01 | G128: 2009-05-01 | H128: 2009-06-01 | I128: 2009-07-01 | J128: 2009-08-01 | K128: 2009-09-01 | L128: 2009-10-01 | M128: 2009-11-01 | N128: 2009-12-01 | O128: 2010-01-01 | P128: 2010-02-01 | Q128: 2010-03-01 | R128: 2010-04-01 | S128: 2010-05-01 | T128: 2010-06-01 | U128: 2010-07-01 | V128: 2010-08-01 | W128: 2010-09-01 | X128: 2010-10-01 | Y128: 2010-11-01 | Z128: 2010-12-01 | AA128: 2011-01-01 | AB128: 2011-02-01 | AC128: 2011-03-01 | AD128: 2011-04-01 | AE128: 2011-05-01 | AF128: 2011-06-01 | AG128: 2011-07-01 | AH128: 2011-08-01 | AI128: 2011-09-01 | AJ128: 2011-10-01 | AK128: 2011-11-01 | AL128: 2011-12-01 | AM128: 2012-01-01 | AN128: 2012-02-01 | AO128: 2012-03-01 | AP128: 2012-04-01 | AQ128: 2012-05-01 | AR128: 2012-06-01 | AS128: 2012-07-01 | AT128: 2012-08-01 | AU128: 2012-09-01 | AV128: 2012-10-01 | AW128: 2012-11-01 | AX128: 2012-12-01 | AY128: 2013-01-01 | AZ128: 2013-02-01 | BA128: 2013-03-01 | BB128: 2013-04-01 | BC128: 2013-05-01 | BD128: 2013-06-01 | BE128: 2013-07-01 | BF128: 2013-08-01 | BG128: 2013-09-01 | BH128: 2013-10-01 | BI128: 2013-11-01 | BJ128: 2013-12-01 | BK128: 2014-01-01 | BL128: 2014-02-01 | BM128: 2014-03-01 | BN128: 2014-04-01 | BO128: 2014-05-01 | BP128: =+BP113 -> 2014-06-01 | BQ128: 2014-07-01 | BR128: 2014-08-01 | BS128: 2014-09-01 | BT128: 2014-10-01 | BU128: 2014-11-01 | BV128: 2014-12-01 | BW128: 2015-01-01 | BX128: 2015-02-01 | BY128: 2015-03-01 | BZ128: 2015-04-01 | CA128: 2015-05-01 | CB128: 2015-06-01 | CC128: 2015-07-01 | CD128: 2015-08-01 | CE128: 2015-09-01 | CF128: 2015-10-01 | CG128: 2015-11-01 | CH128: 2015-12-01
B129: Tasa de captación (T.A) 1 año | C129: =+C$18+$D90 -> 0.09581658434 | D129: =+D$18+$D90 -> 0.09581658434 | E129: =+E$18+$D90 -> 0.09581658434 | F129: 0.09581658434 | G129: 0.09581658434 | H129: 0.09581658434 | I129: 0.09581658434 | J129: 0.09581658434 | K129: 0.09581658434 | L129: 0.09581658434 | M129: 0.09581658434 | N129: 0.09581658434 | O129: =+O$18+$E90 -> 0.09672539149 | P129: =+P$18+$E90 -> 0.09672539149 | Q129: 0.09672539149 | R129: 0.09672539149 | S129: 0.09672539149 | T129: 0.09672539149 | U129: 0.09672539149 | V129: 0.09672539149 | W129: 0.09672539149 | X129: 0.09672539149 | Y129: 0.09672539149 | Z129: 0.09672539149 | AA129: 0.09672539149 | AB129: =+AB$18+$F90 -> 0.09672539149 | AC129: =+AC$18+$F90 -> 0.09672539149 | AD129: 0.09672539149 | AE129: 0.09672539149 | AF129: 0.09672539149 | AG129: 0.09672539149 | AH129: 0.09672539149 | AI129: 0.09672539149 | AJ129: 0.09672539149 | AK129: 0.09672539149 | AL129: 0.09672539149 | AM129: =+AM$18+$G90 -> 0.09672539149 | AN129: =+AN$18+$G90 -> 0.09672539149 | AO129: 0.09672539149 | AP129: 0.09672539149 | AQ129: 0.09672539149 | AR129: 0.09672539149 | AS129: 0.09672539149 | AT129: 0.09672539149 | AU129: 0.09672539149 | AV129: 0.09672539149 | AW129: 0.09672539149 | AX129: 0.09672539149 | AY129: =+AY$18+$H90 -> 0.09672539149 | AZ129: =+AZ$18+$H90 -> 0.09672539149 | BA129: 0.09672539149 | BB129: 0.09672539149 | BC129: 0.09672539149 | BD129: 0.09672539149 | BE129: 0.09672539149 | BF129: 0.09672539149 | BG129: 0.09672539149 | BH129: 0.09672539149 | BI129: 0.09672539149 | BJ129: 0.09672539149 | BK129: =+BK$18+$I90 -> 0.09672539149 | BL129: =+BL$18+$I90 -> 0.09672539149 | BM129: 0.09672539149 | BN129: 0.09672539149 | BO129: 0.09672539149 | BP129: 0.09672539149 | BQ129: 0.09672539149 | BR129: 0.09672539149 | BS129: 0.09672539149 | BT129: 0.09672539149 | BU129: 0.09672539149 | BV129: 0.09672539149 | BW129: =+BW$18+$J90 -> 0.09672539149 | BX129: =+BX$18+$J90 -> 0.09672539149 | BY129: 0.09672539149 | BZ129: 0.09672539149 | CA129: 0.09672539149 | CB129: 0.09672539149 | CC129: 0.09672539149 | CD129: 0.09672539149 | CE129: 0.09672539149 | CF129: 0.09672539149 | CG129: 0.09672539149 | CH129: 0.09672539149
B130: Tasa de captación (T.A) 2 años | C130: =+C$18+$D91 -> 0.09681658434 | D130: 0.09681658434 | E130: 0.09681658434 | F130: 0.09681658434 | G130: 0.09681658434 | H130: 0.09681658434 | I130: 0.09681658434 | J130: 0.09681658434 | K130: 0.09681658434 | L130: 0.09681658434 | M130: 0.09681658434 | N130: 0.09681658434 | O130: =+O$18+$E91 -> 0.09772539149 | P130: 0.09772539149 | Q130: 0.09772539149 | R130: 0.09772539149 | S130: 0.09772539149 | T130: 0.09772539149 | U130: 0.09772539149 | V130: 0.09772539149 | W130: 0.09772539149 | X130: 0.09772539149 | Y130: 0.09772539149 | Z130: 0.09772539149 | AA130: 0.09772539149 | AB130: =+AB$18+$F91 -> 0.09772539149 | AC130: 0.09772539149 | AD130: 0.09772539149 | AE130: 0.09772539149 | AF130: 0.09772539149 | AG130: 0.09772539149 | AH130: 0.09772539149 | AI130: 0.09772539149 | AJ130: 0.09772539149 | AK130: 0.09772539149 | AL130: 0.09772539149 | AM130: =+AM$18+$G91 -> 0.09772539149 | AN130: 0.09772539149 | AO130: 0.09772539149 | AP130: 0.09772539149 | AQ130: 0.09772539149 | AR130: 0.09772539149 | AS130: 0.09772539149 | AT130: 0.09772539149 | AU130: 0.09772539149 | AV130: 0.09772539149 | AW130: 0.09772539149 | AX130: 0.09772539149 | AY130: =+AY$18+$H91 -> 0.09772539149 | AZ130: 0.09772539149 | BA130: 0.09772539149 | BB130: 0.09772539149 | BC130: 0.09772539149 | BD130: 0.09772539149 | BE130: 0.09772539149 | BF130: 0.09772539149 | BG130: 0.09772539149 | BH130: 0.09772539149 | BI130: 0.09772539149 | BJ130: 0.09772539149 | BK130: =+BK$18+$I91 -> 0.09772539149 | BL130: 0.09772539149 | BM130: 0.09772539149 | BN130: 0.09772539149 | BO130: 0.09772539149 | BP130: 0.09772539149 | BQ130: 0.09772539149 | BR130: 0.09772539149 | BS130: 0.09772539149 | BT130: 0.09772539149 | BU130: 0.09772539149 | BV130: 0.09772539149 | BW130: =+BW$18+$J91 -> 0.09772539149 | BX130: 0.09772539149 | BY130: 0.09772539149 | BZ130: 0.09772539149 | CA130: 0.09772539149 | CB130: 0.09772539149 | CC130: 0.09772539149 | CD130: 0.09772539149 | CE130: 0.09772539149 | CF130: 0.09772539149 | CG130: 0.09772539149 | CH130: 0.09772539149
B131: Tasa de captación (T.A) 3 años | C131: =+C$18+$D92 -> 0.09781658434 | D131: 0.09781658434 | E131: 0.09781658434 | F131: 0.09781658434 | G131: 0.09781658434 | H131: 0.09781658434 | I131: 0.09781658434 | J131: 0.09781658434 | K131: 0.09781658434 | L131: 0.09781658434 | M131: 0.09781658434 | N131: 0.09781658434 | O131: =+O$18+$E92 -> 0.09872539149 | P131: 0.09872539149 | Q131: 0.09872539149 | R131: 0.09872539149 | S131: 0.09872539149 | T131: 0.09872539149 | U131: 0.09872539149 | V131: 0.09872539149 | W131: 0.09872539149 | X131: 0.09872539149 | Y131: 0.09872539149 | Z131: 0.09872539149 | AA131: 0.09872539149 | AB131: =+AB$18+$F92 -> 0.09872539149 | AC131: 0.09872539149 | AD131: 0.09872539149 | AE131: 0.09872539149 | AF131: 0.09872539149 | AG131: 0.09872539149 | AH131: 0.09872539149 | AI131: 0.09872539149 | AJ131: 0.09872539149 | AK131: 0.09872539149 | AL131: 0.09872539149 | AM131: =+AM$18+$G92 -> 0.09872539149 | AN131: 0.09872539149 | AO131: 0.09872539149 | AP131: 0.09872539149 | AQ131: 0.09872539149 | AR131: 0.09872539149 | AS131: 0.09872539149 | AT131: 0.09872539149 | AU131: 0.09872539149 | AV131: 0.09872539149 | AW131: 0.09872539149 | AX131: 0.09872539149 | AY131: =+AY$18+$H92 -> 0.09872539149 | AZ131: 0.09872539149 | BA131: 0.09872539149 | BB131: 0.09872539149 | BC131: 0.09872539149 | BD131: 0.09872539149 | BE131: 0.09872539149 | BF131: 0.09872539149 | BG131: 0.09872539149 | BH131: 0.09872539149 | BI131: 0.09872539149 | BJ131: 0.09872539149 | BK131: =+BK$18+$I92 -> 0.09872539149 | BL131: 0.09872539149 | BM131: 0.09872539149 | BN131: 0.09872539149 | BO131: 0.09872539149 | BP131: 0.09872539149 | BQ131: 0.09872539149 | BR131: 0.09872539149 | BS131: 0.09872539149 | BT131: 0.09872539149 | BU131: 0.09872539149 | BV131: 0.09872539149 | BW131: =+BW$18+$J92 -> 0.09872539149 | BX131: 0.09872539149 | BY131: 0.09872539149 | BZ131: 0.09872539149 | CA131: 0.09872539149 | CB131: 0.09872539149 | CC131: 0.09872539149 | CD131: 0.09872539149 | CE131: 0.09872539149 | CF131: 0.09872539149 | CG131: 0.09872539149 | CH131: 0.09872539149
B132: Tasa de captación (T.A) 4 años | C132: =+C$18+$D93 -> 0.09881658434 | D132: 0.09881658434 | E132: 0.09881658434 | F132: 0.09881658434 | G132: 0.09881658434 | H132: 0.09881658434 | I132: 0.09881658434 | J132: 0.09881658434 | K132: 0.09881658434 | L132: 0.09881658434 | M132: 0.09881658434 | N132: 0.09881658434 | O132: =+O$18+$E93 -> 0.09972539149 | P132: 0.09972539149 | Q132: 0.09972539149 | R132: 0.09972539149 | S132: 0.09972539149 | T132: 0.09972539149 | U132: 0.09972539149 | V132: 0.09972539149 | W132: 0.09972539149 | X132: 0.09972539149 | Y132: 0.09972539149 | Z132: 0.09972539149 | AA132: 0.09972539149 | AB132: =+AB$18+$F93 -> 0.09972539149 | AC132: 0.09972539149 | AD132: 0.09972539149 | AE132: 0.09972539149 | AF132: 0.09972539149 | AG132: 0.09972539149 | AH132: 0.09972539149 | AI132: 0.09972539149 | AJ132: 0.09972539149 | AK132: 0.09972539149 | AL132: 0.09972539149 | AM132: =+AM$18+$G93 -> 0.09972539149 | AN132: 0.09972539149 | AO132: 0.09972539149 | AP132: 0.09972539149 | AQ132: 0.09972539149 | AR132: 0.09972539149 | AS132: 0.09972539149 | AT132: 0.09972539149 | AU132: 0.09972539149 | AV132: 0.09972539149 | AW132: 0.09972539149 | AX132: 0.09972539149 | AY132: =+AY$18+$H93 -> 0.09972539149 | AZ132: 0.09972539149 | BA132: 0.09972539149 | BB132: 0.09972539149 | BC132: 0.09972539149 | BD132: 0.09972539149 | BE132: 0.09972539149 | BF132: 0.09972539149 | BG132: 0.09972539149 | BH132: 0.09972539149 | BI132: 0.09972539149 | BJ132: 0.09972539149 | BK132: =+BK$18+$I93 -> 0.09972539149 | BL132: 0.09972539149 | BM132: 0.09972539149 | BN132: 0.09972539149 | BO132: 0.09972539149 | BP132: 0.09972539149 | BQ132: 0.09972539149 | BR132: 0.09972539149 | BS132: 0.09972539149 | BT132: 0.09972539149 | BU132: 0.09972539149 | BV132: 0.09972539149 | BW132: =+BW$18+$J93 -> 0.09972539149 | BX132: 0.09972539149 | BY132: 0.09972539149 | BZ132: 0.09972539149 | CA132: 0.09972539149 | CB132: 0.09972539149 | CC132: 0.09972539149 | CD132: 0.09972539149 | CE132: 0.09972539149 | CF132: 0.09972539149 | CG132: 0.09972539149 | CH132: 0.09972539149
B133: Tasa de captación (T.A) 5 años | C133: =+C$18+$D94 -> 0.09981658434 | D133: 0.09981658434 | E133: 0.09981658434 | F133: 0.09981658434 | G133: 0.09981658434 | H133: 0.09981658434 | I133: 0.09981658434 | J133: 0.09981658434 | K133: 0.09981658434 | L133: 0.09981658434 | M133: 0.09981658434 | N133: 0.09981658434 | O133: =+O$18+$E94 -> 0.1007253915 | P133: 0.1007253915 | Q133: 0.1007253915 | R133: 0.1007253915 | S133: 0.1007253915 | T133: 0.1007253915 | U133: 0.1007253915 | V133: 0.1007253915 | W133: 0.1007253915 | X133: 0.1007253915 | Y133: 0.1007253915 | Z133: 0.1007253915 | AA133: 0.1007253915 | AB133: =+AB$18+$F94 -> 0.1007253915 | AC133: 0.1007253915 | AD133: 0.1007253915 | AE133: 0.1007253915 | AF133: 0.1007253915 | AG133: 0.1007253915 | AH133: 0.1007253915 | AI133: 0.1007253915 | AJ133: 0.1007253915 | AK133: 0.1007253915 | AL133: 0.1007253915 | AM133: =+AM$18+$G94 -> 0.1007253915 | AN133: 0.1007253915 | AO133: 0.1007253915 | AP133: 0.1007253915 | AQ133: 0.1007253915 | AR133: 0.1007253915 | AS133: 0.1007253915 | AT133: 0.1007253915 | AU133: 0.1007253915 | AV133: 0.1007253915 | AW133: 0.1007253915 | AX133: 0.1007253915 | AY133: =+AY$18+$H94 -> 0.1007253915 | AZ133: 0.1007253915 | BA133: 0.1007253915 | BB133: 0.1007253915 | BC133: 0.1007253915 | BD133: 0.1007253915 | BE133: 0.1007253915 | BF133: 0.1007253915 | BG133: 0.1007253915 | BH133: 0.1007253915 | BI133: 0.1007253915 | BJ133: 0.1007253915 | BK133: =+BK$18+$I94 -> 0.1007253915 | BL133: 0.1007253915 | BM133: 0.1007253915 | BN133: 0.1007253915 | BO133: 0.1007253915 | BP133: 0.1007253915 | BQ133: 0.1007253915 | BR133: 0.1007253915 | BS133: 0.1007253915 | BT133: 0.1007253915 | BU133: 0.1007253915 | BV133: 0.1007253915 | BW133: =+BW$18+$J94 -> 0.1007253915 | BX133: 0.1007253915 | BY133: 0.1007253915 | BZ133: 0.1007253915 | CA133: 0.1007253915 | CB133: 0.1007253915 | CC133: 0.1007253915 | CD133: 0.1007253915 | CE133: 0.1007253915 | CF133: 0.1007253915 | CG133: 0.1007253915 | CH133: 0.1007253915
B134: Tasa de captación (T.A) 6 años | C134: =+C$18+$D95 -> 0.1008165843 | D134: 0.1008165843 | E134: 0.1008165843 | F134: 0.1008165843 | G134: 0.1008165843 | H134: 0.1008165843 | I134: 0.1008165843 | J134: 0.1008165843 | K134: 0.1008165843 | L134: 0.1008165843 | M134: 0.1008165843 | N134: 0.1008165843 | O134: =+O$18+$E95 -> 0.1017253915 | P134: 0.1017253915 | Q134: 0.1017253915 | R134: 0.1017253915 | S134: 0.1017253915 | T134: 0.1017253915 | U134: 0.1017253915 | V134: 0.1017253915 | W134: 0.1017253915 | X134: 0.1017253915 | Y134: 0.1017253915 | Z134: 0.1017253915 | AA134: 0.1017253915 | AB134: =+AB$18+$F95 -> 0.1017253915 | AC134: 0.1017253915 | AD134: 0.1017253915 | AE134: 0.1017253915 | AF134: 0.1017253915 | AG134: 0.1017253915 | AH134: 0.1017253915 | AI134: 0.1017253915 | AJ134: 0.1017253915 | AK134: 0.1017253915 | AL134: 0.1017253915 | AM134: =+AM$18+$G95 -> 0.1017253915 | AN134: 0.1017253915 | AO134: 0.1017253915 | AP134: 0.1017253915 | AQ134: 0.1017253915 | AR134: 0.1017253915 | AS134: 0.1017253915 | AT134: 0.1017253915 | AU134: 0.1017253915 | AV134: 0.1017253915 | AW134: 0.1017253915 | AX134: 0.1017253915 | AY134: =+AY$18+$H95 -> 0.1017253915 | AZ134: 0.1017253915 | BA134: 0.1017253915 | BB134: 0.1017253915 | BC134: 0.1017253915 | BD134: 0.1017253915 | BE134: 0.1017253915 | BF134: 0.1017253915 | BG134: 0.1017253915 | BH134: 0.1017253915 | BI134: 0.1017253915 | BJ134: 0.1017253915 | BK134: =+BK$18+$I95 -> 0.1017253915 | BL134: 0.1017253915 | BM134: 0.1017253915 | BN134: 0.1017253915 | BO134: 0.1017253915 | BP134: 0.1017253915 | BQ134: 0.1017253915 | BR134: 0.1017253915 | BS134: 0.1017253915 | BT134: 0.1017253915 | BU134: 0.1017253915 | BV134: 0.1017253915 | BW134: =+BW$18+$J95 -> 0.1017253915 | BX134: 0.1017253915 | BY134: 0.1017253915 | BZ134: 0.1017253915 | CA134: 0.1017253915 | CB134: 0.1017253915 | CC134: 0.1017253915 | CD134: 0.1017253915 | CE134: 0.1017253915 | CF134: 0.1017253915 | CG134: 0.1017253915 | CH134: 0.1017253915
B135: Tasa de captación (T.A) 7 años | C135: =+C$18+$D96 -> 0.1023165843 | D135: 0.1023165843 | E135: 0.1023165843 | F135: 0.1023165843 | G135: 0.1023165843 | H135: 0.1023165843 | I135: 0.1023165843 | J135: 0.1023165843 | K135: 0.1023165843 | L135: 0.1023165843 | M135: 0.1023165843 | N135: 0.1023165843 | O135: =+O$18+$E96 -> 0.1032253915 | P135: 0.1032253915 | Q135: 0.1032253915 | R135: 0.1032253915 | S135: 0.1032253915 | T135: 0.1032253915 | U135: 0.1032253915 | V135: 0.1032253915 | W135: 0.1032253915 | X135: 0.1032253915 | Y135: 0.1032253915 | Z135: 0.1032253915 | AA135: 0.1032253915 | AB135: =+AB$18+$F96 -> 0.1032253915 | AC135: 0.1032253915 | AD135: 0.1032253915 | AE135: 0.1032253915 | AF135: 0.1032253915 | AG135: 0.1032253915 | AH135: 0.1032253915 | AI135: 0.1032253915 | AJ135: 0.1032253915 | AK135: 0.1032253915 | AL135: 0.1032253915 | AM135: =+AM$18+$G96 -> 0.1032253915 | AN135: 0.1032253915 | AO135: 0.1032253915 | AP135: 0.1032253915 | AQ135: 0.1032253915 | AR135: 0.1032253915 | AS135: 0.1032253915 | AT135: 0.1032253915 | AU135: 0.1032253915 | AV135: 0.1032253915 | AW135: 0.1032253915 | AX135: 0.1032253915 | AY135: =+AY$18+$H96 -> 0.1032253915 | AZ135: 0.1032253915 | BA135: 0.1032253915 | BB135: 0.1032253915 | BC135: 0.1032253915 | BD135: 0.1032253915 | BE135: 0.1032253915 | BF135: 0.1032253915 | BG135: 0.1032253915 | BH135: 0.1032253915 | BI135: 0.1032253915 | BJ135: 0.1032253915 | BK135: =+BK$18+$I96 -> 0.1032253915 | BL135: 0.1032253915 | BM135: 0.1032253915 | BN135: 0.1032253915 | BO135: 0.1032253915 | BP135: 0.1032253915 | BQ135: 0.1032253915 | BR135: 0.1032253915 | BS135: 0.1032253915 | BT135: 0.1032253915 | BU135: 0.1032253915 | BV135: 0.1032253915 | BW135: =+BW$18+$J96 -> 0.1032253915 | BX135: 0.1032253915 | BY135: 0.1032253915 | BZ135: 0.1032253915 | CA135: 0.1032253915 | CB135: 0.1032253915 | CC135: 0.1032253915 | CD135: 0.1032253915 | CE135: 0.1032253915 | CF135: 0.1032253915 | CG135: 0.1032253915 | CH135: 0.1032253915
A136: 1 | B136: Tasa de captación (T.V) 1 año | C136: =(((1+((1-(C129/4))^-4-1))^(90/360))-1)*(360/90) -> 0.09816811777 | D136: =(((1+((1-(D129/4))^-4-1))^(90/360))-1)*(360/90) -> 0.09816811777 | E136: 0.09816811777 | F136: 0.09816811777 | G136: 0.09816811777 | H136: 0.09816811777 | I136: 0.09816811777 | J136: 0.09816811777 | K136: 0.09816811777 | L136: 0.09816811777 | M136: 0.09816811777 | N136: 0.09816811777 | O136: 0.09912230237 | P136: 0.09912230237 | Q136: 0.09912230237 | R136: 0.09912230237 | S136: 0.09912230237 | T136: 0.09912230237 | U136: 0.09912230237 | V136: 0.09912230237 | W136: 0.09912230237 | X136: 0.09912230237 | Y136: 0.09912230237 | Z136: 0.09912230237 | AA136: 0.09912230237 | AB136: 0.09912230237 | AC136: 0.09912230237 | AD136: 0.09912230237 | AE136: 0.09912230237 | AF136: 0.09912230237 | AG136: 0.09912230237 | AH136: 0.09912230237 | AI136: 0.09912230237 | AJ136: 0.09912230237 | AK136: 0.09912230237 | AL136: 0.09912230237 | AM136: 0.09912230237 | AN136: 0.09912230237 | AO136: 0.09912230237 | AP136: 0.09912230237 | AQ136: 0.09912230237 | AR136: 0.09912230237 | AS136: 0.09912230237 | AT136: 0.09912230237 | AU136: 0.09912230237 | AV136: 0.09912230237 | AW136: 0.09912230237 | AX136: 0.09912230237 | AY136: 0.09912230237 | AZ136: 0.09912230237 | BA136: 0.09912230237 | BB136: 0.09912230237 | BC136: 0.09912230237 | BD136: 0.09912230237 | BE136: 0.09912230237 | BF136: 0.09912230237 | BG136: 0.09912230237 | BH136: 0.09912230237 | BI136: 0.09912230237 | BJ136: 0.09912230237 | BK136: 0.09912230237 | BL136: 0.09912230237 | BM136: 0.09912230237 | BN136: 0.09912230237 | BO136: 0.09912230237 | BP136: =(((1+((1-(BP129/4))^-4-1))^(90/360))-1)*(360/90) -> 0.09912230237 | BQ136: 0.09912230237 | BR136: 0.09912230237 | BS136: 0.09912230237 | BT136: 0.09912230237 | BU136: 0.09912230237 | BV136: 0.09912230237 | BW136: 0.09912230237 | BX136: 0.09912230237 | BY136: 0.09912230237 | BZ136: 0.09912230237 | CA136: 0.09912230237 | CB136: 0.09912230237 | CC136: 0.09912230237 | CD136: 0.09912230237 | CE136: 0.09912230237 | CF136: 0.09912230237 | CG136: 0.09912230237 | CH136: 0.09912230237
A137: 2 | B137: Tasa de captación (T.V) 2 años | C137: 0.09921807307 | D137: =(((1+((1-(D130/4))^-4-1))^(90/360))-1)*(360/90) -> 0.09921807307 | E137: 0.09921807307 | F137: 0.09921807307 | G137: 0.09921807307 | H137: 0.09921807307 | I137: 0.09921807307 | J137: 0.09921807307 | K137: 0.09921807307 | L137: 0.09921807307 | M137: 0.09921807307 | N137: 0.09921807307 | O137: 0.1001727467 | P137: 0.1001727467 | Q137: 0.1001727467 | R137: 0.1001727467 | S137: 0.1001727467 | T137: 0.1001727467 | U137: 0.1001727467 | V137: 0.1001727467 | W137: 0.1001727467 | X137: 0.1001727467 | Y137: 0.1001727467 | Z137: 0.1001727467 | AA137: 0.1001727467 | AB137: 0.1001727467 | AC137: 0.1001727467 | AD137: 0.1001727467 | AE137: 0.1001727467 | AF137: 0.1001727467 | AG137: 0.1001727467 | AH137: 0.1001727467 | AI137: 0.1001727467 | AJ137: 0.1001727467 | AK137: 0.1001727467 | AL137: 0.1001727467 | AM137: 0.1001727467 | AN137: 0.1001727467 | AO137: 0.1001727467 | AP137: 0.1001727467 | AQ137: 0.1001727467 | AR137: 0.1001727467 | AS137: 0.1001727467 | AT137: 0.1001727467 | AU137: 0.1001727467 | AV137: 0.1001727467 | AW137: 0.1001727467 | AX137: 0.1001727467 | AY137: 0.1001727467 | AZ137: 0.1001727467 | BA137: 0.1001727467 | BB137: 0.1001727467 | BC137: 0.1001727467 | BD137: 0.1001727467 | BE137: 0.1001727467 | BF137: 0.1001727467 | BG137: 0.1001727467 | BH137: 0.1001727467 | BI137: 0.1001727467 | BJ137: 0.1001727467 | BK137: 0.1001727467 | BL137: 0.1001727467 | BM137: 0.1001727467 | BN137: 0.1001727467 | BO137: 0.1001727467 | BP137: =(((1+((1-(BP130/4))^-4-1))^(90/360))-1)*(360/90) -> 0.1001727467 | BQ137: 0.1001727467 | BR137: 0.1001727467 | BS137: 0.1001727467 | BT137: 0.1001727467 | BU137: 0.1001727467 | BV137: 0.1001727467 | BW137: 0.1001727467 | BX137: 0.1001727467 | BY137: 0.1001727467 | BZ137: 0.1001727467 | CA137: 0.1001727467 | CB137: 0.1001727467 | CC137: 0.1001727467 | CD137: 0.1001727467 | CE137: 0.1001727467 | CF137: 0.1001727467 | CG137: 0.1001727467 | CH137: 0.1001727467
A138: 3 | B138: Tasa de captación (T.V) 3 años | C138: 0.1002685665 | D138: =(((1+((1-(D131/4))^-4-1))^(90/360))-1)*(360/90) -> 0.1002685665 | E138: 0.1002685665 | F138: 0.1002685665 | G138: 0.1002685665 | H138: 0.1002685665 | I138: 0.1002685665 | J138: 0.1002685665 | K138: 0.1002685665 | L138: 0.1002685665 | M138: 0.1002685665 | N138: 0.1002685665 | O138: 0.1012237296 | P138: 0.1012237296 | Q138: 0.1012237296 | R138: 0.1012237296 | S138: 0.1012237296 | T138: 0.1012237296 | U138: 0.1012237296 | V138: 0.1012237296 | W138: 0.1012237296 | X138: 0.1012237296 | Y138: 0.1012237296 | Z138: 0.1012237296 | AA138: 0.1012237296 | AB138: 0.1012237296 | AC138: 0.1012237296 | AD138: 0.1012237296 | AE138: 0.1012237296 | AF138: 0.1012237296 | AG138: 0.1012237296 | AH138: 0.1012237296 | AI138: 0.1012237296 | AJ138: 0.1012237296 | AK138: 0.1012237296 | AL138: 0.1012237296 | AM138: 0.1012237296 | AN138: 0.1012237296 | AO138: 0.1012237296 | AP138: 0.1012237296 | AQ138: 0.1012237296 | AR138: 0.1012237296 | AS138: 0.1012237296 | AT138: 0.1012237296 | AU138: 0.1012237296 | AV138: 0.1012237296 | AW138: 0.1012237296 | AX138: 0.1012237296 | AY138: 0.1012237296 | AZ138: 0.1012237296 | BA138: 0.1012237296 | BB138: 0.1012237296 | BC138: 0.1012237296 | BD138: 0.1012237296 | BE138: 0.1012237296 | BF138: 0.1012237296 | BG138: 0.1012237296 | BH138: 0.1012237296 | BI138: 0.1012237296 | BJ138: 0.1012237296 | BK138: 0.1012237296 | BL138: 0.1012237296 | BM138: 0.1012237296 | BN138: 0.1012237296 | BO138: 0.1012237296 | BP138: =(((1+((1-(BP131/4))^-4-1))^(90/360))-1)*(360/90) -> 0.1012237296 | BQ138: 0.1012237296 | BR138: 0.1012237296 | BS138: 0.1012237296 | BT138: 0.1012237296 | BU138: 0.1012237296 | BV138: 0.1012237296 | BW138: 0.1012237296 | BX138: 0.1012237296 | BY138: 0.1012237296 | BZ138: 0.1012237296 | CA138: 0.1012237296 | CB138: 0.1012237296 | CC138: 0.1012237296 | CD138: 0.1012237296 | CE138: 0.1012237296 | CF138: 0.1012237296 | CG138: 0.1012237296 | CH138: 0.1012237296
A139: 4 | B139: Tasa de captación (T.V) 4 años | C139: 0.1013195985 | D139: =(((1+((1-(D132/4))^-4-1))^(90/360))-1)*(360/90) -> 0.1013195985 | E139: 0.1013195985 | F139: 0.1013195985 | G139: 0.1013195985 | H139: 0.1013195985 | I139: 0.1013195985 | J139: 0.1013195985 | K139: 0.1013195985 | L139: 0.1013195985 | M139: 0.1013195985 | N139: 0.1013195985 | O139: 0.1022752514 | P139: 0.1022752514 | Q139: 0.1022752514 | R139: 0.1022752514 | S139: 0.1022752514 | T139: 0.1022752514 | U139: 0.1022752514 | V139: 0.1022752514 | W139: 0.1022752514 | X139: 0.1022752514 | Y139: 0.1022752514 | Z139: 0.1022752514 | AA139: 0.1022752514 | AB139: 0.1022752514 | AC139: 0.1022752514 | AD139: 0.1022752514 | AE139: 0.1022752514 | AF139: 0.1022752514 | AG139: 0.1022752514 | AH139: 0.1022752514 | AI139: 0.1022752514 | AJ139: 0.1022752514 | AK139: 0.1022752514 | AL139: 0.1022752514 | AM139: 0.1022752514 | AN139: 0.1022752514 | AO139: 0.1022752514 | AP139: 0.1022752514 | AQ139: 0.1022752514 | AR139: 0.1022752514 | AS139: 0.1022752514 | AT139: 0.1022752514 | AU139: 0.1022752514 | AV139: 0.1022752514 | AW139: 0.1022752514 | AX139: 0.1022752514 | AY139: 0.1022752514 | AZ139: 0.1022752514 | BA139: 0.1022752514 | BB139: 0.1022752514 | BC139: 0.1022752514 | BD139: 0.1022752514 | BE139: 0.1022752514 | BF139: 0.1022752514 | BG139: 0.1022752514 | BH139: 0.1022752514 | BI139: 0.1022752514 | BJ139: 0.1022752514 | BK139: 0.1022752514 | BL139: 0.1022752514 | BM139: 0.1022752514 | BN139: 0.1022752514 | BO139: 0.1022752514 | BP139: 0.1022752514 | BQ139: 0.1022752514 | BR139: 0.1022752514 | BS139: 0.1022752514 | BT139: 0.1022752514 | BU139: 0.1022752514 | BV139: 0.1022752514 | BW139: 0.1022752514 | BX139: 0.1022752514 | BY139: 0.1022752514 | BZ139: 0.1022752514 | CA139: 0.1022752514 | CB139: 0.1022752514 | CC139: 0.1022752514 | CD139: 0.1022752514 | CE139: 0.1022752514 | CF139: 0.1022752514 | CG139: 0.1022752514 | CH139: 0.1022752514
A140: 5 | B140: Tasa de captación (T.V) 5 años | C140: 0.1023711695 | D140: =(((1+((1-(D133/4))^-4-1))^(90/360))-1)*(360/90) -> 0.1023711695 | E140: 0.1023711695 | F140: 0.1023711695 | G140: 0.1023711695 | H140: 0.1023711695 | I140: 0.1023711695 | J140: 0.1023711695 | K140: 0.1023711695 | L140: 0.1023711695 | M140: 0.1023711695 | N140: 0.1023711695 | O140: 0.1033273125 | P140: 0.1033273125 | Q140: 0.1033273125 | R140: 0.1033273125 | S140: 0.1033273125 | T140: 0.1033273125 | U140: 0.1033273125 | V140: 0.1033273125 | W140: 0.1033273125 | X140: 0.1033273125 | Y140: 0.1033273125 | Z140: 0.1033273125 | AA140: 0.1033273125 | AB140: 0.1033273125 | AC140: 0.1033273125 | AD140: 0.1033273125 | AE140: 0.1033273125 | AF140: 0.1033273125 | AG140: 0.1033273125 | AH140: 0.1033273125 | AI140: 0.1033273125 | AJ140: 0.1033273125 | AK140: 0.1033273125 | AL140: 0.1033273125 | AM140: 0.1033273125 | AN140: 0.1033273125 | AO140: 0.1033273125 | AP140: 0.1033273125 | AQ140: 0.1033273125 | AR140: 0.1033273125 | AS140: 0.1033273125 | AT140: 0.1033273125 | AU140: 0.1033273125 | AV140: 0.1033273125 | AW140: 0.1033273125 | AX140: 0.1033273125 | AY140: 0.1033273125 | AZ140: 0.1033273125 | BA140: 0.1033273125 | BB140: 0.1033273125 | BC140: 0.1033273125 | BD140: 0.1033273125 | BE140: 0.1033273125 | BF140: 0.1033273125 | BG140: 0.1033273125 | BH140: 0.1033273125 | BI140: 0.1033273125 | BJ140: 0.1033273125 | BK140: 0.1033273125 | BL140: 0.1033273125 | BM140: 0.1033273125 | BN140: 0.1033273125 | BO140: 0.1033273125 | BP140: 0.1033273125 | BQ140: 0.1033273125 | BR140: 0.1033273125 | BS140: 0.1033273125 | BT140: 0.1033273125 | BU140: 0.1033273125 | BV140: 0.1033273125 | BW140: 0.1033273125 | BX140: 0.1033273125 | BY140: 0.1033273125 | BZ140: 0.1033273125 | CA140: 0.1033273125 | CB140: 0.1033273125 | CC140: 0.1033273125 | CD140: 0.1033273125 | CE140: 0.1033273125 | CF140: 0.1033273125 | CG140: 0.1033273125 | CH140: 0.1033273125
A141: 6 | B141: Tasa de captación (T.V) 6 años | C141: 0.1034232798 | D141: 0.1034232798 | E141: 0.1034232798 | F141: 0.1034232798 | G141: 0.1034232798 | H141: 0.1034232798 | I141: 0.1034232798 | J141: 0.1034232798 | K141: 0.1034232798 | L141: 0.1034232798 | M141: 0.1034232798 | N141: 0.1034232798 | O141: 0.1043799134 | P141: 0.1043799134 | Q141: 0.1043799134 | R141: 0.1043799134 | S141: 0.1043799134 | T141: 0.1043799134 | U141: 0.1043799134 | V141: 0.1043799134 | W141: 0.1043799134 | X141: 0.1043799134 | Y141: 0.1043799134 | Z141: 0.1043799134 | AA141: 0.1043799134 | AB141: 0.1043799134 | AC141: 0.1043799134 | AD141: 0.1043799134 | AE141: 0.1043799134 | AF141: 0.1043799134 | AG141: 0.1043799134 | AH141: 0.1043799134 | AI141: 0.1043799134 | AJ141: 0.1043799134 | AK141: 0.1043799134 | AL141: 0.1043799134 | AM141: 0.1043799134 | AN141: 0.1043799134 | AO141: 0.1043799134 | AP141: 0.1043799134 | AQ141: 0.1043799134 | AR141: 0.1043799134 | AS141: 0.1043799134 | AT141: 0.1043799134 | AU141: 0.1043799134 | AV141: 0.1043799134 | AW141: 0.1043799134 | AX141: 0.1043799134 | AY141: 0.1043799134 | AZ141: 0.1043799134 | BA141: 0.1043799134 | BB141: 0.1043799134 | BC141: 0.1043799134 | BD141: 0.1043799134 | BE141: 0.1043799134 | BF141: 0.1043799134 | BG141: 0.1043799134 | BH141: 0.1043799134 | BI141: 0.1043799134 | BJ141: 0.1043799134 | BK141: 0.1043799134 | BL141: 0.1043799134 | BM141: 0.1043799134 | BN141: 0.1043799134 | BO141: 0.1043799134 | BP141: 0.1043799134 | BQ141: 0.1043799134 | BR141: 0.1043799134 | BS141: 0.1043799134 | BT141: 0.1043799134 | BU141: 0.1043799134 | BV141: 0.1043799134 | BW141: 0.1043799134 | BX141: 0.1043799134 | BY141: 0.1043799134 | BZ141: 0.1043799134 | CA141: 0.1043799134 | CB141: 0.1043799134 | CC141: 0.1043799134 | CD141: 0.1043799134 | CE141: 0.1043799134 | CF141: 0.1043799134 | CG141: 0.1043799134 | CH141: 0.1043799134
A142: 7 | B142: Tasa de captación (T.V) 7 años | C142: 0.1050024575 | D142: 0.1050024575 | E142: 0.1050024575 | F142: 0.1050024575 | G142: 0.1050024575 | H142: 0.1050024575 | I142: 0.1050024575 | J142: 0.1050024575 | K142: 0.1050024575 | L142: 0.1050024575 | M142: 0.1050024575 | N142: 0.1050024575 | O142: 0.1059598277 | P142: 0.1059598277 | Q142: 0.1059598277 | R142: 0.1059598277 | S142: 0.1059598277 | T142: 0.1059598277 | U142: 0.1059598277 | V142: 0.1059598277 | W142: 0.1059598277 | X142: 0.1059598277 | Y142: 0.1059598277 | Z142: 0.1059598277 | AA142: 0.1059598277 | AB142: 0.1059598277 | AC142: 0.1059598277 | AD142: 0.1059598277 | AE142: 0.1059598277 | AF142: 0.1059598277 | AG142: 0.1059598277 | AH142: 0.1059598277 | AI142: 0.1059598277 | AJ142: 0.1059598277 | AK142: 0.1059598277 | AL142: 0.1059598277 | AM142: 0.1059598277 | AN142: 0.1059598277 | AO142: 0.1059598277 | AP142: 0.1059598277 | AQ142: 0.1059598277 | AR142: 0.1059598277 | AS142: 0.1059598277 | AT142: 0.1059598277 | AU142: 0.1059598277 | AV142: 0.1059598277 | AW142: 0.1059598277 | AX142: 0.1059598277 | AY142: 0.1059598277 | AZ142: 0.1059598277 | BA142: 0.1059598277 | BB142: 0.1059598277 | BC142: 0.1059598277 | BD142: 0.1059598277 | BE142: 0.1059598277 | BF142: 0.1059598277 | BG142: 0.1059598277 | BH142: 0.1059598277 | BI142: 0.1059598277 | BJ142: 0.1059598277 | BK142: 0.1059598277 | BL142: 0.1059598277 | BM142: 0.1059598277 | BN142: 0.1059598277 | BO142: 0.1059598277 | BP142: 0.1059598277 | BQ142: 0.1059598277 | BR142: 0.1059598277 | BS142: 0.1059598277 | BT142: 0.1059598277 | BU142: 0.1059598277 | BV142: 0.1059598277 | BW142: 0.1059598277 | BX142: 0.1059598277 | BY142: 0.1059598277 | BZ142: 0.1059598277 | CA142: 0.1059598277 | CB142: 0.1059598277 | CC142: 0.1059598277 | CD142: 0.1059598277 | CE142: 0.1059598277 | CF142: 0.1059598277 | CG142: 0.1059598277 | CH142: 0.1059598277
